Workbook

Sheet DL1153_2025
AO1: 1 | BB1: 1
B2: REPORTE DE INDICADORES DE CONVENIOS DE GESTION DL 1153 - 2025 | AGOSTO 2025
B4: DIRIS/DIRESA | C4: NACIONAL
B6: Area Responsable | C6: Indicador | D6: Valor 2025 | E6: AGOSTO | F6: Mes mínimo | G6: Mes máximo | H6: Comportamiento mensual | AP6: 2 | AQ6: 3 | AR6: 4 | AS6: 5 | AT6: 6 | AU6: 7 | AV6: 8 | AW6: 9 | AX6: 10 | AY6: 11 | AZ6: 12 | BA6: 13
A7: DL_1153_2024_CG01 | B7: DGIESP /UFANS | C7: Ficha 01: Porcentaje de niñas y niños de 12 a 18 meses, con diagnóstico de anemia entre los 6 y 11 meses, que se han recuperado. | D7: =IFERROR(VLOOKUP($C$4,DL_1153_2025_CG01!BP62:BQ91,2,0),"-") -> 32.7% | E7: =+IFERROR(VLOOKUP($E$6,DL_1153_2025_CG01!$CN$47:$DR$59,MATCH(DL1153_2025!$C$4,DL_1153_2025_CG01!$CN$47:$DR$47,0),FALSE),"-") -> 35.8% | F7: =+IFERROR(VLOOKUP($C$4,DL_1153_2025_CG01!$CI$62:$CK$91,2,0),"-") -> 30.0% | G7: =+IFERROR(VLOOKUP($C$4,DL_1153_2025_CG01!$CI$62:$CK$91,3,0),"-") -> 35.8% | AP7: =+IFERROR(VLOOKUP($C$4,DL_1153_2025_CG01!$BU$61:$CG$91,DL1153_2025!AP$6,0),"-") -> 30.0% | AQ7: =+IFERROR(VLOOKUP($C$4,DL_1153_2025_CG01!$BU$61:$CG$91,DL1153_2025!AQ$6,0),"-") -> 30.9% | AR7: =+IFERROR(VLOOKUP($C$4,DL_1153_2025_CG01!$BU$61:$CG$91,DL1153_2025!AR$6,0),"-") -> 30.7% | AS7: =+IFERROR(VLOOKUP($C$4,DL_1153_2025_CG01!$BU$61:$CG$91,DL1153_2025!AS$6,0),"-") -> 30.8% | AT7: =+IFERROR(VLOOKUP($C$4,DL_1153_2025_CG01!$BU$61:$CG$91,DL1153_2025!AT$6,0),"-") -> 33.8% | AU7: =+IFERROR(VLOOKUP($C$4,DL_1153_2025_CG01!$BU$61:$CG$91,DL1153_2025!AU$6,0),"-") -> 34.0% | AV7: =+IFERROR(VLOOKUP($C$4,DL_1153_2025_CG01!$BU$61:$CG$91,DL1153_2025!AV$6,0),"-") -> 34.6% | AW7: =+IFERROR(VLOOKUP($C$4,DL_1153_2025_CG01!$BU$61:$CG$91,DL1153_2025!AW$6,0),"-") -> 35.8% | AX7: =+IFERROR(VLOOKUP($C$4,DL_1153_2025_CG01!$BU$61:$CG$91,DL1153_2025!AX$6,0),"-") -> - | AY7: =+IFERROR(VLOOKUP($C$4,DL_1153_2025_CG01!$BU$61:$CG$91,DL1153_2025!AY$6,0),"-") -> - | AZ7: =+IFERROR(VLOOKUP($C$4,DL_1153_2025_CG01!$BU$61:$CG$91,DL1153_2025!AZ$6,0),"-") -> - | BA7: =+IFERROR(VLOOKUP($C$4,DL_1153_2025_CG01!$BU$61:$CG$91,DL1153_2025!BA$6,0),"-") -> -
A8: DL_1153_2024_CG02 | B8: DGIESP / UFANS | C8: Ficha 02: Porcentaje de niñas/niños menores de 12 meses, que reciben un paquete integrado de servicios: CRED, vacunas, dosaje de hemoglobina para descarte de anemia y suplementación con hierro. | D8: =IFERROR(VLOOKUP($C$4,DL_1153_2025_CG02!BQ62:BR91,2,0),"-") -> 49.6% | E8: =+IFERROR(VLOOKUP($E$6,DL_1153_2025_CG02!$CM$28:$DQ$40,MATCH(DL1153_2025!$C$4,DL_1153_2025_CG02!$CM$28:$DQ$28,0),FALSE),"-") -> 49.6% | F8: =+IFERROR(VLOOKUP($C$4,DL_1153_2025_CG02!$CI$62:$CK$91,2,0),"-") -> 34.4% | G8: =+IFERROR(VLOOKUP($C$4,DL_1153_2025_CG02!$CI$62:$CK$91,3,0),"-") -> 49.6% | AP8: =+VLOOKUP($C$4,DL_1153_2025_CG02!$BU$61:$CG$91,DL1153_2025!AP$6,0) -> 34.4% | AQ8: =+VLOOKUP($C$4,DL_1153_2025_CG02!$BU$61:$CG$91,DL1153_2025!AQ$6,0) -> 36.0% | AR8: =+IFERROR(VLOOKUP($C$4,DL_1153_2025_CG02!$BU$61:$CG$91,DL1153_2025!AR$6,0),"-") -> 39.1% | AS8: =+VLOOKUP($C$4,DL_1153_2025_CG02!$BU$61:$CG$91,DL1153_2025!AS$6,0) -> 42.5% | AT8: =+VLOOKUP($C$4,DL_1153_2025_CG02!$BU$61:$CG$91,DL1153_2025!AT$6,0) -> 45.0% | AU8: =+VLOOKUP($C$4,DL_1153_2025_CG02!$BU$61:$CG$91,DL1153_2025!AU$6,0) -> 47.6% | AV8: =+VLOOKUP($C$4,DL_1153_2025_CG02!$BU$61:$CG$91,DL1153_2025!AV$6,0) -> 48.6% | AW8: =+VLOOKUP($C$4,DL_1153_2025_CG02!$BU$61:$CG$91,DL1153_2025!AW$6,0) -> 49.6% | AX8: =+VLOOKUP($C$4,DL_1153_2025_CG02!$BU$61:$CG$91,DL1153_2025!AX$6,0) -> - | AY8: =+VLOOKUP($C$4,DL_1153_2025_CG02!$BU$61:$CG$91,DL1153_2025!AY$6,0) -> - | AZ8: =+VLOOKUP($C$4,DL_1153_2025_CG02!$BU$61:$CG$91,DL1153_2025!AZ$6,0) -> - | BA8: =+VLOOKUP($C$4,DL_1153_2025_CG02!$BU$61:$CG$91,DL1153_2025!BA$6,0) -> -
A9: DL_1153_2024_CG03 | B9: DGIESP / DVICI | C9: Ficha 03: Porcentaje de niños y niñas de 6 a 35 meses con diagnóstico de anemia del Total de los casos esperados de anemia | D9: =IFERROR(VLOOKUP($C$4,DL_1153_2025_CG03!BH62:BI91,2,0),"-") -> 24.5% | E9: =+IFERROR(VLOOKUP($E$6,DL_1153_2025_CG03!$CD$35:$DZ$47,MATCH(DL1153_2025!$C$4,DL_1153_2025_CG03!$CD$35:$DH$35,0),FALSE),"-") -> 22.3% | F9: =+IFERROR(VLOOKUP($C$4,DL_1153_2025_CG03!$BZ$62:$CB$91,2,0),"-") -> 22.3% | G9: =+IFERROR(VLOOKUP($C$4,DL_1153_2025_CG03!$BZ$62:$CB$91,3,0),"-") -> 26.4% | AP9: =+IFERROR(VLOOKUP($C$4,DL_1153_2025_CG03!$BL$50:$BX$80,DL1153_2025!AP$6,0),"-") -> 26.4% | AQ9: =+IFERROR(VLOOKUP($C$4,DL_1153_2025_CG03!$BL$50:$BX$80,DL1153_2025!AQ$6,0),"-") -> 25.9% | AR9: =+IFERROR(VLOOKUP($C$4,DL_1153_2025_CG03!$BL$50:$BX$80,DL1153_2025!AR$6,0),"-") -> 25.6% | AS9: =+IFERROR(VLOOKUP($C$4,DL_1153_2025_CG03!$BL$50:$BX$80,DL1153_2025!AS$6,0),"-") -> 25.5% | AT9: =+IFERROR(VLOOKUP($C$4,DL_1153_2025_CG03!$BL$50:$BX$80,DL1153_2025!AT$6,0),"-") -> 24.5% | AU9: =+IFERROR(VLOOKUP($C$4,DL_1153_2025_CG03!$BL$50:$BX$80,DL1153_2025!AU$6,0),"-") -> 22.8% | AV9: =+IFERROR(VLOOKUP($C$4,DL_1153_2025_CG03!$BL$50:$BX$80,DL1153_2025!AV$6,0),"-") -> 22.6% | AW9: =+IFERROR(VLOOKUP($C$4,DL_1153_2025_CG03!$BL$50:$BX$80,DL1153_2025!AW$6,0),"-") -> 22.3% | AX9: =+IFERROR(VLOOKUP($C$4,DL_1153_2025_CG03!$BL$50:$BX$80,DL1153_2025!AX$6,0),"-") -> - | AY9: =+IFERROR(VLOOKUP($C$4,DL_1153_2025_CG03!$BL$50:$BX$80,DL1153_2025!AY$6,0),"-") -> - | AZ9: =+IFERROR(VLOOKUP($C$4,DL_1153_2025_CG03!$BL$50:$BX$80,DL1153_2025!AZ$6,0),"-") -> - | BA9: =+IFERROR(VLOOKUP($C$4,DL_1153_2025_CG03!$BL$50:$BX$80,DL1153_2025!BA$6,0),"-") -> -
A10: DL_1153_2024_CG04 | B10: DGIESP / DVICI | C10: Ficha 04:Porcentaje de recién nacidos que reciben vacunas BCG, HvB, controles CRED y tamizaje neonatal metabólico. | D10: =IFERROR(VLOOKUP($C$4,DL_1153_2025_CG04!BO51:BP81,2,0),"-") -> 51.7% | E10: =+IFERROR(VLOOKUP($E$6,DL_1153_2025_CG04!$CL$36:$DP$48,MATCH(DL1153_2025!$C$4,DL_1153_2025_CG04!$CL$36:$DP$36,0),FALSE),"-") -> 49.3% | F10: =+IFERROR(VLOOKUP($C$4,DL_1153_2025_CG04!$CG$52:$CI$81,2,0),"-") -> 42.3% | G10: =+IFERROR(VLOOKUP($C$4,DL_1153_2025_CG04!$CG$52:$CI$81,3,0),"-") -> 55.8% | AP10: =+IFERROR(VLOOKUP($C$4,DL_1153_2025_CG04!$BS$51:$CE$81,DL1153_2025!AP$6,0),"-") -> 42.3% | AQ10: =+IFERROR(VLOOKUP($C$4,DL_1153_2025_CG04!$BS$51:$CE$81,DL1153_2025!AQ$6,0),"-") -> 53.3% | AR10: =+IFERROR(VLOOKUP($C$4,DL_1153_2025_CG04!$BS$51:$CE$81,DL1153_2025!AR$6,0),"-") -> 55.8% | AS10: =+IFERROR(VLOOKUP($C$4,DL_1153_2025_CG04!$BS$51:$CE$81,DL1153_2025!AS$6,0),"-") -> 53.8% | AT10: =+IFERROR(VLOOKUP($C$4,DL_1153_2025_CG04!$BS$51:$CE$81,DL1153_2025!AT$6,0),"-") -> 51.8% | AU10: =+IFERROR(VLOOKUP($C$4,DL_1153_2025_CG04!$BS$51:$CE$81,DL1153_2025!AU$6,0),"-") -> 54.7% | AV10: =+IFERROR(VLOOKUP($C$4,DL_1153_2025_CG04!$BS$51:$CE$81,DL1153_2025!AV$6,0),"-") -> 51.7% | AW10: =+IFERROR(VLOOKUP($C$4,DL_1153_2025_CG04!$BS$51:$CE$81,DL1153_2025!AW$6,0),"-") -> 49.3% | AX10: =+IFERROR(VLOOKUP($C$4,DL_1153_2025_CG04!$BS$51:$CE$81,DL1153_2025!AX$6,0),"-") -> - | AY10: =+IFERROR(VLOOKUP($C$4,DL_1153_2025_CG04!$BS$51:$CE$81,DL1153_2025!AY$6,0),"-") -> - | AZ10: =+IFERROR(VLOOKUP($C$4,DL_1153_2025_CG04!$BS$51:$CE$81,DL1153_2025!AZ$6,0),"-") -> - | BA10: =+IFERROR(VLOOKUP($C$4,DL_1153_2025_CG04!$BS$51:$CE$81,DL1153_2025!BA$6,0),"-") -> -
A11: DL_1153_2024_CG05 | B11: DGIESP / DMUNI | C11: Ficha 05:Porcentaje de niñas y niños menores de 2 años en condición crecimiento inadecuado que luego de un periodo de seguimiento mejora sus condiciones nutricionales. | D11: =IFERROR(VLOOKUP($C$4,DL_1153_2025_CG05!BQ47:BR77,2,0),"-") -> 20.6% | E11: =+IFERROR(VLOOKUP($E$6,DL_1153_2025_CG05!$CN$36:$DR$48,MATCH(DL1153_2025!$C$4,DL_1153_2025_CG05!$CN$36:$DR$36,0),FALSE),"-") -> 27.0% | F11: =+IFERROR(VLOOKUP($C$4,DL_1153_2025_CG05!$CI$48:$CK$77,2,0),"-") -> 6.2% | G11: =+IFERROR(VLOOKUP($C$4,DL_1153_2025_CG05!$CI$48:$CK$77,3,0),"-") -> 28.0% | AP11: =+VLOOKUP(DL1153_2025!$C$4,DL_1153_2025_CG05!$BU$47:$CG$77,DL1153_2025!AP$6,0) -> 6.2% | AQ11: =+VLOOKUP(DL1153_2025!$C$4,DL_1153_2025_CG05!$BU$47:$CG$77,DL1153_2025!AQ$6,0) -> 17.8% | AR11: =+VLOOKUP(DL1153_2025!$C$4,DL_1153_2025_CG05!$BU$47:$CG$77,DL1153_2025!AR$6,0) -> 23.9% | AS11: =+VLOOKUP(DL1153_2025!$C$4,DL_1153_2025_CG05!$BU$47:$CG$77,DL1153_2025!AS$6,0) -> 23.5% | AT11: =+VLOOKUP(DL1153_2025!$C$4,DL_1153_2025_CG05!$BU$47:$CG$77,DL1153_2025!AT$6,0) -> 21.0% | AU11: =+VLOOKUP(DL1153_2025!$C$4,DL_1153_2025_CG05!$BU$47:$CG$77,DL1153_2025!AU$6,0) -> 24.0% | AV11: =+VLOOKUP(DL1153_2025!$C$4,DL_1153_2025_CG05!$BU$47:$CG$77,DL1153_2025!AV$6,0) -> 28.0% | AW11: =+VLOOKUP(DL1153_2025!$C$4,DL_1153_2025_CG05!$BU$47:$CG$77,DL1153_2025!AW$6,0) -> 27.0% | AX11: =+VLOOKUP(DL1153_2025!$C$4,DL_1153_2025_CG05!$BU$47:$CG$77,DL1153_2025!AX$6,0) -> - | AY11: =+VLOOKUP(DL1153_2025!$C$4,DL_1153_2025_CG05!$BU$47:$CG$77,DL1153_2025!AY$6,0) -> - | AZ11: =+VLOOKUP(DL1153_2025!$C$4,DL_1153_2025_CG05!$BU$47:$CG$77,DL1153_2025!AZ$6,0) -> - | BA11: =+VLOOKUP(DL1153_2025!$C$4,DL_1153_2025_CG05!$BU$47:$CG$77,DL1153_2025!BA$6,0) -> -
A12: DL_1153_2024_CG06 | B12: DGIESP /DPROM | C12: Ficha 06:Porcentaje de niñas y niños de 1 año vacunados con dos dosis de vacuna sarampión, parotiditis y rubeola (SPR). | D12: =IFERROR(VLOOKUP($C$4,DL_1153_2025_CG06!BQ50:BR80,2,0),"-") -> 44.7% | E12: =+IFERROR(VLOOKUP($E$6,DL_1153_2025_CG06!$CN$36:$DR$48,MATCH(DL1153_2025!$C$4,DL_1153_2025_CG06!$CN$36:$DR$36,0),FALSE),"-") -> 44.7% | F12: =+IFERROR(VLOOKUP($C$4,DL_1153_2025_CG06!$CI$51:$CK$80,2,0),"-") -> 5.5% | G12: =+IFERROR(VLOOKUP($C$4,DL_1153_2025_CG06!$CI$51:$CK$80,3,0),"-") -> 44.7% | AP12: =+IFERROR(VLOOKUP($C$4,DL_1153_2025_CG06!$BU$50:$CG$80,DL1153_2025!AP$6,0),"-") -> 5.5% | AQ12: =+IFERROR(VLOOKUP($C$4,DL_1153_2025_CG06!$BU$50:$CG$80,DL1153_2025!AQ$6,0),"-") -> 10.7% | AR12: =+IFERROR(VLOOKUP($C$4,DL_1153_2025_CG06!$BU$50:$CG$80,DL1153_2025!AR$6,0),"-") -> 16.8% | AS12: =+IFERROR(VLOOKUP($C$4,DL_1153_2025_CG06!$BU$50:$CG$80,DL1153_2025!AS$6,0),"-") -> 22.7% | AT12: =+IFERROR(VLOOKUP($C$4,DL_1153_2025_CG06!$BU$50:$CG$80,DL1153_2025!AT$6,0),"-") -> 28.5% | AU12: =+IFERROR(VLOOKUP($C$4,DL_1153_2025_CG06!$BU$50:$CG$80,DL1153_2025!AU$6,0),"-") -> 33.7% | AV12: =+IFERROR(VLOOKUP($C$4,DL_1153_2025_CG06!$BU$50:$CG$80,DL1153_2025!AV$6,0),"-") -> 39.0% | AW12: =+IFERROR(VLOOKUP($C$4,DL_1153_2025_CG06!$BU$50:$CG$80,DL1153_2025!AW$6,0),"-") -> 44.7% | AX12: =+IFERROR(VLOOKUP($C$4,DL_1153_2025_CG06!$BU$50:$CG$80,DL1153_2025!AX$6,0),"-") -> - | AY12: =+IFERROR(VLOOKUP($C$4,DL_1153_2025_CG06!$BU$50:$CG$80,DL1153_2025!AY$6,0),"-") -> - | AZ12: =+IFERROR(VLOOKUP($C$4,DL_1153_2025_CG06!$BU$50:$CG$80,DL1153_2025!AZ$6,0),"-") -> - | BA12: =+IFERROR(VLOOKUP($C$4,DL_1153_2025_CG06!$BU$50:$CG$80,DL1153_2025!BA$6,0),"-") -> -
A13: DL_1153_2024_CG07 | B13: DGIESP / DMUNI | C13: Ficha 07:Porcentaje de recién nacidos de parto institucional, vacunados con BCG y Anti hepatitis B dentro de las 24 horas después del nacimiento. | D13: =IFERROR(VLOOKUP($C$4,DL_1153_2025_CG07!BM52:BN82,2,0),"-") -> 92.9% | E13: =+IFERROR(VLOOKUP($E$6,DL_1153_2025_CG07!$CJ$36:$DN$48,MATCH(DL1153_2025!$C$4,DL_1153_2025_CG07!$CJ$36:$DN$36,0),FALSE),"-") -> 91.1% | F13: =+IFERROR(VLOOKUP($C$4,DL_1153_2025_CG07!$CE$53:$CG$82,2,0),"-") -> 91.1% | G13: =+IFERROR(VLOOKUP($C$4,DL_1153_2025_CG07!$CE$53:$CG$82,3,0),"-") -> 94.0% | AP13: =+IFERROR(VLOOKUP($C$4,DL_1153_2025_CG07!$BQ$52:$CC$82,DL1153_2025!AP$6,0),"-") -> 93.5% | AQ13: =+IFERROR(VLOOKUP($C$4,DL_1153_2025_CG07!$BQ$52:$CC$82,DL1153_2025!AQ$6,0),"-") -> 94.0% | AR13: =+IFERROR(VLOOKUP($C$4,DL_1153_2025_CG07!$BQ$52:$CC$82,DL1153_2025!AR$6,0),"-") -> 93.4% | AS13: =+IFERROR(VLOOKUP($C$4,DL_1153_2025_CG07!$BQ$52:$CC$82,DL1153_2025!AS$6,0),"-") -> 91.7% | AT13: =+IFERROR(VLOOKUP($C$4,DL_1153_2025_CG07!$BQ$52:$CC$82,DL1153_2025!AT$6,0),"-") -> 93.3% | AU13: =+IFERROR(VLOOKUP($C$4,DL_1153_2025_CG07!$BQ$52:$CC$82,DL1153_2025!AU$6,0),"-") -> 93.2% | AV13: =+IFERROR(VLOOKUP($C$4,DL_1153_2025_CG07!$BQ$52:$CC$82,DL1153_2025!AV$6,0),"-") -> 93.1% | AW13: =+IFERROR(VLOOKUP($C$4,DL_1153_2025_CG07!$BQ$52:$CC$82,DL1153_2025!AW$6,0),"-") -> 91.1% | AX13: =+IFERROR(VLOOKUP($C$4,DL_1153_2025_CG07!$BQ$52:$CC$82,DL1153_2025!AX$6,0),"-") -> - | AY13: =+IFERROR(VLOOKUP($C$4,DL_1153_2025_CG07!$BQ$52:$CC$82,DL1153_2025!AY$6,0),"-") -> - | AZ13: =+IFERROR(VLOOKUP($C$4,DL_1153_2025_CG07!$BQ$52:$CC$82,DL1153_2025!AZ$6,0),"-") -> - | BA13: =+IFERROR(VLOOKUP($C$4,DL_1153_2025_CG07!$BQ$52:$CC$82,DL1153_2025!BA$6,0),"-") -> -
A14: DL_1153_2024_CG08 | B14: DGIESP / DPCT | C14: Ficha 08:Tasa de éxito de tratamiento para TB Sensible | D14: =IFERROR(VLOOKUP($C$4,DL_1153_2025_CG08!BR45:BS75,2,0),"-") -> 46.4% | E14: =+IFERROR(VLOOKUP($E$6,DL_1153_2025_CG08!$CO$29:$DS$41,MATCH(DL1153_2025!$C$4,DL_1153_2025_CG08!$CO$29:$DS$29,0),FALSE),"-") -> 46.4% | F14: =+IFERROR(VLOOKUP($C$4,DL_1153_2025_CG08!$CJ$46:$CL$75,2,0),"-") -> 7.2% | G14: =+IFERROR(VLOOKUP($C$4,DL_1153_2025_CG08!$CJ$46:$CL$75,3,0),"-") -> 46.4% | AP14: =+IFERROR(VLOOKUP($C$4,DL_1153_2025_CG08!$BV$45:$CH$75,DL1153_2025!AP$6,0),"-") -> 7.2% | AQ14: =+IFERROR(VLOOKUP($C$4,DL_1153_2025_CG08!$BV$45:$CH$75,DL1153_2025!AQ$6,0),"-") -> 13.9% | AR14: =+IFERROR(VLOOKUP($C$4,DL_1153_2025_CG08!$BV$45:$CH$75,DL1153_2025!AR$6,0),"-") -> 21.4% | AS14: =+IFERROR(VLOOKUP($C$4,DL_1153_2025_CG08!$BV$45:$CH$75,DL1153_2025!AS$6,0),"-") -> 26.9% | AT14: =+IFERROR(VLOOKUP($C$4,DL_1153_2025_CG08!$BV$45:$CH$75,DL1153_2025!AT$6,0),"-") -> 32.1% | AU14: =+IFERROR(VLOOKUP($C$4,DL_1153_2025_CG08!$BV$45:$CH$75,DL1153_2025!AU$6,0),"-") -> 35.8% | AV14: =+IFERROR(VLOOKUP($C$4,DL_1153_2025_CG08!$BV$45:$CH$75,DL1153_2025!AV$6,0),"-") -> 42.3% | AW14: =+IFERROR(VLOOKUP($C$4,DL_1153_2025_CG08!$BV$45:$CH$75,DL1153_2025!AW$6,0),"-") -> 46.4% | AX14: =+IFERROR(VLOOKUP($C$4,DL_1153_2025_CG08!$BV$45:$CH$75,DL1153_2025!AX$6,0),"-") -> - | AY14: =+IFERROR(VLOOKUP($C$4,DL_1153_2025_CG08!$BV$45:$CH$75,DL1153_2025!AY$6,0),"-") -> - | AZ14: =+IFERROR(VLOOKUP($C$4,DL_1153_2025_CG08!$BV$45:$CH$75,DL1153_2025!AZ$6,0),"-") -> - | BA14: =+IFERROR(VLOOKUP($C$4,DL_1153_2025_CG08!$BV$45:$CH$75,DL1153_2025!BA$6,0),"-") -> -
A15: DL_1153_2024_CG09 | B15: DGIESP / DPCT | C15: Ficha 09:Porcentaje de contactos menores de 5 años de edad que culminan Terapia Preventiva para TB. | D15: =IFERROR(VLOOKUP($C$4,DL_1153_2025_CG09!BQ45:BR75,2,0),"-") -> 45.1% | E15: =+IFERROR(VLOOKUP($E$6,DL_1153_2025_CG09!$CN$29:$DR$41,MATCH(DL1153_2025!$C$4,DL_1153_2025_CG09!$CN$29:$DR$29,0),FALSE),"-") -> 45.1% | F15: =+IFERROR(VLOOKUP($C$4,DL_1153_2025_CG09!$CI$46:$CK$75,2,0),"-") -> 5.9% | G15: =+IFERROR(VLOOKUP($C$4,DL_1153_2025_CG09!$CI$46:$CK$75,3,0),"-") -> 45.1% | AP15: =+VLOOKUP($C$4,DL_1153_2025_CG09!$BU$45:$CG$75,DL1153_2025!AP$6,0) -> 5.9% | AQ15: =+VLOOKUP($C$4,DL_1153_2025_CG09!$BU$45:$CG$75,DL1153_2025!AQ$6,0) -> 9.7% | AR15: =+VLOOKUP($C$4,DL_1153_2025_CG09!$BU$45:$CG$75,DL1153_2025!AR$6,0) -> 14.4% | AS15: =+VLOOKUP($C$4,DL_1153_2025_CG09!$BU$45:$CG$75,DL1153_2025!AS$6,0) -> 21.0% | AT15: =+VLOOKUP($C$4,DL_1153_2025_CG09!$BU$45:$CG$75,DL1153_2025!AT$6,0) -> 29.3% | AU15: =+VLOOKUP($C$4,DL_1153_2025_CG09!$BU$45:$CG$75,DL1153_2025!AU$6,0) -> 37.9% | AV15: =+VLOOKUP($C$4,DL_1153_2025_CG09!$BU$45:$CG$75,DL1153_2025!AV$6,0) -> 42.9% | AW15: =+VLOOKUP($C$4,DL_1153_2025_CG09!$BU$45:$CG$75,DL1153_2025!AW$6,0) -> 45.1% | AX15: =+VLOOKUP($C$4,DL_1153_2025_CG09!$BU$45:$CG$75,DL1153_2025!AX$6,0) -> - | AY15: =+VLOOKUP($C$4,DL_1153_2025_CG09!$BU$45:$CG$75,DL1153_2025!AY$6,0) -> - | AZ15: =+VLOOKUP($C$4,DL_1153_2025_CG09!$BU$45:$CG$75,DL1153_2025!AZ$6,0) -> - | BA15: =+VLOOKUP($C$4,DL_1153_2025_CG09!$BU$45:$CG$75,DL1153_2025!BA$6,0) -> -
A16: DL_1153_2024_CG10 | B16: DGIESP / DPVIH | C16: Ficha 10:Cobertura de la Terapia Preventiva para Tuberculosis en personas viviendo con VIH que inician Tratamiento Antirretroviral. | D16: =GETPIVOTDATA("Suma de Ind",DL_1153_2025_CG10!$I$7) -> 55.1% | E16: =GETPIVOTDATA("Suma de Ind",DL_1153_2025_CG10!$I$7,"Mes",6) -> 70.8% | F16: =E16 -> 70.8% | G16: =GETPIVOTDATA("Suma de Ind",DL_1153_2025_CG10!$I$7,"Mes",1) -> 8.4% | AP16: 8.4% | AQ16: 37.0% | AR16: 44.7% | AS16: 55.6% | AT16: 73.3% | AU16: 70.8% | AV16: 84.9% | AW16: 97.3% | AX16: =+VLOOKUP(DL1153_2025!$C$4,#REF!,DL1153_2025!AX$6,0) ->  | AY16: =+VLOOKUP(DL1153_2025!$C$4,#REF!,DL1153_2025!AY$6,0) ->  | AZ16: =+VLOOKUP(DL1153_2025!$C$4,#REF!,DL1153_2025!AZ$6,0) ->  | BA16: =+VLOOKUP(DL1153_2025!$C$4,#REF!,DL1153_2025!BA$6,0) -> 
A17: DL_1153_2024_CG11 | B17: DGIESP / DPCAN | C17: Ficha 11: Mujeres de 30 a 49 años con tamizaje para la detección de lesiones premalignas e incipientes de cáncer de cuello uterino. | D17: =IFERROR(VLOOKUP($C$4,DL_1153_2024_CG11!BQ41:BR71,2,0),"-") -> 10.5% | E17: =+IFERROR(VLOOKUP($E$6,DL_1153_2024_CG11!$CN$36:$DR$48,MATCH(DL1153_2025!$C$4,DL_1153_2024_CG11!$CN$36:$DR$36,0),FALSE),"-") -> 10.5% | F17: =+IFERROR(VLOOKUP($C$4,DL_1153_2024_CG11!$CJ$53:$CL$82,2,0),"-") -> 0.6% | G17: =+IFERROR(VLOOKUP($C$4,DL_1153_2024_CG11!$CJ$53:$CL$82,3,0),"-") -> 10.5% | AP17: =+VLOOKUP($C$4,DL_1153_2024_CG11!$BU$41:$CG$71,DL1153_2025!AP$6,0) -> 0.6% | AQ17: =+VLOOKUP($C$4,DL_1153_2024_CG11!$BU$41:$CG$71,DL1153_2025!AQ$6,0) -> 2.1% | AR17: =+VLOOKUP($C$4,DL_1153_2024_CG11!$BU$41:$CG$71,DL1153_2025!AR$6,0) -> 4.0% | AS17: =+VLOOKUP($C$4,DL_1153_2024_CG11!$BU$41:$CG$71,DL1153_2025!AS$6,0) -> 5.6% | AT17: =+VLOOKUP($C$4,DL_1153_2024_CG11!$BU$41:$CG$71,DL1153_2025!AT$6,0) -> 7.1% | AU17: =+VLOOKUP($C$4,DL_1153_2024_CG11!$BU$41:$CG$71,DL1153_2025!AU$6,0) -> 8.4% | AV17: =+VLOOKUP($C$4,DL_1153_2024_CG11!$BU$41:$CG$71,DL1153_2025!AV$6,0) -> 9.6% | AW17: =+VLOOKUP($C$4,DL_1153_2024_CG11!$BU$41:$CG$71,DL1153_2025!AW$6,0) -> 10.5% | AX17: =+VLOOKUP($C$4,DL_1153_2024_CG11!$BU$41:$CG$71,DL1153_2025!AX$6,0) -> - | AY17: =+VLOOKUP($C$4,DL_1153_2024_CG11!$BU$41:$CG$71,DL1153_2025!AY$6,0) -> - | AZ17: =+VLOOKUP($C$4,DL_1153_2024_CG11!$BU$41:$CG$71,DL1153_2025!AZ$6,0) -> - | BA17: =+VLOOKUP($C$4,DL_1153_2024_CG11!$BU$41:$CG$71,DL1153_2025!BA$6,0) -> -
A18: DL_1153_2024_CG12 | B18: DGIESP / DPCAN | C18: Ficha 12:Porcentaje de niñas y niños (6 meses a 6 años) que reciben procedimientos estomatológicos preventivos. | D18: 0.0% | E18: 0.0% | F18: 0.0% | G18: 0.0% | AP18: 0.0% | AQ18: 0.0% | AR18: 0.0% | AS18: 0.0% | AT18: =+VLOOKUP(DL1153_2025!$C$4,DL_1153_2024_CG12!$BM$46:$BY$76,DL1153_2025!AT$6,0) -> - | AU18: =+VLOOKUP(DL1153_2025!$C$4,DL_1153_2024_CG12!$BM$46:$BY$76,DL1153_2025!AU$6,0) -> - | AV18: =+VLOOKUP(DL1153_2025!$C$4,DL_1153_2024_CG12!$BM$46:$BY$76,DL1153_2025!AV$6,0) -> - | AW18: =+VLOOKUP(DL1153_2025!$C$4,DL_1153_2024_CG12!$BM$46:$BY$76,DL1153_2025!AW$6,0) -> - | AX18: =+VLOOKUP(DL1153_2025!$C$4,DL_1153_2024_CG12!$BM$46:$BY$76,DL1153_2025!AX$6,0) -> - | AY18: =+VLOOKUP(DL1153_2025!$C$4,DL_1153_2024_CG12!$BM$46:$BY$76,DL1153_2025!AY$6,0) -> - | AZ18: =+VLOOKUP(DL1153_2025!$C$4,DL_1153_2024_CG12!$BM$46:$BY$76,DL1153_2025!AZ$6,0) -> - | BA18: =+VLOOKUP(DL1153_2025!$C$4,DL_1153_2024_CG12!$BM$46:$BY$76,DL1153_2025!BA$6,0) -> -
A19: DL_1153_2024_CG13 | B19: DGIESP / DPCAN | C19: Ficha 13:Porcentaje de personas que acceden a algún método anticonceptivo moderno de planificación familiar. | D19: =IFERROR(VLOOKUP($C$4,DL_1153_2024_CG13!BQ47:BR77,2,0),"-") -> 19.6% | E19: =+IFERROR(VLOOKUP($E$6,DL_1153_2024_CG13!$CN$36:$DR$48,MATCH(DL1153_2025!$C$4,DL_1153_2024_CG13!$CN$36:$DR$36,0),FALSE),"-") -> 19.6% | F19: =+IFERROR(VLOOKUP($C$4,DL_1153_2024_CG13!$CI$53:$CK$82,2,0),"-") -> 12.4% | G19: =+IFERROR(VLOOKUP($C$4,DL_1153_2024_CG13!$CI$53:$CK$82,3,0),"-") -> 19.6% | AP19: =+VLOOKUP($C$4,DL_1153_2024_CG13!$BU$46:$CG$76,DL1153_2025!AP$6,0) -> 12.4% | AQ19: =+VLOOKUP($C$4,DL_1153_2024_CG13!$BU$46:$CG$76,DL1153_2025!AQ$6,0) -> 13.7% | AR19: =+VLOOKUP($C$4,DL_1153_2024_CG13!$BU$46:$CG$76,DL1153_2025!AR$6,0) -> 15.3% | AS19: =+VLOOKUP($C$4,DL_1153_2024_CG13!$BU$46:$CG$76,DL1153_2025!AS$6,0) -> 16.5% | AT19: =+VLOOKUP($C$4,DL_1153_2024_CG13!$BU$46:$CG$76,DL1153_2025!AT$6,0) -> 17.3% | AU19: =+VLOOKUP($C$4,DL_1153_2024_CG13!$BU$46:$CG$76,DL1153_2025!AU$6,0) -> 18.1% | AV19: =+VLOOKUP($C$4,DL_1153_2024_CG13!$BU$46:$CG$76,DL1153_2025!AV$6,0) -> 18.9% | AW19: =+VLOOKUP($C$4,DL_1153_2024_CG13!$BU$46:$CG$76,DL1153_2025!AW$6,0) -> 19.6% | AX19: =+VLOOKUP($C$4,DL_1153_2024_CG13!$BU$46:$CG$76,DL1153_2025!AX$6,0) -> - | AY19: =+VLOOKUP($C$4,DL_1153_2024_CG13!$BU$46:$CG$76,DL1153_2025!AY$6,0) -> - | AZ19: =+VLOOKUP($C$4,DL_1153_2024_CG13!$BU$46:$CG$76,DL1153_2025!AZ$6,0) -> - | BA19: =+VLOOKUP($C$4,DL_1153_2024_CG13!$BU$46:$CG$76,DL1153_2025!BA$6,0) -> -
A20: DL_1153_2024_CG14 | B20: DGIESP / DPCAN | C20: Ficha 14:Porcentaje de gestante atendidas con 2 o más Atenciones Prenatales (APN) en el hospital, referidas por factores de riesgo. | D20: =IFERROR(VLOOKUP($C$4,DL_1153_2024_CG14!BQ52:BR81,2,0),"-") -> 55.8% | E20: =+IFERROR(VLOOKUP($E$6,DL_1153_2024_CG14!$CN$36:$DR$48,MATCH(DL1153_2025!$C$4,DL_1153_2024_CG14!$CN$36:$DR$36,0),FALSE),"-") -> 20.3% | F20: =+IFERROR(VLOOKUP($C$4,DL_1153_2024_CG14!$CI$53:$CK$82,2,0),"-") -> 20.3% | G20: =+IFERROR(VLOOKUP($C$4,DL_1153_2024_CG14!$CI$53:$CK$82,3,0),"-") -> 65.1% | AP20: =+IFERROR(VLOOKUP($C$4,DL_1153_2024_CG14!$BU$51:$CG$81,DL1153_2025!AP$6,0),"-") -> 65.1% | AQ20: =+IFERROR(VLOOKUP($C$4,DL_1153_2024_CG14!$BU$51:$CG$81,DL1153_2025!AQ$6,0),"-") -> 64.6% | AR20: =+IFERROR(VLOOKUP($C$4,DL_1153_2024_CG14!$BU$51:$CG$81,DL1153_2025!AR$6,0),"-") -> 60.9% | AS20: =+IFERROR(VLOOKUP($C$4,DL_1153_2024_CG14!$BU$51:$CG$81,DL1153_2025!AS$6,0),"-") -> 62.2% | AT20: =+IFERROR(VLOOKUP($C$4,DL_1153_2024_CG14!$BU$51:$CG$81,DL1153_2025!AT$6,0),"-") -> 62.8% | AU20: =+IFERROR(VLOOKUP($C$4,DL_1153_2024_CG14!$BU$51:$CG$81,DL1153_2025!AU$6,0),"-") -> 58.8% | AV20: =+IFERROR(VLOOKUP($C$4,DL_1153_2024_CG14!$BU$51:$CG$81,DL1153_2025!AV$6,0),"-") -> 49.0% | AW20: =+IFERROR(VLOOKUP($C$4,DL_1153_2024_CG14!$BU$51:$CG$81,DL1153_2025!AW$6,0),"-") -> 20.3% | AX20: =+IFERROR(VLOOKUP($C$4,DL_1153_2024_CG14!$BU$51:$CG$81,DL1153_2025!AX$6,0),"-") -> - | AY20: =+IFERROR(VLOOKUP($C$4,DL_1153_2024_CG14!$BU$51:$CG$81,DL1153_2025!AY$6,0),"-") -> - | AZ20: =+IFERROR(VLOOKUP($C$4,DL_1153_2024_CG14!$BU$51:$CG$81,DL1153_2025!AZ$6,0),"-") -> - | BA20: =+IFERROR(VLOOKUP($C$4,DL_1153_2024_CG14!$BU$51:$CG$81,DL1153_2025!BA$6,0),"-") -> -
A21: DL_1153_2024_CG15 | B21: DGIESP / DSABU | C21: Ficha 15:Porcentaje de gestantes con paquete preventivo completo. . | D21: =IFERROR(VLOOKUP($C$4,DL_1153_2024_CG15!BQ52:BR82,2,0),"-") -> 32.7% | E21: =+IFERROR(VLOOKUP($E$6,DL_1153_2024_CG15!$CN$36:$DR$48,MATCH(DL1153_2025!$C$4,DL_1153_2024_CG15!$CN$36:$DR$36,0),FALSE),"-") -> 35.4% | F21: =+IFERROR(VLOOKUP($C$4,DL_1153_2024_CG15!$CI$53:$CK$82,2,0),"-") -> 31.3% | G21: =+IFERROR(VLOOKUP($C$4,DL_1153_2024_CG15!$CI$53:$CK$82,3,0),"-") -> 35.4% | AP21: =+IFERROR(VLOOKUP($C$4,DL_1153_2024_CG15!$BU$46:$CG$76,DL1153_2025!AP6:AP6,0),"-") -> 32.1% | AQ21: =+IFERROR(VLOOKUP($C$4,DL_1153_2024_CG15!$BU$46:$CG$76,DL1153_2025!AQ6:AQ6,0),"-") -> 31.3% | AR21: =+IFERROR(VLOOKUP($C$4,DL_1153_2024_CG15!$BU$46:$CG$76,DL1153_2025!AR6:AR6,0),"-") -> 32.0% | AS21: =+IFERROR(VLOOKUP($C$4,DL_1153_2024_CG15!$BU$46:$CG$76,DL1153_2025!AS6:AS6,0),"-") -> 32.6% | AT21: =+IFERROR(VLOOKUP($C$4,DL_1153_2024_CG15!$BU$46:$CG$76,DL1153_2025!AT6:AT6,0),"-") -> 32.8% | AU21: =+IFERROR(VLOOKUP($C$4,DL_1153_2024_CG15!$BU$46:$CG$76,DL1153_2025!AU6:AU6,0),"-") -> 32.6% | AV21: =+IFERROR(VLOOKUP($C$4,DL_1153_2024_CG15!$BU$46:$CG$76,DL1153_2025!AV6:AV6,0),"-") -> 33.3% | AW21: =+IFERROR(VLOOKUP($C$4,DL_1153_2024_CG15!$BU$46:$CG$76,DL1153_2025!AW6:AW6,0),"-") -> 35.4% | AX21: =+IFERROR(VLOOKUP($C$4,DL_1153_2024_CG15!$BU$46:$CG$76,DL1153_2025!AX6:AX6,0),"-") -> - | AY21: =+IFERROR(VLOOKUP($C$4,DL_1153_2024_CG15!$BU$46:$CG$76,DL1153_2025!AY6:AY6,0),"-") -> - | AZ21: =+IFERROR(VLOOKUP($C$4,DL_1153_2024_CG15!$BU$46:$CG$76,DL1153_2025!AZ6:AZ6,0),"-") -> - | BA21: =+IFERROR(VLOOKUP($C$4,DL_1153_2024_CG15!$BU$46:$CG$76,DL1153_2025!BA6:BA6,0),"-") -> -
A22: DL_1153_2024_CG16 | B22: DGIESP / DSARE | C22: Ficha 16:Porcentaje de adolescentes que reciben prestaciones priorizadas para el cuidado integral de la salud. | D22: =IFERROR(VLOOKUP($C$4,DL_1153_2024_CG16!BP45:BQ75,2,0),"-") -> 24.3% | E22: =+IFERROR(VLOOKUP($E$6,DL_1153_2024_CG16!$CM$36:$DR$48,MATCH(DL1153_2025!$C$4,DL_1153_2024_CG16!$CM$36:$DR$36,0),FALSE),"-") -> 24.3% | F22: =+IFERROR(VLOOKUP($C$4,DL_1153_2024_CG16!$CH$53:$CJ$82,2,0),"-") -> 3.5% | G22: =+IFERROR(VLOOKUP($C$4,DL_1153_2024_CG16!$CH$53:$CJ$82,3,0),"-") -> 24.3% | AP22: =+IFERROR(VLOOKUP($C$4,DL_1153_2024_CG16!$BT$45:$CF$75,DL1153_2025!AP$6,0),"-") -> 3.5% | AQ22: =+IFERROR(VLOOKUP($C$4,DL_1153_2024_CG16!$BT$45:$CF$75,DL1153_2025!AQ$6,0),"-") -> 4.5% | AR22: =+IFERROR(VLOOKUP($C$4,DL_1153_2024_CG16!$BT$45:$CF$75,DL1153_2025!AR$6,0),"-") -> 7.4% | AS22: =+IFERROR(VLOOKUP($C$4,DL_1153_2024_CG16!$BT$45:$CF$75,DL1153_2025!AS$6,0),"-") -> 9.8% | AT22: =+IFERROR(VLOOKUP($C$4,DL_1153_2024_CG16!$BT$45:$CF$75,DL1153_2025!AT$6,0),"-") -> 12.6% | AU22: =+IFERROR(VLOOKUP($C$4,DL_1153_2024_CG16!$BT$45:$CF$75,DL1153_2025!AU$6,0),"-") -> 17.1% | AV22: =+IFERROR(VLOOKUP($C$4,DL_1153_2024_CG16!$BT$45:$CF$75,DL1153_2025!AV$6,0),"-") -> 20.9% | AW22: =+IFERROR(VLOOKUP($C$4,DL_1153_2024_CG16!$BT$45:$CF$75,DL1153_2025!AW$6,0),"-") -> 24.3% | AX22: =+IFERROR(VLOOKUP($C$4,DL_1153_2024_CG16!$BT$45:$CF$75,DL1153_2025!AX$6,0),"-") -> - | AY22: =+IFERROR(VLOOKUP($C$4,DL_1153_2024_CG16!$BT$45:$CF$75,DL1153_2025!AY$6,0),"-") -> - | AZ22: =+IFERROR(VLOOKUP($C$4,DL_1153_2024_CG16!$BT$45:$CF$75,DL1153_2025!AZ$6,0),"-") -> - | BA22: =+IFERROR(VLOOKUP($C$4,DL_1153_2024_CG16!$BT$45:$CF$75,DL1153_2025!BA$6,0),"-") -> -
A23: DL_1153_2024_CG17 | B23: DGIESP / DSARE | C23: Ficha 17:Porcentaje de niños y niñas menores de 5 años con deficiencias o factores de riesgo de discapacidad, con dos o más atenciones en la UPSS Medicina de Rehabilitación. | D23: =IFERROR(VLOOKUP($C$4,DL_1153_2024_CG17!BQ47:BR76,2,0),"-") -> 73.8% | E23: =+IFERROR(VLOOKUP($E$6,DL_1153_2024_CG17!$CN$36:$DR$48,MATCH(DL1153_2025!$C$4,DL_1153_2024_CG17!$CN$36:$DR$36,0),FALSE),"-") -> 73.8% | F23: =+IFERROR(VLOOKUP($C$4,DL_1153_2024_CG17!$CI$53:$CK$82,2,0),"-") -> 32.3% | G23: =+IFERROR(VLOOKUP($C$4,DL_1153_2024_CG17!$CI$53:$CK$82,3,0),"-") -> 73.8% | AP23: =+IFERROR(VLOOKUP($C$4,DL_1153_2024_CG17!$BU$76:$CG$76,DL1153_2025!AP$6,0),"-") -> 32.3% | AQ23: =+IFERROR(VLOOKUP($C$4,DL_1153_2024_CG17!$BU$76:$CG$76,DL1153_2025!AQ$6,0),"-") -> 43.2% | AR23: =+IFERROR(VLOOKUP($C$4,DL_1153_2024_CG17!$BU$76:$CG$76,DL1153_2025!AR$6,0),"-") -> 51.7% | AS23: =+IFERROR(VLOOKUP($C$4,DL_1153_2024_CG17!$BU$76:$CG$76,DL1153_2025!AS$6,0),"-") -> 57.2% | AT23: =+IFERROR(VLOOKUP($C$4,DL_1153_2024_CG17!$BU$76:$CG$76,DL1153_2025!AT$6,0),"-") -> 62.1% | AU23: =+IFERROR(VLOOKUP($C$4,DL_1153_2024_CG17!$BU$76:$CG$76,DL1153_2025!AU$6,0),"-") -> 66.7% | AV23: =+IFERROR(VLOOKUP($C$4,DL_1153_2024_CG17!$BU$76:$CG$76,DL1153_2025!AV$6,0),"-") -> 70.3% | AW23: =+IFERROR(VLOOKUP($C$4,DL_1153_2024_CG17!$BU$76:$CG$76,DL1153_2025!AW$6,0),"-") -> 73.8% | AX23: =+IFERROR(VLOOKUP($C$4,DL_1153_2024_CG17!$BU$76:$CG$76,DL1153_2025!AX$6,0),"-") -> - | AY23: =+IFERROR(VLOOKUP($C$4,DL_1153_2024_CG17!$BU$76:$CG$76,DL1153_2025!AY$6,0),"-") -> - | AZ23: =+IFERROR(VLOOKUP($C$4,DL_1153_2024_CG17!$BU$76:$CG$76,DL1153_2025!AZ$6,0),"-") -> - | BA23: =+IFERROR(VLOOKUP($C$4,DL_1153_2024_CG17!$BU$76:$CG$76,DL1153_2025!BA$6,0),"-") -> -
A24: DL_1153_2024_CG18 | B24: DGIESP / DSARE | C24: Ficha 18:Rendimiento cama en Unidades de Hospitalización de Salud Mental y Adicciones (UHSMA) en hospitales. | D24: =IFERROR(VLOOKUP($C$4,DL_1153_2024_CG18!BM44:BN74,2,0),"-") -> 10.7 | E24: =+IFERROR(VLOOKUP($E$6,DL_1153_2024_CG18!$CJ$36:$DN$48,MATCH(DL1153_2025!$C$4,DL_1153_2024_CG18!$CJ$36:$DN$36,0),FALSE),"-") -> 10.7 | F24: =+IFERROR(VLOOKUP($C$4,DL_1153_2024_CG18!$CE$53:$CG$82,2,0),"-") -> 1.2 | G24: =+IFERROR(VLOOKUP($C$4,DL_1153_2024_CG18!$CE$53:$CG$82,3,0),"-") -> 10.7 | AP24: =+IFERROR(VLOOKUP($C$4,DL_1153_2024_CG18!$BQ$44:$CC$74,DL1153_2025!AP$6,0),"-") -> 1.2 | AQ24: =+IFERROR(VLOOKUP($C$4,DL_1153_2024_CG18!$BQ$44:$CC$74,DL1153_2025!AQ$6,0),"-") -> 2.5 | AR24: =+IFERROR(VLOOKUP($C$4,DL_1153_2024_CG18!$BQ$44:$CC$74,DL1153_2025!AR$6,0),"-") -> 4.0 | AS24: =+IFERROR(VLOOKUP($C$4,DL_1153_2024_CG18!$BQ$44:$CC$74,DL1153_2025!AS$6,0),"-") -> 5.3 | AT24: =+IFERROR(VLOOKUP($C$4,DL_1153_2024_CG18!$BQ$44:$CC$74,DL1153_2025!AT$6,0),"-") -> 6.7 | AU24: =+IFERROR(VLOOKUP($C$4,DL_1153_2024_CG18!$BQ$44:$CC$74,DL1153_2025!AU$6,0),"-") -> 8.0 | AV24: =+IFERROR(VLOOKUP($C$4,DL_1153_2024_CG18!$BQ$44:$CC$74,DL1153_2025!AV$6,0),"-") -> 9.4 | AW24: =+IFERROR(VLOOKUP($C$4,DL_1153_2024_CG18!$BQ$44:$CC$74,DL1153_2025!AW$6,0),"-") -> 10.7 | AX24: =+IFERROR(VLOOKUP($C$4,DL_1153_2024_CG18!$BQ$44:$CC$74,DL1153_2025!AX$6,0),"-") -> - | AY24: =+IFERROR(VLOOKUP($C$4,DL_1153_2024_CG18!$BQ$44:$CC$74,DL1153_2025!AY$6,0),"-") -> - | AZ24: =+IFERROR(VLOOKUP($C$4,DL_1153_2024_CG18!$BQ$44:$CC$74,DL1153_2025!AZ$6,0),"-") -> - | BA24: =+IFERROR(VLOOKUP($C$4,DL_1153_2024_CG18!$BQ$44:$CC$74,DL1153_2025!BA$6,0),"-") -> -
A25: DL_1153_2024_CG19 | B25: DGIESP / DVICI | C25: Ficha 19:Porcentaje de personas con diagnóstico de Depresión que recibieron paquete mínimo de intervenciones terapéuticas en Centro de Salud Mental Comunitaria. | D25: =IFERROR(VLOOKUP($C$4,DL_1153_2024_CG19!BK48:BL79,2,0),"-") -> 30.8% | E25: =+IFERROR(VLOOKUP($E$6,DL_1153_2024_CG19!$CH$35:$DL$47,MATCH(DL1153_2025!$C$4,DL_1153_2024_CG19!$CH$35:$DL$35,0),FALSE),"-") -> 33.6% | F25: =+IFERROR(VLOOKUP($C$4,DL_1153_2024_CG19!$CC$53:$CE$82,2,0),"-") -> 28.6% | G25: =+IFERROR(VLOOKUP($C$4,DL_1153_2024_CG19!$CC$53:$CE$82,3,0),"-") -> 33.6% | AP25: =+IFERROR(VLOOKUP($C$4,DL_1153_2024_CG19!$BO$47:$CA$77,DL1153_2025!AP$6,0),"-") -> 29.6% | AQ25: =+IFERROR(VLOOKUP($C$4,DL_1153_2024_CG19!$BO$47:$CA$77,DL1153_2025!AQ$6,0),"-") -> 28.6% | AR25: =+IFERROR(VLOOKUP($C$4,DL_1153_2024_CG19!$BO$47:$CA$77,DL1153_2025!AR$6,0),"-") -> 30.6% | AS25: =+IFERROR(VLOOKUP($C$4,DL_1153_2024_CG19!$BO$47:$CA$77,DL1153_2025!AS$6,0),"-") -> 30.7% | AT25: =+IFERROR(VLOOKUP($C$4,DL_1153_2024_CG19!$BO$47:$CA$77,DL1153_2025!AT$6,0),"-") -> 30.3% | AU25: =+IFERROR(VLOOKUP($C$4,DL_1153_2024_CG19!$BO$47:$CA$77,DL1153_2025!AU$6,0),"-") -> 30.5% | AV25: =+IFERROR(VLOOKUP($C$4,DL_1153_2024_CG19!$BO$47:$CA$77,DL1153_2025!AV$6,0),"-") -> 33.6% | AW25: =+IFERROR(VLOOKUP($C$4,DL_1153_2024_CG19!$BO$47:$CA$77,DL1153_2025!AW$6,0),"-") -> 33.6% | AX25: =+IFERROR(VLOOKUP($C$4,DL_1153_2024_CG19!$BO$47:$CA$77,DL1153_2025!AX$6,0),"-") -> - | AY25: =+IFERROR(VLOOKUP($C$4,DL_1153_2024_CG19!$BO$47:$CA$77,DL1153_2025!AY$6,0),"-") -> - | AZ25: =+IFERROR(VLOOKUP($C$4,DL_1153_2024_CG19!$BO$47:$CA$77,DL1153_2025!AZ$6,0),"-") -> - | BA25: =+IFERROR(VLOOKUP($C$4,DL_1153_2024_CG19!$BO$47:$CA$77,DL1153_2025!BA$6,0),"-") -> -
A26: DL_1153_2024_CG20 | B26: DGIESP /DISCAP | C26: Ficha 20: Porcentaje de resolutividad. | D26: =IFERROR(VLOOKUP($C$4,DL_1153_2024_CG20!BQ45:BR74,2,0),"-") -> 1.7% | E26: =+IFERROR(VLOOKUP($E$6,DL_1153_2024_CG20!$CN$36:$DR$48,MATCH(DL1153_2025!$C$4,DL_1153_2024_CG20!$CN$36:$DR$36,0),FALSE),"-") -> 1.8% | F26: =+IFERROR(VLOOKUP($C$4,DL_1153_2024_CG20!$CI$53:$CK$82,2,0),"-") -> 1.6% | G26: =+IFERROR(VLOOKUP($C$4,DL_1153_2024_CG20!$CI$53:$CK$82,3,0),"-") -> 1.8% | AP26: =+IFERROR(VLOOKUP($C$4,DL_1153_2024_CG20!$BU$44:$CG$74,DL1153_2025!AP$6,0),"-") -> 1.7% | AQ26: =+IFERROR(VLOOKUP($C$4,DL_1153_2024_CG20!$BU$44:$CG$74,DL1153_2025!AQ$6,0),"-") -> 1.8% | AR26: =+IFERROR(VLOOKUP($C$4,DL_1153_2024_CG20!$BU$44:$CG$74,DL1153_2025!AR$6,0),"-") -> 1.7% | AS26: =+IFERROR(VLOOKUP($C$4,DL_1153_2024_CG20!$BU$44:$CG$74,DL1153_2025!AS$6,0),"-") -> 1.8% | AT26: =+IFERROR(VLOOKUP($C$4,DL_1153_2024_CG20!$BU$44:$CG$74,DL1153_2025!AT$6,0),"-") -> 1.6% | AU26: =+IFERROR(VLOOKUP($C$4,DL_1153_2024_CG20!$BU$44:$CG$74,DL1153_2025!AU$6,0),"-") -> 1.6% | AV26: =+IFERROR(VLOOKUP($C$4,DL_1153_2024_CG20!$BU$44:$CG$74,DL1153_2025!AV$6,0),"-") -> 1.6% | AW26: =+IFERROR(VLOOKUP($C$4,DL_1153_2024_CG20!$BU$44:$CG$74,DL1153_2025!AW$6,0),"-") -> 1.8% | AX26: =+IFERROR(VLOOKUP($C$4,DL_1153_2024_CG20!$BU$44:$CG$74,DL1153_2025!AX$6,0),"-") -> - | AY26: =+IFERROR(VLOOKUP($C$4,DL_1153_2024_CG20!$BU$44:$CG$74,DL1153_2025!AY$6,0),"-") -> - | AZ26: =+IFERROR(VLOOKUP($C$4,DL_1153_2024_CG20!$BU$44:$CG$74,DL1153_2025!AZ$6,0),"-") -> - | BA26: =+IFERROR(VLOOKUP($C$4,DL_1153_2024_CG20!$BU$44:$CG$74,DL1153_2025!BA$6,0),"-") -> -
A27: DL_1153_2024_CG21 | B27: DGIESP /DSAME | C27: Ficha 21:Porcentaje de cirugías suspendidas | D27: =IFERROR(VLOOKUP($C$4,DL_1153_2024_CG21!BQ44:BR74,2,0),"-") -> 3.2% | E27: =+IFERROR(VLOOKUP($E$6,DL_1153_2024_CG21!$CN$36:$DR$48,MATCH(DL1153_2025!$C$4,DL_1153_2024_CG21!$CN$36:$DR$36,0),FALSE),"-") -> 3.2% | F27: =+IFERROR(VLOOKUP($C$4,DL_1153_2024_CG21!$CI$53:$CK$82,2,0),"-") -> 2.8% | G27: =+IFERROR(VLOOKUP($C$4,DL_1153_2024_CG21!$CI$53:$CK$82,3,0),"-") -> 3.5% | AP27: =+IFERROR(VLOOKUP($C$4,DL_1153_2024_CG21!$BU$44:$CG$74,DL1153_2025!AP$6,0),"-") -> 3.2% | AQ27: =+IFERROR(VLOOKUP($C$4,DL_1153_2024_CG21!$BU$44:$CG$74,DL1153_2025!AQ$6,0),"-") -> 3.1% | AR27: =+IFERROR(VLOOKUP($C$4,DL_1153_2024_CG21!$BU$44:$CG$74,DL1153_2025!AR$6,0),"-") -> 3.4% | AS27: =+VLOOKUP($C$4,DL_1153_2024_CG21!$BU$44:$CG$74,DL1153_2025!AS$6,0) -> 3.0% | AT27: =+VLOOKUP($C$4,DL_1153_2024_CG21!$BU$44:$CG$74,DL1153_2025!AT$6,0) -> 2.8% | AU27: =+VLOOKUP($C$4,DL_1153_2024_CG21!$BU$44:$CG$74,DL1153_2025!AU$6,0) -> 3.1% | AV27: =+VLOOKUP($C$4,DL_1153_2024_CG21!$BU$44:$CG$74,DL1153_2025!AV$6,0) -> 3.5% | AW27: =+VLOOKUP($C$4,DL_1153_2024_CG21!$BU$44:$CG$74,DL1153_2025!AW$6,0) -> 3.2% | AX27: =+VLOOKUP($C$4,DL_1153_2024_CG21!$BU$44:$CG$74,DL1153_2025!AX$6,0) -> - | AY27: =+VLOOKUP($C$4,DL_1153_2024_CG21!$BU$44:$CG$74,DL1153_2025!AY$6,0) -> - | AZ27: =+VLOOKUP($C$4,DL_1153_2024_CG21!$BU$44:$CG$74,DL1153_2025!AZ$6,0) -> - | BA27: =+VLOOKUP($C$4,DL_1153_2024_CG21!$BU$44:$CG$74,DL1153_2025!BA$6,0) -> -
A28: DL_1153_2024_CG22 | B28: DGIESP /DSAME | C28: Ficha 22:Rendimiento de sala de operaciones | D28: =IFERROR(VLOOKUP($C$4,DL_1153_2024_CG22!BM45:BN75,2,0),"-") -> 78.1 | E28: =+IFERROR(VLOOKUP($E$6,DL_1153_2024_CG22!$CF$29:$DN$41,MATCH(DL1153_2025!$C$4,DL_1153_2024_CG22!$CF$29:$DN$29,0),FALSE),"-") -> 75.3 | F28: =+IFERROR(VLOOKUP($C$4,DL_1153_2024_CG22!$CE$46:$CG$75,2,0),"-") -> 75.3 | G28: =+IFERROR(VLOOKUP($C$4,DL_1153_2024_CG22!$CE$46:$CG$75,3,0),"-") -> 83.6 | AP28: =+IFERROR(VLOOKUP($C$4,DL_1153_2024_CG22!$BQ$45:$CC$75,DL1153_2025!AP$6,0),"-") -> 76.5 | AQ28: =+IFERROR(VLOOKUP($C$4,DL_1153_2024_CG22!$BQ$45:$CC$75,DL1153_2025!AQ$6,0),"-") -> 76.1 | AR28: =+IFERROR(VLOOKUP($C$4,DL_1153_2024_CG22!$BQ$45:$CC$75,DL1153_2025!AR$6,0),"-") -> 81.0 | AS28: =+VLOOKUP($C$4,DL_1153_2024_CG22!$BQ$45:$CC$75,DL1153_2025!AS$6,0) -> 77.7 | AT28: =+VLOOKUP($C$4,DL_1153_2024_CG22!$BQ$45:$CC$75,DL1153_2025!AT$6,0) -> 83.6 | AU28: =+VLOOKUP($C$4,DL_1153_2024_CG22!$BQ$45:$CC$75,DL1153_2025!AU$6,0) -> 78.7 | AV28: =+VLOOKUP($C$4,DL_1153_2024_CG22!$BQ$45:$CC$75,DL1153_2025!AV$6,0) -> 75.5 | AW28: =+VLOOKUP($C$4,DL_1153_2024_CG22!$BQ$45:$CC$75,DL1153_2025!AW$6,0) -> 75.3 | AX28: =+VLOOKUP($C$4,DL_1153_2024_CG22!$BQ$45:$CC$75,DL1153_2025!AX$6,0) -> - | AY28: =+VLOOKUP($C$4,DL_1153_2024_CG22!$BQ$45:$CC$75,DL1153_2025!AY$6,0) -> - | AZ28: =+VLOOKUP($C$4,DL_1153_2024_CG22!$BQ$45:$CC$75,DL1153_2025!AZ$6,0) -> - | BA28: =+VLOOKUP($C$4,DL_1153_2024_CG22!$BQ$45:$CC$75,DL1153_2025!BA$6,0) -> -
A29: DL_1153_2024_CG23 | B29: DGIESP /DSAME | C29: Ficha 23:Porcentaje de ocupación cama. (Hospitalización) | D29: =GETPIVOTDATA("Suma de Ind_Hosp",DL_1153_2024_CG23!$A$10) -> 72.1% | E29: =GETPIVOTDATA("Suma de Ind_Hosp",DL_1153_2024_CG23!$M$10,"mes",6) -> 72.4% | F29: =GETPIVOTDATA("Suma de Ind_Hosp",DL_1153_2024_CG23!$M$10,"mes",1) -> 69.7% | G29: =GETPIVOTDATA("Suma de Ind_Hosp",DL_1153_2024_CG23!$M$10,"mes",5) -> 72.9% | AP29: =+IFERROR(VLOOKUP($C$4,DL_1153_2024_CG23!$BR$45:$CD$75,DL1153_2025!AP$6,0),"-") -> 69.7% | AQ29: =+IFERROR(VLOOKUP($C$4,DL_1153_2024_CG23!$BR$45:$CD$75,DL1153_2025!AQ$6,0),"-") -> 72.0% | AR29: =+IFERROR(VLOOKUP($C$4,DL_1153_2024_CG23!$BR$45:$CD$75,DL1153_2025!AR$6,0),"-") -> 71.9% | AS29: =+IFERROR(VLOOKUP($C$4,DL_1153_2024_CG23!$BR$45:$CD$75,DL1153_2025!AS$6,0),"-") -> 72.2% | AT29: =+IFERROR(VLOOKUP($C$4,DL_1153_2024_CG23!$BR$45:$CD$75,DL1153_2025!AT$6,0),"-") -> 72.9% | AU29: =+IFERROR(VLOOKUP($C$4,DL_1153_2024_CG23!$BR$45:$CD$75,DL1153_2025!AU$6,0),"-") -> 72.4% | AV29: =+IFERROR(VLOOKUP($C$4,DL_1153_2024_CG23!$BR$45:$CD$75,DL1153_2025!AV$6,0),"-") -> 72.6% | AW29: =+IFERROR(VLOOKUP($C$4,DL_1153_2024_CG23!$BR$45:$CD$75,DL1153_2025!AW$6,0),"-") -> 72.6% | AX29: =+IFERROR(VLOOKUP($C$4,DL_1153_2024_CG23!$BR$45:$CD$75,DL1153_2025!AX$6,0),"-") -> - | AY29: =+IFERROR(VLOOKUP($C$4,DL_1153_2024_CG23!$BR$45:$CD$75,DL1153_2025!AY$6,0),"-") -> - | AZ29: =+IFERROR(VLOOKUP($C$4,DL_1153_2024_CG23!$BR$45:$CD$75,DL1153_2025!AZ$6,0),"-") -> - | BA29: =+IFERROR(VLOOKUP($C$4,DL_1153_2024_CG23!$BR$45:$CD$75,DL1153_2025!BA$6,0),"-") -> -
C30: Ficha 23:Porcentaje de ocupación cama. (UCI) | D30: =GETPIVOTDATA("Suma de Ind_UCI",DL_1153_2024_CG23!$A$10) -> 80.9% | E30: =GETPIVOTDATA("Suma de Ind_UCI",DL_1153_2024_CG23!$M$10,"mes",6) -> 82.5% | F30: =GETPIVOTDATA("Suma de Ind_UCI",DL_1153_2024_CG23!$M$10,"mes",3) -> 78.5% | G30: =GETPIVOTDATA("Suma de Ind_UCI",DL_1153_2024_CG23!$M$10,"mes",5) -> 82.3%
A31: DL_1153_2024_CG25 | B31: DGOS/DIMON | C31: Ficha 24:Intervalo de sustitución cama | D31: =IFERROR(VLOOKUP($C$4,DL_1153_2024_CG24!BQ46:BR75,2,0),"-") -> 1.8 | E31: =AQ31 -> 1.8 | F31: =MIN(AP31:AQ31) -> 1.8 | G31: =MAX(AP31:AQ31) -> 2.0 | AP31: =+IFERROR(VLOOKUP($C$4,DL_1153_2024_CG24!$BU$45:$CG$75,DL1153_2025!AP$6,0),"-") -> 2.0 | AQ31: =+IFERROR(VLOOKUP($C$4,DL_1153_2024_CG24!$BU$45:$CG$75,DL1153_2025!AQ$6,0),"-") -> 1.8 | AR31: =+IFERROR(VLOOKUP($C$4,DL_1153_2024_CG24!$BU$45:$CG$75,DL1153_2025!AR$6,0),"-") -> 1.8 | AS31: =+IFERROR(VLOOKUP($C$4,DL_1153_2024_CG24!$BU$45:$CG$75,DL1153_2025!AS$6,0),"-") -> 1.9 | AT31: =+IFERROR(VLOOKUP($C$4,DL_1153_2024_CG24!$BU$45:$CG$75,DL1153_2025!AT$6,0),"-") -> 1.6 | AU31: =+IFERROR(VLOOKUP($C$4,DL_1153_2024_CG24!$BU$45:$CG$75,DL1153_2025!AU$6,0),"-") -> 1.8 | AV31: =+IFERROR(VLOOKUP($C$4,DL_1153_2024_CG24!$BU$45:$CG$75,DL1153_2025!AV$6,0),"-") -> 1.8 | AW31: =+IFERROR(VLOOKUP($C$4,DL_1153_2024_CG24!$BU$45:$CG$75,DL1153_2025!AW$6,0),"-") -> 1.9 | AX31: =+IFERROR(VLOOKUP($C$4,DL_1153_2024_CG24!$BU$45:$CG$75,DL1153_2025!AX$6,0),"-") -> - | AY31: =+IFERROR(VLOOKUP($C$4,DL_1153_2024_CG24!$BU$45:$CG$75,DL1153_2025!AY$6,0),"-") -> - | AZ31: =+IFERROR(VLOOKUP($C$4,DL_1153_2024_CG24!$BU$45:$CG$75,DL1153_2025!AZ$6,0),"-") -> - | BA31: =+IFERROR(VLOOKUP($C$4,DL_1153_2024_CG24!$BU$45:$CG$75,DL1153_2025!BA$6,0),"-") -> -
A32: DL_1153_2024_CG26 | B32: DGOS/DIMON | C32: Ficha 25:Promedio de Espera para la Atención en Consulta Externa de un paciente referido | D32: =IFERROR(VLOOKUP($C$4,DL_1153_2024_CG25!BI48:BJ78,2,0),"-") -> 19.3 | E32: =+IFERROR(VLOOKUP($E$6,DL_1153_2024_CG25!$CB$35:$DF$47,MATCH(DL1153_2025!$C$4,DL_1153_2024_CG25!$CB$35:$DF$35,0),FALSE),"-") -> 23.7 | F32: =+IFERROR(VLOOKUP($C$4,DL_1153_2024_CG25!$CA$49:$CC$78,2,0),"-") -> 4.8 | G32: =+IFERROR(VLOOKUP($C$4,DL_1153_2024_CG25!$CA$49:$CC$78,3,0),"-") -> 24.7 | AP32: =+IFERROR(VLOOKUP($C$4,DL_1153_2024_CG25!$BM$45:$BY$78,DL1153_2025!AP$6,0),"-") -> 4.8 | AQ32: =+IFERROR(VLOOKUP($C$4,DL_1153_2024_CG25!$BM$45:$BY$78,DL1153_2025!AQ$6,0),"-") -> 10.9 | AR32: =+IFERROR(VLOOKUP($C$4,DL_1153_2024_CG25!$BM$45:$BY$78,DL1153_2025!AR$6,0),"-") -> 13.7 | AS32: =+IFERROR(VLOOKUP($C$4,DL_1153_2024_CG25!$BM$45:$BY$78,DL1153_2025!AS$6,0),"-") -> 18.9 | AT32: =+IFERROR(VLOOKUP($C$4,DL_1153_2024_CG25!$BM$45:$BY$78,DL1153_2025!AT$6,0),"-") -> 24.7 | AU32: =+IFERROR(VLOOKUP($C$4,DL_1153_2024_CG25!$BM$45:$BY$78,DL1153_2025!AU$6,0),"-") -> 24.0 | AV32: =+IFERROR(VLOOKUP($C$4,DL_1153_2024_CG25!$BM$45:$BY$78,DL1153_2025!AV$6,0),"-") -> 24.2 | AW32: =+IFERROR(VLOOKUP($C$4,DL_1153_2024_CG25!$BM$45:$BY$78,DL1153_2025!AW$6,0),"-") -> 23.7 | AX32: =+IFERROR(VLOOKUP($C$4,DL_1153_2024_CG25!$BM$45:$BY$78,DL1153_2025!AX$6,0),"-") -> - | AY32: =+IFERROR(VLOOKUP($C$4,DL_1153_2024_CG25!$BM$45:$BY$78,DL1153_2025!AY$6,0),"-") -> - | AZ32: =+IFERROR(VLOOKUP($C$4,DL_1153_2024_CG25!$BM$45:$BY$78,DL1153_2025!AZ$6,0),"-") -> - | BA32: =+IFERROR(VLOOKUP($C$4,DL_1153_2024_CG25!$BM$45:$BY$78,DL1153_2025!BA$6,0),"-") -> -
A33: DL_1153_2024_CG27 | B33: DGOS/DIMON | C33: Ficha 26:Promedio de Espera para la Atención en Apoyo al Diagnóstico de un Paciente Referido | D33: =IFERROR(VLOOKUP($C$4,DL_1153_2024_CG26!BQ45:BR75,2,0),"-") -> 14.5 | E33: =+IFERROR(VLOOKUP($E$6,DL_1153_2024_CG26!$CI$29:$DM$41,MATCH(DL1153_2025!$C$4,DL_1153_2024_CG26!$CI$29:$DM$29,0),FALSE),"-") -> 19.7 | F33: =+IFERROR(VLOOKUP($C$4,DL_1153_2024_CG26!$CH$46:$CJ$75,2,0),"-") -> 3.7 | G33: =+IFERROR(VLOOKUP($C$4,DL_1153_2024_CG26!$CH$46:$CJ$75,3,0),"-") -> 22.3 | AP33: =+IFERROR(VLOOKUP($C$4,DL_1153_2024_CG26!$BT$45:$CG$75,DL1153_2025!AP$6,0),"-") -> 3.7 | AQ33: =+IFERROR(VLOOKUP($C$4,DL_1153_2024_CG26!$BT$45:$CG$75,DL1153_2025!AQ$6,0),"-") -> 6.2 | AR33: =+IFERROR(VLOOKUP($C$4,DL_1153_2024_CG26!$BT$45:$CG$75,DL1153_2025!AR$6,0),"-") -> 10.2 | AS33: =+IFERROR(VLOOKUP($C$4,DL_1153_2024_CG26!$BT$45:$CG$75,DL1153_2025!AS$6,0),"-") -> 9.9 | AT33: =+IFERROR(VLOOKUP($C$4,DL_1153_2024_CG26!$BT$45:$CG$75,DL1153_2025!AT$6,0),"-") -> 18.3 | AU33: =+IFERROR(VLOOKUP($C$4,DL_1153_2024_CG26!$BT$45:$CG$75,DL1153_2025!AU$6,0),"-") -> 16.7 | AV33: =+IFERROR(VLOOKUP($C$4,DL_1153_2024_CG26!$BT$45:$CG$75,DL1153_2025!AV$6,0),"-") -> 22.3 | AW33: =+IFERROR(VLOOKUP($C$4,DL_1153_2024_CG26!$BT$45:$CG$75,DL1153_2025!AW$6,0),"-") -> 19.7 | AX33: =+IFERROR(VLOOKUP($C$4,DL_1153_2024_CG26!$BT$45:$CG$75,DL1153_2025!AX$6,0),"-") -> - | AY33: =+IFERROR(VLOOKUP($C$4,DL_1153_2024_CG26!$BT$45:$CG$75,DL1153_2025!AY$6,0),"-") -> - | AZ33: =+IFERROR(VLOOKUP($C$4,DL_1153_2024_CG26!$BT$45:$CG$75,DL1153_2025!AZ$6,0),"-") -> - | BA33: =+IFERROR(VLOOKUP($C$4,DL_1153_2024_CG26!$BT$45:$CG$75,DL1153_2025!BA$6,0),"-") -> -
A34: DL_1153_2024_CG28 | B34: DGOS/DIMON | C34: Ficha 27:Productividad Hora Médico | D34: 2.5 | E34: 2.5 | F34: 2.5 | G34: 2.6 | AP34: =+IFERROR(VLOOKUP($C$4,DL_1153_2024_CG27!$BT$45:$CG$75,DL1153_2025!AP$6,0),"-") -> 3.47% | AQ34: =+IFERROR(VLOOKUP($C$4,DL_1153_2024_CG27!$BT$45:$CG$75,DL1153_2025!AQ$6,0),"-") -> 3.62% | AR34: =+IFERROR(VLOOKUP($C$4,DL_1153_2024_CG27!$BT$45:$CG$75,DL1153_2025!AR$6,0),"-") -> 3.32% | AS34: =+IFERROR(VLOOKUP($C$4,DL_1153_2024_CG27!$BT$45:$CG$75,DL1153_2025!AS$6,0),"-") -> 3.91% | AT34: =+IFERROR(VLOOKUP($C$4,DL_1153_2024_CG27!$BT$45:$CG$75,DL1153_2025!AT$6,0),"-") -> 3.70% | AU34: =+IFERROR(VLOOKUP($C$4,DL_1153_2024_CG27!$BT$45:$CG$75,DL1153_2025!AU$6,0),"-") -> 3.39% | AV34: =+IFERROR(VLOOKUP($C$4,DL_1153_2024_CG27!$BT$45:$CG$75,DL1153_2025!AV$6,0),"-") -> 3.67% | AW34: =+IFERROR(VLOOKUP($C$4,DL_1153_2024_CG27!$BT$45:$CG$75,DL1153_2025!AW$6,0),"-") -> 3.65% | AX34: =+IFERROR(VLOOKUP($C$4,DL_1153_2024_CG27!$BT$45:$CG$75,DL1153_2025!AX$6,0),"-") -> 3.46% | AY34: =+IFERROR(VLOOKUP($C$4,DL_1153_2024_CG27!$BT$45:$CG$75,DL1153_2025!AY$6,0),"-") -> 2.99% | AZ34: =+IFERROR(VLOOKUP($C$4,DL_1153_2024_CG27!$BT$45:$CG$75,DL1153_2025!AZ$6,0),"-") -> 3.17% | BA34: =+IFERROR(VLOOKUP($C$4,DL_1153_2024_CG27!$BT$45:$CG$75,DL1153_2025!BA$6,0),"-") -> 3.36%
A35: DL_1153_2024_CG29 | B35: DGOS | C35: Ficha 28:Utilización de consultorios externos | D35: =GETPIVOTDATA("Suma de Ind",DL_1153_2024_CG28!$J$10) -> 1.7 | E35: =GETPIVOTDATA("Suma de Ind",DL_1153_2024_CG28!$J$10,"MES",5) -> 1.7 | F35: =+IFERROR(VLOOKUP($C$4,DL_1153_2024_CG28!$CH$46:$CJ$75,2,0),"-") -> 1.6 | G35: =+IFERROR(VLOOKUP($C$4,DL_1153_2024_CG28!$CH$46:$CJ$75,3,0),"-") -> 1.8 | AP35: =+IFERROR(VLOOKUP($C$4,DL_1153_2024_CG28!$BT$45:$CG$75,DL1153_2025!AP$6,0),"-") -> 1.6 | AQ35: =+IFERROR(VLOOKUP($C$4,DL_1153_2024_CG28!$BT$45:$CG$75,DL1153_2025!AQ$6,0),"-") -> 1.6 | AR35: =+IFERROR(VLOOKUP($C$4,DL_1153_2024_CG28!$BT$45:$CG$75,DL1153_2025!AR$6,0),"-") -> 1.8 | AS35: =+IFERROR(VLOOKUP($C$4,DL_1153_2024_CG28!$BT$45:$CG$75,DL1153_2025!AS$6,0),"-") -> 1.7 | AT35: =+IFERROR(VLOOKUP($C$4,DL_1153_2024_CG28!$BT$45:$CG$75,DL1153_2025!AT$6,0),"-") -> 1.7 | AU35: =+IFERROR(VLOOKUP($C$4,DL_1153_2024_CG28!$BT$45:$CG$75,DL1153_2025!AU$6,0),"-") -> 1.7 | AV35: =+IFERROR(VLOOKUP($C$4,DL_1153_2024_CG28!$BT$45:$CG$75,DL1153_2025!AV$6,0),"-") -> 1.7 | AW35: =+IFERROR(VLOOKUP($C$4,DL_1153_2024_CG28!$BT$45:$CG$75,DL1153_2025!AW$6,0),"-") -> 1.6 | AX35: =+IFERROR(VLOOKUP($C$4,DL_1153_2024_CG28!$BT$45:$CG$75,DL1153_2025!AX$6,0),"-") -> - | AY35: =+IFERROR(VLOOKUP($C$4,DL_1153_2024_CG28!$BT$45:$CG$75,DL1153_2025!AY$6,0),"-") -> - | AZ35: =+IFERROR(VLOOKUP($C$4,DL_1153_2024_CG28!$BT$45:$CG$75,DL1153_2025!AZ$6,0),"-") -> - | BA35: =+IFERROR(VLOOKUP($C$4,DL_1153_2024_CG28!$BT$45:$CG$75,DL1153_2025!BA$6,0),"-") -> -
A36: DL_1153_2024_CG30 | B36: DGOS | C36: Ficha 30:Promedio de Espera para la Atención en Consulta Externa de un paciente referido | D36: =IFERROR(VLOOKUP($C$4,DL_1153_2024_CG30!FX46:FY75,2,0),"-") -> 16.0 | E36: =$AT$36 -> 29.8 | F36: =AP36 -> 6.4 | G36: =$AT$36 -> 29.8 | AP36: =+IFERROR(VLOOKUP($C$4,DL_1153_2024_CG30!$GA$46:$GM$75,DL1153_2025!AP$6,0),"-") -> 6.4 | AQ36: =+IFERROR(VLOOKUP($C$4,DL_1153_2024_CG30!$GA$46:$GM$75,DL1153_2025!AQ$6,0),"-") -> 15.1 | AR36: =+IFERROR(VLOOKUP($C$4,DL_1153_2024_CG30!$GA$46:$GM$75,DL1153_2025!AR$6,0),"-") -> 21.9 | AS36: =+IFERROR(VLOOKUP($C$4,DL_1153_2024_CG30!$GA$46:$GM$75,DL1153_2025!AS$6,0),"-") -> 24.2 | AT36: =+IFERROR(VLOOKUP($C$4,DL_1153_2024_CG30!$GA$46:$GM$75,DL1153_2025!AT$6,0),"-") -> 29.8 | AU36: =+IFERROR(VLOOKUP($C$4,DL_1153_2024_CG30!$GA$46:$GM$75,DL1153_2025!AU$6,0),"-") -> 39.5 | AV36: =+IFERROR(VLOOKUP($C$4,DL_1153_2024_CG30!$GA$46:$GM$75,DL1153_2025!AV$6,0),"-") -> 37.8 | AW36: =+IFERROR(VLOOKUP($C$4,DL_1153_2024_CG30!$GA$46:$GM$75,DL1153_2025!AW$6,0),"-") -> 46.0 | AX36: =+IFERROR(VLOOKUP($C$4,DL_1153_2024_CG30!$GA$46:$GM$75,DL1153_2025!AX$6,0),"-") -> 50.1 | AY36: =+IFERROR(VLOOKUP($C$4,DL_1153_2024_CG30!$GA$46:$GM$75,DL1153_2025!AY$6,0),"-") -> 42.6 | AZ36: =+IFERROR(VLOOKUP($C$4,DL_1153_2024_CG30!$GA$46:$GM$75,DL1153_2025!AZ$6,0),"-") -> 47.4 | BA36: =+IFERROR(VLOOKUP($C$4,DL_1153_2024_CG30!$GA$46:$GM$75,DL1153_2025!BA$6,0),"-") -> 81.3
A37: DL_1153_2024_CG32 | B37: DIGEP | C37: Ficha 32:Porcentaje de personal registrado en el aplicativo del Registro Nacional de Personal de Salud sin inconsistencias de informacion. | AP37: =+IFERROR(VLOOKUP($C$4,DL_1153_2024_CG30!$BV$45:$CH$75,DL1153_2025!AP$6,0),"-") -> - | AQ37: =+VLOOKUP($C$4,DL_1153_2024_CG22!$BQ$45:$CC$75,DL1153_2025!AQ$6,0) -> 7611.0% | AR37: =+VLOOKUP($C$4,DL_1153_2024_CG22!$BQ$45:$CC$75,DL1153_2025!AR$6,0) -> 8103.1% | AS37: =+VLOOKUP($C$4,DL_1153_2024_CG22!$BQ$45:$CC$75,DL1153_2025!AS$6,0) -> 7770.1% | AT37: =+VLOOKUP($C$4,DL_1153_2024_CG22!$BQ$45:$CC$75,DL1153_2025!AT$6,0) -> 8358.1% | AU37: =+VLOOKUP($C$4,DL_1153_2024_CG22!$BQ$45:$CC$75,DL1153_2025!AU$6,0) -> 7873.1% | AV37: =+VLOOKUP($C$4,DL_1153_2024_CG22!$BQ$45:$CC$75,DL1153_2025!AV$6,0) -> 7545.5% | AW37: =+VLOOKUP($C$4,DL_1153_2024_CG22!$BQ$45:$CC$75,DL1153_2025!AW$6,0) -> 7533.5% | AX37: =+VLOOKUP($C$4,DL_1153_2024_CG22!$BQ$45:$CC$75,DL1153_2025!AX$6,0) -> - | AY37: =+VLOOKUP($C$4,DL_1153_2024_CG22!$BQ$45:$CC$75,DL1153_2025!AY$6,0) -> - | AZ37: =+VLOOKUP($C$4,DL_1153_2024_CG22!$BQ$45:$CC$75,DL1153_2025!AZ$6,0) -> - | BA37: =+VLOOKUP($C$4,DL_1153_2024_CG22!$BQ$45:$CC$75,DL1153_2025!BA$6,0) -> -
B38: DIGEP | C38: Ficha 32: Porcentaje de personal registrado en el aplicativo del Registro Nacional de Personal de la Salud sin inconsistencias de información. | D38: =GETPIVOTDATA("Suma de Ind",#REF!) ->  | E38: =AW38 -> 95.5% | F38: =MIN($AP$38:$AW$38) -> 88.9% | G38: =MAX($AP$38:$AW$38) -> 95.5% | AP38: 88.9% | AQ38: 89.3% | AR38: 91.8% | AS38: 92.0% | AT38: 93.2% | AU38: 94.0% | AV38: 95.0% | AW38: 95.5% | AX38: 95.6% | AY38: 95.0% | AZ38: =GETPIVOTDATA("Suma de Ind",#REF!,"MES","Noviembre") ->  | BA38: =GETPIVOTDATA("Suma de Ind",#REF!,"MES","Diciembre") -> 
A39: DL_1153_2024_CG33 | B39: DIGTEL | C39: Ficha 32:Utilización de los servicios de telemedicina (teleinterconsultas, teleconsultas,telemonitoreo) | D39: =AS39 -> 9.9 | E39: =D39 -> 9.9 | F39: =MIN(AP39:AQ39) -> 3.4 | G39: =MAX(AP39:AV39) -> 9.9 | AP39: =+VLOOKUP($C$4,DL_1153_2024_CG32!$CA$45:$CM$75,DL1153_2025!AP$6,0) -> 3.4 | AQ39: =+VLOOKUP($C$4,DL_1153_2024_CG32!$CA$45:$CM$75,DL1153_2025!AQ$6,0) -> 6.4 | AR39: =+VLOOKUP($C$4,DL_1153_2024_CG32!$CA$45:$CM$75,DL1153_2025!AR$6,0) -> 8.9 | AS39: =+VLOOKUP($C$4,DL_1153_2024_CG32!$CA$45:$CM$75,DL1153_2025!AS$6,0) -> 9.9 | AT39: =+VLOOKUP($C$4,DL_1153_2024_CG32!$CA$45:$CM$75,DL1153_2025!AT$6,0) -> - | AU39: =+VLOOKUP($C$4,DL_1153_2024_CG32!$CA$45:$CM$75,DL1153_2025!AU$6,0) -> - | AV39: =+VLOOKUP($C$4,DL_1153_2024_CG32!$CA$45:$CM$75,DL1153_2025!AV$6,0) -> - | AW39: =+VLOOKUP($C$4,DL_1153_2024_CG32!$CA$45:$CM$75,DL1153_2025!AW$6,0) -> - | AX39: =+VLOOKUP($C$4,DL_1153_2024_CG22!$BQ$45:$CC$75,DL1153_2025!AX$6,0) -> - | AY39: =+VLOOKUP($C$4,DL_1153_2024_CG22!$BQ$45:$CC$75,DL1153_2025!AY$6,0) -> - | AZ39: =+VLOOKUP($C$4,DL_1153_2024_CG22!$BQ$45:$CC$75,DL1153_2025!AZ$6,0) -> - | BA39: =+VLOOKUP($C$4,DL_1153_2024_CG22!$BQ$45:$CC$75,DL1153_2025!BA$6,0) -> -
AZ40: =+VLOOKUP($C$4,DL_1153_2024_CG22!$BQ$45:$CC$75,DL1153_2025!AZ$6,0) -> - | BA40: =+VLOOKUP($C$4,DL_1153_2024_CG22!$BQ$45:$CC$75,DL1153_2025!BA$6,0) -> -
B41: Periodo Evaluación:
B42: Agosto - 2025
B44: Fuente de Datos:
B45: HIS MINSA 2025 (21/09/2025)
B46: PADRON NOMINAL (21/09/2025)
B47: CNV (21/09/2025)
B48: REFCON (21/09/2025)
B49: SEEM-EGRESOS (21/09/2025)
B50: SEEM- EMERGENCIA (21/09/2025)
B51: SETIPRESS - SUSALUD (25/09/2025)
B52: FICHA 500.2 (RENOXI) (20/09/2025)
B53: SIGTB (22/09/2025)
B54: SIASIS (31/12/2024)
B55: INFORHUS (02/11/2024)

Sheet DL_1153_2025_CG01
A1: =+DL1153_2025!C7 -> Ficha 01: Porcentaje de niñas y niños de 12 a 18 meses, con diagnóstico de anemia entre los 6 y 11 meses, que se han recuperado. | BN1: 1 | DT1: 1
A2: Periodo de Evaluación: | B2: =+DL1153_2025!B42 -> Agosto - 2025
J3: seguro | K3: 1
J4: Diris | K4: (Todas)
A5: seguro | B5: 1 | J5: Red | K5: (Todas)
A6: año | B6: (Todas) | J6: Provincia | K6: (Todas)
A7: mes | B7: (Todas) | J7: Distrito | K7: (Todas)
A8: DIRESA/ DIRIS | B8: RED | C8: Provincia | D8: Distrito | E8: UBIGEO | F8: Denominador: Suma de DNI únicos de niños que cumplen entre 350 a 573 días de edad en el período de evaluación, con SIS, sin datos de seguro y sin seguro (población MINSA y Gobierno Regional), registrados en el padrón nominal con DNI, según el ámbito de la jurisdicción determinado por la residencia registrada en el padrón nominal Y Niños que cumplen 209 días posteriores al diagnóstico de anemia en el periodo de evaluación. | G8: Numerador: Suma de DNIs que forman parte del denominador que, a partir del último diagnóstico definitivo de anemia entre los 170 y 364 días de edad (11 meses 29 días), iniciaron oportunamente tratamiento (hasta 7 días desde el diagnóstico). Registrados en HIS con un rango de 25 a 70 días entre cada entrega de hierro. Se considerarán como mínimo 3 entregas. Y Registran en HIS su recuperación con diagnóstico repetitivo anemia y dosaje de hemoglobina. | H8: Indicador: Porcentaje de niñas y niños de 12 a 18 meses, con diagnóstico de anemia entre los 6 y 11 meses, que se han recuperado. | J8: AÑO | K8: MES | L8: Denominador: Suma de DNI únicos de niños que cumplen entre 350 a 573 días de edad en el período de evaluación, con SIS, sin datos de seguro y sin seguro (población MINSA y Gobierno Regional), registrados en el padrón nominal con DNI, según el ámbito de la jurisdicción determinado por la residencia registrada en el padrón nominal Y Niños que cumplen 209 días posteriores al diagnóstico de anemia en el periodo de evaluación. | M8: Numerador: Suma de DNIs que forman parte del denominador que, a partir del último diagnóstico definitivo de anemia entre los 170 y 364 días de edad (11 meses 29 días), iniciaron oportunamente tratamiento (hasta 7 días desde el diagnóstico). Registrados en HIS con un rango de 25 a 70 días entre cada entrega de hierro. Se considerarán como mínimo 3 entregas. Y Registran en HIS su recuperación con diagnóstico repetitivo anemia y dosaje de hemoglobina. | N8: Indicador: Porcentaje de niñas y niños de 12 a 18 meses, con diagnóstico de anemia entre los 6 y 11 meses, que se han recuperado.
A9: Diris | B9: Red | C9: Provincia | D9: Distrito | E9: ubigeo | F9: Denominador | G9: Numerador | H9: Suma de Ind | J9: año | K9: mes | L9: Denominador | M9: Numerador | N9: Suma de Ind
A10: AMAZONAS | F10: 643 | G10: 162 | H10: 25.2% | J10: 2025 | K10: 1 | L10: 3,578 | M10: 1,073 | N10: 30.0%
A11: ANCASH | F11: 1,491 | G11: 466 | H11: 31.3% | J11: 2025 | K11: 2 | L11: 2,751 | M11: 851 | N11: 30.9%
A12: APURIMAC | F12: 390 | G12: 171 | H12: 43.8% | J12: 2025 | K12: 3 | L12: 2,871 | M12: 880 | N12: 30.7%
A13: AREQUIPA | F13: 847 | G13: 187 | H13: 22.1% | J13: 2025 | K13: 4 | L13: 3,281 | M13: 1,009 | N13: 30.8%
A14: AYACUCHO | F14: 558 | G14: 311 | H14: 55.7% | J14: 2025 | K14: 5 | L14: 3,078 | M14: 1,040 | N14: 33.8%
A15: CAJAMARCA | F15: 1,324 | G15: 543 | H15: 41.0% | J15: 2025 | K15: 6 | L15: 3,529 | M15: 1,201 | N15: 34.0%
A16: CALLAO | F16: 427 | G16: 214 | H16: 50.1% | J16: 2025 | K16: 7 | L16: 3,145 | M16: 1,087 | N16: 34.6%
A17: CUSCO | F17: 1,371 | G17: 305 | H17: 22.2% | J17: 2025 | K17: 8 | L17: 4,028 | M17: 1,442 | N17: 35.8%
A18: HUANCAVELICA | F18: 544 | G18: 172 | H18: 31.6% | J18: Total general | L18: 26,261 | M18: 8,583 | N18: 32.7%
A19: HUANUCO | F19: 551 | G19: 261 | H19: 47.4%
A20: ICA | F20: 734 | G20: 270 | H20: 36.8%
A21: JUNIN | F21: 1,020 | G21: 601 | H21: 58.9%
A22: LA LIBERTAD | F22: 853 | G22: 516 | H22: 60.5% | BP22: año | BQ22: (Todas) | BU22: año | BV22: (Todas) | CN22: año | CO22: (Todas)
A23: LAMBAYEQUE | F23: 1,674 | G23: 530 | H23: 31.7% | BP23: seguro | BQ23: 1 | BU23: seguro | BV23: 1 | CN23: seguro | CO23: 1
A24: LIMA DIRIS CENTRO | F24: 1,519 | G24: 420 | H24: 27.6%
A25: LIMA DIRIS ESTE | F25: 1,350 | G25: 486 | H25: 36.0% | BP25: Diris | BQ25: Suma de IND | BU25: Suma de IND | BV25: mes | CN25: Suma de IND | CO25: Diris
A26: LIMA DIRIS NORTE | F26: 1,718 | G26: 356 | H26: 20.7% | BP26: AMAZONAS | BQ26: 25.2% | BU26: Diris | BV26: 1 | BW26: 2 | BX26: 3 | BY26: 4 | BZ26: 5 | CA26: 6 | CB26: 7 | CC26: 8 | CN26: mes | CO26: AMAZONAS | CP26: ANCASH | CQ26: APURIMAC | CR26: AREQUIPA | CS26: AYACUCHO | CT26: CAJAMARCA | CU26: CALLAO | CV26: CUSCO | CW26: HUANCAVELICA | CX26: HUANUCO | CY26: ICA | CZ26: JUNIN | DA26: LA LIBERTAD | DB26: LAMBAYEQUE | DC26: LIMA DIRIS CENTRO | DD26: LIMA DIRIS ESTE | DE26: LIMA DIRIS NORTE | DF26: LIMA DIRIS SUR | DG26: LIMA PROVINCIAS | DH26: LORETO | DI26: MADRE DE DIOS | DJ26: MOQUEGUA | DK26: PASCO | DL26: PIURA | DM26: PUNO | DN26: SAN MARTIN | DO26: TACNA | DP26: TUMBES | DQ26: UCAYALI | DR26: Total general
A27: LIMA DIRIS SUR | F27: 1,082 | G27: 497 | H27: 45.9% | BP27: ANCASH | BQ27: 31.3% | BU27: AMAZONAS | BV27: 23.7% | BW27: 23.2% | BX27: 18.7% | BY27: 30.6% | BZ27: 31.6% | CA27: 27.7% | CB27: 20.3% | CC27: 23.3% | CN27: Enero | CO27: 23.7% | CP27: 26.5% | CQ27: 35.0% | CR27: 16.2% | CS27: 59.7% | CT27: 41.7% | CU27: 45.8% | CV27: 26.6% | CW27: 27.3% | CX27: 47.6% | CY27: 26.8% | CZ27: 60.2% | DA27: 52.1% | DB27: 30.3% | DC27: 27.7% | DD27: 26.4% | DE27: 18.5% | DF27: 38.8% | DG27: 64.8% | DH27: 15.4% | DI27: 34.5% | DJ27: 30.0% | DK27: 25.9% | DL27: 19.1% | DM27: 35.0% | DN27: 33.1% | DO27: 29.4% | DP27: 45.5% | DQ27: 24.0% | DR27: 30.0%
A28: LIMA PROVINCIAS | F28: 464 | G28: 259 | H28: 55.8% | BP28: APURIMAC | BQ28: 43.8% | BU28: ANCASH | BV28: 26.5% | BW28: 31.5% | BX28: 31.3% | BY28: 31.8% | BZ28: 35.7% | CA28: 26.4% | CB28: 33.3% | CC28: 34.4% | CN28: Febrero | CO28: 23.2% | CP28: 31.5% | CQ28: 46.9% | CR28: 18.2% | CS28: 52.9% | CT28: 44.6% | CU28: 36.7% | CV28: 24.8% | CW28: 24.1% | CX28: 48.0% | CY28: 29.6% | CZ28: 51.2% | DA28: 54.7% | DB28: 32.4% | DC28: 28.9% | DD28: 25.9% | DE28: 16.3% | DF28: 47.1% | DG28: 57.1% | DH28: 14.6% | DI28: 24.4% | DJ28: 58.3% | DK28: 26.8% | DL28: 19.4% | DM28: 39.7% | DN28: 32.7% | DO28: 80.0% | DP28: 55.6% | DQ28: 21.6% | DR28: 30.9%
A29: LORETO | F29: 1,813 | G29: 250 | H29: 13.8% | BP29: AREQUIPA | BQ29: 22.1% | BU29: APURIMAC | BV29: 35.0% | BW29: 46.9% | BX29: 37.2% | BY29: 55.6% | BZ29: 51.2% | CA29: 47.5% | CB29: 47.6% | CC29: 35.7% | CN29: Marzo | CO29: 18.7% | CP29: 31.3% | CQ29: 37.2% | CR29: 18.5% | CS29: 55.9% | CT29: 46.4% | CU29: 40.8% | CV29: 24.4% | CW29: 32.8% | CX29: 42.6% | CY29: 38.2% | CZ29: 53.3% | DA29: 51.0% | DB29: 27.6% | DC29: 27.4% | DD29: 27.3% | DE29: 14.7% | DF29: 45.8% | DG29: 42.2% | DH29: 13.6% | DI29: 40.0% | DJ29: 36.4% | DK29: 32.8% | DL29: 16.8% | DM29: 31.8% | DN29: 29.5% | DO29: 57.1% | DP29: 82.4% | DQ29: 19.0% | DR29: 30.7%
A30: MADRE DE DIOS | F30: 362 | G30: 133 | H30: 36.7% | BP30: AYACUCHO | BQ30: 55.7% | BU30: AREQUIPA | BV30: 16.2% | BW30: 18.2% | BX30: 18.5% | BY30: 16.5% | BZ30: 26.7% | CA30: 26.4% | CB30: 23.3% | CC30: 28.8% | CN30: Abril | CO30: 30.6% | CP30: 31.8% | CQ30: 55.6% | CR30: 16.5% | CS30: 63.6% | CT30: 42.4% | CU30: 43.4% | CV30: 17.7% | CW30: 26.0% | CX30: 54.9% | CY30: 25.6% | CZ30: 55.2% | DA30: 57.4% | DB30: 28.6% | DC30: 22.1% | DD30: 30.7% | DE30: 21.2% | DF30: 44.5% | DG30: 36.6% | DH30: 10.7% | DI30: 45.8% | DJ30: 33.3% | DK30: 21.7% | DL30: 19.5% | DM30: 23.3% | DN30: 28.2% | DO30: 66.7% | DP30: 77.8% | DQ30: 21.2% | DR30: 30.8%
A31: MOQUEGUA | F31: 105 | G31: 37 | H31: 35.2% | BP31: CAJAMARCA | BQ31: 41.0% | BU31: AYACUCHO | BV31: 59.7% | BW31: 52.9% | BX31: 55.9% | BY31: 63.6% | BZ31: 57.1% | CA31: 50.0% | CB31: 48.4% | CC31: 55.0% | CN31: Mayo | CO31: 31.6% | CP31: 35.7% | CQ31: 51.2% | CR31: 26.7% | CS31: 57.1% | CT31: 34.7% | CU31: 41.9% | CV31: 17.5% | CW31: 34.9% | CX31: 47.5% | CY31: 36.4% | CZ31: 63.0% | DA31: 67.0% | DB31: 24.3% | DC31: 35.2% | DD31: 32.9% | DE31: 23.1% | DF31: 35.7% | DG31: 53.8% | DH31: 16.8% | DI31: 27.7% | DJ31: 23.1% | DK31: 30.6% | DL31: 24.0% | DM31: 30.9% | DN31: 37.2% | DO31: 58.3% | DP31: 65.0% | DQ31: 22.9% | DR31: 33.8%
A32: PASCO | F32: 363 | G32: 95 | H32: 26.2% | BP32: CALLAO | BQ32: 50.1% | BU32: CAJAMARCA | BV32: 41.7% | BW32: 44.6% | BX32: 46.4% | BY32: 42.4% | BZ32: 34.7% | CA32: 40.9% | CB32: 43.0% | CC32: 35.4% | CN32: Junio | CO32: 27.7% | CP32: 26.4% | CQ32: 47.5% | CR32: 26.4% | CS32: 50.0% | CT32: 40.9% | CU32: 50.9% | CV32: 24.1% | CW32: 35.5% | CX32: 46.2% | CY32: 45.1% | CZ32: 63.0% | DA32: 70.5% | DB32: 30.9% | DC32: 29.4% | DD32: 41.6% | DE32: 21.4% | DF32: 46.3% | DG32: 60.0% | DH32: 10.1% | DI32: 40.5% | DJ32: 18.8% | DK32: 27.9% | DL32: 23.7% | DM32: 23.7% | DN32: 33.7% | DO32: 33.3% | DP32: 54.5% | DQ32: 22.7% | DR32: 34.0%
A33: PIURA | F33: 1,762 | G33: 363 | H33: 20.6% | BP33: CUSCO | BQ33: 22.2% | BU33: CALLAO | BV33: 45.8% | BW33: 36.7% | BX33: 40.8% | BY33: 43.4% | BZ33: 41.9% | CA33: 50.9% | CB33: 57.5% | CC33: 68.9% | CN33: Julio | CO33: 20.3% | CP33: 33.3% | CQ33: 47.6% | CR33: 23.3% | CS33: 48.4% | CT33: 43.0% | CU33: 57.5% | CV33: 18.3% | CW33: 37.8% | CX33: 46.2% | CY33: 42.3% | CZ33: 61.1% | DA33: 65.9% | DB33: 39.3% | DC33: 28.1% | DD33: 43.2% | DE33: 18.9% | DF33: 52.7% | DG33: 51.6% | DH33: 12.9% | DI33: 39.4% | DJ33: 35.7% | DK33: 16.7% | DL33: 22.9% | DM33: 35.4% | DN33: 31.6% | DO33: 33.3% | DP33: 46.2% | DQ33: 29.6% | DR33: 34.6%
A34: PUNO | F34: 572 | G34: 182 | H34: 31.8% | BP34: HUANCAVELICA | BQ34: 31.6% | BU34: CUSCO | BV34: 26.6% | BW34: 24.8% | BX34: 24.4% | BY34: 17.7% | BZ34: 17.5% | CA34: 24.1% | CB34: 18.3% | CC34: 22.9% | CN34: Agosto | CO34: 23.3% | CP34: 34.4% | CQ34: 35.7% | CR34: 28.8% | CS34: 55.0% | CT34: 35.4% | CU34: 68.9% | CV34: 22.9% | CW34: 32.2% | CX34: 46.4% | CY34: 46.8% | CZ34: 62.6% | DA34: 65.2% | DB34: 37.9% | DC34: 25.1% | DD34: 45.6% | DE34: 25.4% | DF34: 51.7% | DG34: 65.8% | DH34: 15.5% | DI34: 42.1% | DJ34: 54.5% | DK34: 20.7% | DL34: 20.1% | DM34: 38.2% | DN34: 30.3% | DO34: 44.4% | DP34: 57.1% | DQ34: 28.2% | DR34: 35.8%
A35: SAN MARTIN | F35: 816 | G35: 260 | H35: 31.9% | BP35: HUANUCO | BQ35: 47.4% | BU35: HUANCAVELICA | BV35: 27.3% | BW35: 24.1% | BX35: 32.8% | BY35: 26.0% | BZ35: 34.9% | CA35: 35.5% | CB35: 37.8% | CC35: 32.2%
A36: TACNA | F36: 100 | G36: 47 | H36: 47.0% | BP36: ICA | BQ36: 36.8% | BU36: HUANUCO | BV36: 47.6% | BW36: 48.0% | BX36: 42.6% | BY36: 54.9% | BZ36: 47.5% | CA36: 46.2% | CB36: 46.2% | CC36: 46.4%
A37: TUMBES | F37: 169 | G37: 100 | H37: 59.2% | BP37: JUNIN | BQ37: 58.9% | BU37: ICA | BV37: 26.8% | BW37: 29.6% | BX37: 38.2% | BY37: 25.6% | BZ37: 36.4% | CA37: 45.1% | CB37: 42.3% | CC37: 46.8%
A38: UCAYALI | F38: 1,639 | G38: 389 | H38: 23.7% | BP38: LA LIBERTAD | BQ38: 60.5% | BU38: JUNIN | BV38: 60.2% | BW38: 51.2% | BX38: 53.3% | BY38: 55.2% | BZ38: 63.0% | CA38: 63.0% | CB38: 61.1% | CC38: 62.6%
A39: Total general | F39: 26,261 | G39: 8,583 | H39: 32.7% | BP39: LAMBAYEQUE | BQ39: 31.7% | BU39: LA LIBERTAD | BV39: 52.1% | BW39: 54.7% | BX39: 51.0% | BY39: 57.4% | BZ39: 67.0% | CA39: 70.5% | CB39: 65.9% | CC39: 65.2%
BP40: LIMA DIRIS CENTRO | BQ40: 27.6% | BU40: LAMBAYEQUE | BV40: 30.3% | BW40: 32.4% | BX40: 27.6% | BY40: 28.6% | BZ40: 24.3% | CA40: 30.9% | CB40: 39.3% | CC40: 37.9%
BP41: LIMA DIRIS ESTE | BQ41: 36.0% | BU41: LIMA DIRIS CENTRO | BV41: 27.7% | BW41: 28.9% | BX41: 27.4% | BY41: 22.1% | BZ41: 35.2% | CA41: 29.4% | CB41: 28.1% | CC41: 25.1%
BP42: LIMA DIRIS NORTE | BQ42: 20.7% | BU42: LIMA DIRIS ESTE | BV42: 26.4% | BW42: 25.9% | BX42: 27.3% | BY42: 30.7% | BZ42: 32.9% | CA42: 41.6% | CB42: 43.2% | CC42: 45.6%
BP43: LIMA DIRIS SUR | BQ43: 45.9% | BU43: LIMA DIRIS NORTE | BV43: 18.5% | BW43: 16.3% | BX43: 14.7% | BY43: 21.2% | BZ43: 23.1% | CA43: 21.4% | CB43: 18.9% | CC43: 25.4%
BP44: LIMA PROVINCIAS | BQ44: 55.8% | BU44: LIMA DIRIS SUR | BV44: 38.8% | BW44: 47.1% | BX44: 45.8% | BY44: 44.5% | BZ44: 35.7% | CA44: 46.3% | CB44: 52.7% | CC44: 51.7%
BP45: LORETO | BQ45: 13.8% | BU45: LIMA PROVINCIAS | BV45: 64.8% | BW45: 57.1% | BX45: 42.2% | BY45: 36.6% | BZ45: 53.8% | CA45: 60.0% | CB45: 51.6% | CC45: 65.8%
BP46: MADRE DE DIOS | BQ46: 36.7% | BU46: LORETO | BV46: 15.4% | BW46: 14.6% | BX46: 13.6% | BY46: 10.7% | BZ46: 16.8% | CA46: 10.1% | CB46: 12.9% | CC46: 15.5%
BP47: MOQUEGUA | BQ47: 35.2% | BU47: MADRE DE DIOS | BV47: 34.5% | BW47: 24.4% | BX47: 40.0% | BY47: 45.8% | BZ47: 27.7% | CA47: 40.5% | CB47: 39.4% | CC47: 42.1% | CO47: AMAZONAS | CP47: ANCASH | CQ47: APURIMAC | CR47: AREQUIPA | CS47: AYACUCHO | CT47: CAJAMARCA | CU47: CALLAO | CV47: CUSCO | CW47: HUANCAVELICA | CX47: HUANUCO | CY47: ICA | CZ47: JUNIN | DA47: LA LIBERTAD | DB47: LAMBAYEQUE | DC47: LIMA DIRIS CENTRO | DD47: LIMA DIRIS ESTE | DE47: LIMA DIRIS NORTE | DF47: LIMA DIRIS SUR | DG47: LIMA PROVINCIAS | DH47: LORETO | DI47: MADRE DE DIOS | DJ47: MOQUEGUA | DK47: PASCO | DL47: PIURA | DM47: PUNO | DN47: SAN MARTIN | DO47: TACNA | DP47: TUMBES | DQ47: UCAYALI | DR47: NACIONAL
BP48: PASCO | BQ48: 26.2% | BU48: MOQUEGUA | BV48: 30.0% | BW48: 58.3% | BX48: 36.4% | BY48: 33.3% | BZ48: 23.1% | CA48: 18.8% | CB48: 35.7% | CC48: 54.5% | CN48: Enero | CO48: =+GETPIVOTDATA("IND",$CN$25,"Diris",CO$47,"mes",$CN48) -> 23.7% | CP48: =+GETPIVOTDATA("IND",$CN$25,"Diris",CP$47,"mes",$CN48) -> 26.5% | CQ48: 35.0% | CR48: 16.2% | CS48: 59.7% | CT48: 41.7% | CU48: 45.8% | CV48: 26.6% | CW48: 27.3% | CX48: 47.6% | CY48: 26.8% | CZ48: 60.2% | DA48: 52.1% | DB48: 30.3% | DC48: 27.7% | DD48: 26.4% | DE48: 18.5% | DF48: 38.8% | DG48: 64.8% | DH48: 15.4% | DI48: 34.5% | DJ48: 30.0% | DK48: 25.9% | DL48: 19.1% | DM48: 35.0% | DN48: 33.1% | DO48: 29.4% | DP48: 45.5% | DQ48: 24.0% | DR48: =+GETPIVOTDATA("IND",$CN$25,"mes",$CN48) -> 30.0%
BP49: PIURA | BQ49: 20.6% | BU49: PASCO | BV49: 25.9% | BW49: 26.8% | BX49: 32.8% | BY49: 21.7% | BZ49: 30.6% | CA49: 27.9% | CB49: 16.7% | CC49: 20.7% | CN49: Febrero | CO49: 23.2% | CP49: 31.5% | CQ49: 46.9% | CR49: 18.2% | CS49: 52.9% | CT49: 44.6% | CU49: 36.7% | CV49: 24.8% | CW49: 24.1% | CX49: 48.0% | CY49: 29.6% | CZ49: 51.2% | DA49: 54.7% | DB49: 32.4% | DC49: 28.9% | DD49: 25.9% | DE49: 16.3% | DF49: 47.1% | DG49: 57.1% | DH49: 14.6% | DI49: 24.4% | DJ49: 58.3% | DK49: 26.8% | DL49: 19.4% | DM49: 39.7% | DN49: 32.7% | DO49: 80.0% | DP49: 55.6% | DQ49: 21.6% | DR49: 30.9%
BP50: PUNO | BQ50: 31.8% | BU50: PIURA | BV50: 19.1% | BW50: 19.4% | BX50: 16.8% | BY50: 19.5% | BZ50: 24.0% | CA50: 23.7% | CB50: 22.9% | CC50: 20.1% | CN50: Marzo | CO50: 18.7% | CP50: 31.3% | CQ50: 37.2% | CR50: 18.5% | CS50: 55.9% | CT50: 46.4% | CU50: 40.8% | CV50: 24.4% | CW50: 32.8% | CX50: 42.6% | CY50: 38.2% | CZ50: 53.3% | DA50: 51.0% | DB50: 27.6% | DC50: 27.4% | DD50: 27.3% | DE50: 14.7% | DF50: 45.8% | DG50: 42.2% | DH50: 13.6% | DI50: 40.0% | DJ50: 36.4% | DK50: 32.8% | DL50: 16.8% | DM50: 31.8% | DN50: 29.5% | DO50: 57.1% | DP50: 82.4% | DQ50: 19.0% | DR50: 30.7%
BP51: SAN MARTIN | BQ51: 31.9% | BU51: PUNO | BV51: 35.0% | BW51: 39.7% | BX51: 31.8% | BY51: 23.3% | BZ51: 30.9% | CA51: 23.7% | CB51: 35.4% | CC51: 38.2% | CN51: Abril | CO51: 30.6% | CP51: 31.8% | CQ51: 55.6% | CR51: 16.5% | CS51: 63.6% | CT51: 42.4% | CU51: 43.4% | CV51: 17.7% | CW51: 26.0% | CX51: 54.9% | CY51: 25.6% | CZ51: 55.2% | DA51: 57.4% | DB51: 28.6% | DC51: 22.1% | DD51: 30.7% | DE51: 21.2% | DF51: 44.5% | DG51: 36.6% | DH51: 10.7% | DI51: 45.8% | DJ51: 33.3% | DK51: 21.7% | DL51: 19.5% | DM51: 23.3% | DN51: 28.2% | DO51: 66.7% | DP51: 77.8% | DQ51: 21.2% | DR51: 30.8%
BP52: TACNA | BQ52: 47.0% | BU52: SAN MARTIN | BV52: 33.1% | BW52: 32.7% | BX52: 29.5% | BY52: 28.2% | BZ52: 37.2% | CA52: 33.7% | CB52: 31.6% | CC52: 30.3% | CN52: Mayo | CO52: 31.6% | CP52: 35.7% | CQ52: 51.2% | CR52: 26.7% | CS52: 57.1% | CT52: 34.7% | CU52: 41.9% | CV52: 17.5% | CW52: 34.9% | CX52: 47.5% | CY52: 36.4% | CZ52: 63.0% | DA52: 67.0% | DB52: 24.3% | DC52: 35.2% | DD52: 32.9% | DE52: 23.1% | DF52: 35.7% | DG52: 53.8% | DH52: 16.8% | DI52: 27.7% | DJ52: 23.1% | DK52: 30.6% | DL52: 24.0% | DM52: 30.9% | DN52: 37.2% | DO52: 58.3% | DP52: 65.0% | DQ52: 22.9% | DR52: 33.8%
BP53: TUMBES | BQ53: 59.2% | BU53: TACNA | BV53: 29.4% | BW53: 80.0% | BX53: 57.1% | BY53: 66.7% | BZ53: 58.3% | CA53: 33.3% | CB53: 33.3% | CC53: 44.4% | CN53: Junio | CO53: 27.7% | CP53: 26.4% | CQ53: 47.5% | CR53: 26.4% | CS53: 50.0% | CT53: 40.9% | CU53: 50.9% | CV53: 24.1% | CW53: 35.5% | CX53: 46.2% | CY53: 45.1% | CZ53: 63.0% | DA53: 70.5% | DB53: 30.9% | DC53: 29.4% | DD53: 41.6% | DE53: 21.4% | DF53: 46.3% | DG53: 60.0% | DH53: 10.1% | DI53: 40.5% | DJ53: 18.8% | DK53: 27.9% | DL53: 23.7% | DM53: 23.7% | DN53: 33.7% | DO53: 33.3% | DP53: 54.5% | DQ53: 22.7% | DR53: 34.0%
BP54: UCAYALI | BQ54: 23.7% | BU54: TUMBES | BV54: 45.5% | BW54: 55.6% | BX54: 82.4% | BY54: 77.8% | BZ54: 65.0% | CA54: 54.5% | CB54: 46.2% | CC54: 57.1% | CN54: Julio | CO54: 20.3% | CP54: 33.3% | CQ54: 47.6% | CR54: 23.3% | CS54: 48.4% | CT54: 43.0% | CU54: 57.5% | CV54: 18.3% | CW54: 37.8% | CX54: 46.2% | CY54: 42.3% | CZ54: 61.1% | DA54: 65.9% | DB54: 39.3% | DC54: 28.1% | DD54: 43.2% | DE54: 18.9% | DF54: 52.7% | DG54: 51.6% | DH54: 12.9% | DI54: 39.4% | DJ54: 35.7% | DK54: 16.7% | DL54: 22.9% | DM54: 35.4% | DN54: 31.6% | DO54: 33.3% | DP54: 46.2% | DQ54: 29.6% | DR54: 34.6%
BP55: Total general | BQ55: 32.7% | BU55: UCAYALI | BV55: 24.0% | BW55: 21.6% | BX55: 19.0% | BY55: 21.2% | BZ55: 22.9% | CA55: 22.7% | CB55: 29.6% | CC55: 28.2% | CN55: Agosto | CO55: 23.3% | CP55: 34.4% | CQ55: 35.7% | CR55: 28.8% | CS55: 55.0% | CT55: 35.4% | CU55: 68.9% | CV55: 22.9% | CW55: 32.2% | CX55: 46.4% | CY55: 46.8% | CZ55: 62.6% | DA55: 65.2% | DB55: 37.9% | DC55: 25.1% | DD55: 45.6% | DE55: 25.4% | DF55: 51.7% | DG55: 65.8% | DH55: 15.5% | DI55: 42.1% | DJ55: 54.5% | DK55: 20.7% | DL55: 20.1% | DM55: 38.2% | DN55: 30.3% | DO55: 44.4% | DP55: 57.1% | DQ55: 28.2% | DR55: 35.8%
BU56: Total general | BV56: 30.0% | BW56: 30.9% | BX56: 30.7% | BY56: 30.8% | BZ56: 33.8% | CA56: 34.0% | CB56: 34.6% | CC56: 35.8% | CN56: Setiembre
CN57: Octubre | DH57: =+GETPIVOTDATA("IND",$CN$25,"Diris",DH$47,"mes",$CN57) -> 
CN58: Noviembre
CN59: Diciembre
BV61: 1 | BW61: 2 | BX61: 3 | BY61: 4 | BZ61: 5 | CA61: 6 | CB61: 7 | CC61: 8 | CD61: 9 | CE61: 10 | CF61: 11 | CG61: 12
BP62: AMAZONAS | BQ62: =+IFERROR(GETPIVOTDATA("IND",$BP$25,"Diris",$BP62),"-") -> 25.2% | BU62: AMAZONAS | BV62: =+IFERROR(GETPIVOTDATA("IND",$BU$25,"Diris",$BU62,"mes",BV$61),"-") -> 23.7% | BW62: =+IFERROR(GETPIVOTDATA("IND",$BU$25,"Diris",$BU62,"mes",BW$61),"-") -> 23.2% | BX62: 18.7% | BY62: 30.6% | BZ62: 31.6% | CA62: 27.7% | CB62: 20.3% | CC62: 23.3% | CD62: - | CE62: - | CF62: - | CG62: - | CI62: AMAZONAS | CJ62: =+IF(BV62="-","-",MIN(BV62:CG62)) -> 18.7% | CK62: =+IF(BV62="-","-",MAX(BV62:CG62)) -> 31.6%
BP63: ANCASH | BQ63: 31.3% | BU63: ANCASH | BV63: 26.5% | BW63: 31.5% | BX63: 31.3% | BY63: 31.8% | BZ63: 35.7% | CA63: 26.4% | CB63: 33.3% | CC63: 34.4% | CD63: - | CE63: - | CF63: - | CG63: - | CI63: ANCASH | CJ63: 26.4% | CK63: 35.7%
BP64: APURIMAC | BQ64: 43.8% | BU64: APURIMAC | BV64: 35.0% | BW64: 46.9% | BX64: 37.2% | BY64: 55.6% | BZ64: 51.2% | CA64: 47.5% | CB64: 47.6% | CC64: 35.7% | CD64: - | CE64: - | CF64: - | CG64: - | CI64: APURIMAC | CJ64: 35.0% | CK64: 55.6%
BP65: AREQUIPA | BQ65: 22.1% | BU65: AREQUIPA | BV65: 16.2% | BW65: 18.2% | BX65: 18.5% | BY65: 16.5% | BZ65: 26.7% | CA65: 26.4% | CB65: 23.3% | CC65: 28.8% | CD65: - | CE65: - | CF65: - | CG65: - | CI65: AREQUIPA | CJ65: 16.2% | CK65: 28.8%
BP66: AYACUCHO | BQ66: 55.7% | BU66: AYACUCHO | BV66: 59.7% | BW66: 52.9% | BX66: 55.9% | BY66: 63.6% | BZ66: 57.1% | CA66: 50.0% | CB66: 48.4% | CC66: 55.0% | CD66: - | CE66: - | CF66: - | CG66: - | CI66: AYACUCHO | CJ66: 48.4% | CK66: 63.6%
BP67: CAJAMARCA | BQ67: 41.0% | BU67: CAJAMARCA | BV67: 41.7% | BW67: 44.6% | BX67: 46.4% | BY67: 42.4% | BZ67: 34.7% | CA67: 40.9% | CB67: 43.0% | CC67: 35.4% | CD67: - | CE67: - | CF67: - | CG67: - | CI67: CAJAMARCA | CJ67: 34.7% | CK67: 46.4%
BP68: CALLAO | BQ68: 50.1% | BU68: CALLAO | BV68: 45.8% | BW68: 36.7% | BX68: 40.8% | BY68: 43.4% | BZ68: 41.9% | CA68: 50.9% | CB68: 57.5% | CC68: 68.9% | CD68: - | CE68: - | CF68: - | CG68: - | CI68: CALLAO | CJ68: 36.7% | CK68: 68.9%
BP69: CUSCO | BQ69: 22.2% | BU69: CUSCO | BV69: 26.6% | BW69: 24.8% | BX69: 24.4% | BY69: 17.7% | BZ69: 17.5% | CA69: 24.1% | CB69: 18.3% | CC69: 22.9% | CD69: - | CE69: - | CF69: - | CG69: - | CI69: CUSCO | CJ69: 17.5% | CK69: 26.6%
BP70: HUANCAVELICA | BQ70: 31.6% | BU70: HUANCAVELICA | BV70: 27.3% | BW70: 24.1% | BX70: 32.8% | BY70: 26.0% | BZ70: 34.9% | CA70: 35.5% | CB70: 37.8% | CC70: 32.2% | CD70: - | CE70: - | CF70: - | CG70: - | CI70: HUANCAVELICA | CJ70: 24.1% | CK70: 37.8%
BP71: HUANUCO | BQ71: 47.4% | BU71: HUANUCO | BV71: 47.6% | BW71: 48.0% | BX71: 42.6% | BY71: 54.9% | BZ71: 47.5% | CA71: 46.2% | CB71: 46.2% | CC71: 46.4% | CD71: - | CE71: - | CF71: - | CG71: - | CI71: HUANUCO | CJ71: 42.6% | CK71: 54.9%
BP72: ICA | BQ72: 36.8% | BU72: ICA | BV72: 26.8% | BW72: 29.6% | BX72: 38.2% | BY72: 25.6% | BZ72: 36.4% | CA72: 45.1% | CB72: 42.3% | CC72: 46.8% | CD72: - | CE72: - | CF72: - | CG72: - | CI72: ICA | CJ72: 25.6% | CK72: 46.8%
BP73: JUNIN | BQ73: 58.9% | BU73: JUNIN | BV73: 60.2% | BW73: 51.2% | BX73: 53.3% | BY73: 55.2% | BZ73: 63.0% | CA73: 63.0% | CB73: 61.1% | CC73: 62.6% | CD73: - | CE73: - | CF73: - | CG73: - | CI73: JUNIN | CJ73: 51.2% | CK73: 63.0%
BP74: LA LIBERTAD | BQ74: 60.5% | BU74: LA LIBERTAD | BV74: 52.1% | BW74: 54.7% | BX74: 51.0% | BY74: 57.4% | BZ74: 67.0% | CA74: 70.5% | CB74: 65.9% | CC74: 65.2% | CD74: - | CE74: - | CF74: - | CG74: - | CI74: LA LIBERTAD | CJ74: 51.0% | CK74: 70.5%
BP75: LAMBAYEQUE | BQ75: 31.7% | BU75: LAMBAYEQUE | BV75: 30.3% | BW75: 32.4% | BX75: 27.6% | BY75: 28.6% | BZ75: 24.3% | CA75: 30.9% | CB75: 39.3% | CC75: 37.9% | CD75: - | CE75: - | CF75: - | CG75: - | CI75: LAMBAYEQUE | CJ75: 24.3% | CK75: 39.3%
BP76: LIMA DIRIS CENTRO | BQ76: 27.6% | BU76: LIMA DIRIS CENTRO | BV76: 27.7% | BW76: 28.9% | BX76: 27.4% | BY76: 22.1% | BZ76: 35.2% | CA76: 29.4% | CB76: 28.1% | CC76: 25.1% | CD76: - | CE76: - | CF76: - | CG76: - | CI76: LIMA DIRIS CENTRO | CJ76: 22.1% | CK76: 35.2%
BP77: LIMA DIRIS ESTE | BQ77: 36.0% | BU77: LIMA DIRIS ESTE | BV77: 26.4% | BW77: 25.9% | BX77: 27.3% | BY77: 30.7% | BZ77: 32.9% | CA77: 41.6% | CB77: 43.2% | CC77: 45.6% | CD77: - | CE77: - | CF77: - | CG77: - | CI77: LIMA DIRIS ESTE | CJ77: 25.9% | CK77: 45.6%
BP78: LIMA DIRIS NORTE | BQ78: 20.7% | BU78: LIMA DIRIS NORTE | BV78: 18.5% | BW78: 16.3% | BX78: 14.7% | BY78: 21.2% | BZ78: 23.1% | CA78: 21.4% | CB78: 18.9% | CC78: 25.4% | CD78: - | CE78: - | CF78: - | CG78: - | CI78: LIMA DIRIS NORTE | CJ78: 14.7% | CK78: 25.4%
BP79: LIMA DIRIS SUR | BQ79: 45.9% | BU79: LIMA DIRIS SUR | BV79: 38.8% | BW79: 47.1% | BX79: 45.8% | BY79: 44.5% | BZ79: 35.7% | CA79: 46.3% | CB79: 52.7% | CC79: 51.7% | CD79: - | CE79: - | CF79: - | CG79: - | CI79: LIMA DIRIS SUR | CJ79: 35.7% | CK79: 52.7%
BP80: LIMA PROVINCIAS | BQ80: 55.8% | BU80: LIMA PROVINCIAS | BV80: 64.8% | BW80: 57.1% | BX80: 42.2% | BY80: 36.6% | BZ80: 53.8% | CA80: 60.0% | CB80: 51.6% | CC80: 65.8% | CD80: - | CE80: - | CF80: - | CG80: - | CI80: LIMA PROVINCIAS | CJ80: 36.6% | CK80: 65.8%
BP81: LORETO | BQ81: 13.8% | BU81: LORETO | BV81: 15.4% | BW81: 14.6% | BX81: 13.6% | BY81: 10.7% | BZ81: 16.8% | CA81: 10.1% | CB81: 12.9% | CC81: 15.5% | CD81: - | CE81: - | CF81: - | CG81: - | CI81: LORETO | CJ81: 10.1% | CK81: 16.8%
BP82: MADRE DE DIOS | BQ82: 36.7% | BU82: MADRE DE DIOS | BV82: 34.5% | BW82: 24.4% | BX82: 40.0% | BY82: 45.8% | BZ82: 27.7% | CA82: 40.5% | CB82: 39.4% | CC82: 42.1% | CD82: - | CE82: - | CF82: - | CG82: - | CI82: MADRE DE DIOS | CJ82: 24.4% | CK82: 45.8%
BP83: MOQUEGUA | BQ83: 35.2% | BU83: MOQUEGUA | BV83: 30.0% | BW83: 58.3% | BX83: 36.4% | BY83: 33.3% | BZ83: 23.1% | CA83: 18.8% | CB83: 35.7% | CC83: 54.5% | CD83: - | CE83: - | CF83: - | CG83: - | CI83: MOQUEGUA | CJ83: 18.8% | CK83: 58.3%
BP84: PASCO | BQ84: 26.2% | BU84: PASCO | BV84: 25.9% | BW84: 26.8% | BX84: 32.8% | BY84: 21.7% | BZ84: 30.6% | CA84: 27.9% | CB84: 16.7% | CC84: 20.7% | CD84: - | CE84: - | CF84: - | CG84: - | CI84: PASCO | CJ84: 16.7% | CK84: 32.8%
BP85: PIURA | BQ85: 20.6% | BU85: PIURA | BV85: 19.1% | BW85: 19.4% | BX85: 16.8% | BY85: 19.5% | BZ85: 24.0% | CA85: 23.7% | CB85: 22.9% | CC85: 20.1% | CD85: - | CE85: - | CF85: - | CG85: - | CI85: PIURA | CJ85: 16.8% | CK85: 24.0%
BP86: PUNO | BQ86: 31.8% | BU86: PUNO | BV86: 35.0% | BW86: 39.7% | BX86: 31.8% | BY86: 23.3% | BZ86: 30.9% | CA86: 23.7% | CB86: 35.4% | CC86: 38.2% | CD86: - | CE86: - | CF86: - | CG86: - | CI86: PUNO | CJ86: 23.3% | CK86: 39.7%
BP87: SAN MARTIN | BQ87: 31.9% | BU87: SAN MARTIN | BV87: 33.1% | BW87: 32.7% | BX87: 29.5% | BY87: 28.2% | BZ87: 37.2% | CA87: 33.7% | CB87: 31.6% | CC87: 30.3% | CD87: - | CE87: - | CF87: - | CG87: - | CI87: SAN MARTIN | CJ87: 28.2% | CK87: 37.2%
BP88: TACNA | BQ88: 47.0% | BU88: TACNA | BV88: 29.4% | BW88: 80.0% | BX88: 57.1% | BY88: 66.7% | BZ88: 58.3% | CA88: 33.3% | CB88: 33.3% | CC88: 44.4% | CD88: - | CE88: - | CF88: - | CG88: - | CI88: TACNA | CJ88: 29.4% | CK88: 80.0%
BP89: TUMBES | BQ89: 59.2% | BU89: TUMBES | BV89: 45.5% | BW89: 55.6% | BX89: 82.4% | BY89: 77.8% | BZ89: 65.0% | CA89: 54.5% | CB89: 46.2% | CC89: 57.1% | CD89: - | CE89: - | CF89: - | CG89: - | CI89: TUMBES | CJ89: 45.5% | CK89: 82.4%
BP90: UCAYALI | BQ90: 23.7% | BU90: UCAYALI | BV90: 24.0% | BW90: 21.6% | BX90: 19.0% | BY90: 21.2% | BZ90: 22.9% | CA90: 22.7% | CB90: 29.6% | CC90: 28.2% | CD90: - | CE90: - | CF90: - | CG90: - | CI90: UCAYALI | CJ90: 19.0% | CK90: 29.6%
BP91: NACIONAL | BQ91: =+IFERROR(GETPIVOTDATA("IND",$BP$25),"-") -> 32.7% | BU91: NACIONAL | BV91: =+IFERROR(GETPIVOTDATA("IND",$BU$25,"mes",BV$61),"-") -> 30.0% | BW91: =+IFERROR(GETPIVOTDATA("IND",$BU$25,"mes",BW$61),"-") -> 30.9% | BX91: 30.7% | BY91: 30.8% | BZ91: 33.8% | CA91: 34.0% | CB91: 34.6% | CC91: 35.8% | CD91: - | CE91: - | CF91: - | CG91: - | CI91: NACIONAL | CJ91: 30.0% | CK91: 35.8%

Sheet DL_1153_2025_CG02
A1: =+DL1153_2025!C8 -> Ficha 02: Porcentaje de niñas/niños menores de 12 meses, que reciben un paquete integrado de servicios: CRED, vacunas, dosaje de hemoglobina para descarte de anemia y suplementación con hierro. | BP1: 1 | DS1: 1
A2: Periodo de Evaluación: | B2: =+DL1153_2025!B42 -> Agosto - 2025
J3: Distritos_FED | K3: (Todas)
J4: Disa | K4: (Todas)
A5: Distritos_FED | B5: (Todas) | J5: Prov | K5: (Todas)
A6: mes | B6: 8 | J6: RED | K6: (Todas)
A7: seguro | B7: MINSA | J7: seguro | K7: MINSA | BQ7: seguro | BR7: MINSA
A8: DIRESA/ DIRIS | B8: Provincia | C8: Red | D8: Distrito | E8: UBIGEO | F8: Denominador: Niñas/niños menores de 364 días en el periodo de evaluación, con SIS, sin dato de seguro y sin seguro (población MINSA y Gobierno Regional), registrados en el padrón nominal con DNI o CNV, según el ámbito de la jurisdicción determinado por la residencia registrada en el padrón nominal. | G8: Numerador: Niñas/niños del denominador que recibieron paquete integrado de servicios (registrado en el HIS), de acuerdo al esquema vigente: CRED, vacunas, entrega de hierro (gotas, jarabe o micronutrientes) y dosaje de hemoglobina para descarte de anemi | H8: Indicador: Porcentaje de niñas/niños menores de 12 meses, que reciben un paquete integrado de servicios: CRED, vacunas, dosaje de hemoglobina para descarte de anemia y suplementación con hierro. | J8: AÑO | K8: MES | L8: Denominador: Niñas/niños menores de 364 días en el periodo de evaluación, con SIS, sin dato de seguro y sin seguro (población MINSA y Gobierno Regional), registrados en el padrón nominal con DNI o CNV, según el ámbito de la jurisdicción determinado por la residencia registrada en el padrón nominal. | M8: Numerador: Niñas/niños del denominador que recibieron paquete integrado de servicios (registrado en el HIS), de acuerdo al esquema vigente: CRED, vacunas, entrega de hierro (gotas, jarabe o micronutrientes) y dosaje de hemoglobina para descarte de anemi | N8: Indicador: Porcentaje de niñas/niños menores de 12 meses, que reciben un paquete integrado de servicios: CRED, vacunas, dosaje de hemoglobina para descarte de anemia y suplementación con hierro. | BQ8: mes | BR8: 8 | BU8: seguro | BV8: MINSA | CM8: seguro | CN8: MINSA
A9: Disa | B9: Prov | C9: RED | D9: Dist | E9: ubigeo | F9: Denominador | G9: Numerador | H9: Indicador | J9: anio | K9: mes | L9: Denominador | M9: Numerador | N9: Indicador
A10: AMAZONAS | F10: 4,830 | G10: 2,166 | H10: 44.8% | J10: 2025 | K10: 1 | L10: 263,921 | M10: 90,873 | N10: 34.4% | BQ10: Disa | BR10: Suma de IND | BU10: Suma de IND | BV10: mes | CM10: Suma de IND | CN10: Disa
A11: ANCASH | F11: 10,027 | G11: 5,987 | H11: 59.7% | J11: 2025 | K11: 2 | L11: 262,206 | M11: 94,347 | N11: 36.0% | BQ11: AMAZONAS | BR11: 44.8% | BU11: Disa | BV11: 1 | BW11: 2 | BX11: 3 | BY11: 4 | BZ11: 5 | CA11: 6 | CB11: 7 | CC11: 8 | CM11: mes | CN11: AMAZONAS | CO11: ANCASH | CP11: APURIMAC | CQ11: AREQUIPA | CR11: AYACUCHO | CS11: CAJAMARCA | CT11: CALLAO | CU11: CUSCO | CV11: HUANCAVELICA | CW11: HUANUCO | CX11: ICA | CY11: JUNIN | CZ11: LA LIBERTAD | DA11: LAMBAYEQUE | DB11: LIMA DIRIS CENTRO | DC11: LIMA DIRIS ESTE | DD11: LIMA DIRIS NORTE | DE11: LIMA DIRIS SUR | DF11: LIMA PROVINCIAS | DG11: LORETO | DH11: MADRE DE DIOS | DI11: MOQUEGUA | DJ11: PASCO | DK11: PIURA | DL11: PUNO | DM11: SAN MARTIN | DN11: TACNA | DO11: TUMBES | DP11: UCAYALI | DQ11: Total general
A12: APURIMAC | F12: 4,237 | G12: 2,877 | H12: 67.9% | J12: 2025 | K12: 3 | L12: 260,244 | M12: 101,816 | N12: 39.1% | BQ12: ANCASH | BR12: 59.7% | BU12: AMAZONAS | BV12: 33.1% | BW12: 33.8% | BX12: 36.8% | BY12: 39.6% | BZ12: 41.2% | CA12: 43.5% | CB12: 43.9% | CC12: 44.8% | CM12: enero | CN12: 33.1% | CO12: 40.8% | CP12: 41.8% | CQ12: 30.4% | CR12: 45.8% | CS12: 35.7% | CT12: 35.4% | CU12: 36.5% | CV12: 50.7% | CW12: 53.1% | CX12: 30.1% | CY12: 51.0% | CZ12: 32.1% | DA12: 38.5% | DB12: 24.6% | DC12: 23.2% | DD12: 24.7% | DE12: 25.6% | DF12: 37.6% | DG12: 27.4% | DH12: 60.8% | DI12: 31.4% | DJ12: 36.4% | DK12: 32.8% | DL12: 31.4% | DM12: 35.0% | DN12: 32.8% | DO12: 32.7% | DP12: 31.0% | DQ12: 34.4%
A13: AREQUIPA | F13: 8,332 | G13: 3,749 | H13: 45.0% | J13: 2025 | K13: 4 | L13: 258,215 | M13: 109,863 | N13: 42.5% | BQ13: APURIMAC | BR13: 67.9% | BU13: ANCASH | BV13: 40.8% | BW13: 42.4% | BX13: 45.8% | BY13: 49.1% | BZ13: 52.1% | CA13: 55.6% | CB13: 57.6% | CC13: 59.7% | CM13: febrero | CN13: 33.8% | CO13: 42.4% | CP13: 43.3% | CQ13: 30.8% | CR13: 47.2% | CS13: 39.4% | CT13: 37.2% | CU13: 40.3% | CV13: 54.2% | CW13: 51.8% | CX13: 31.1% | CY13: 53.0% | CZ13: 34.7% | DA13: 37.9% | DB13: 26.9% | DC13: 25.0% | DD13: 26.8% | DE13: 27.1% | DF13: 39.7% | DG13: 29.0% | DH13: 60.8% | DI13: 33.0% | DJ13: 38.7% | DK13: 33.3% | DL13: 32.3% | DM13: 35.7% | DN13: 34.9% | DO13: 35.8% | DP13: 31.8% | DQ13: 36.0%
A14: AYACUCHO | F14: 6,288 | G14: 4,525 | H14: 72.0% | J14: 2025 | K14: 5 | L14: 256,923 | M14: 115,531 | N14: 45.0% | BQ14: AREQUIPA | BR14: 45.0% | BU14: APURIMAC | BV14: 41.8% | BW14: 43.3% | BX14: 45.9% | BY14: 51.1% | BZ14: 56.0% | CA14: 60.1% | CB14: 64.0% | CC14: 67.9% | CM14: Marzo | CN14: 36.8% | CO14: 45.8% | CP14: 45.9% | CQ14: 33.0% | CR14: 50.3% | CS14: 44.7% | CT14: 41.5% | CU14: 45.2% | CV14: 58.4% | CW14: 52.2% | CX14: 34.9% | CY14: 56.4% | CZ14: 37.3% | DA14: 39.7% | DB14: 30.5% | DC14: 28.2% | DD14: 29.5% | DE14: 29.6% | DF14: 43.2% | DG14: 33.2% | DH14: 61.2% | DI14: 36.2% | DJ14: 41.0% | DK14: 36.2% | DL14: 34.8% | DM14: 37.3% | DN14: 40.3% | DO14: 39.8% | DP14: 35.4% | DQ14: 39.1%
A15: CAJAMARCA | F15: 15,309 | G15: 9,821 | H15: 64.2% | J15: 2025 | K15: 6 | L15: 255,892 | M15: 121,766 | N15: 47.6% | BQ15: AYACUCHO | BR15: 72.0% | BU15: AREQUIPA | BV15: 30.4% | BW15: 30.8% | BX15: 33.0% | BY15: 36.1% | BZ15: 39.5% | CA15: 42.1% | CB15: 43.2% | CC15: 45.0% | CM15: Abril | CN15: 39.6% | CO15: 49.1% | CP15: 51.1% | CQ15: 36.1% | CR15: 54.8% | CS15: 50.1% | CT15: 46.0% | CU15: 49.8% | CV15: 63.5% | CW15: 54.8% | CX15: 39.5% | CY15: 60.0% | CZ15: 40.7% | DA15: 42.9% | DB15: 32.2% | DC15: 30.4% | DD15: 31.0% | DE15: 32.5% | DF15: 46.5% | DG15: 36.3% | DH15: 63.0% | DI15: 42.0% | DJ15: 44.6% | DK15: 40.6% | DL15: 37.2% | DM15: 39.9% | DN15: 45.6% | DO15: 47.7% | DP15: 38.2% | DQ15: 42.5%
A16: CALLAO | F16: 5,761 | G16: 3,058 | H16: 53.1% | J16: 2025 | K16: 7 | L16: 254,819 | M16: 123,780 | N16: 48.6% | BQ16: CAJAMARCA | BR16: 64.2% | BU16: AYACUCHO | BV16: 45.8% | BW16: 47.2% | BX16: 50.3% | BY16: 54.8% | BZ16: 59.6% | CA16: 64.4% | CB16: 68.6% | CC16: 72.0% | CM16: Mayo | CN16: 41.2% | CO16: 52.1% | CP16: 56.0% | CQ16: 39.5% | CR16: 59.6% | CS16: 54.2% | CT16: 49.2% | CU16: 52.7% | CV16: 66.3% | CW16: 57.3% | CX16: 43.5% | CY16: 62.8% | CZ16: 42.5% | DA16: 45.3% | DB16: 32.7% | DC16: 31.6% | DD16: 30.7% | DE16: 34.7% | DF16: 49.4% | DG16: 37.9% | DH16: 64.7% | DI16: 45.2% | DJ16: 50.7% | DK16: 43.4% | DL16: 39.0% | DM16: 41.1% | DN16: 49.0% | DO16: 54.2% | DP16: 40.5% | DQ16: 45.0%
A17: CUSCO | F17: 11,666 | G17: 7,047 | H17: 60.4% | J17: 2025 | K17: 8 | L17: 253,522 | M17: 125,745 | N17: 49.6% | BQ17: CALLAO | BR17: 53.1% | BU17: CAJAMARCA | BV17: 35.7% | BW17: 39.4% | BX17: 44.7% | BY17: 50.1% | BZ17: 54.2% | CA17: 58.4% | CB17: 61.1% | CC17: 64.2% | CM17: Junio | CN17: 43.5% | CO17: 55.6% | CP17: 60.1% | CQ17: 42.1% | CR17: 64.4% | CS17: 58.4% | CT17: 51.8% | CU17: 56.3% | CV17: 69.8% | CW17: 60.8% | CX17: 48.1% | CY17: 65.1% | CZ17: 45.2% | DA17: 49.1% | DB17: 33.9% | DC17: 32.2% | DD17: 31.7% | DE17: 37.2% | DF17: 53.2% | DG17: 39.1% | DH17: 64.6% | DI17: 48.9% | DJ17: 55.5% | DK17: 46.6% | DL17: 39.8% | DM17: 41.8% | DN17: 52.9% | DO17: 59.7% | DP17: 41.8% | DQ17: 47.6%
A18: HUANCAVELICA | F18: 3,308 | G18: 2,451 | H18: 74.1% | BQ18: CUSCO | BR18: 60.4% | BU18: CALLAO | BV18: 35.4% | BW18: 37.2% | BX18: 41.5% | BY18: 46.0% | BZ18: 49.2% | CA18: 51.8% | CB18: 53.3% | CC18: 53.1% | CM18: Julio | CN18: 43.9% | CO18: 57.6% | CP18: 64.0% | CQ18: 43.2% | CR18: 68.6% | CS18: 61.1% | CT18: 53.3% | CU18: 58.1% | CV18: 71.5% | CW18: 62.0% | CX18: 50.4% | CY18: 67.0% | CZ18: 45.7% | DA18: 51.3% | DB18: 33.5% | DC18: 32.1% | DD18: 30.9% | DE18: 37.2% | DF18: 56.0% | DG18: 38.7% | DH18: 63.6% | DI18: 48.6% | DJ18: 57.2% | DK18: 47.2% | DL18: 40.5% | DM18: 41.5% | DN18: 56.1% | DO18: 61.6% | DP18: 40.1% | DQ18: 48.6%
A19: HUANUCO | F19: 8,633 | G19: 5,533 | H19: 64.1% | BQ19: HUANCAVELICA | BR19: 74.1% | BU19: CUSCO | BV19: 36.5% | BW19: 40.3% | BX19: 45.2% | BY19: 49.8% | BZ19: 52.7% | CA19: 56.3% | CB19: 58.1% | CC19: 60.4% | CM19: Agosto | CN19: 44.8% | CO19: 59.7% | CP19: 67.9% | CQ19: 45.0% | CR19: 72.0% | CS19: 64.2% | CT19: 53.1% | CU19: 60.4% | CV19: 74.1% | CW19: 64.1% | CX19: 52.4% | CY19: 68.1% | CZ19: 46.4% | DA19: 51.8% | DB19: 32.9% | DC19: 31.5% | DD19: 30.7% | DE19: 37.9% | DF19: 57.9% | DG19: 38.8% | DH19: 63.2% | DI19: 49.4% | DJ19: 60.3% | DK19: 48.0% | DL19: 41.4% | DM19: 41.3% | DN19: 57.8% | DO19: 63.8% | DP19: 39.4% | DQ19: 49.6%
A20: ICA | F20: 7,827 | G20: 4,098 | H20: 52.4% | BQ20: HUANUCO | BR20: 64.1% | BU20: HUANCAVELICA | BV20: 50.7% | BW20: 54.2% | BX20: 58.4% | BY20: 63.5% | BZ20: 66.3% | CA20: 69.8% | CB20: 71.5% | CC20: 74.1%
A21: JUNIN | F21: 12,237 | G21: 8,330 | H21: 68.1% | BQ21: ICA | BR21: 52.4% | BU21: HUANUCO | BV21: 53.1% | BW21: 51.8% | BX21: 52.2% | BY21: 54.8% | BZ21: 57.3% | CA21: 60.8% | CB21: 62.0% | CC21: 64.1%
A22: LA LIBERTAD | F22: 16,263 | G22: 7,547 | H22: 46.4% | BQ22: JUNIN | BR22: 68.1% | BU22: ICA | BV22: 30.1% | BW22: 31.1% | BX22: 34.9% | BY22: 39.5% | BZ22: 43.5% | CA22: 48.1% | CB22: 50.4% | CC22: 52.4%
A23: LAMBAYEQUE | F23: 11,524 | G23: 5,964 | H23: 51.8% | BQ23: LA LIBERTAD | BR23: 46.4% | BU23: JUNIN | BV23: 51.0% | BW23: 53.0% | BX23: 56.4% | BY23: 60.0% | BZ23: 62.8% | CA23: 65.1% | CB23: 67.0% | CC23: 68.1%
A24: LIMA DIRIS CENTRO | F24: 12,025 | G24: 3,952 | H24: 32.9% | BQ24: LAMBAYEQUE | BR24: 51.8% | BU24: LA LIBERTAD | BV24: 32.1% | BW24: 34.7% | BX24: 37.3% | BY24: 40.7% | BZ24: 42.5% | CA24: 45.2% | CB24: 45.7% | CC24: 46.4%
A25: LIMA DIRIS ESTE | F25: 9,401 | G25: 2,961 | H25: 31.5% | BQ25: LIMA DIRIS CENTRO | BR25: 32.9% | BU25: LAMBAYEQUE | BV25: 38.5% | BW25: 37.9% | BX25: 39.7% | BY25: 42.9% | BZ25: 45.3% | CA25: 49.1% | CB25: 51.3% | CC25: 51.8%
A26: LIMA DIRIS NORTE | F26: 15,601 | G26: 4,793 | H26: 30.7% | BQ26: LIMA DIRIS ESTE | BR26: 31.5% | BU26: LIMA DIRIS CENTRO | BV26: 24.6% | BW26: 26.9% | BX26: 30.5% | BY26: 32.2% | BZ26: 32.7% | CA26: 33.9% | CB26: 33.5% | CC26: 32.9%
A27: LIMA DIRIS SUR | F27: 11,965 | G27: 4,535 | H27: 37.9% | BQ27: LIMA DIRIS NORTE | BR27: 30.7% | BU27: LIMA DIRIS ESTE | BV27: 23.2% | BW27: 25.0% | BX27: 28.2% | BY27: 30.4% | BZ27: 31.6% | CA27: 32.2% | CB27: 32.1% | CC27: 31.5%
A28: LIMA PROVINCIAS | F28: 7,672 | G28: 4,440 | H28: 57.9% | BQ28: LIMA DIRIS SUR | BR28: 37.9% | BU28: LIMA DIRIS NORTE | BV28: 24.7% | BW28: 26.8% | BX28: 29.5% | BY28: 31.0% | BZ28: 30.7% | CA28: 31.7% | CB28: 30.9% | CC28: 30.7% | CN28: AMAZONAS | CO28: ANCASH | CP28: APURIMAC | CQ28: AREQUIPA | CR28: AYACUCHO | CS28: CAJAMARCA | CT28: CALLAO | CU28: CUSCO | CV28: HUANCAVELICA | CW28: HUANUCO | CX28: ICA | CY28: JUNIN | CZ28: LA LIBERTAD | DA28: LAMBAYEQUE | DB28: LIMA DIRIS CENTRO | DC28: LIMA DIRIS ESTE | DD28: LIMA DIRIS NORTE | DE28: LIMA DIRIS SUR | DF28: LIMA PROVINCIAS | DG28: LORETO | DH28: MADRE DE DIOS | DI28: MOQUEGUA | DJ28: PASCO | DK28: PIURA | DL28: PUNO | DM28: SAN MARTIN | DN28: TACNA | DO28: TUMBES | DP28: UCAYALI | DQ28: NACIONAL
A29: LORETO | F29: 13,634 | G29: 5,292 | H29: 38.8% | BQ29: LIMA PROVINCIAS | BR29: 57.9% | BU29: LIMA DIRIS SUR | BV29: 25.6% | BW29: 27.1% | BX29: 29.6% | BY29: 32.5% | BZ29: 34.7% | CA29: 37.2% | CB29: 37.2% | CC29: 37.9% | CM29: Enero | CN29: =+IFERROR(GETPIVOTDATA("IND",$CM$10,"Disa",CN$28,"mes",$CM29),"-") -> 33.1% | CO29: =+IFERROR(GETPIVOTDATA("IND",$CM$10,"Disa",CO$28,"mes",$CM29),"-") -> 40.8% | CP29: 41.8% | CQ29: 30.4% | CR29: 45.8% | CS29: 35.7% | CT29: 35.4% | CU29: 36.5% | CV29: 50.7% | CW29: 53.1% | CX29: 30.1% | CY29: 51.0% | CZ29: 32.1% | DA29: 38.5% | DB29: 24.6% | DC29: 23.2% | DD29: 24.7% | DE29: 25.6% | DF29: 37.6% | DG29: 27.4% | DH29: 60.8% | DI29: 31.4% | DJ29: 36.4% | DK29: 32.8% | DL29: 31.4% | DM29: 35.0% | DN29: 32.8% | DO29: 32.7% | DP29: 31.0% | DQ29: =+IFERROR(GETPIVOTDATA("IND",$CM$10,"mes",$CM29),"-") -> 34.4%
A30: MADRE DE DIOS | F30: 2,651 | G30: 1,675 | H30: 63.2% | BQ30: LORETO | BR30: 38.8% | BU30: LIMA PROVINCIAS | BV30: 37.6% | BW30: 39.7% | BX30: 43.2% | BY30: 46.5% | BZ30: 49.4% | CA30: 53.2% | CB30: 56.0% | CC30: 57.9% | CM30: Febrero | CN30: 33.8% | CO30: 42.4% | CP30: 43.3% | CQ30: 30.8% | CR30: 47.2% | CS30: 39.4% | CT30: 37.2% | CU30: 40.3% | CV30: 54.2% | CW30: 51.8% | CX30: 31.1% | CY30: 53.0% | CZ30: 34.7% | DA30: 37.9% | DB30: 26.9% | DC30: 25.0% | DD30: 26.8% | DE30: 27.1% | DF30: 39.7% | DG30: 29.0% | DH30: 60.8% | DI30: 33.0% | DJ30: 38.7% | DK30: 33.3% | DL30: 32.3% | DM30: 35.7% | DN30: 34.9% | DO30: 35.8% | DP30: 31.8% | DQ30: 36.0%
A31: MOQUEGUA | F31: 1,038 | G31: 513 | H31: 49.4% | BQ31: MADRE DE DIOS | BR31: 63.2% | BU31: LORETO | BV31: 27.4% | BW31: 29.0% | BX31: 33.2% | BY31: 36.3% | BZ31: 37.9% | CA31: 39.1% | CB31: 38.7% | CC31: 38.8% | CM31: Marzo | CN31: 36.8% | CO31: 45.8% | CP31: 45.9% | CQ31: 33.0% | CR31: 50.3% | CS31: 44.7% | CT31: 41.5% | CU31: 45.2% | CV31: 58.4% | CW31: 52.2% | CX31: 34.9% | CY31: 56.4% | CZ31: 37.3% | DA31: 39.7% | DB31: 30.5% | DC31: 28.2% | DD31: 29.5% | DE31: 29.6% | DF31: 43.2% | DG31: 33.2% | DH31: 61.2% | DI31: 36.2% | DJ31: 41.0% | DK31: 36.2% | DL31: 34.8% | DM31: 37.3% | DN31: 40.3% | DO31: 39.8% | DP31: 35.4% | DQ31: 39.1%
A32: PASCO | F32: 2,217 | G32: 1,337 | H32: 60.3% | BQ32: MOQUEGUA | BR32: 49.4% | BU32: MADRE DE DIOS | BV32: 60.8% | BW32: 60.8% | BX32: 61.2% | BY32: 63.0% | BZ32: 64.7% | CA32: 64.6% | CB32: 63.6% | CC32: 63.2% | CM32: Abril | CN32: 39.6% | CO32: 49.1% | CP32: 51.1% | CQ32: 36.1% | CR32: 54.8% | CS32: 50.1% | CT32: 46.0% | CU32: 49.8% | CV32: 63.5% | CW32: 54.8% | CX32: 39.5% | CY32: 60.0% | CZ32: 40.7% | DA32: 42.9% | DB32: 32.2% | DC32: 30.4% | DD32: 31.0% | DE32: 32.5% | DF32: 46.5% | DG32: 36.3% | DH32: 63.0% | DI32: 42.0% | DJ32: 44.6% | DK32: 40.6% | DL32: 37.2% | DM32: 39.9% | DN32: 45.6% | DO32: 47.7% | DP32: 38.2% | DQ32: 42.5%
A33: PIURA | F33: 19,369 | G33: 9,291 | H33: 48.0% | BQ33: PASCO | BR33: 60.3% | BU33: MOQUEGUA | BV33: 31.4% | BW33: 33.0% | BX33: 36.2% | BY33: 42.0% | BZ33: 45.2% | CA33: 48.9% | CB33: 48.6% | CC33: 49.4% | CM33: Mayo | CN33: 41.2% | CO33: 52.1% | CP33: 56.0% | CQ33: 39.5% | CR33: 59.6% | CS33: 54.2% | CT33: 49.2% | CU33: 52.7% | CV33: 66.3% | CW33: 57.3% | CX33: 43.5% | CY33: 62.8% | CZ33: 42.5% | DA33: 45.3% | DB33: 32.7% | DC33: 31.6% | DD33: 30.7% | DE33: 34.7% | DF33: 49.4% | DG33: 37.9% | DH33: 64.7% | DI33: 45.2% | DJ33: 50.7% | DK33: 43.4% | DL33: 39.0% | DM33: 41.1% | DN33: 49.0% | DO33: 54.2% | DP33: 40.5% | DQ33: 45.0%
A34: PUNO | F34: 8,888 | G34: 3,684 | H34: 41.4% | BQ34: PIURA | BR34: 48.0% | BU34: PASCO | BV34: 36.4% | BW34: 38.7% | BX34: 41.0% | BY34: 44.6% | BZ34: 50.7% | CA34: 55.5% | CB34: 57.2% | CC34: 60.3% | CM34: Junio | CN34: 43.5% | CO34: 55.6% | CP34: 60.1% | CQ34: 42.1% | CR34: 64.4% | CS34: 58.4% | CT34: 51.8% | CU34: 56.3% | CV34: 69.8% | CW34: 60.8% | CX34: 48.1% | CY34: 65.1% | CZ34: 45.2% | DA34: 49.1% | DB34: 33.9% | DC34: 32.2% | DD34: 31.7% | DE34: 37.2% | DF34: 53.2% | DG34: 39.1% | DH34: 64.6% | DI34: 48.9% | DJ34: 55.5% | DK34: 46.6% | DL34: 39.8% | DM34: 41.8% | DN34: 52.9% | DO34: 59.7% | DP34: 41.8% | DQ34: 47.6%
A35: SAN MARTIN | F35: 9,938 | G35: 4,100 | H35: 41.3% | BQ35: PUNO | BR35: 41.4% | BU35: PIURA | BV35: 32.8% | BW35: 33.3% | BX35: 36.2% | BY35: 40.6% | BZ35: 43.4% | CA35: 46.6% | CB35: 47.2% | CC35: 48.0% | CM35: Julio | CN35: 43.9% | CO35: 57.6% | CP35: 64.0% | CQ35: 43.2% | CR35: 68.6% | CS35: 61.1% | CT35: 53.3% | CU35: 58.1% | CV35: 71.5% | CW35: 62.0% | CX35: 50.4% | CY35: 67.0% | CZ35: 45.7% | DA35: 51.3% | DB35: 33.5% | DC35: 32.1% | DD35: 30.9% | DE35: 37.2% | DF35: 56.0% | DG35: 38.7% | DH35: 63.6% | DI35: 48.6% | DJ35: 57.2% | DK35: 47.2% | DL35: 40.5% | DM35: 41.5% | DN35: 56.1% | DO35: 61.6% | DP35: 40.1% | DQ35: 48.6%
A36: TACNA | F36: 2,146 | G36: 1,241 | H36: 57.8% | BQ36: SAN MARTIN | BR36: 41.3% | BU36: PUNO | BV36: 31.4% | BW36: 32.3% | BX36: 34.8% | BY36: 37.2% | BZ36: 39.0% | CA36: 39.8% | CB36: 40.5% | CC36: 41.4% | CM36: Agosto | CN36: 44.8% | CO36: 59.7% | CP36: 67.9% | CQ36: 45.0% | CR36: 72.0% | CS36: 64.2% | CT36: 53.1% | CU36: 60.4% | CV36: 74.1% | CW36: 64.1% | CX36: 52.4% | CY36: 68.1% | CZ36: 46.4% | DA36: 51.8% | DB36: 32.9% | DC36: 31.5% | DD36: 30.7% | DE36: 37.9% | DF36: 57.9% | DG36: 38.8% | DH36: 63.2% | DI36: 49.4% | DJ36: 60.3% | DK36: 48.0% | DL36: 41.4% | DM36: 41.3% | DN36: 57.8% | DO36: 63.8% | DP36: 39.4% | DQ36: 49.6%
A37: TUMBES | F37: 2,257 | G37: 1,439 | H37: 63.8% | BQ37: TACNA | BR37: 57.8% | BU37: SAN MARTIN | BV37: 35.0% | BW37: 35.7% | BX37: 37.3% | BY37: 39.9% | BZ37: 41.1% | CA37: 41.8% | CB37: 41.5% | CC37: 41.3% | CM37: Setiembre | CN37: - | CO37: - | CP37: - | CQ37: - | CR37: - | CS37: - | CT37: - | CU37: - | CV37: - | CW37: - | CX37: - | CY37: - | CZ37: - | DA37: - | DB37: - | DC37: - | DD37: - | DE37: - | DF37: - | DG37: - | DH37: - | DI37: - | DJ37: - | DK37: - | DL37: - | DM37: - | DN37: - | DO37: - | DP37: - | DQ37: -
A38: UCAYALI | F38: 8,478 | G38: 3,339 | H38: 39.4% | BQ38: TUMBES | BR38: 63.8% | BU38: TACNA | BV38: 32.8% | BW38: 34.9% | BX38: 40.3% | BY38: 45.6% | BZ38: 49.0% | CA38: 52.9% | CB38: 56.1% | CC38: 57.8% | CM38: Octubre | CN38: - | CO38: - | CP38: - | CQ38: - | CR38: =+IFERROR(GETPIVOTDATA("IND",$CM$10,"Disa",CR$28,"mes",$CM38),"-") -> - | CS38: - | CT38: - | CU38: - | CV38: - | CW38: - | CX38: - | CY38: - | CZ38: - | DA38: - | DB38: - | DC38: - | DD38: - | DE38: - | DF38: - | DG38: - | DH38: =+IFERROR(GETPIVOTDATA("IND",$CM$10,"Disa",DH$28,"mes",$CM38),"-") -> - | DI38: - | DJ38: - | DK38: - | DL38: - | DM38: - | DN38: - | DO38: - | DP38: - | DQ38: -
A39: Total general | F39: 253,522 | G39: 125,745 | H39: 49.6% | BQ39: UCAYALI | BR39: 39.4% | BU39: TUMBES | BV39: 32.7% | BW39: 35.8% | BX39: 39.8% | BY39: 47.7% | BZ39: 54.2% | CA39: 59.7% | CB39: 61.6% | CC39: 63.8% | CM39: Noviembre | CN39: - | CO39: - | CP39: - | CQ39: - | CR39: - | CS39: - | CT39: - | CU39: - | CV39: - | CW39: - | CX39: - | CY39: - | CZ39: - | DA39: - | DB39: - | DC39: - | DD39: - | DE39: - | DF39: - | DG39: - | DH39: - | DI39: - | DJ39: - | DK39: - | DL39: - | DM39: - | DN39: - | DO39: - | DP39: - | DQ39: -
BQ40: Total general | BR40: 49.6% | BU40: UCAYALI | BV40: 31.0% | BW40: 31.8% | BX40: 35.4% | BY40: 38.2% | BZ40: 40.5% | CA40: 41.8% | CB40: 40.1% | CC40: 39.4% | CM40: Diciembre | CN40: - | CO40: - | CP40: - | CQ40: - | CR40: - | CS40: - | CT40: - | CU40: - | CV40: - | CW40: - | CX40: - | CY40: - | CZ40: - | DA40: - | DB40: - | DC40: - | DD40: - | DE40: - | DF40: - | DG40: - | DH40: - | DI40: - | DJ40: - | DK40: - | DL40: - | DM40: - | DN40: - | DO40: - | DP40: - | DQ40: -
BU41: Total general | BV41: 34.4% | BW41: 36.0% | BX41: 39.1% | BY41: 42.5% | BZ41: 45.0% | CA41: 47.6% | CB41: 48.6% | CC41: 49.6%
BV61: 1 | BW61: 2 | BX61: 3 | BY61: 4 | BZ61: 5 | CA61: 6 | CB61: 7 | CC61: 8 | CD61: 9 | CE61: 10 | CF61: 11 | CG61: 12 | CJ61: MIN | CK61: MAX
BQ62: AMAZONAS | BR62: =+IFERROR(GETPIVOTDATA("IND",$BQ$10,"Disa",$BQ62),"-") -> 44.8% | BU62: AMAZONAS | BV62: =IFERROR(GETPIVOTDATA("Ind",$BU$10,"Disa",$BU62,"mes",BV$61),"-") -> 33.1% | BW62: =IFERROR(GETPIVOTDATA("Ind",$BU$10,"Disa",$BU62,"mes",BW$61),"-") -> 33.8% | BX62: 36.8% | BY62: 39.6% | BZ62: 41.2% | CA62: 43.5% | CB62: 43.9% | CC62: 44.8% | CD62: - | CE62: - | CF62: - | CG62: - | CI62: AMAZONAS | CJ62: =+IF(BV62="-","-",MIN(BV62:CG62)) -> 33.1% | CK62: =+IF(BV62="-","-",MAX(BV62:CG62)) -> 44.8%
BQ63: ANCASH | BR63: 59.7% | BU63: ANCASH | BV63: 40.8% | BW63: 42.4% | BX63: 45.8% | BY63: 49.1% | BZ63: 52.1% | CA63: 55.6% | CB63: 57.6% | CC63: 59.7% | CD63: - | CE63: - | CF63: - | CG63: - | CI63: ANCASH | CJ63: 40.8% | CK63: 59.7%
BQ64: APURIMAC | BR64: 67.9% | BU64: APURIMAC | BV64: 41.8% | BW64: 43.3% | BX64: 45.9% | BY64: 51.1% | BZ64: 56.0% | CA64: 60.1% | CB64: 64.0% | CC64: 67.9% | CD64: - | CE64: - | CF64: - | CG64: - | CI64: APURIMAC | CJ64: 41.8% | CK64: 67.9%
BQ65: AREQUIPA | BR65: 45.0% | BU65: AREQUIPA | BV65: 30.4% | BW65: 30.8% | BX65: 33.0% | BY65: 36.1% | BZ65: 39.5% | CA65: 42.1% | CB65: 43.2% | CC65: 45.0% | CD65: - | CE65: - | CF65: - | CG65: - | CI65: AREQUIPA | CJ65: 30.4% | CK65: 45.0%
BQ66: AYACUCHO | BR66: 72.0% | BU66: AYACUCHO | BV66: 45.8% | BW66: 47.2% | BX66: 50.3% | BY66: 54.8% | BZ66: 59.6% | CA66: 64.4% | CB66: 68.6% | CC66: 72.0% | CD66: - | CE66: - | CF66: - | CG66: - | CI66: AYACUCHO | CJ66: 45.8% | CK66: 72.0%
BQ67: CAJAMARCA | BR67: 64.2% | BU67: CAJAMARCA | BV67: 35.7% | BW67: 39.4% | BX67: 44.7% | BY67: 50.1% | BZ67: 54.2% | CA67: 58.4% | CB67: 61.1% | CC67: 64.2% | CD67: - | CE67: - | CF67: - | CG67: - | CI67: CAJAMARCA | CJ67: 35.7% | CK67: 64.2%
BQ68: CALLAO | BR68: 53.1% | BU68: CALLAO | BV68: 35.4% | BW68: 37.2% | BX68: 41.5% | BY68: 46.0% | BZ68: 49.2% | CA68: 51.8% | CB68: 53.3% | CC68: 53.1% | CD68: - | CE68: - | CF68: - | CG68: - | CI68: CALLAO | CJ68: 35.4% | CK68: 53.3%
BQ69: CUSCO | BR69: 60.4% | BU69: CUSCO | BV69: 36.5% | BW69: 40.3% | BX69: 45.2% | BY69: 49.8% | BZ69: 52.7% | CA69: 56.3% | CB69: 58.1% | CC69: 60.4% | CD69: - | CE69: - | CF69: - | CG69: - | CI69: CUSCO | CJ69: 36.5% | CK69: 60.4%
BQ70: HUANCAVELICA | BR70: 74.1% | BU70: HUANCAVELICA | BV70: 50.7% | BW70: 54.2% | BX70: 58.4% | BY70: 63.5% | BZ70: 66.3% | CA70: 69.8% | CB70: 71.5% | CC70: 74.1% | CD70: - | CE70: - | CF70: - | CG70: - | CI70: HUANCAVELICA | CJ70: 50.7% | CK70: 74.1%
BQ71: HUANUCO | BR71: 64.1% | BU71: HUANUCO | BV71: 53.1% | BW71: 51.8% | BX71: 52.2% | BY71: 54.8% | BZ71: 57.3% | CA71: 60.8% | CB71: 62.0% | CC71: 64.1% | CD71: - | CE71: - | CF71: - | CG71: - | CI71: HUANUCO | CJ71: 51.8% | CK71: 64.1%
BQ72: ICA | BR72: 52.4% | BU72: ICA | BV72: 30.1% | BW72: 31.1% | BX72: 34.9% | BY72: 39.5% | BZ72: 43.5% | CA72: 48.1% | CB72: 50.4% | CC72: 52.4% | CD72: - | CE72: - | CF72: - | CG72: - | CI72: ICA | CJ72: 30.1% | CK72: 52.4%
BQ73: JUNIN | BR73: 68.1% | BU73: JUNIN | BV73: 51.0% | BW73: 53.0% | BX73: 56.4% | BY73: 60.0% | BZ73: 62.8% | CA73: 65.1% | CB73: 67.0% | CC73: 68.1% | CD73: - | CE73: - | CF73: - | CG73: - | CI73: JUNIN | CJ73: 51.0% | CK73: 68.1%
BQ74: LA LIBERTAD | BR74: 46.4% | BU74: LA LIBERTAD | BV74: 32.1% | BW74: 34.7% | BX74: 37.3% | BY74: 40.7% | BZ74: 42.5% | CA74: 45.2% | CB74: 45.7% | CC74: 46.4% | CD74: - | CE74: - | CF74: - | CG74: - | CI74: LA LIBERTAD | CJ74: 32.1% | CK74: 46.4%
BQ75: LAMBAYEQUE | BR75: 51.8% | BU75: LAMBAYEQUE | BV75: 38.5% | BW75: 37.9% | BX75: 39.7% | BY75: 42.9% | BZ75: 45.3% | CA75: 49.1% | CB75: 51.3% | CC75: 51.8% | CD75: - | CE75: - | CF75: - | CG75: - | CI75: LAMBAYEQUE | CJ75: 37.9% | CK75: 51.8%
BQ76: LIMA DIRIS CENTRO | BR76: 32.9% | BU76: LIMA DIRIS CENTRO | BV76: 24.6% | BW76: 26.9% | BX76: 30.5% | BY76: 32.2% | BZ76: 32.7% | CA76: 33.9% | CB76: 33.5% | CC76: 32.9% | CD76: - | CE76: - | CF76: - | CG76: - | CI76: LIMA DIRIS CENTRO | CJ76: 24.6% | CK76: 33.9%
BQ77: LIMA DIRIS ESTE | BR77: 31.5% | BU77: LIMA DIRIS ESTE | BV77: 23.2% | BW77: 25.0% | BX77: 28.2% | BY77: 30.4% | BZ77: 31.6% | CA77: 32.2% | CB77: 32.1% | CC77: 31.5% | CD77: - | CE77: - | CF77: - | CG77: - | CI77: LIMA DIRIS ESTE | CJ77: 23.2% | CK77: 32.2%
BQ78: LIMA DIRIS NORTE | BR78: 30.7% | BU78: LIMA DIRIS NORTE | BV78: 24.7% | BW78: 26.8% | BX78: 29.5% | BY78: 31.0% | BZ78: 30.7% | CA78: 31.7% | CB78: 30.9% | CC78: 30.7% | CD78: - | CE78: - | CF78: - | CG78: - | CI78: LIMA DIRIS NORTE | CJ78: 24.7% | CK78: 31.7%
BQ79: LIMA DIRIS SUR | BR79: 37.9% | BU79: LIMA DIRIS SUR | BV79: 25.6% | BW79: 27.1% | BX79: 29.6% | BY79: 32.5% | BZ79: 34.7% | CA79: 37.2% | CB79: 37.2% | CC79: 37.9% | CD79: - | CE79: - | CF79: - | CG79: - | CI79: LIMA DIRIS SUR | CJ79: 25.6% | CK79: 37.9%
BQ80: LIMA PROVINCIAS | BR80: 57.9% | BU80: LIMA PROVINCIAS | BV80: 37.6% | BW80: 39.7% | BX80: 43.2% | BY80: 46.5% | BZ80: 49.4% | CA80: 53.2% | CB80: 56.0% | CC80: 57.9% | CD80: - | CE80: - | CF80: - | CG80: - | CI80: LIMA PROVINCIAS | CJ80: 37.6% | CK80: 57.9%
BQ81: LORETO | BR81: 38.8% | BU81: LORETO | BV81: 27.4% | BW81: 29.0% | BX81: 33.2% | BY81: 36.3% | BZ81: 37.9% | CA81: 39.1% | CB81: 38.7% | CC81: 38.8% | CD81: - | CE81: - | CF81: - | CG81: - | CI81: LORETO | CJ81: 27.4% | CK81: 39.1%
BQ82: MADRE DE DIOS | BR82: 63.2% | BU82: MADRE DE DIOS | BV82: 60.8% | BW82: 60.8% | BX82: 61.2% | BY82: 63.0% | BZ82: 64.7% | CA82: 64.6% | CB82: 63.6% | CC82: 63.2% | CD82: - | CE82: - | CF82: - | CG82: - | CI82: MADRE DE DIOS | CJ82: 60.8% | CK82: 64.7%
BQ83: MOQUEGUA | BR83: 49.4% | BU83: MOQUEGUA | BV83: 31.4% | BW83: 33.0% | BX83: 36.2% | BY83: 42.0% | BZ83: 45.2% | CA83: 48.9% | CB83: 48.6% | CC83: 49.4% | CD83: - | CE83: - | CF83: - | CG83: - | CI83: MOQUEGUA | CJ83: 31.4% | CK83: 49.4%
BQ84: PASCO | BR84: 60.3% | BU84: PASCO | BV84: 36.4% | BW84: 38.7% | BX84: 41.0% | BY84: 44.6% | BZ84: 50.7% | CA84: 55.5% | CB84: 57.2% | CC84: 60.3% | CD84: - | CE84: - | CF84: - | CG84: - | CI84: PASCO | CJ84: 36.4% | CK84: 60.3%
BQ85: PIURA | BR85: 48.0% | BU85: PIURA | BV85: 32.8% | BW85: 33.3% | BX85: 36.2% | BY85: 40.6% | BZ85: 43.4% | CA85: 46.6% | CB85: 47.2% | CC85: 48.0% | CD85: - | CE85: - | CF85: - | CG85: - | CI85: PIURA | CJ85: 32.8% | CK85: 48.0%
BQ86: PUNO | BR86: 41.4% | BU86: PUNO | BV86: 31.4% | BW86: 32.3% | BX86: 34.8% | BY86: 37.2% | BZ86: 39.0% | CA86: 39.8% | CB86: 40.5% | CC86: 41.4% | CD86: - | CE86: - | CF86: - | CG86: - | CI86: PUNO | CJ86: 31.4% | CK86: 41.4%
BQ87: SAN MARTIN | BR87: 41.3% | BU87: SAN MARTIN | BV87: 35.0% | BW87: 35.7% | BX87: 37.3% | BY87: 39.9% | BZ87: 41.1% | CA87: 41.8% | CB87: 41.5% | CC87: 41.3% | CD87: - | CE87: - | CF87: - | CG87: - | CI87: SAN MARTIN | CJ87: 35.0% | CK87: 41.8%
BQ88: TACNA | BR88: 57.8% | BU88: TACNA | BV88: 32.8% | BW88: 34.9% | BX88: 40.3% | BY88: 45.6% | BZ88: 49.0% | CA88: 52.9% | CB88: 56.1% | CC88: 57.8% | CD88: - | CE88: - | CF88: - | CG88: - | CI88: TACNA | CJ88: 32.8% | CK88: 57.8%
BQ89: TUMBES | BR89: 63.8% | BU89: TUMBES | BV89: 32.7% | BW89: 35.8% | BX89: 39.8% | BY89: 47.7% | BZ89: 54.2% | CA89: 59.7% | CB89: 61.6% | CC89: 63.8% | CD89: - | CE89: - | CF89: - | CG89: - | CI89: TUMBES | CJ89: 32.7% | CK89: 63.8%
BQ90: UCAYALI | BR90: 39.4% | BU90: UCAYALI | BV90: 31.0% | BW90: 31.8% | BX90: 35.4% | BY90: 38.2% | BZ90: 40.5% | CA90: 41.8% | CB90: 40.1% | CC90: 39.4% | CD90: - | CE90: - | CF90: - | CG90: - | CI90: UCAYALI | CJ90: 31.0% | CK90: 41.8%
BQ91: NACIONAL | BR91: =+IFERROR(GETPIVOTDATA("IND",$BQ$25),"-") -> 49.6% | BU91: NACIONAL | BV91: =IFERROR(GETPIVOTDATA("Ind",$BU$10,"mes",BV$61),"-") -> 34.4% | BW91: =IFERROR(GETPIVOTDATA("Ind",$BU$10,"mes",BW$61),"-") -> 36.0% | BX91: 39.1% | BY91: 42.5% | BZ91: 45.0% | CA91: 47.6% | CB91: 48.6% | CC91: 49.6% | CD91: - | CE91: - | CF91: - | CG91: - | CI91: NACIONAL | CJ91: 34.4% | CK91: 49.6%

Sheet DL_1153_2025_CG03
A1: =+DL1153_2025!C9 -> Ficha 03: Porcentaje de niños y niñas de 6 a 35 meses con diagnóstico de anemia del Total de los casos esperados de anemia | BG1: 1 | DJ1: 1
A2: Periodo de Evaluación: | B2: =+DL1153_2025!B42 -> Agosto - 2025
I4: DESC_DPTO | J4: (Todas)
I5: DESC_PROV | J5: (Todas)
A6: Año | B6: (Todas) | I6: RED | J6: (Todas)
A7: Mes | B7: (Todas) | I7: DESC_DIST | J7: (Todas)
A8: DEPARTAMENTO | B8: Provincia | C8: Distrito | D8: RED | E8: Denominador: Casos de anemia esperados en Niñas/niños de 6 a 35 meses de edad (6 a 11 meses, 12 a 23 meses, 24 a 35 meses), según la prevalencia de anemia en niños de la misma edad, según la ENDES del año anterior | F8: Numerador: Niñas/niños con el primer diagnóstico definitivo de anemia (CIE-X: D509 o D64.9) entre los 6 a 35 meses de edad (6 a 11 meses, 12 a 23 meses, 24 a 35 meses), dosaje definitivo de hemoglobina CPMS: 85018 o 85018.01 hasta 7 días a partir del diagnóstico e inicio de tratamiento oportuno CPMS: 99199.17 | G8: Indicador: Porcentaje de niños y niñas de 6 a 35 meses con diagnóstico de anemia del Total de los casos esperados de anemia. | I8: MES | J8: Denominador: Casos de anemia esperados en Niñas/niños de 6 a 35 meses de edad (6 a 11 meses, 12 a 23 meses, 24 a 35 meses), según la prevalencia de anemia en niños de la misma edad, según la ENDES del año anterior | K8: Numerador: Niñas/niños con el primer diagnóstico definitivo de anemia (CIE-X: D509 o D64.9) entre los 6 a 35 meses de edad (6 a 11 meses, 12 a 23 meses, 24 a 35 meses), dosaje definitivo de hemoglobina CPMS: 85018 o 85018.01 hasta 7 días a partir del diagnóstico e inicio de tratamiento oportuno CPMS: 99199.17 | L8: Indicador: Porcentaje de niños y niñas de 6 a 35 meses con diagnóstico de anemia del Total de los casos esperados de anemia.
A9: DESC_DPTO | B9: DESC_PROV | C9: RED | D9: DESC_DIST | E9: Den | F9: Num | G9: Ind | I9: Mes | J9: Den | K9: Num | L9: Ind
A10: AMAZONAS | E10: 7,156 | F10: 1,612 | G10: 22.5% | I10: 1 | J10: 42,260 | K10: 11,164 | L10: 26.4% | BH10: Año | BI10: (Todas) | BL10: Año | BM10: (Todas)
A11: ANCASH | E11: 12,020 | F11: 5,564 | G11: 46.3% | I11: 2 | J11: 37,749 | K11: 9,795 | L11: 25.9%
A12: APURIMAC | E12: 6,338 | F12: 1,595 | G12: 25.2% | I12: 3 | J12: 41,770 | K12: 10,692 | L12: 25.6% | BH12: DESC_DPTO | BI12: Suma de Ind | BL12: Suma de Ind | BM12: Mes
A13: AREQUIPA | E13: 9,037 | F13: 2,386 | G13: 26.4% | I13: 4 | J13: 39,595 | K13: 10,089 | L13: 25.5% | BH13: AMAZONAS | BI13: 22.5% | BL13: DESC_DPTO | BM13: 1 | BN13: 2 | BO13: 3 | BP13: 4 | BQ13: 5 | BR13: 6 | BS13: 7 | BT13: 8
A14: AYACUCHO | E14: 9,338 | F14: 2,394 | G14: 25.6% | I14: 5 | J14: 39,665 | K14: 9,716 | L14: 24.5% | BH14: ANCASH | BI14: 46.3% | BL14: AMAZONAS | BM14: 25.5% | BN14: 23.3% | BO14: 25.3% | BP14: 22.1% | BQ14: 24.0% | BR14: 18.0% | BS14: 21.5% | BT14: 19.9% | CD14: Año | CE14: (Todas)
A15: CAJAMARCA | E15: 14,962 | F15: 4,397 | G15: 29.4% | I15: 6 | J15: 37,098 | K15: 8,465 | L15: 22.8% | BH15: APURIMAC | BI15: 25.2% | BL15: ANCASH | BM15: 50.5% | BN15: 48.0% | BO15: 45.7% | BP15: 48.2% | BQ15: 46.5% | BR15: 44.6% | BS15: 45.3% | BT15: 41.1%
A16: CALLAO | E16: 6,784 | F16: 1,337 | G16: 19.7% | I16: 7 | J16: 37,863 | K16: 8,544 | L16: 22.6% | BH16: AREQUIPA | BI16: 26.4% | BL16: APURIMAC | BM16: 31.4% | BN16: 26.6% | BO16: 24.2% | BP16: 26.4% | BQ16: 24.9% | BR16: 22.5% | BS16: 23.3% | BT16: 21.2% | CD16: Suma de Ind | CE16: DESC_DPTO
A17: CUSCO | E17: 15,491 | F17: 4,902 | G17: 31.6% | I17: 8 | J17: 37,116 | K17: 8,271 | L17: 22.3% | BH17: AYACUCHO | BI17: 25.6% | BL17: AREQUIPA | BM17: 25.0% | BN17: 26.8% | BO17: 26.9% | BP17: 28.3% | BQ17: 25.7% | BR17: 24.3% | BS17: 26.6% | BT17: 27.7% | CD17: Mes | CE17: AMAZONAS | CF17: ANCASH | CG17: APURIMAC | CH17: AREQUIPA | CI17: AYACUCHO | CJ17: CAJAMARCA | CK17: CALLAO | CL17: CUSCO | CM17: HUANCAVELICA | CN17: HUANUCO | CO17: ICA | CP17: JUNIN | CQ17: LA LIBERTAD | CR17: LAMBAYEQUE | CS17: LIMA METROPOLITANA | CT17: LIMA PROVINCIAS | CU17: LORETO | CV17: MADRE DE DIOS | CW17: MOQUEGUA | CX17: PASCO | CY17: PIURA | CZ17: PUNO | DA17: SAN MARTIN | DB17: TACNA | DC17: TUMBES | DD17: UCAYALI | DE17: Total general
A18: HUANCAVELICA | E18: 5,474 | F18: 1,931 | G18: 35.3% | I18: Total general | J18: 313,116 | K18: 76,736 | L18: 24.5% | BH18: CAJAMARCA | BI18: 29.4% | BL18: AYACUCHO | BM18: 28.2% | BN18: 31.1% | BO18: 26.8% | BP18: 22.6% | BQ18: 24.2% | BR18: 21.4% | BS18: 24.8% | BT18: 25.7% | CD18: Enero | CE18: 25.5% | CF18: 50.5% | CG18: 31.4% | CH18: 25.0% | CI18: 28.2% | CJ18: 29.7% | CK18: 19.1% | CL18: 38.8% | CM18: 36.1% | CN18: 17.9% | CO18: 25.0% | CP18: 26.0% | CQ18: 23.9% | CR18: 38.5% | CS18: 25.0% | CT18: 20.8% | CU18: 21.7% | CV18: 25.3% | CW18: 41.2% | CX18: 33.9% | CY18: 25.6% | CZ18: 13.6% | DA18: 21.7% | DB18: 24.4% | DC18: 26.6% | DD18: 26.2% | DE18: 26.4%
A19: HUANUCO | E19: 11,051 | F19: 1,995 | G19: 18.1% | BH19: CALLAO | BI19: 19.7% | BL19: CAJAMARCA | BM19: 29.7% | BN19: 29.4% | BO19: 30.0% | BP19: 31.7% | BQ19: 29.8% | BR19: 29.0% | BS19: 28.0% | BT19: 27.3% | CD19: Febrero | CE19: 23.3% | CF19: 48.0% | CG19: 26.6% | CH19: 26.8% | CI19: 31.1% | CJ19: 29.4% | CK19: 19.7% | CL19: 35.8% | CM19: 35.6% | CN19: 20.0% | CO19: 27.7% | CP19: 24.6% | CQ19: 21.4% | CR19: 36.4% | CS19: 25.4% | CT19: 18.3% | CU19: 22.0% | CV19: 23.8% | CW19: 38.1% | CX19: 31.4% | CY19: 24.4% | CZ19: 13.2% | DA19: 21.4% | DB19: 19.5% | DC19: 34.8% | DD19: 25.6% | DE19: 25.9%
A20: ICA | E20: 7,911 | F20: 2,024 | G20: 25.6% | BH20: CUSCO | BI20: 31.6% | BL20: CALLAO | BM20: 19.1% | BN20: 19.7% | BO20: 21.1% | BP20: 22.2% | BQ20: 17.7% | BR20: 19.6% | BS20: 19.5% | BT20: 18.7% | CD20: Marzo | CE20: 25.3% | CF20: 45.7% | CG20: 24.2% | CH20: 26.9% | CI20: 26.8% | CJ20: 30.0% | CK20: 21.1% | CL20: 32.3% | CM20: 38.4% | CN20: 20.3% | CO20: 27.1% | CP20: 25.2% | CQ20: 20.7% | CR20: 30.3% | CS20: 26.1% | CT20: 16.9% | CU20: 23.7% | CV20: 32.9% | CW20: 35.9% | CX20: 26.8% | CY20: 23.1% | CZ20: 12.8% | DA20: 22.2% | DB20: 24.8% | DC20: 31.1% | DD20: 25.7% | DE20: 25.6%
A21: JUNIN | E21: 16,469 | F21: 3,942 | G21: 23.9% | BH21: HUANCAVELICA | BI21: 35.3% | BL21: CUSCO | BM21: 38.8% | BN21: 35.8% | BO21: 32.3% | BP21: 34.4% | BQ21: 31.5% | BR21: 27.6% | BS21: 26.3% | BT21: 24.8% | CD21: Abril | CE21: 22.1% | CF21: 48.2% | CG21: 26.4% | CH21: 28.3% | CI21: 22.6% | CJ21: 31.7% | CK21: 22.2% | CL21: 34.4% | CM21: 35.2% | CN21: 16.8% | CO21: 27.4% | CP21: 26.0% | CQ21: 23.2% | CR21: 30.9% | CS21: 25.3% | CT21: 20.6% | CU21: 21.6% | CV21: 27.7% | CW21: 40.5% | CX21: 27.9% | CY21: 22.6% | CZ21: 11.8% | DA21: 20.3% | DB21: 22.9% | DC21: 35.1% | DD21: 25.8% | DE21: 25.5%
A22: LA LIBERTAD | E22: 17,331 | F22: 3,719 | G22: 21.5% | BH22: HUANUCO | BI22: 18.1% | BL22: HUANCAVELICA | BM22: 36.1% | BN22: 35.6% | BO22: 38.4% | BP22: 35.2% | BQ22: 39.2% | BR22: 33.8% | BS22: 32.8% | BT22: 30.5% | CD22: Mayo | CE22: 24.0% | CF22: 46.5% | CG22: 24.9% | CH22: 25.7% | CI22: 24.2% | CJ22: 29.8% | CK22: 17.7% | CL22: 31.5% | CM22: 39.2% | CN22: 19.7% | CO22: 25.3% | CP22: 25.4% | CQ22: 22.1% | CR22: 28.5% | CS22: 24.5% | CT22: 17.5% | CU22: 21.7% | CV22: 24.9% | CW22: 40.8% | CX22: 30.9% | CY22: 20.8% | CZ22: 8.8% | DA22: 19.2% | DB22: 17.3% | DC22: 30.7% | DD22: 28.2% | DE22: 24.5%
A23: LAMBAYEQUE | E23: 11,189 | F23: 3,486 | G23: 31.2% | BH23: ICA | BI23: 25.6% | BL23: HUANUCO | BM23: 17.9% | BN23: 20.0% | BO23: 20.3% | BP23: 16.8% | BQ23: 19.7% | BR23: 17.6% | BS23: 14.9% | BT23: 17.1% | CD23: Junio | CE23: 18.0% | CF23: 44.6% | CG23: 22.5% | CH23: 24.3% | CI23: 21.4% | CJ23: 29.0% | CK23: 19.6% | CL23: 27.6% | CM23: 33.8% | CN23: 17.6% | CO23: 21.3% | CP23: 20.7% | CQ23: 19.4% | CR23: 28.5% | CS23: 22.2% | CT23: 17.2% | CU23: 20.0% | CV23: 21.1% | CW23: 31.2% | CX23: 22.2% | CY23: 20.4% | CZ23: 10.2% | DA23: 19.2% | DB23: 22.3% | DC23: 32.3% | DD23: 32.0% | DE23: 22.8%
A24: LIMA METROPOLITANA | E24: 53,029 | F24: 12,734 | G24: 24.0% | BH24: JUNIN | BI24: 23.9% | BL24: ICA | BM24: 25.0% | BN24: 27.7% | BO24: 27.1% | BP24: 27.4% | BQ24: 25.3% | BR24: 21.3% | BS24: 26.1% | BT24: 24.6% | CD24: Julio | CE24: 21.5% | CF24: 45.3% | CG24: 23.3% | CH24: 26.6% | CI24: 24.8% | CJ24: 28.0% | CK24: 19.5% | CL24: 26.3% | CM24: 32.8% | CN24: 14.9% | CO24: 26.1% | CP24: 20.9% | CQ24: 21.5% | CR24: 28.4% | CS24: 22.3% | CT24: 15.6% | CU24: 19.7% | CV24: 24.3% | CW24: 37.6% | CX24: 26.6% | CY24: 18.0% | CZ24: 9.9% | DA24: 17.1% | DB24: 16.7% | DC24: 25.7% | DD24: 26.0% | DE24: 22.6%
A25: LIMA PROVINCIAS | E25: 10,091 | F25: 1,793 | G25: 17.8% | BH25: LA LIBERTAD | BI25: 21.5% | BL25: JUNIN | BM25: 26.0% | BN25: 24.6% | BO25: 25.2% | BP25: 26.0% | BQ25: 25.4% | BR25: 20.7% | BS25: 20.9% | BT25: 21.9% | CD25: Agosto | CE25: 19.9% | CF25: 41.1% | CG25: 21.2% | CH25: 27.7% | CI25: 25.7% | CJ25: 27.3% | CK25: 18.7% | CL25: 24.8% | CM25: 30.5% | CN25: 17.1% | CO25: 24.6% | CP25: 21.9% | CQ25: 19.2% | CR25: 28.4% | CS25: 20.8% | CT25: 15.0% | CU25: 20.2% | CV25: 19.2% | CW25: 36.7% | CX25: 24.9% | CY25: 20.1% | CZ25: 11.2% | DA25: 18.2% | DB25: 17.4% | DC25: 25.9% | DD25: 29.1% | DE25: 22.3%
A26: LORETO | E26: 21,037 | F26: 4,498 | G26: 21.4% | BH26: LAMBAYEQUE | BI26: 31.2% | BL26: LA LIBERTAD | BM26: 23.9% | BN26: 21.4% | BO26: 20.7% | BP26: 23.2% | BQ26: 22.1% | BR26: 19.4% | BS26: 21.5% | BT26: 19.2% | CD26: Total general | CE26: 22.5% | CF26: 46.3% | CG26: 25.2% | CH26: 26.4% | CI26: 25.6% | CJ26: 29.4% | CK26: 19.7% | CL26: 31.6% | CM26: 35.3% | CN26: 18.1% | CO26: 25.6% | CP26: 23.9% | CQ26: 21.5% | CR26: 31.2% | CS26: 24.0% | CT26: 17.8% | CU26: 21.4% | CV26: 25.1% | CW26: 37.8% | CX26: 28.2% | CY26: 21.9% | CZ26: 11.5% | DA26: 20.0% | DB26: 20.8% | DC26: 30.3% | DD26: 27.3% | DE26: 24.5%
A27: MADRE DE DIOS | E27: 3,794 | F27: 953 | G27: 25.1% | BH27: LIMA METROPOLITANA | BI27: 24.0% | BL27: LAMBAYEQUE | BM27: 38.5% | BN27: 36.4% | BO27: 30.3% | BP27: 30.9% | BQ27: 28.5% | BR27: 28.5% | BS27: 28.4% | BT27: 28.4%
A28: MOQUEGUA | E28: 962 | F28: 364 | G28: 37.8% | BH28: LIMA PROVINCIAS | BI28: 17.8% | BL28: LIMA METROPOLITANA | BM28: 25.0% | BN28: 25.4% | BO28: 26.1% | BP28: 25.3% | BQ28: 24.5% | BR28: 22.2% | BS28: 22.3% | BT28: 20.8%
A29: PASCO | E29: 3,535 | F29: 996 | G29: 28.2% | BH29: LORETO | BI29: 21.4% | BL29: LIMA PROVINCIAS | BM29: 20.8% | BN29: 18.3% | BO29: 16.9% | BP29: 20.6% | BQ29: 17.5% | BR29: 17.2% | BS29: 15.6% | BT29: 15.0%
A30: PIURA | E30: 23,256 | F30: 5,087 | G30: 21.9% | BH30: MADRE DE DIOS | BI30: 25.1% | BL30: LORETO | BM30: 21.7% | BN30: 22.0% | BO30: 23.7% | BP30: 21.6% | BQ30: 21.7% | BR30: 20.0% | BS30: 19.7% | BT30: 20.2%
A31: PUNO | E31: 18,129 | F31: 2,087 | G31: 11.5% | BH31: MOQUEGUA | BI31: 37.8% | BL31: MADRE DE DIOS | BM31: 25.3% | BN31: 23.8% | BO31: 32.9% | BP31: 27.7% | BQ31: 24.9% | BR31: 21.1% | BS31: 24.3% | BT31: 19.2%
A32: SAN MARTIN | E32: 11,681 | F32: 2,333 | G32: 20.0% | BH32: PASCO | BI32: 28.2% | BL32: MOQUEGUA | BM32: 41.2% | BN32: 38.1% | BO32: 35.9% | BP32: 40.5% | BQ32: 40.8% | BR32: 31.2% | BS32: 37.6% | BT32: 36.7%
A33: TACNA | E33: 1,947 | F33: 405 | G33: 20.8% | BH33: PIURA | BI33: 21.9% | BL33: PASCO | BM33: 33.9% | BN33: 31.4% | BO33: 26.8% | BP33: 27.9% | BQ33: 30.9% | BR33: 22.2% | BS33: 26.6% | BT33: 24.9%
A34: TUMBES | E34: 2,673 | F34: 809 | G34: 30.3% | BH34: PUNO | BI34: 11.5% | BL34: PIURA | BM34: 25.6% | BN34: 24.4% | BO34: 23.1% | BP34: 22.6% | BQ34: 20.8% | BR34: 20.4% | BS34: 18.0% | BT34: 20.1%
A35: UCAYALI | E35: 12,431 | F35: 3,393 | G35: 27.3% | BH35: SAN MARTIN | BI35: 20.0% | BL35: PUNO | BM35: 13.6% | BN35: 13.2% | BO35: 12.8% | BP35: 11.8% | BQ35: 8.8% | BR35: 10.2% | BS35: 9.9% | BT35: 11.2% | CE35: AMAZONAS | CF35: ANCASH | CG35: APURIMAC | CH35: AREQUIPA | CI35: AYACUCHO | CJ35: CAJAMARCA | CK35: CALLAO | CL35: CUSCO | CM35: HUANCAVELICA | CN35: HUANUCO | CO35: ICA | CP35: JUNIN | CQ35: LA LIBERTAD | CR35: LAMBAYEQUE | CS35: LIMA DIRIS CENTRO | CT35: LIMA DIRIS ESTE | CU35: LIMA DIRIS NORTE | CV35: LIMA DIRIS SUR | CW35: LIMA PROVINCIAS | CX35: LORETO | CY35: MADRE DE DIOS | CZ35: MOQUEGUA | DA35: PASCO | DB35: PIURA | DC35: PUNO | DD35: SAN MARTIN | DE35: TACNA | DF35: TUMBES | DG35: UCAYALI | DH35: NACIONAL
A36: Total general | E36: 313,116 | F36: 76,736 | G36: 24.5% | BH36: TACNA | BI36: 20.8% | BL36: SAN MARTIN | BM36: 21.7% | BN36: 21.4% | BO36: 22.2% | BP36: 20.3% | BQ36: 19.2% | BR36: 19.2% | BS36: 17.1% | BT36: 18.2% | CD36: Enero | CE36: =+IFERROR(GETPIVOTDATA("Ind",$CD$16,"Mes",$CD36,"DESC_DPTO",CE$35),"-") -> 25.5% | CF36: =+IFERROR(GETPIVOTDATA("Ind",$CD$16,"Mes",$CD36,"DESC_DPTO",CF$35),"-") -> 50.5% | CG36: 31.4% | CH36: 25.0% | CI36: 28.2% | CJ36: 29.7% | CK36: 19.1% | CL36: 38.8% | CM36: 36.1% | CN36: 17.9% | CO36: 25.0% | CP36: 26.0% | CQ36: 23.9% | CR36: 38.5% | CS36: - | CT36: - | CU36: - | CV36: - | CW36: 20.8% | CX36: 21.7% | CY36: 25.3% | CZ36: 41.2% | DA36: 33.9% | DB36: 25.6% | DC36: 13.6% | DD36: 21.7% | DE36: 24.4% | DF36: 26.6% | DG36: 26.2% | DH36: =DE18 -> 26.4%
BH37: TUMBES | BI37: 30.3% | BL37: TACNA | BM37: 24.4% | BN37: 19.5% | BO37: 24.8% | BP37: 22.9% | BQ37: 17.3% | BR37: 22.3% | BS37: 16.7% | BT37: 17.4% | CD37: Febrero | CE37: 23.3% | CF37: 48.0% | CG37: 26.6% | CH37: 26.8% | CI37: 31.1% | CJ37: 29.4% | CK37: 19.7% | CL37: 35.8% | CM37: 35.6% | CN37: 20.0% | CO37: 27.7% | CP37: 24.6% | CQ37: 21.4% | CR37: 36.4% | CS37: - | CT37: - | CU37: - | CV37: - | CW37: 18.3% | CX37: 22.0% | CY37: 23.8% | CZ37: 38.1% | DA37: 31.4% | DB37: 24.4% | DC37: 13.2% | DD37: 21.4% | DE37: 19.5% | DF37: 34.8% | DG37: 25.6% | DH37: 25.9%
BH38: UCAYALI | BI38: 27.3% | BL38: TUMBES | BM38: 26.6% | BN38: 34.8% | BO38: 31.1% | BP38: 35.1% | BQ38: 30.7% | BR38: 32.3% | BS38: 25.7% | BT38: 25.9% | CD38: Marzo | CE38: 25.3% | CF38: 45.7% | CG38: 24.2% | CH38: 26.9% | CI38: 26.8% | CJ38: 30.0% | CK38: 21.1% | CL38: 32.3% | CM38: 38.4% | CN38: 20.3% | CO38: 27.1% | CP38: 25.2% | CQ38: 20.7% | CR38: 30.3% | CS38: - | CT38: - | CU38: - | CV38: - | CW38: 16.9% | CX38: 23.7% | CY38: 32.9% | CZ38: 35.9% | DA38: 26.8% | DB38: 23.1% | DC38: 12.8% | DD38: 22.2% | DE38: 24.8% | DF38: 31.1% | DG38: 25.7% | DH38: 25.6%
BH39: Total general | BI39: 24.5% | BL39: UCAYALI | BM39: 26.2% | BN39: 25.6% | BO39: 25.7% | BP39: 25.8% | BQ39: 28.2% | BR39: 32.0% | BS39: 26.0% | BT39: 29.1% | CD39: Abril | CE39: 22.1% | CF39: 48.2% | CG39: 26.4% | CH39: 28.3% | CI39: 22.6% | CJ39: 31.7% | CK39: 22.2% | CL39: 34.4% | CM39: 35.2% | CN39: 16.8% | CO39: 27.4% | CP39: 26.0% | CQ39: 23.2% | CR39: 30.9% | CS39: - | CT39: - | CU39: - | CV39: - | CW39: 20.6% | CX39: 21.6% | CY39: 27.7% | CZ39: 40.5% | DA39: 27.9% | DB39: 22.6% | DC39: 11.8% | DD39: 20.3% | DE39: 22.9% | DF39: 35.1% | DG39: 25.8% | DH39: 25.5%
BL40: Total general | BM40: 26.4% | BN40: 25.9% | BO40: 25.6% | BP40: 25.5% | BQ40: 24.5% | BR40: 22.8% | BS40: 22.6% | BT40: 22.3% | CD40: Mayo | CE40: 24.0% | CF40: 46.5% | CG40: 24.9% | CH40: 25.7% | CI40: 24.2% | CJ40: 29.8% | CK40: 17.7% | CL40: 31.5% | CM40: 39.2% | CN40: 19.7% | CO40: 25.3% | CP40: 25.4% | CQ40: 22.1% | CR40: 28.5% | CS40: - | CT40: - | CU40: - | CV40: - | CW40: 17.5% | CX40: 21.7% | CY40: 24.9% | CZ40: 40.8% | DA40: 30.9% | DB40: 20.8% | DC40: 8.8% | DD40: 19.2% | DE40: 17.3% | DF40: 30.7% | DG40: 28.2% | DH40: 24.5%
CD41: Junio | CE41: 18.0% | CF41: 44.6% | CG41: 22.5% | CH41: 24.3% | CI41: 21.4% | CJ41: 29.0% | CK41: 19.6% | CL41: 27.6% | CM41: 33.8% | CN41: 17.6% | CO41: 21.3% | CP41: 20.7% | CQ41: 19.4% | CR41: 28.5% | CS41: - | CT41: - | CU41: - | CV41: - | CW41: 17.2% | CX41: 20.0% | CY41: 21.1% | CZ41: 31.2% | DA41: 22.2% | DB41: 20.4% | DC41: 10.2% | DD41: 19.2% | DE41: 22.3% | DF41: 32.3% | DG41: 32.0% | DH41: 22.8%
CD42: Julio | CE42: 21.5% | CF42: 45.3% | CG42: 23.3% | CH42: 26.6% | CI42: 24.8% | CJ42: 28.0% | CK42: 19.5% | CL42: 26.3% | CM42: 32.8% | CN42: 14.9% | CO42: 26.1% | CP42: 20.9% | CQ42: 21.5% | CR42: 28.4% | CS42: - | CT42: - | CU42: - | CV42: - | CW42: 15.6% | CX42: 19.7% | CY42: 24.3% | CZ42: 37.6% | DA42: 26.6% | DB42: 18.0% | DC42: 9.9% | DD42: 17.1% | DE42: 16.7% | DF42: 25.7% | DG42: 26.0% | DH42: 22.6%
CD43: Agosto | CE43: 19.9% | CF43: 41.1% | CG43: 21.2% | CH43: 27.7% | CI43: 25.7% | CJ43: 27.3% | CK43: 18.7% | CL43: 24.8% | CM43: 30.5% | CN43: 17.1% | CO43: 24.6% | CP43: 21.9% | CQ43: 19.2% | CR43: 28.4% | CS43: - | CT43: - | CU43: - | CV43: - | CW43: 15.0% | CX43: 20.2% | CY43: 19.2% | CZ43: 36.7% | DA43: 24.9% | DB43: 20.1% | DC43: 11.2% | DD43: 18.2% | DE43: 17.4% | DF43: 25.9% | DG43: 29.1% | DH43: 22.3%
CD44: Setiembre | CE44: - | CF44: - | CG44: - | CH44: - | CI44: - | CJ44: - | CK44: - | CL44: - | CM44: - | CN44: - | CO44: - | CP44: - | CQ44: - | CR44: - | CS44: - | CT44: - | CU44: - | CV44: - | CW44: - | CX44: - | CY44: - | CZ44: - | DA44: - | DB44: - | DC44: - | DD44: - | DE44: - | DF44: - | DG44: - | DH44: 24.5%
CD45: Octubre | CE45: - | CF45: - | CG45: - | CH45: - | CI45: =+IFERROR(GETPIVOTDATA("Ind",$CD$16,"Mes",$CD45,"DESC_DPTO",CI$35),"-") -> - | CJ45: - | CK45: - | CL45: - | CM45: - | CN45: - | CO45: - | CP45: - | CQ45: - | CR45: - | CS45: - | CT45: - | CU45: - | CV45: - | CW45: - | CX45: - | CY45: =+IFERROR(GETPIVOTDATA("Ind",$CD$16,"Mes",$CD45,"DESC_DPTO",CY$35),"-") -> - | CZ45: - | DA45: - | DB45: - | DC45: - | DD45: - | DE45: - | DF45: - | DG45: - | DH45: 0.0%
CD46: Noviembre | CE46: - | CF46: - | CG46: - | CH46: - | CI46: - | CJ46: - | CK46: - | CL46: - | CM46: - | CN46: - | CO46: - | CP46: - | CQ46: - | CR46: - | CS46: - | CT46: - | CU46: - | CV46: - | CW46: - | CX46: - | CY46: - | CZ46: - | DA46: - | DB46: - | DC46: - | DD46: - | DE46: - | DF46: - | DG46: - | DH46: 0.0%
CD47: Diciembre | CE47: - | CF47: - | CG47: - | CH47: - | CI47: - | CJ47: - | CK47: - | CL47: - | CM47: - | CN47: - | CO47: - | CP47: - | CQ47: - | CR47: - | CS47: - | CT47: - | CU47: - | CV47: - | CW47: - | CX47: - | CY47: - | CZ47: - | DA47: - | DB47: - | DC47: - | DD47: - | DE47: - | DF47: - | DG47: - | DH47: 0.0%
CE48: - | CF48: - | CG48: - | CH48: - | CI48: - | CJ48: - | CK48: - | CL48: - | CM48: - | CN48: - | CO48: - | CP48: - | CQ48: - | CR48: - | CS48: - | CT48: - | CU48: - | CV48: - | CW48: - | CX48: - | CY48: - | CZ48: - | DA48: - | DB48: - | DC48: - | DD48: - | DE48: - | DF48: - | DG48: - | DH48: 0.0%
BL49: VALOR
BM50: 1 | BN50: 2 | BO50: 3 | BP50: 4 | BQ50: 5 | BR50: 6 | BS50: 7 | BT50: 8 | BU50: 9 | BV50: 10 | BW50: 11 | BX50: 12 | CA50: MIN | CB50: MAX
BH51: AMAZONAS | BI51: =+IFERROR(GETPIVOTDATA("Ind",$BH$12,"DESC_DPTO",$BH51),"-") -> 22.5% | BL51: AMAZONAS | BM51: =IFERROR(GETPIVOTDATA("Ind",$BL$12,"Mes",BM$50,"DESC_DPTO",$BL51),"") -> 25.5% | BN51: =IFERROR(GETPIVOTDATA("Ind",$BL$12,"Mes",BN$50,"DESC_DPTO",$BL51),"") -> 23.3% | BO51: 25.3% | BP51: 22.1% | BQ51: 24.0% | BR51: 18.0% | BS51: 21.5% | BT51: 19.9% | BZ51: AMAZONAS | CA51: =+IF(BM51="-","-",MIN(BM51:BX51)) -> 18.0% | CB51: =+IF(BM51="-","-",MAX(BM51:BX51)) -> 25.5%
BH52: ANCASH | BI52: 46.3% | BL52: ANCASH | BM52: 50.5% | BN52: 48.0% | BO52: 45.7% | BP52: 48.2% | BQ52: 46.5% | BR52: 44.6% | BS52: 45.3% | BT52: 41.1% | BZ52: ANCASH | CA52: 41.1% | CB52: 50.5%
BH53: APURIMAC | BI53: 25.2% | BL53: APURIMAC | BM53: 31.4% | BN53: 26.6% | BO53: 24.2% | BP53: 26.4% | BQ53: 24.9% | BR53: 22.5% | BS53: 23.3% | BT53: 21.2% | BZ53: APURIMAC | CA53: 21.2% | CB53: 31.4%
BH54: AREQUIPA | BI54: 26.4% | BL54: AREQUIPA | BM54: 25.0% | BN54: 26.8% | BO54: 26.9% | BP54: 28.3% | BQ54: 25.7% | BR54: 24.3% | BS54: 26.6% | BT54: 27.7% | BZ54: AREQUIPA | CA54: 24.3% | CB54: 28.3%
BH55: AYACUCHO | BI55: 25.6% | BL55: AYACUCHO | BM55: 28.2% | BN55: 31.1% | BO55: 26.8% | BP55: 22.6% | BQ55: 24.2% | BR55: 21.4% | BS55: 24.8% | BT55: 25.7% | BZ55: AYACUCHO | CA55: 21.4% | CB55: 31.1%
BH56: CAJAMARCA | BI56: 29.4% | BL56: CAJAMARCA | BM56: 29.7% | BN56: 29.4% | BO56: 30.0% | BP56: 31.7% | BQ56: 29.8% | BR56: 29.0% | BS56: 28.0% | BT56: 27.3% | BZ56: CAJAMARCA | CA56: 27.3% | CB56: 31.7%
BH57: CALLAO | BI57: 19.7% | BL57: CALLAO | BM57: 19.1% | BN57: 19.7% | BO57: 21.1% | BP57: 22.2% | BQ57: 17.7% | BR57: 19.6% | BS57: 19.5% | BT57: 18.7% | BZ57: CALLAO | CA57: 17.7% | CB57: 22.2%
BH58: CUSCO | BI58: 31.6% | BL58: CUSCO | BM58: 38.8% | BN58: 35.8% | BO58: 32.3% | BP58: 34.4% | BQ58: 31.5% | BR58: 27.6% | BS58: 26.3% | BT58: 24.8% | BZ58: CUSCO | CA58: 24.8% | CB58: 38.8%
BH59: HUANCAVELICA | BI59: 35.3% | BL59: HUANCAVELICA | BM59: 36.1% | BN59: 35.6% | BO59: 38.4% | BP59: 35.2% | BQ59: 39.2% | BR59: 33.8% | BS59: 32.8% | BT59: 30.5% | BZ59: HUANCAVELICA | CA59: 30.5% | CB59: 39.2%
BH60: HUANUCO | BI60: 18.1% | BL60: HUANUCO | BM60: 17.9% | BN60: 20.0% | BO60: 20.3% | BP60: 16.8% | BQ60: 19.7% | BR60: 17.6% | BS60: 14.9% | BT60: 17.1% | BZ60: HUANUCO | CA60: 14.9% | CB60: 20.3%
BH61: ICA | BI61: 25.6% | BL61: ICA | BM61: 25.0% | BN61: 27.7% | BO61: 27.1% | BP61: 27.4% | BQ61: 25.3% | BR61: 21.3% | BS61: 26.1% | BT61: 24.6% | BZ61: ICA | CA61: 21.3% | CB61: 27.7%
BH62: JUNIN | BI62: 23.9% | BL62: JUNIN | BM62: 26.0% | BN62: 24.6% | BO62: 25.2% | BP62: 26.0% | BQ62: 25.4% | BR62: 20.7% | BS62: 20.9% | BT62: 21.9% | BZ62: JUNIN | CA62: 20.7% | CB62: 26.0%
BH63: LA LIBERTAD | BI63: 21.5% | BL63: LA LIBERTAD | BM63: 23.9% | BN63: 21.4% | BO63: 20.7% | BP63: 23.2% | BQ63: 22.1% | BR63: 19.4% | BS63: 21.5% | BT63: 19.2% | BZ63: LA LIBERTAD | CA63: 19.2% | CB63: 23.9%
BH64: LAMBAYEQUE | BI64: 31.2% | BL64: LAMBAYEQUE | BM64: 38.5% | BN64: 36.4% | BO64: 30.3% | BP64: 30.9% | BQ64: 28.5% | BR64: 28.5% | BS64: 28.4% | BT64: 28.4% | BZ64: LAMBAYEQUE | CA64: 28.4% | CB64: 38.5%
BH65: LIMA DIRIS CENTRO | BI65: - | BL65: LIMA DIRIS CENTRO | BZ65: LIMA DIRIS CENTRO | CA65: 0.0% | CB65: 0.0%
BH66: LIMA DIRIS ESTE | BI66: - | BL66: LIMA DIRIS ESTE | BZ66: LIMA DIRIS ESTE | CA66: 0.0% | CB66: 0.0%
BH67: LIMA DIRIS NORTE | BI67: - | BL67: LIMA DIRIS NORTE | BZ67: LIMA DIRIS NORTE | CA67: 0.0% | CB67: 0.0%
BH68: LIMA DIRIS SUR | BI68: - | BL68: LIMA DIRIS SUR | BZ68: LIMA DIRIS SUR | CA68: 0.0% | CB68: 0.0%
BH69: LIMA PROVINCIAS | BI69: 17.8% | BL69: LIMA PROVINCIAS | BM69: 20.8% | BN69: 18.3% | BO69: 16.9% | BP69: 20.6% | BQ69: 17.5% | BR69: 17.2% | BS69: 15.6% | BT69: 15.0% | BZ69: LIMA PROVINCIAS | CA69: 15.0% | CB69: 20.8%
BH70: LORETO | BI70: 21.4% | BL70: LORETO | BM70: 21.7% | BN70: 22.0% | BO70: 23.7% | BP70: 21.6% | BQ70: 21.7% | BR70: 20.0% | BS70: 19.7% | BT70: 20.2% | BZ70: LORETO | CA70: 19.7% | CB70: 23.7%
BH71: MADRE DE DIOS | BI71: 25.1% | BL71: MADRE DE DIOS | BM71: 25.3% | BN71: 23.8% | BO71: 32.9% | BP71: 27.7% | BQ71: 24.9% | BR71: 21.1% | BS71: 24.3% | BT71: 19.2% | BZ71: MADRE DE DIOS | CA71: 19.2% | CB71: 32.9%
BH72: MOQUEGUA | BI72: 37.8% | BL72: MOQUEGUA | BM72: 41.2% | BN72: 38.1% | BO72: 35.9% | BP72: 40.5% | BQ72: 40.8% | BR72: 31.2% | BS72: 37.6% | BT72: 36.7% | BZ72: MOQUEGUA | CA72: 31.2% | CB72: 41.2%
BH73: PASCO | BI73: 28.2% | BL73: PASCO | BM73: 33.9% | BN73: 31.4% | BO73: 26.8% | BP73: 27.9% | BQ73: 30.9% | BR73: 22.2% | BS73: 26.6% | BT73: 24.9% | BZ73: PASCO | CA73: 22.2% | CB73: 33.9%
BH74: PIURA | BI74: 21.9% | BL74: PIURA | BM74: 25.6% | BN74: 24.4% | BO74: 23.1% | BP74: 22.6% | BQ74: 20.8% | BR74: 20.4% | BS74: 18.0% | BT74: 20.1% | BZ74: PIURA | CA74: 18.0% | CB74: 25.6%
BH75: PUNO | BI75: 11.5% | BL75: PUNO | BM75: 13.6% | BN75: 13.2% | BO75: 12.8% | BP75: 11.8% | BQ75: 8.8% | BR75: 10.2% | BS75: 9.9% | BT75: 11.2% | BZ75: PUNO | CA75: 8.8% | CB75: 13.6%
BH76: SAN MARTIN | BI76: 20.0% | BL76: SAN MARTIN | BM76: 21.7% | BN76: 21.4% | BO76: 22.2% | BP76: 20.3% | BQ76: 19.2% | BR76: 19.2% | BS76: 17.1% | BT76: 18.2% | BZ76: SAN MARTIN | CA76: 17.1% | CB76: 22.2%
BH77: TACNA | BI77: 20.8% | BL77: TACNA | BM77: 24.4% | BN77: 19.5% | BO77: 24.8% | BP77: 22.9% | BQ77: 17.3% | BR77: 22.3% | BS77: 16.7% | BT77: 17.4% | BZ77: TACNA | CA77: 16.7% | CB77: 24.8%
BH78: TUMBES | BI78: 30.3% | BL78: TUMBES | BM78: 26.6% | BN78: 34.8% | BO78: 31.1% | BP78: 35.1% | BQ78: 30.7% | BR78: 32.3% | BS78: 25.7% | BT78: 25.9% | BZ78: TUMBES | CA78: 25.7% | CB78: 35.1%
BH79: UCAYALI | BI79: 27.3% | BL79: UCAYALI | BM79: 26.2% | BN79: 25.6% | BO79: 25.7% | BP79: 25.8% | BQ79: 28.2% | BR79: 32.0% | BS79: 26.0% | BT79: 29.1% | BZ79: UCAYALI | CA79: 25.6% | CB79: 32.0%
BH80: NACIONAL | BI80: =BI39 -> 24.5% | BL80: NACIONAL | BM80: =IFERROR(GETPIVOTDATA("Ind",$BL$12,"Mes",BM$50),"-") -> 26.4% | BN80: =IFERROR(GETPIVOTDATA("Ind",$BL$12,"Mes",BN$50),"-") -> 25.9% | BO80: 25.6% | BP80: 25.5% | BQ80: 24.5% | BR80: 22.8% | BS80: 22.6% | BT80: 22.3% | BU80: - | BV80: - | BW80: - | BX80: - | BZ80: NACIONAL | CA80: 22.3% | CB80: 26.4%

Sheet DL_1153_2025_CG04
A1: =+DL1153_2025!C10 -> Ficha 04:Porcentaje de recién nacidos que reciben vacunas BCG, HvB, controles CRED y tamizaje neonatal metabólico. | BN1: 1 | DS1: 1
A2: Periodo de Evaluación: | B2: =+DL1153_2025!B42 -> Agosto - 2025
I4: seguro | J4: MINSA
A5: seguro | B5: MINSA | I5: diresa | J5: 08 CUSCO
A6: mes | B6: 8 | I6: provincia | J6: 0809 LA CONVENCION
A7: año | B7: 2025 | I7: distrito | J7: (Varios elementos)
A8: DIRESA/DIRIS | B8: Provincia | C8: Distrito | D8: Denominador: N° de recién nacidos de 28 días de vida, del departamento en el mes de medición, registrados en el padrón nominal (DNI o CNV en línea) y CNV en línea, con tipo de seguro SIS. Excluyendo los recién nacidos con bajo peso al nacer (menor de 2500 gramos) y/o prematuros (menor de 37 SG), registrados en CNV. | E8: Numerador: Niñas/niños recién nacidos del denominador, que reciben vacunas BCG y HvB, 04 Controles de CRED y tamizaje neonatal metabólico (toma de muestra), registrados en HIS. | F8: Indicador: Porcentaje de recién nacidos que reciben vacunas BCG, HvB, controles CRED y tamizaje neonatal metabólico. | I8: AÑO | J8: MES | K8: Denominador: N° de recién nacidos de 28 días de vida, del departamento en el mes de medición, registrados en el padrón nominal (DNI o CNV en línea) y CNV en línea, con tipo de seguro SIS. Excluyendo los recién nacidos con bajo peso al nacer (menor de 2500 gramos) y/o prematuros (menor de 37 SG), registrados en CNV. | L8: Numerador: Niñas/niños recién nacidos del denominador, que reciben vacunas BCG y HvB, 04 Controles de CRED y tamizaje neonatal metabólico (toma de muestra), registrados en HIS. | M8: Indicador: Porcentaje de recién nacidos que reciben vacunas BCG, HvB, controles CRED y tamizaje neonatal metabólico.
A9: diresa | B9: provincia | C9: distrito | D9: denominador | E9: numerador | F9: Suma de Ind | I9: año | J9: mes | K9: Suma de denominador2 | L9: Suma de numerador2 | M9: Suma de Ind
A10: 08 CUSCO | B10: 0809 LA CONVENCION | C10: 080907 KIMBIRI | D10: 9 | E10: 7 | F10: 77.8% | I10: 2025 | J10: 1 | K10: 99 | L10: 68 | M10: 68.7%
A11: 08 CUSCO | B11: 0809 LA CONVENCION | C11: 080910 PICHARI | D11: 31 | E11: 26 | F11: 83.9% | I11: 2025 | J11: 2 | K11: 99 | L11: 81 | M11: 81.8%
A12: 08 CUSCO | B12: 0809 LA CONVENCION | C12: 080912 VILLA VIRGEN | D12: 2 | E12: 2 | F12: 100.0% | I12: 2025 | J12: 3 | K12: 85 | L12: 74 | M12: 87.1%
A13: 08 CUSCO | B13: 0809 LA CONVENCION | C13: 080913 VILLA KINTIARINA | D13: 1 | E13: 0 | F13: 0.0% | I13: 2025 | J13: 4 | K13: 98 | L13: 87 | M13: 88.8% | BO13: seguro | BP13: MINSA | BS13: seguro | BT13: MINSA
A14: 08 CUSCO | B14: 0809 LA CONVENCION | C14: 080916 CIELO PUNCO | D14: 2 | E14: 1 | F14: 50.0% | I14: 2025 | J14: 5 | K14: 107 | L14: 94 | M14: 87.9% | BO14: año | BP14: (Todas) | BS14: año | BT14: (Todas)
A15: 08 CUSCO | B15: 0809 LA CONVENCION | C15: 080917 MANITEA | D15: 3 | E15: 3 | F15: 100.0% | I15: 2025 | J15: 6 | K15: 80 | L15: 72 | M15: 90.0% | CL15: seguro | CM15: MINSA
A16: 08 CUSCO | B16: 0809 LA CONVENCION | C16: 080918 UNION ASHANINKA | D16: 5 | E16: 4 | F16: 80.0% | I16: 2025 | J16: 7 | K16: 96 | L16: 80 | M16: 83.3% | BO16: diresa | BP16: Suma de IND | BS16: Suma de IND | BT16: mes | CL16: año | CM16: (Todas)
A17: Total general | D17: 53 | E17: 43 | F17: 81.1% | I17: 2025 | J17: 8 | K17: 53 | L17: 43 | M17: 81.1% | BO17: AMAZONAS | BP17: 48.4% | BS17: diresa | BT17: 1 | BU17: 2 | BV17: 3 | BW17: 4 | BX17: 5 | BY17: 6 | BZ17: 7 | CA17: 8
I18: Total general | K18: 717 | L18: 599 | M18: 83.5% | BO18: ANCASH | BP18: 62.2% | BS18: AMAZONAS | BT18: 33.4% | BU18: 48.7% | BV18: 50.2% | BW18: 50.1% | BX18: 51.0% | BY18: 51.3% | BZ18: 50.1% | CA18: 52.8% | CL18: Suma de IND | CM18: diresa
BO19: APURIMAC | BP19: 85.3% | BS19: ANCASH | BT19: 49.3% | BU19: 64.6% | BV19: 64.1% | BW19: 66.9% | BX19: 62.6% | BY19: 64.7% | BZ19: 62.4% | CA19: 62.3% | CL19: mes | CM19: AMAZONAS | CN19: ANCASH | CO19: APURIMAC | CP19: AREQUIPA | CQ19: AYACUCHO | CR19: CAJAMARCA | CS19: CALLAO | CT19: CUSCO | CU19: HUANCAVELICA | CV19: HUANUCO | CW19: ICA | CX19: JUNIN | CY19: LA LIBERTAD | CZ19: LAMBAYEQUE | DA19: LIMA DIRIS CENTRO | DB19: LIMA DIRIS ESTE | DC19: LIMA DIRIS NORTE | DD19: LIMA DIRIS SUR | DE19: LIMA PROVINCIAS | DF19: LORETO | DG19: MADRE DE DIOS | DH19: MOQUEGUA | DI19: PASCO | DJ19: PIURA | DK19: PUNO | DL19: SAN MARTIN | DM19: TACNA | DN19: TUMBES | DO19: UCAYALI | DP19: Total general
BO20: AREQUIPA | BP20: 36.4% | BS20: APURIMAC | BT20: 83.3% | BU20: 88.0% | BV20: 88.5% | BW20: 88.0% | BX20: 87.9% | BY20: 83.9% | BZ20: 83.5% | CA20: 78.8% | CL20: Enero | CM20: 33.4% | CN20: 49.3% | CO20: 83.3% | CP20: 21.8% | CQ20: 80.8% | CR20: 49.2% | CS20: 48.9% | CT20: 63.2% | CU20: 78.8% | CV20: 66.0% | CW20: 58.6% | CX20: 74.0% | CY20: 29.1% | CZ20: 30.2% | DA20: 7.3% | DB20: 13.3% | DC20: 11.6% | DD20: 19.6% | DE20: 67.8% | DF20: 21.8% | DG20: 66.8% | DH20: 71.8% | DI20: 70.8% | DJ20: 46.1% | DK20: 46.9% | DL20: 41.8% | DM20: 70.3% | DN20: 86.2% | DO20: 45.9% | DP20: 42.3%
BO21: AYACUCHO | BP21: 83.0% | BS21: AREQUIPA | BT21: 21.8% | BU21: 32.5% | BV21: 37.7% | BW21: 41.6% | BX21: 37.1% | BY21: 46.2% | BZ21: 39.0% | CA21: 35.1% | CL21: Febrero | CM21: 48.7% | CN21: 64.6% | CO21: 88.0% | CP21: 32.5% | CQ21: 87.5% | CR21: 60.2% | CS21: 58.1% | CT21: 70.5% | CU21: 83.4% | CV21: 72.1% | CW21: 69.2% | CX21: 76.9% | CY21: 39.4% | CZ21: 55.7% | DA21: 18.3% | DB21: 25.1% | DC21: 16.9% | DD21: 26.7% | DE21: 73.6% | DF21: 47.9% | DG21: 78.7% | DH21: 68.6% | DI21: 74.7% | DJ21: 55.6% | DK21: 53.7% | DL21: 51.0% | DM21: 80.3% | DN21: 94.8% | DO21: 64.5% | DP21: 53.3%
BO22: CAJAMARCA | BP22: 61.0% | BS22: AYACUCHO | BT22: 80.8% | BU22: 87.5% | BV22: 81.8% | BW22: 82.4% | BX22: 83.7% | BY22: 84.7% | BZ22: 82.3% | CA22: 81.0% | CL22: Marzo | CM22: 50.2% | CN22: 64.1% | CO22: 88.5% | CP22: 37.7% | CQ22: 81.8% | CR22: 67.7% | CS22: 58.2% | CT22: 75.2% | CU22: 86.4% | CV22: 82.3% | CW22: 70.5% | CX22: 76.5% | CY22: 45.0% | CZ22: 56.7% | DA22: 19.7% | DB22: 26.7% | DC22: 20.7% | DD22: 31.1% | DE22: 79.5% | DF22: 47.4% | DG22: 74.5% | DH22: 83.7% | DI22: 83.0% | DJ22: 59.5% | DK22: 57.4% | DL22: 58.4% | DM22: 81.4% | DN22: 91.7% | DO22: 64.1% | DP22: 55.8%
BO23: CALLAO | BP23: 55.7% | BS23: CAJAMARCA | BT23: 49.2% | BU23: 60.2% | BV23: 67.7% | BW23: 65.6% | BX23: 63.0% | BY23: 62.7% | BZ23: 60.8% | CA23: 58.0% | CL23: Abril | CM23: 50.1% | CN23: 66.9% | CO23: 88.0% | CP23: 41.6% | CQ23: 82.4% | CR23: 65.6% | CS23: 59.6% | CT23: 73.9% | CU23: 82.7% | CV23: 83.7% | CW23: 72.9% | CX23: 73.8% | CY23: 42.0% | CZ23: 56.0% | DA23: 11.6% | DB23: 23.2% | DC23: 14.1% | DD23: 28.6% | DE23: 70.8% | DF23: 46.2% | DG23: 70.8% | DH23: 74.3% | DI23: 79.1% | DJ23: 56.6% | DK23: 51.3% | DL23: 53.7% | DM23: 83.6% | DN23: 95.5% | DO23: 60.2% | DP23: 53.8%
BO24: CUSCO | BP24: 71.8% | BS24: CALLAO | BT24: 48.9% | BU24: 58.1% | BV24: 58.2% | BW24: 59.6% | BX24: 54.0% | BY24: 58.6% | BZ24: 57.7% | CA24: 50.6% | CL24: Mayo | CM24: 51.0% | CN24: 62.6% | CO24: 87.9% | CP24: 37.1% | CQ24: 83.7% | CR24: 63.0% | CS24: 54.0% | CT24: 73.4% | CU24: 76.5% | CV24: 79.9% | CW24: 66.0% | CX24: 73.6% | CY24: 43.7% | CZ24: 52.9% | DA24: 11.5% | DB24: 19.4% | DC24: 11.3% | DD24: 25.0% | DE24: 74.1% | DF24: 45.9% | DG24: 80.1% | DH24: 80.2% | DI24: 76.9% | DJ24: 48.9% | DK24: 50.7% | DL24: 47.6% | DM24: 79.7% | DN24: 91.8% | DO24: 59.5% | DP24: 51.8%
BO25: HUANCAVELICA | BP25: 79.6% | BS25: CUSCO | BT25: 63.2% | BU25: 70.5% | BV25: 75.2% | BW25: 73.9% | BX25: 73.4% | BY25: 75.4% | BZ25: 72.5% | CA25: 70.2% | CL25: Junio | CM25: 51.3% | CN25: 64.7% | CO25: 83.9% | CP25: 46.2% | CQ25: 84.7% | CR25: 62.7% | CS25: 58.6% | CT25: 75.4% | CU25: 79.2% | CV25: 79.0% | CW25: 67.8% | CX25: 79.8% | CY25: 49.0% | CZ25: 53.6% | DA25: 15.5% | DB25: 17.4% | DC25: 15.0% | DD25: 26.7% | DE25: 76.5% | DF25: 51.6% | DG25: 79.7% | DH25: 85.1% | DI25: 79.5% | DJ25: 55.0% | DK25: 58.1% | DL25: 56.2% | DM25: 74.9% | DN25: 93.5% | DO25: 63.5% | DP25: 54.7%
BO26: HUANUCO | BP26: 76.4% | BS26: HUANCAVELICA | BT26: 78.8% | BU26: 83.4% | BV26: 86.4% | BW26: 82.7% | BX26: 76.5% | BY26: 79.2% | BZ26: 76.1% | CA26: 73.6% | CL26: Julio | CM26: 50.1% | CN26: 62.4% | CO26: 83.5% | CP26: 39.0% | CQ26: 82.3% | CR26: 60.8% | CS26: 57.7% | CT26: 72.5% | CU26: 76.1% | CV26: 77.3% | CW26: 65.4% | CX26: 76.7% | CY26: 50.0% | CZ26: 53.9% | DA26: 24.7% | DB26: 16.7% | DC26: 14.8% | DD26: 16.5% | DE26: 79.5% | DF26: 45.6% | DG26: 73.2% | DH26: 77.5% | DI26: 58.9% | DJ26: 44.0% | DK26: 56.9% | DL26: 47.5% | DM26: 74.2% | DN26: 89.2% | DO26: 59.9% | DP26: 51.7%
BO27: ICA | BP27: 65.7% | BS27: HUANUCO | BT27: 66.0% | BU27: 72.1% | BV27: 82.3% | BW27: 83.7% | BX27: 79.9% | BY27: 79.0% | BZ27: 77.3% | CA27: 71.2% | CL27: Agosto | CM27: 52.8% | CN27: 62.3% | CO27: 78.8% | CP27: 35.1% | CQ27: 81.0% | CR27: 58.0% | CS27: 50.6% | CT27: 70.2% | CU27: 73.6% | CV27: 71.2% | CW27: 54.3% | CX27: 73.1% | CY27: 44.0% | CZ27: 51.6% | DA27: 18.0% | DB27: 15.9% | DC27: 16.6% | DD27: 14.7% | DE27: 76.1% | DF27: 44.4% | DG27: 71.1% | DH27: 71.7% | DI27: 61.3% | DJ27: 44.1% | DK27: 58.2% | DL27: 46.9% | DM27: 68.6% | DN27: 91.4% | DO27: 54.5% | DP27: 49.3%
BO28: JUNIN | BP28: 75.5% | BS28: ICA | BT28: 58.6% | BU28: 69.2% | BV28: 70.5% | BW28: 72.9% | BX28: 66.0% | BY28: 67.8% | BZ28: 65.4% | CA28: 54.3%
BO29: LA LIBERTAD | BP29: 43.0% | BS29: JUNIN | BT29: 74.0% | BU29: 76.9% | BV29: 76.5% | BW29: 73.8% | BX29: 73.6% | BY29: 79.8% | BZ29: 76.7% | CA29: 73.1%
BO30: LAMBAYEQUE | BP30: 51.5% | BS30: LA LIBERTAD | BT30: 29.1% | BU30: 39.4% | BV30: 45.0% | BW30: 42.0% | BX30: 43.7% | BY30: 49.0% | BZ30: 50.0% | CA30: 44.0%
BO31: LIMA DIRIS CENTRO | BP31: 15.9% | BS31: LAMBAYEQUE | BT31: 30.2% | BU31: 55.7% | BV31: 56.7% | BW31: 56.0% | BX31: 52.9% | BY31: 53.6% | BZ31: 53.9% | CA31: 51.6%
BO32: LIMA DIRIS ESTE | BP32: 19.8% | BS32: LIMA DIRIS CENTRO | BT32: 7.3% | BU32: 18.3% | BV32: 19.7% | BW32: 11.6% | BX32: 11.5% | BY32: 15.5% | BZ32: 24.7% | CA32: 18.0%
BO33: LIMA DIRIS NORTE | BP33: 15.2% | BS33: LIMA DIRIS ESTE | BT33: 13.3% | BU33: 25.1% | BV33: 26.7% | BW33: 23.2% | BX33: 19.4% | BY33: 17.4% | BZ33: 16.7% | CA33: 15.9%
BO34: LIMA DIRIS SUR | BP34: 23.7% | BS34: LIMA DIRIS NORTE | BT34: 11.6% | BU34: 16.9% | BV34: 20.7% | BW34: 14.1% | BX34: 11.3% | BY34: 15.0% | BZ34: 14.8% | CA34: 16.6%
BO35: LIMA REGION | BP35: 74.8% | BS35: LIMA DIRIS SUR | BT35: 19.6% | BU35: 26.7% | BV35: 31.1% | BW35: 28.6% | BX35: 25.0% | BY35: 26.7% | BZ35: 16.5% | CA35: 14.7% | CL35: MES
BO36: LORETO | BP36: 43.9% | BS36: LIMA REGION | BT36: 67.8% | BU36: 73.6% | BV36: 79.5% | BW36: 70.8% | BX36: 74.1% | BY36: 76.5% | BZ36: 79.5% | CA36: 76.1% | CM36: =+CM19 -> AMAZONAS | CN36: =+CN19 -> ANCASH | CO36: APURIMAC | CP36: AREQUIPA | CQ36: AYACUCHO | CR36: CAJAMARCA | CS36: CALLAO | CT36: CUSCO | CU36: HUANCAVELICA | CV36: HUANUCO | CW36: ICA | CX36: JUNIN | CY36: LA LIBERTAD | CZ36: LAMBAYEQUE | DA36: LIMA DIRIS CENTRO | DB36: LIMA DIRIS ESTE | DC36: LIMA DIRIS NORTE | DD36: LIMA DIRIS SUR | DE36: LIMA PROVINCIAS | DF36: LORETO | DG36: MADRE DE DIOS | DH36: MOQUEGUA | DI36: PASCO | DJ36: PIURA | DK36: PUNO | DL36: SAN MARTIN | DM36: TACNA | DN36: TUMBES | DO36: UCAYALI | DP36: NACIONAL
BO37: MADRE DE DIOS | BP37: 74.6% | BS37: LORETO | BT37: 21.8% | BU37: 47.9% | BV37: 47.4% | BW37: 46.2% | BX37: 45.9% | BY37: 51.6% | BZ37: 45.6% | CA37: 44.4% | CL37: Enero | CM37: =+IFERROR(GETPIVOTDATA("Ind",$CL$18,"mes",$CL37,"diresa",CM$36),"-") -> 33.4% | CN37: =+IFERROR(GETPIVOTDATA("Ind",$CL$18,"mes",$CL37,"diresa",CN$36),"-") -> 49.3% | CO37: 83.3% | CP37: 21.8% | CQ37: 80.8% | CR37: 49.2% | CS37: 48.9% | CT37: 63.2% | CU37: 78.8% | CV37: 66.0% | CW37: 58.6% | CX37: 74.0% | CY37: 29.1% | CZ37: 30.2% | DA37: 7.3% | DB37: 13.3% | DC37: 11.6% | DD37: =+IFERROR(GETPIVOTDATA("Ind",$CL$18,"mes",$CL37,"diresa",DD$36),"-") -> 19.6% | DE37: 67.8% | DF37: 21.8% | DG37: 66.8% | DH37: 71.8% | DI37: 70.8% | DJ37: 46.1% | DK37: 46.9% | DL37: 41.8% | DM37: 70.3% | DN37: 86.2% | DO37: 45.9% | DP37: =GETPIVOTDATA("Ind",$CL$18,"mes",$CL37) -> 42.3%
BO38: MOQUEGUA | BP38: 76.9% | BS38: MADRE DE DIOS | BT38: 66.8% | BU38: 78.7% | BV38: 74.5% | BW38: 70.8% | BX38: 80.1% | BY38: 79.7% | BZ38: 73.2% | CA38: 71.1% | CL38: Febrero | CM38: 48.7% | CN38: 64.6% | CO38: 88.0% | CP38: 32.5% | CQ38: 87.5% | CR38: 60.2% | CS38: 58.1% | CT38: 70.5% | CU38: 83.4% | CV38: 72.1% | CW38: 69.2% | CX38: 76.9% | CY38: 39.4% | CZ38: 55.7% | DA38: 18.3% | DB38: 25.1% | DC38: 16.9% | DD38: 26.7% | DE38: 73.6% | DF38: 47.9% | DG38: 78.7% | DH38: 68.6% | DI38: 74.7% | DJ38: 55.6% | DK38: 53.7% | DL38: 51.0% | DM38: 80.3% | DN38: 94.8% | DO38: 64.5% | DP38: =+IFERROR(GETPIVOTDATA("ind",$CL$18,"mes",$CL38),"-") -> 53.3%
BO39: PASCO | BP39: 73.0% | BS39: MOQUEGUA | BT39: 71.8% | BU39: 68.6% | BV39: 83.7% | BW39: 74.3% | BX39: 80.2% | BY39: 85.1% | BZ39: 77.5% | CA39: 71.7% | CL39: Marzo | CM39: 50.2% | CN39: 64.1% | CO39: 88.5% | CP39: 37.7% | CQ39: 81.8% | CR39: 67.7% | CS39: 58.2% | CT39: 75.2% | CU39: 86.4% | CV39: 82.3% | CW39: 70.5% | CX39: 76.5% | CY39: 45.0% | CZ39: 56.7% | DA39: 19.7% | DB39: 26.7% | DC39: 20.7% | DD39: 31.1% | DE39: 79.5% | DF39: 47.4% | DG39: 74.5% | DH39: 83.7% | DI39: 83.0% | DJ39: 59.5% | DK39: 57.4% | DL39: 58.4% | DM39: 81.4% | DN39: 91.7% | DO39: 64.1% | DP39: 55.8%
BO40: PIURA | BP40: 51.3% | BS40: PASCO | BT40: 70.8% | BU40: 74.7% | BV40: 83.0% | BW40: 79.1% | BX40: 76.9% | BY40: 79.5% | BZ40: 58.9% | CA40: 61.3% | CL40: Abril | CM40: 50.1% | CN40: 66.9% | CO40: 88.0% | CP40: 41.6% | CQ40: 82.4% | CR40: 65.6% | CS40: 59.6% | CT40: 73.9% | CU40: 82.7% | CV40: 83.7% | CW40: 72.9% | CX40: 73.8% | CY40: 42.0% | CZ40: 56.0% | DA40: 11.6% | DB40: 23.2% | DC40: 14.1% | DD40: 28.6% | DE40: 70.8% | DF40: 46.2% | DG40: 70.8% | DH40: 74.3% | DI40: 79.1% | DJ40: 56.6% | DK40: 51.3% | DL40: 53.7% | DM40: 83.6% | DN40: 95.5% | DO40: 60.2% | DP40: 53.8%
BO41: PUNO | BP41: 54.2% | BS41: PIURA | BT41: 46.1% | BU41: 55.6% | BV41: 59.5% | BW41: 56.6% | BX41: 48.9% | BY41: 55.0% | BZ41: 44.0% | CA41: 44.1% | CL41: Mayo | CM41: 51.0% | CN41: 62.6% | CO41: 87.9% | CP41: 37.1% | CQ41: 83.7% | CR41: 63.0% | CS41: 54.0% | CT41: 73.4% | CU41: 76.5% | CV41: 79.9% | CW41: 66.0% | CX41: 73.6% | CY41: 43.7% | CZ41: 52.9% | DA41: 11.5% | DB41: 19.4% | DC41: 11.3% | DD41: 25.0% | DE41: 74.1% | DF41: 45.9% | DG41: 80.1% | DH41: 80.2% | DI41: 76.9% | DJ41: 48.9% | DK41: 50.7% | DL41: 47.6% | DM41: 79.7% | DN41: 91.8% | DO41: 59.5% | DP41: 51.8%
BO42: SAN MARTIN | BP42: 50.5% | BS42: PUNO | BT42: 46.9% | BU42: 53.7% | BV42: 57.4% | BW42: 51.3% | BX42: 50.7% | BY42: 58.1% | BZ42: 56.9% | CA42: 58.2% | CL42: Junio | CM42: 51.3% | CN42: 64.7% | CO42: 83.9% | CP42: 46.2% | CQ42: 84.7% | CR42: 62.7% | CS42: 58.6% | CT42: 75.4% | CU42: 79.2% | CV42: 79.0% | CW42: 67.8% | CX42: 79.8% | CY42: 49.0% | CZ42: 53.6% | DA42: 15.5% | DB42: 17.4% | DC42: 15.0% | DD42: 26.7% | DE42: 76.5% | DF42: 51.6% | DG42: 79.7% | DH42: 85.1% | DI42: 79.5% | DJ42: 55.0% | DK42: 58.1% | DL42: 56.2% | DM42: 74.9% | DN42: 93.5% | DO42: 63.5% | DP42: 54.7%
BO43: TACNA | BP43: 76.8% | BS43: SAN MARTIN | BT43: 41.8% | BU43: 51.0% | BV43: 58.4% | BW43: 53.7% | BX43: 47.6% | BY43: 56.2% | BZ43: 47.5% | CA43: 46.9% | CL43: Julio | CM43: 50.1% | CN43: 62.4% | CO43: 83.5% | CP43: 39.0% | CQ43: 82.3% | CR43: 60.8% | CS43: 57.7% | CT43: 72.5% | CU43: 76.1% | CV43: 77.3% | CW43: 65.4% | CX43: 76.7% | CY43: 50.0% | CZ43: 53.9% | DA43: 24.7% | DB43: 16.7% | DC43: 14.8% | DD43: 16.5% | DE43: 79.5% | DF43: 45.6% | DG43: 73.2% | DH43: 77.5% | DI43: 58.9% | DJ43: 44.0% | DK43: 56.9% | DL43: 47.5% | DM43: 74.2% | DN43: 89.2% | DO43: 59.9% | DP43: 51.7%
BO44: TUMBES | BP44: 91.9% | BS44: TACNA | BT44: 70.3% | BU44: 80.3% | BV44: 81.4% | BW44: 83.6% | BX44: 79.7% | BY44: 74.9% | BZ44: 74.2% | CA44: 68.6% | CL44: Agosto | CM44: 52.8% | CN44: 62.3% | CO44: 78.8% | CP44: 35.1% | CQ44: 81.0% | CR44: 58.0% | CS44: 50.6% | CT44: 70.2% | CU44: 73.6% | CV44: 71.2% | CW44: 54.3% | CX44: 73.1% | CY44: 44.0% | CZ44: 51.6% | DA44: 18.0% | DB44: 15.9% | DC44: 16.6% | DD44: 14.7% | DE44: 76.1% | DF44: 44.4% | DG44: 71.1% | DH44: 71.7% | DI44: 61.3% | DJ44: 44.1% | DK44: 58.2% | DL44: 46.9% | DM44: 68.6% | DN44: 91.4% | DO44: 54.5% | DP44: 49.3%
BO45: UCAYALI | BP45: 59.1% | BS45: TUMBES | BT45: 86.2% | BU45: 94.8% | BV45: 91.7% | BW45: 95.5% | BX45: 91.8% | BY45: 93.5% | BZ45: 89.2% | CA45: 91.4% | CL45: Setiembre | CM45: - | CN45: - | CO45: - | CP45: - | CQ45: - | CR45: - | CS45: - | CT45: - | CU45: - | CV45: - | CW45: - | CX45: - | CY45: - | CZ45: - | DA45: - | DB45: - | DC45: - | DD45: - | DE45: - | DF45: - | DG45: - | DH45: - | DI45: - | DJ45: - | DK45: - | DL45: - | DM45: - | DN45: - | DO45: - | DP45: -
BO46: Total general | BP46: 51.7% | BS46: UCAYALI | BT46: 45.9% | BU46: 64.5% | BV46: 64.1% | BW46: 60.2% | BX46: 59.5% | BY46: 63.5% | BZ46: 59.9% | CA46: 54.5% | CL46: Octubre | CM46: - | CN46: - | CO46: - | CP46: - | CQ46: - | CR46: - | CS46: - | CT46: - | CU46: - | CV46: - | CW46: - | CX46: - | CY46: - | CZ46: - | DA46: - | DB46: - | DC46: - | DD46: - | DE46: - | DF46: - | DG46: - | DH46: - | DI46: - | DJ46: - | DK46: - | DL46: - | DM46: - | DN46: - | DO46: - | DP46: -
BS47: Total general | BT47: 42.3% | BU47: 53.3% | BV47: 55.8% | BW47: 53.8% | BX47: 51.8% | BY47: 54.7% | BZ47: 51.7% | CA47: 49.3% | CL47: Noviembre | CM47: - | CN47: - | CO47: - | CP47: - | CQ47: - | CR47: - | CS47: - | CT47: - | CU47: - | CV47: - | CW47: - | CX47: - | CY47: - | CZ47: - | DA47: - | DB47: - | DC47: - | DD47: - | DE47: - | DF47: - | DG47: - | DH47: - | DI47: - | DJ47: - | DK47: - | DL47: - | DM47: - | DN47: - | DO47: - | DP47: -
CL48: Diciembre | CM48: - | CN48: - | CO48: - | CP48: - | CQ48: - | CR48: - | CS48: - | CT48: - | CU48: - | CV48: - | CW48: - | CX48: - | CY48: - | CZ48: - | DA48: - | DB48: - | DC48: - | DD48: - | DE48: - | DF48: - | DG48: - | DH48: - | DI48: - | DJ48: - | DK48: - | DL48: - | DM48: - | DN48: - | DO48: - | DP48: -
BS50: valor
BT51: 1 | BU51: 2 | BV51: 3 | BW51: 4 | BX51: 5 | BY51: 6 | BZ51: 7 | CA51: 8 | CB51: 9 | CC51: 10 | CD51: 11 | CE51: 12 | CH51: MIN | CI51: MAX
BO52: AMAZONAS | BP52: =+IFERROR(GETPIVOTDATA("Ind",$BO$16,"diresa",$BO52),"-") -> 48.4% | BS52: AMAZONAS | BT52: =+IFERROR(GETPIVOTDATA("Ind",$BS$16,"mes",BT$51,"diresa",$BS52),"-") -> 33.4% | BU52: =+IFERROR(GETPIVOTDATA("Ind",$BS$16,"mes",BU$51,"diresa",$BS52),"-") -> 48.7% | BV52: 50.2% | BW52: 50.1% | BX52: 51.0% | BY52: 51.3% | BZ52: 50.1% | CA52: 52.8% | CB52: - | CC52: - | CD52: - | CE52: - | CG52: AMAZONAS | CH52: =+IF(BT52="-","-",MIN(BT52:CE52)) -> 33.4% | CI52: =+IF(BT52="-","-",MAX(BT52:CE52)) -> 52.8%
BO53: ANCASH | BP53: 62.2% | BS53: ANCASH | BT53: 49.3% | BU53: 64.6% | BV53: 64.1% | BW53: 66.9% | BX53: 62.6% | BY53: 64.7% | BZ53: 62.4% | CA53: 62.3% | CB53: - | CC53: - | CD53: - | CE53: - | CG53: ANCASH | CH53: 49.3% | CI53: 66.9%
BO54: APURIMAC | BP54: 85.3% | BS54: APURIMAC | BT54: 83.3% | BU54: 88.0% | BV54: 88.5% | BW54: 88.0% | BX54: 87.9% | BY54: 83.9% | BZ54: 83.5% | CA54: 78.8% | CB54: - | CC54: - | CD54: - | CE54: - | CG54: APURIMAC | CH54: 78.8% | CI54: 88.5%
BO55: AREQUIPA | BP55: 36.4% | BS55: AREQUIPA | BT55: 21.8% | BU55: 32.5% | BV55: 37.7% | BW55: 41.6% | BX55: 37.1% | BY55: 46.2% | BZ55: 39.0% | CA55: 35.1% | CB55: - | CC55: - | CD55: - | CE55: - | CG55: AREQUIPA | CH55: 21.8% | CI55: 46.2%
BO56: AYACUCHO | BP56: 83.0% | BS56: AYACUCHO | BT56: 80.8% | BU56: 87.5% | BV56: 81.8% | BW56: 82.4% | BX56: 83.7% | BY56: 84.7% | BZ56: 82.3% | CA56: 81.0% | CB56: - | CC56: - | CD56: - | CE56: - | CG56: AYACUCHO | CH56: 80.8% | CI56: 87.5%
BO57: CAJAMARCA | BP57: 61.0% | BS57: CAJAMARCA | BT57: 49.2% | BU57: 60.2% | BV57: 67.7% | BW57: 65.6% | BX57: 63.0% | BY57: 62.7% | BZ57: 60.8% | CA57: 58.0% | CB57: - | CC57: - | CD57: - | CE57: - | CG57: CAJAMARCA | CH57: 49.2% | CI57: 67.7%
BO58: CALLAO | BP58: 55.7% | BS58: CALLAO | BT58: 48.9% | BU58: 58.1% | BV58: 58.2% | BW58: 59.6% | BX58: 54.0% | BY58: 58.6% | BZ58: 57.7% | CA58: 50.6% | CB58: - | CC58: - | CD58: - | CE58: - | CG58: CALLAO | CH58: 48.9% | CI58: 59.6%
BO59: CUSCO | BP59: 71.8% | BS59: CUSCO | BT59: 63.2% | BU59: 70.5% | BV59: 75.2% | BW59: 73.9% | BX59: 73.4% | BY59: 75.4% | BZ59: 72.5% | CA59: 70.2% | CB59: - | CC59: - | CD59: - | CE59: - | CG59: CUSCO | CH59: 63.2% | CI59: 75.4%
BO60: HUANCAVELICA | BP60: 79.6% | BS60: HUANCAVELICA | BT60: 78.8% | BU60: 83.4% | BV60: 86.4% | BW60: 82.7% | BX60: 76.5% | BY60: 79.2% | BZ60: 76.1% | CA60: 73.6% | CB60: - | CC60: - | CD60: - | CE60: - | CG60: HUANCAVELICA | CH60: 73.6% | CI60: 86.4%
BO61: HUANUCO | BP61: 76.4% | BS61: HUANUCO | BT61: 66.0% | BU61: 72.1% | BV61: 82.3% | BW61: 83.7% | BX61: 79.9% | BY61: 79.0% | BZ61: 77.3% | CA61: 71.2% | CB61: - | CC61: - | CD61: - | CE61: - | CG61: HUANUCO | CH61: 66.0% | CI61: 83.7%
BO62: ICA | BP62: 65.7% | BS62: ICA | BT62: 58.6% | BU62: 69.2% | BV62: 70.5% | BW62: 72.9% | BX62: 66.0% | BY62: 67.8% | BZ62: 65.4% | CA62: 54.3% | CB62: - | CC62: - | CD62: - | CE62: - | CG62: ICA | CH62: 54.3% | CI62: 72.9%
BO63: JUNIN | BP63: 75.5% | BS63: JUNIN | BT63: 74.0% | BU63: 76.9% | BV63: 76.5% | BW63: 73.8% | BX63: 73.6% | BY63: 79.8% | BZ63: 76.7% | CA63: 73.1% | CB63: - | CC63: - | CD63: - | CE63: - | CG63: JUNIN | CH63: 73.1% | CI63: 79.8%
BO64: LA LIBERTAD | BP64: 43.0% | BS64: LA LIBERTAD | BT64: 29.1% | BU64: 39.4% | BV64: 45.0% | BW64: 42.0% | BX64: 43.7% | BY64: 49.0% | BZ64: 50.0% | CA64: 44.0% | CB64: - | CC64: - | CD64: - | CE64: - | CG64: LA LIBERTAD | CH64: 29.1% | CI64: 50.0%
BO65: LAMBAYEQUE | BP65: 51.5% | BS65: LAMBAYEQUE | BT65: 30.2% | BU65: 55.7% | BV65: 56.7% | BW65: 56.0% | BX65: 52.9% | BY65: 53.6% | BZ65: 53.9% | CA65: 51.6% | CB65: - | CC65: - | CD65: - | CE65: - | CG65: LAMBAYEQUE | CH65: 30.2% | CI65: 56.7%
BO66: LIMA DIRIS CENTRO | BP66: 15.9% | BS66: LIMA DIRIS CENTRO | BT66: 7.3% | BU66: 18.3% | BV66: 19.7% | BW66: 11.6% | BX66: 11.5% | BY66: 15.5% | BZ66: 24.7% | CA66: 18.0% | CB66: - | CC66: - | CD66: - | CE66: - | CG66: LIMA DIRIS CENTRO | CH66: 7.3% | CI66: 24.7%
BO67: LIMA DIRIS ESTE | BP67: 19.8% | BS67: LIMA DIRIS ESTE | BT67: 13.3% | BU67: 25.1% | BV67: 26.7% | BW67: 23.2% | BX67: 19.4% | BY67: 17.4% | BZ67: 16.7% | CA67: 15.9% | CB67: - | CC67: - | CD67: - | CE67: - | CG67: LIMA DIRIS ESTE | CH67: 13.3% | CI67: 26.7%
BO68: LIMA DIRIS NORTE | BP68: 15.2% | BS68: LIMA DIRIS NORTE | BT68: 11.6% | BU68: 16.9% | BV68: 20.7% | BW68: 14.1% | BX68: 11.3% | BY68: 15.0% | BZ68: 14.8% | CA68: 16.6% | CB68: - | CC68: - | CD68: - | CE68: - | CG68: LIMA DIRIS NORTE | CH68: 11.3% | CI68: 20.7%
BO69: LIMA DIRIS SUR | BP69: 23.7% | BS69: LIMA DIRIS SUR | BT69: 19.6% | BU69: 26.7% | BV69: 31.1% | BW69: 28.6% | BX69: 25.0% | BY69: 26.7% | BZ69: 16.5% | CA69: 14.7% | CB69: - | CC69: - | CD69: - | CE69: - | CG69: LIMA DIRIS SUR | CH69: 14.7% | CI69: 31.1%
BO70: LIMA REGION | BP70: 74.8% | BS70: LIMA REGION | BT70: 67.8% | BU70: 73.6% | BV70: 79.5% | BW70: 70.8% | BX70: 74.1% | BY70: 76.5% | BZ70: 79.5% | CA70: 76.1% | CB70: - | CC70: - | CD70: - | CE70: - | CG70: LIMA PROVINCIAS | CH70: 67.8% | CI70: 79.5%
BO71: LORETO | BP71: 43.9% | BS71: LORETO | BT71: 21.8% | BU71: 47.9% | BV71: 47.4% | BW71: 46.2% | BX71: 45.9% | BY71: 51.6% | BZ71: 45.6% | CA71: 44.4% | CB71: - | CC71: - | CD71: - | CE71: - | CG71: LORETO | CH71: 21.8% | CI71: 51.6%
BO72: MADRE DE DIOS | BP72: 74.6% | BS72: MADRE DE DIOS | BT72: 66.8% | BU72: 78.7% | BV72: 74.5% | BW72: 70.8% | BX72: 80.1% | BY72: 79.7% | BZ72: 73.2% | CA72: 71.1% | CB72: - | CC72: - | CD72: - | CE72: - | CG72: MADRE DE DIOS | CH72: 66.8% | CI72: 80.1%
BO73: MOQUEGUA | BP73: 76.9% | BS73: MOQUEGUA | BT73: 71.8% | BU73: 68.6% | BV73: 83.7% | BW73: 74.3% | BX73: 80.2% | BY73: 85.1% | BZ73: 77.5% | CA73: 71.7% | CB73: - | CC73: - | CD73: - | CE73: - | CG73: MOQUEGUA | CH73: 68.6% | CI73: 85.1%
BO74: PASCO | BP74: 73.0% | BS74: PASCO | BT74: 70.8% | BU74: 74.7% | BV74: 83.0% | BW74: 79.1% | BX74: 76.9% | BY74: 79.5% | BZ74: 58.9% | CA74: 61.3% | CB74: - | CC74: - | CD74: - | CE74: - | CG74: PASCO | CH74: 58.9% | CI74: 83.0%
BO75: PIURA | BP75: 51.3% | BS75: PIURA | BT75: 46.1% | BU75: 55.6% | BV75: 59.5% | BW75: 56.6% | BX75: 48.9% | BY75: 55.0% | BZ75: 44.0% | CA75: 44.1% | CB75: - | CC75: - | CD75: - | CE75: - | CG75: PIURA | CH75: 44.0% | CI75: 59.5%
BO76: PUNO | BP76: 54.2% | BS76: PUNO | BT76: 46.9% | BU76: 53.7% | BV76: 57.4% | BW76: 51.3% | BX76: 50.7% | BY76: 58.1% | BZ76: 56.9% | CA76: 58.2% | CB76: - | CC76: - | CD76: - | CE76: - | CG76: PUNO | CH76: 46.9% | CI76: 58.2%
BO77: SAN MARTIN | BP77: 50.5% | BS77: SAN MARTIN | BT77: 41.8% | BU77: 51.0% | BV77: 58.4% | BW77: 53.7% | BX77: 47.6% | BY77: 56.2% | BZ77: 47.5% | CA77: 46.9% | CB77: - | CC77: - | CD77: - | CE77: - | CG77: SAN MARTIN | CH77: 41.8% | CI77: 58.4%
BO78: TACNA | BP78: 76.8% | BS78: TACNA | BT78: 70.3% | BU78: 80.3% | BV78: 81.4% | BW78: 83.6% | BX78: 79.7% | BY78: 74.9% | BZ78: 74.2% | CA78: 68.6% | CB78: - | CC78: - | CD78: - | CE78: - | CG78: TACNA | CH78: 68.6% | CI78: 83.6%
BO79: TUMBES | BP79: 91.9% | BS79: TUMBES | BT79: 86.2% | BU79: 94.8% | BV79: 91.7% | BW79: 95.5% | BX79: 91.8% | BY79: 93.5% | BZ79: 89.2% | CA79: 91.4% | CB79: - | CC79: - | CD79: - | CE79: - | CG79: TUMBES | CH79: 86.2% | CI79: 95.5%
BO80: UCAYALI | BP80: 59.1% | BS80: UCAYALI | BT80: 45.9% | BU80: 64.5% | BV80: 64.1% | BW80: 60.2% | BX80: 59.5% | BY80: 63.5% | BZ80: 59.9% | CA80: 54.5% | CB80: - | CC80: - | CD80: - | CE80: - | CG80: UCAYALI | CH80: 45.9% | CI80: 64.5%
BO81: NACIONAL | BP81: =+IFERROR(GETPIVOTDATA("Ind",$BO$16),"-") -> 51.7% | BS81: NACIONAL | BT81: =+IFERROR(GETPIVOTDATA("Ind",$BS$16,"mes",BT$51),"-") -> 42.3% | BU81: =+IFERROR(GETPIVOTDATA("Ind",$BS$16,"mes",BU$51),"-") -> 53.3% | BV81: 55.8% | BW81: 53.8% | BX81: 51.8% | BY81: 54.7% | BZ81: 51.7% | CA81: 49.3% | CB81: - | CC81: - | CD81: - | CE81: - | CG81: NACIONAL | CH81: 42.3% | CI81: 55.8%

Sheet DL_1153_2025_CG05
A1: =+DL1153_2025!C11 -> Ficha 05:Porcentaje de niñas y niños menores de 2 años en condición crecimiento inadecuado que luego de un periodo de seguimiento mejora sus condiciones nutricionales. | J1: eess_nombre | K1: (Todas) | BP1: 1 | DT1: 1
A2: Periodo de Evaluación: | B2: =+DL1153_2025!B42 -> Agosto - 2025 | J2: Diris | K2: (Todas)
J3: Provincia | K3: (Todas)
A4: año | B4: (Todas) | J4: Distrito | K4: (Todas)
A5: mes | B5: (Todas) | J5: Red | K5: (Todas)
A6: DIRESA/ DIRIS | B6: RED | C6: Provincia | D6: Distrito | E6: EESS | F6: Denominador: Niñas y niños menores de 730 días que en el período de evaluación, acuden al establecimiento de salud por cualquier motivo de consulta registrados con DNI en HIS y que han sido detectados en condición de crecimiento inadecuado. | G6: Numerador: Niñas y niños del denominador, que luego de un periodo de seguimiento entre 60 a 100 días recobran la condición de normalidad. | H6: Indicador: Porcentaje de niñas y niños menores de 2 años en condición crecimiento inadecuado que luego de un periodo de seguimiento mejora sus condiciones nutricionales. | J6: Mes | K6: Denominador: Niñas y niños menores de 730 días que en el período de evaluación, acuden al establecimiento de salud por cualquier motivo de consulta registrados con DNI en HIS y que han sido detectados en condición de crecimiento inadecuado. | L6: Numerador: Niñas y niños del denominador, que luego de un periodo de seguimiento entre 60 a 100 días recobran la condición de normalidad. | M6: Indicador: Porcentaje de niñas y niños menores de 2 años en condición crecimiento inadecuado que luego de un periodo de seguimiento mejora sus condiciones nutricionales.
A7: Diris | B7: Red | C7: Provincia | D7: Distrito | E7: eess_nombre | F7: Suma de den | G7: Suma de num | H7: Suma de Ind | J7: mes | K7: Suma de den | L7: Suma de num | M7: Suma de Ind
A8: AMAZONAS | F8: 512 | G8: 38 | H8: 7.4% | J8: 1 | K8: 6,010 | L8: 374 | M8: 6.2%
A9: ANCASH | F9: 3,585 | G9: 475 | H9: 13.2% | J9: 2 | K9: 4,238 | L9: 755 | M9: 17.8%
A10: APURIMAC | F10: 1,676 | G10: 435 | H10: 26.0% | J10: 3 | K10: 4,143 | L10: 990 | M10: 23.9%
A11: AREQUIPA | F11: 845 | G11: 153 | H11: 18.1% | J11: 4 | K11: 3,960 | L11: 931 | M11: 23.5%
A12: AYACUCHO | F12: 173 | G12: 133 | H12: 76.9% | J12: 5 | K12: 4,286 | L12: 899 | M12: 21.0% | BQ12: año | BR12: (Todas) | BU12: año | BV12: (Todas) | CN12: año | CO12: (Todas)
A13: CAJAMARCA | F13: 2,675 | G13: 282 | H13: 10.5% | J13: 6 | K13: 4,290 | L13: 1,031 | M13: 24.0%
A14: CALLAO | F14: 487 | G14: 214 | H14: 43.9% | J14: 7 | K14: 4,056 | L14: 1,136 | M14: 28.0% | BQ14: Diris | BR14: Suma de Ind | BU14: Suma de Ind | BV14: mes | CN14: Suma de Ind | CO14: Diris
A15: CUSCO | F15: 2,410 | G15: 420 | H15: 17.4% | J15: 8 | K15: 3,926 | L15: 1,061 | M15: 27.0% | BQ15: AMAZONAS | BR15: 7.4% | BU15: Diris | BV15: 1 | BW15: 2 | BX15: 3 | BY15: 4 | BZ15: 5 | CA15: 6 | CB15: 7 | CC15: 8 | CN15: mes | CO15: AMAZONAS | CP15: ANCASH | CQ15: APURIMAC | CR15: AREQUIPA | CS15: AYACUCHO | CT15: CAJAMARCA | CU15: CALLAO | CV15: CUSCO | CW15: HUANCAVELICA | CX15: HUANUCO | CY15: ICA | CZ15: JUNIN | DA15: LA LIBERTAD | DB15: LAMBAYEQUE | DC15: LIMA DIRIS CENTRO | DD15: LIMA DIRIS ESTE | DE15: LIMA DIRIS NORTE | DF15: LIMA DIRIS SUR | DG15: LIMA PROVINCIAS | DH15: LORETO | DI15: MADRE DE DIOS | DJ15: MOQUEGUA | DK15: PASCO | DL15: PIURA | DM15: PUNO | DN15: SAN MARTIN | DO15: TACNA | DP15: TUMBES | DQ15: UCAYALI | DR15: Total general
A16: HUANCAVELICA | F16: 399 | G16: 96 | H16: 24.1% | J16: Total general | K16: 34,909 | L16: 7,177 | M16: 20.6% | BQ16: ANCASH | BR16: 13.2% | BU16: AMAZONAS | BV16: 1.0% | BW16: 1.9% | BX16: 9.6% | BY16: 10.9% | BZ16: 1.8% | CA16: 13.3% | CB16: 9.5% | CC16: 14.7% | CN16: Enero | CO16: 1.0% | CP16: 4.9% | CQ16: 19.0% | CR16: 3.2% | CS16: 54.3% | CT16: 1.8% | CU16: 5.4% | CV16: 3.1% | CW16: 5.5% | CX16: 5.1% | CY16: 11.4% | CZ16: 6.0% | DA16: 20.4% | DB16: 8.3% | DC16: 12.5% | DD16: 7.4% | DE16: 2.2% | DF16: 46.0% | DG16: 8.6% | DH16: 0.4% | DI16: 3.6% | DJ16: 0.0% | DK16: 4.2% | DL16: 1.5% | DM16: 2.2% | DN16: 0.0% | DO16: 12.5% | DP16: 7.4% | DQ16: 10.1% | DR16: 6.2%
A17: HUANUCO | F17: 589 | G17: 184 | H17: 31.2% | BQ17: APURIMAC | BR17: 26.0% | BU17: ANCASH | BV17: 4.9% | BW17: 12.0% | BX17: 15.5% | BY17: 14.0% | BZ17: 12.2% | CA17: 15.1% | CB17: 17.7% | CC17: 18.2% | CN17: Febrero | CO17: 1.9% | CP17: 12.0% | CQ17: 27.0% | CR17: 20.0% | CS17: 87.5% | CT17: 11.3% | CU17: 40.0% | CV17: 14.2% | CW17: 11.3% | CX17: 19.6% | CY17: 34.1% | CZ17: 25.0% | DA17: 81.8% | DB17: 7.7% | DC17: 40.7% | DD17: 23.5% | DE17: 3.4% | DF17: 66.7% | DG17: 19.4% | DH17: 5.2% | DI17: 4.5% | DJ17: 33.3% | DK17: 80.0% | DL17: 10.3% | DM17: 16.7% | DN17: 0.0% | DO17: 42.9% | DP17: 20.0% | DQ17: 27.4% | DR17: 17.8%
A18: ICA | F18: 480 | G18: 198 | H18: 41.3% | BQ18: AREQUIPA | BR18: 18.1% | BU18: APURIMAC | BV18: 19.0% | BW18: 27.0% | BX18: 31.2% | BY18: 23.9% | BZ18: 23.7% | CA18: 18.2% | CB18: 36.0% | CC18: 29.9% | CN18: Marzo | CO18: 9.6% | CP18: 15.5% | CQ18: 31.2% | CR18: 16.3% | CS18: 93.8% | CT18: 13.5% | CU18: 42.6% | CV18: 16.2% | CW18: 22.7% | CX18: 27.8% | CY18: 27.6% | CZ18: 41.2% | DA18: 96.1% | DB18: 37.5% | DC18: 47.2% | DD18: 32.2% | DE18: 7.2% | DF18: 77.4% | DG18: 40.4% | DH18: 3.8% | DI18: 6.2% | DJ18: 60.0% | DK18: 40.0% | DL18: 12.7% | DM18: 23.0% | DN18: 0.0% | DO18: 100.0% | DP18: 11.1% | DQ18: 34.7% | DR18: 23.9%
A19: JUNIN | F19: 2,111 | G19: 765 | H19: 36.2% | BQ19: AYACUCHO | BR19: 76.9% | BU19: AREQUIPA | BV19: 3.2% | BW19: 20.0% | BX19: 16.3% | BY19: 23.6% | BZ19: 12.2% | CA19: 20.5% | CB19: 31.3% | CC19: 20.4% | CN19: Abril | CO19: 10.9% | CP19: 14.0% | CQ19: 23.9% | CR19: 23.6% | CS19: 85.7% | CT19: 17.4% | CU19: 53.2% | CV19: 22.0% | CW19: 27.0% | CX19: 48.4% | CY19: 43.7% | CZ19: 48.3% | DA19: 82.8% | DB19: 28.2% | DC19: 38.4% | DD19: 47.8% | DE19: 7.1% | DF19: 57.6% | DG19: 39.4% | DH19: 3.7% | DI19: 4.0% | DJ19: 41.7% | DK19: 15.0% | DL19: 6.3% | DM19: 17.8% | DN19: 0.0% | DO19: 25.0% | DP19: 29.0% | DQ19: 30.4% | DR19: 23.5%
A20: LA LIBERTAD | F20: 493 | G20: 363 | H20: 73.6% | BQ20: CAJAMARCA | BR20: 10.5% | BU20: AYACUCHO | BV20: 54.3% | BW20: 87.5% | BX20: 93.8% | BY20: 85.7% | BZ20: 78.9% | CA20: 90.5% | CB20: 81.0% | CC20: 65.2% | CN20: Mayo | CO20: 1.8% | CP20: 12.2% | CQ20: 23.7% | CR20: 12.2% | CS20: 78.9% | CT20: 9.8% | CU20: 57.1% | CV20: 20.9% | CW20: 22.9% | CX20: 47.0% | CY20: 51.8% | CZ20: 44.6% | DA20: 79.7% | DB20: 24.3% | DC20: 41.6% | DD20: 45.9% | DE20: 9.5% | DF20: 51.9% | DG20: 23.4% | DH20: 1.3% | DI20: 5.3% | DJ20: 40.0% | DK20: 0.0% | DL20: 12.7% | DM20: 17.0% | DN20: 2.9% | DO20: 6.3% | DP20: 5.0% | DQ20: 26.4% | DR20: 21.0%
A21: LAMBAYEQUE | F21: 384 | G21: 108 | H21: 28.1% | BQ21: CALLAO | BR21: 43.9% | BU21: CAJAMARCA | BV21: 1.8% | BW21: 11.3% | BX21: 13.5% | BY21: 17.4% | BZ21: 9.8% | CA21: 9.7% | CB21: 9.2% | CC21: 16.6% | CN21: Junio | CO21: 13.3% | CP21: 15.1% | CQ21: 18.2% | CR21: 20.5% | CS21: 90.5% | CT21: 9.7% | CU21: 50.8% | CV21: 23.0% | CW21: 33.3% | CX21: 36.1% | CY21: 67.2% | CZ21: 46.4% | DA21: 75.7% | DB21: 34.2% | DC21: 42.1% | DD21: 47.4% | DE21: 8.8% | DF21: 76.1% | DG21: 20.0% | DH21: 2.1% | DI21: 13.1% | DJ21: 40.0% | DK21: 20.0% | DL21: 9.7% | DM21: 21.4% | DN21: 4.2% | DO21: 20.0% | DP21: 16.3% | DQ21: 36.3% | DR21: 24.0%
A22: LIMA DIRIS CENTRO | F22: 938 | G22: 327 | H22: 34.9% | BQ22: CUSCO | BR22: 17.4% | BU22: CALLAO | BV22: 5.4% | BW22: 40.0% | BX22: 42.6% | BY22: 53.2% | BZ22: 57.1% | CA22: 50.8% | CB22: 69.6% | CC22: 55.9% | CN22: Julio | CO22: 9.5% | CP22: 17.7% | CQ22: 36.0% | CR22: 31.3% | CS22: 81.0% | CT22: 9.2% | CU22: 69.6% | CV22: 25.4% | CW22: 31.4% | CX22: 33.8% | CY22: 62.1% | CZ22: 46.5% | DA22: 82.9% | DB22: 34.9% | DC22: 45.1% | DD22: 56.5% | DE22: 10.6% | DF22: 57.7% | DG22: 25.0% | DH22: 3.7% | DI22: 11.6% | DJ22: 20.0% | DK22: 28.6% | DL22: 14.8% | DM22: 33.3% | DN22: 4.2% | DO22: 23.1% | DP22: 17.2% | DQ22: 40.5% | DR22: 28.0%
A23: LIMA DIRIS ESTE | F23: 310 | G23: 104 | H23: 33.5% | BQ23: HUANCAVELICA | BR23: 24.1% | BU23: CUSCO | BV23: 3.1% | BW23: 14.2% | BX23: 16.2% | BY23: 22.0% | BZ23: 20.9% | CA23: 23.0% | CB23: 25.4% | CC23: 19.9% | CN23: Agosto | CO23: 14.7% | CP23: 18.2% | CQ23: 29.9% | CR23: 20.4% | CS23: 65.2% | CT23: 16.6% | CU23: 55.9% | CV23: 19.9% | CW23: 40.4% | CX23: 31.6% | CY23: 43.9% | CZ23: 46.4% | DA23: 65.4% | DB23: 42.2% | DC23: 23.9% | DD23: 40.0% | DE23: 13.2% | DF23: 55.3% | DG23: 46.7% | DH23: 0.2% | DI23: 14.4% | DJ23: 33.3% | DK23: 13.3% | DL23: 22.7% | DM23: 30.9% | DN23: 9.1% | DO23: 36.4% | DP23: 32.1% | DQ23: 39.9% | DR23: 27.0%
A24: LIMA DIRIS NORTE | F24: 1,762 | G24: 130 | H24: 7.4% | BQ24: HUANUCO | BR24: 31.2% | BU24: HUANCAVELICA | BV24: 5.5% | BW24: 11.3% | BX24: 22.7% | BY24: 27.0% | BZ24: 22.9% | CA24: 33.3% | CB24: 31.4% | CC24: 40.4%
A25: LIMA DIRIS SUR | F25: 453 | G25: 279 | H25: 61.6% | BQ25: ICA | BR25: 41.3% | BU25: HUANUCO | BV25: 5.1% | BW25: 19.6% | BX25: 27.8% | BY25: 48.4% | BZ25: 47.0% | CA25: 36.1% | CB25: 33.8% | CC25: 31.6%
A26: LIMA REGION | F26: 366 | G26: 99 | H26: 27.0% | BQ26: JUNIN | BR26: 36.2% | BU26: ICA | BV26: 11.4% | BW26: 34.1% | BX26: 27.6% | BY26: 43.7% | BZ26: 51.8% | CA26: 67.2% | CB26: 62.1% | CC26: 43.9%
A27: LORETO | F27: 4,259 | G27: 101 | H27: 2.4% | BQ27: LA LIBERTAD | BR27: 73.6% | BU27: JUNIN | BV27: 6.0% | BW27: 25.0% | BX27: 41.2% | BY27: 48.3% | BZ27: 44.6% | CA27: 46.4% | CB27: 46.5% | CC27: 46.4%
A28: MADRE DE DIOS | F28: 989 | G28: 74 | H28: 7.5% | BQ28: LAMBAYEQUE | BR28: 28.1% | BU28: LA LIBERTAD | BV28: 20.4% | BW28: 81.8% | BX28: 96.1% | BY28: 82.8% | BZ28: 79.7% | CA28: 75.7% | CB28: 82.9% | CC28: 65.4%
A29: MOQUEGUA | F29: 67 | G29: 23 | H29: 34.3% | BQ29: LIMA DIRIS CENTRO | BR29: 34.9% | BU29: LAMBAYEQUE | BV29: 8.3% | BW29: 7.7% | BX29: 37.5% | BY29: 28.2% | BZ29: 24.3% | CA29: 34.2% | CB29: 34.9% | CC29: 42.2%
A30: PASCO | F30: 87 | G30: 15 | H30: 17.2% | BQ30: LIMA DIRIS ESTE | BR30: 33.5% | BU30: LIMA DIRIS CENTRO | BV30: 12.5% | BW30: 40.7% | BX30: 47.2% | BY30: 38.4% | BZ30: 41.6% | CA30: 42.1% | CB30: 45.1% | CC30: 23.9%
A31: PIURA | F31: 1,065 | G31: 121 | H31: 11.4% | BQ31: LIMA DIRIS NORTE | BR31: 7.4% | BU31: LIMA DIRIS ESTE | BV31: 7.4% | BW31: 23.5% | BX31: 32.2% | BY31: 47.8% | BZ31: 45.9% | CA31: 47.4% | CB31: 56.5% | CC31: 40.0%
A32: PUNO | F32: 1,549 | G32: 296 | H32: 19.1% | BQ32: LIMA DIRIS SUR | BR32: 61.6% | BU32: LIMA DIRIS NORTE | BV32: 2.2% | BW32: 3.4% | BX32: 7.2% | BY32: 7.1% | BZ32: 9.5% | CA32: 8.8% | CB32: 10.6% | CC32: 13.2%
A33: SAN MARTIN | F33: 263 | G33: 5 | H33: 1.9% | BQ33: LIMA PROVINCIAS | BR33: 27.0% | BU33: LIMA DIRIS SUR | BV33: 46.0% | BW33: 66.7% | BX33: 77.4% | BY33: 57.6% | BZ33: 51.9% | CA33: 76.1% | CB33: 57.7% | CC33: 55.3%
A34: TACNA | F34: 89 | G34: 21 | H34: 23.6% | BQ34: LORETO | BR34: 2.4% | BU34: LIMA PROVINCIAS | BV34: 8.6% | BW34: 19.4% | BX34: 40.4% | BY34: 39.4% | BZ34: 23.4% | CA34: 20.0% | CB34: 25.0% | CC34: 46.7%
A35: TUMBES | F35: 201 | G35: 36 | H35: 17.9% | BQ35: MADRE DE DIOS | BR35: 7.5% | BU35: LORETO | BV35: 0.4% | BW35: 5.2% | BX35: 3.8% | BY35: 3.7% | BZ35: 1.3% | CA35: 2.1% | CB35: 3.7% | CC35: 0.2% | CN35: MENSUAL
A36: UCAYALI | F36: 5,692 | G36: 1,682 | H36: 29.6% | BQ36: MOQUEGUA | BR36: 34.3% | BU36: MADRE DE DIOS | BV36: 3.6% | BW36: 4.5% | BX36: 6.2% | BY36: 4.0% | BZ36: 5.3% | CA36: 13.1% | CB36: 11.6% | CC36: 14.4% | CO36: AMAZONAS | CP36: ANCASH | CQ36: APURIMAC | CR36: AREQUIPA | CS36: AYACUCHO | CT36: CAJAMARCA | CU36: CALLAO | CV36: CUSCO | CW36: HUANCAVELICA | CX36: HUANUCO | CY36: ICA | CZ36: JUNIN | DA36: LA LIBERTAD | DB36: LAMBAYEQUE | DC36: LIMA DIRIS CENTRO | DD36: LIMA DIRIS ESTE | DE36: LIMA DIRIS NORTE | DF36: LIMA DIRIS SUR | DG36: LIMA PROVINCIAS | DH36: LORETO | DI36: MADRE DE DIOS | DJ36: MOQUEGUA | DK36: PASCO | DL36: PIURA | DM36: PUNO | DN36: SAN MARTIN | DO36: TACNA | DP36: TUMBES | DQ36: UCAYALI | DR36: NACIONAL
A37: Total general | F37: 34,909 | G37: 7,177 | H37: 20.6% | BQ37: PASCO | BR37: 17.2% | BU37: MOQUEGUA | BV37: 0.0% | BW37: 33.3% | BX37: 60.0% | BY37: 41.7% | BZ37: 40.0% | CA37: 40.0% | CB37: 20.0% | CC37: 33.3% | CN37: Enero | CO37: =+IFERROR(GETPIVOTDATA("Ind",$CN$14,"Diris",CO$36,"mes",$CN37),"-") -> 1.0% | CP37: 4.9% | CQ37: 19.0% | CR37: 3.2% | CS37: 54.3% | CT37: 1.8% | CU37: 5.4% | CV37: 3.1% | CW37: 5.5% | CX37: 5.1% | CY37: =+IFERROR(GETPIVOTDATA("Ind",$CN$14,"Diris",CY$36,"mes",$CN37),"-") -> 11.4% | CZ37: 6.0% | DA37: 20.4% | DB37: 8.3% | DC37: 12.5% | DD37: 7.4% | DE37: 2.2% | DF37: 46.0% | DG37: 8.6% | DH37: 0.4% | DI37: =+IFERROR(GETPIVOTDATA("Ind",$CN$14,"Diris",DI$36,"mes",$CN37),"-") -> 3.6% | DJ37: 0.0% | DK37: 4.2% | DL37: 1.5% | DM37: 2.2% | DN37: 0.0% | DO37: 12.5% | DP37: 7.4% | DQ37: 10.1% | DR37: =+IFERROR(GETPIVOTDATA("Ind",$CN$14,"mes",$CN37),"-") -> 6.2%
BQ38: PIURA | BR38: 11.4% | BU38: PASCO | BV38: 4.2% | BW38: 80.0% | BX38: 40.0% | BY38: 15.0% | BZ38: 0.0% | CA38: 20.0% | CB38: 28.6% | CC38: 13.3% | CN38: Febrero | CO38: 1.9% | CP38: 12.0% | CQ38: 27.0% | CR38: 20.0% | CS38: 87.5% | CT38: 11.3% | CU38: 40.0% | CV38: 14.2% | CW38: 11.3% | CX38: 19.6% | CY38: 34.1% | CZ38: 25.0% | DA38: 81.8% | DB38: 7.7% | DC38: 40.7% | DD38: 23.5% | DE38: 3.4% | DF38: 66.7% | DG38: 19.4% | DH38: 5.2% | DI38: 4.5% | DJ38: 33.3% | DK38: 80.0% | DL38: 10.3% | DM38: 16.7% | DN38: 0.0% | DO38: 42.9% | DP38: 20.0% | DQ38: 27.4% | DR38: 17.8%
BQ39: PUNO | BR39: 19.1% | BU39: PIURA | BV39: 1.5% | BW39: 10.3% | BX39: 12.7% | BY39: 6.3% | BZ39: 12.7% | CA39: 9.7% | CB39: 14.8% | CC39: 22.7% | CN39: Marzo | CO39: 9.6% | CP39: 15.5% | CQ39: 31.2% | CR39: 16.3% | CS39: 93.8% | CT39: 13.5% | CU39: 42.6% | CV39: 16.2% | CW39: 22.7% | CX39: 27.8% | CY39: 27.6% | CZ39: 41.2% | DA39: 96.1% | DB39: 37.5% | DC39: 47.2% | DD39: 32.2% | DE39: 7.2% | DF39: 77.4% | DG39: 40.4% | DH39: 3.8% | DI39: 6.2% | DJ39: 60.0% | DK39: 40.0% | DL39: 12.7% | DM39: 23.0% | DN39: 0.0% | DO39: 100.0% | DP39: 11.1% | DQ39: 34.7% | DR39: 23.9%
BQ40: SAN MARTIN | BR40: 1.9% | BU40: PUNO | BV40: 2.2% | BW40: 16.7% | BX40: 23.0% | BY40: 17.8% | BZ40: 17.0% | CA40: 21.4% | CB40: 33.3% | CC40: 30.9% | CN40: Abril | CO40: 10.9% | CP40: 14.0% | CQ40: 23.9% | CR40: 23.6% | CS40: 85.7% | CT40: 17.4% | CU40: 53.2% | CV40: 22.0% | CW40: 27.0% | CX40: 48.4% | CY40: 43.7% | CZ40: 48.3% | DA40: 82.8% | DB40: 28.2% | DC40: 38.4% | DD40: 47.8% | DE40: 7.1% | DF40: 57.6% | DG40: 39.4% | DH40: 3.7% | DI40: 4.0% | DJ40: 41.7% | DK40: 15.0% | DL40: 6.3% | DM40: 17.8% | DN40: 0.0% | DO40: 25.0% | DP40: 29.0% | DQ40: 30.4% | DR40: 23.5%
BQ41: TACNA | BR41: 23.6% | BU41: SAN MARTIN | BV41: 0.0% | BW41: 0.0% | BX41: 0.0% | BY41: 0.0% | BZ41: 2.9% | CA41: 4.2% | CB41: 4.2% | CC41: 9.1% | CN41: Mayo | CO41: 1.8% | CP41: 12.2% | CQ41: 23.7% | CR41: 12.2% | CS41: 78.9% | CT41: 9.8% | CU41: 57.1% | CV41: 20.9% | CW41: 22.9% | CX41: 47.0% | CY41: 51.8% | CZ41: 44.6% | DA41: 79.7% | DB41: 24.3% | DC41: 41.6% | DD41: 45.9% | DE41: 9.5% | DF41: 51.9% | DG41: 23.4% | DH41: 1.3% | DI41: 5.3% | DJ41: 40.0% | DK41: 0.0% | DL41: 12.7% | DM41: 17.0% | DN41: 2.9% | DO41: 6.3% | DP41: 5.0% | DQ41: 26.4% | DR41: 21.0%
BQ42: TUMBES | BR42: 17.9% | BU42: TACNA | BV42: 12.5% | BW42: 42.9% | BX42: 100.0% | BY42: 25.0% | BZ42: 6.3% | CA42: 20.0% | CB42: 23.1% | CC42: 36.4% | CN42: Junio | CO42: 13.3% | CP42: 15.1% | CQ42: 18.2% | CR42: 20.5% | CS42: 90.5% | CT42: 9.7% | CU42: 50.8% | CV42: 23.0% | CW42: 33.3% | CX42: 36.1% | CY42: 67.2% | CZ42: 46.4% | DA42: 75.7% | DB42: 34.2% | DC42: 42.1% | DD42: 47.4% | DE42: 8.8% | DF42: 76.1% | DG42: 20.0% | DH42: 2.1% | DI42: 13.1% | DJ42: 40.0% | DK42: 20.0% | DL42: 9.7% | DM42: 21.4% | DN42: 4.2% | DO42: 20.0% | DP42: 16.3% | DQ42: 36.3% | DR42: 24.0%
BQ43: UCAYALI | BR43: 29.6% | BU43: TUMBES | BV43: 7.4% | BW43: 20.0% | BX43: 11.1% | BY43: 29.0% | BZ43: 5.0% | CA43: 16.3% | CB43: 17.2% | CC43: 32.1% | CN43: Julio | CO43: 9.5% | CP43: 17.7% | CQ43: 36.0% | CR43: 31.3% | CS43: 81.0% | CT43: 9.2% | CU43: 69.6% | CV43: 25.4% | CW43: 31.4% | CX43: 33.8% | CY43: 62.1% | CZ43: 46.5% | DA43: 82.9% | DB43: 34.9% | DC43: 45.1% | DD43: 56.5% | DE43: 10.6% | DF43: 57.7% | DG43: 25.0% | DH43: 3.7% | DI43: 11.6% | DJ43: 20.0% | DK43: 28.6% | DL43: 14.8% | DM43: 33.3% | DN43: 4.2% | DO43: 23.1% | DP43: 17.2% | DQ43: 40.5% | DR43: 28.0%
BQ44: Total general | BR44: 20.6% | BU44: UCAYALI | BV44: 10.1% | BW44: 27.4% | BX44: 34.7% | BY44: 30.4% | BZ44: 26.4% | CA44: 36.3% | CB44: 40.5% | CC44: 39.9% | CN44: Agosto | CO44: 14.7% | CP44: 18.2% | CQ44: 29.9% | CR44: 20.4% | CS44: 65.2% | CT44: 16.6% | CU44: 55.9% | CV44: 19.9% | CW44: 40.4% | CX44: 31.6% | CY44: 43.9% | CZ44: 46.4% | DA44: 65.4% | DB44: 42.2% | DC44: 23.9% | DD44: 40.0% | DE44: 13.2% | DF44: 55.3% | DG44: 46.7% | DH44: 0.2% | DI44: 14.4% | DJ44: 33.3% | DK44: 13.3% | DL44: 22.7% | DM44: 30.9% | DN44: 9.1% | DO44: 36.4% | DP44: 32.1% | DQ44: 39.9% | DR44: 27.0%
BU45: Total general | BV45: 6.2% | BW45: 17.8% | BX45: 23.9% | BY45: 23.5% | BZ45: 21.0% | CA45: 24.0% | CB45: 28.0% | CC45: 27.0% | CN45: Setiembre | CO45: - | CP45: - | CQ45: - | CR45: - | CS45: - | CT45: - | CU45: - | CV45: - | CW45: - | CX45: - | CY45: - | CZ45: - | DA45: - | DB45: - | DC45: - | DD45: - | DE45: - | DF45: - | DG45: - | DH45: - | DI45: - | DJ45: - | DK45: - | DL45: - | DM45: - | DN45: - | DO45: - | DP45: - | DQ45: - | DR45: -
CN46: Octubre | CO46: - | CP46: - | CQ46: - | CR46: - | CS46: - | CT46: - | CU46: - | CV46: - | CW46: - | CX46: - | CY46: - | CZ46: - | DA46: - | DB46: - | DC46: - | DD46: - | DE46: - | DF46: - | DG46: - | DH46: - | DI46: - | DJ46: - | DK46: - | DL46: - | DM46: - | DN46: - | DO46: - | DP46: - | DQ46: - | DR46: -
BV47: 1 | BW47: 2 | BX47: 3 | BY47: 4 | BZ47: 5 | CA47: 6 | CB47: 7 | CC47: 8 | CD47: 9 | CE47: 10 | CF47: 11 | CG47: 12 | CJ47: MIN | CK47: MAX | CN47: Noviembre | CO47: - | CP47: - | CQ47: - | CR47: - | CS47: - | CT47: - | CU47: - | CV47: - | CW47: - | CX47: - | CY47: - | CZ47: - | DA47: - | DB47: - | DC47: - | DD47: - | DE47: - | DF47: - | DG47: - | DH47: - | DI47: - | DJ47: - | DK47: - | DL47: - | DM47: - | DN47: - | DO47: - | DP47: - | DQ47: - | DR47: -
BQ48: AMAZONAS | BR48: =+IFERROR(GETPIVOTDATA("Ind",$BQ$14,"Diris",$BQ48),"-") -> 7.4% | BU48: AMAZONAS | BV48: =+IFERROR(GETPIVOTDATA("Ind",$BU$14,"Diris",$BU48,"mes",BV$47),"-") -> 1.0% | BW48: =+IFERROR(GETPIVOTDATA("Ind",$BU$14,"Diris",$BU48,"mes",BW$47),"-") -> 1.9% | BX48: 9.6% | BY48: 10.9% | BZ48: 1.8% | CA48: 13.3% | CB48: 9.5% | CC48: 14.7% | CD48: - | CE48: - | CF48: - | CG48: - | CI48: AMAZONAS | CJ48: =+IF(BV48="-","-",MIN(BV48:CG48)) -> 1.0% | CK48: =+IF(BV48="-","-",MAX(BV48:CG48)) -> 14.7% | CN48: Diciembre | CO48: - | CP48: - | CQ48: - | CR48: - | CS48: - | CT48: - | CU48: - | CV48: - | CW48: - | CX48: - | CY48: - | CZ48: - | DA48: - | DB48: - | DC48: - | DD48: - | DE48: - | DF48: - | DG48: - | DH48: - | DI48: - | DJ48: - | DK48: - | DL48: - | DM48: - | DN48: - | DO48: - | DP48: - | DQ48: - | DR48: -
BQ49: ANCASH | BR49: 13.2% | BU49: ANCASH | BV49: 4.9% | BW49: 12.0% | BX49: 15.5% | BY49: 14.0% | BZ49: 12.2% | CA49: 15.1% | CB49: 17.7% | CC49: 18.2% | CD49: - | CE49: - | CF49: - | CG49: - | CI49: ANCASH | CJ49: 4.9% | CK49: 18.2%
BQ50: APURIMAC | BR50: 26.0% | BU50: APURIMAC | BV50: 19.0% | BW50: 27.0% | BX50: 31.2% | BY50: 23.9% | BZ50: 23.7% | CA50: 18.2% | CB50: 36.0% | CC50: 29.9% | CD50: - | CE50: - | CF50: - | CG50: - | CI50: APURIMAC | CJ50: 18.2% | CK50: 36.0%
BQ51: AREQUIPA | BR51: 18.1% | BU51: AREQUIPA | BV51: 3.2% | BW51: 20.0% | BX51: 16.3% | BY51: 23.6% | BZ51: 12.2% | CA51: 20.5% | CB51: 31.3% | CC51: 20.4% | CD51: - | CE51: - | CF51: - | CG51: - | CI51: AREQUIPA | CJ51: 3.2% | CK51: 31.3%
BQ52: AYACUCHO | BR52: 76.9% | BU52: AYACUCHO | BV52: 54.3% | BW52: 87.5% | BX52: 93.8% | BY52: 85.7% | BZ52: 78.9% | CA52: 90.5% | CB52: 81.0% | CC52: 65.2% | CD52: - | CE52: - | CF52: - | CG52: - | CI52: AYACUCHO | CJ52: 54.3% | CK52: 93.8%
BQ53: CAJAMARCA | BR53: 10.5% | BU53: CAJAMARCA | BV53: 1.8% | BW53: 11.3% | BX53: 13.5% | BY53: 17.4% | BZ53: 9.8% | CA53: 9.7% | CB53: 9.2% | CC53: 16.6% | CD53: - | CE53: - | CF53: - | CG53: - | CI53: CAJAMARCA | CJ53: 1.8% | CK53: 17.4%
BQ54: CALLAO | BR54: 43.9% | BU54: CALLAO | BV54: 5.4% | BW54: 40.0% | BX54: 42.6% | BY54: 53.2% | BZ54: 57.1% | CA54: 50.8% | CB54: 69.6% | CC54: 55.9% | CD54: - | CE54: - | CF54: - | CG54: - | CI54: CALLAO | CJ54: 5.4% | CK54: 69.6%
BQ55: CUSCO | BR55: 17.4% | BU55: CUSCO | BV55: 3.1% | BW55: 14.2% | BX55: 16.2% | BY55: 22.0% | BZ55: 20.9% | CA55: 23.0% | CB55: 25.4% | CC55: 19.9% | CD55: - | CE55: - | CF55: - | CG55: - | CI55: CUSCO | CJ55: 3.1% | CK55: 25.4%
BQ56: HUANCAVELICA | BR56: 24.1% | BU56: HUANCAVELICA | BV56: 5.5% | BW56: 11.3% | BX56: 22.7% | BY56: 27.0% | BZ56: 22.9% | CA56: 33.3% | CB56: 31.4% | CC56: 40.4% | CD56: - | CE56: - | CF56: - | CG56: - | CI56: HUANCAVELICA | CJ56: 5.5% | CK56: 40.4%
BQ57: HUANUCO | BR57: 31.2% | BU57: HUANUCO | BV57: 5.1% | BW57: 19.6% | BX57: 27.8% | BY57: 48.4% | BZ57: 47.0% | CA57: 36.1% | CB57: 33.8% | CC57: 31.6% | CD57: - | CE57: - | CF57: - | CG57: - | CI57: HUANUCO | CJ57: 5.1% | CK57: 48.4%
BQ58: ICA | BR58: 41.3% | BU58: ICA | BV58: 11.4% | BW58: 34.1% | BX58: 27.6% | BY58: 43.7% | BZ58: 51.8% | CA58: 67.2% | CB58: 62.1% | CC58: 43.9% | CD58: - | CE58: - | CF58: - | CG58: - | CI58: ICA | CJ58: 11.4% | CK58: 67.2%
BQ59: JUNIN | BR59: 36.2% | BU59: JUNIN | BV59: 6.0% | BW59: 25.0% | BX59: 41.2% | BY59: 48.3% | BZ59: 44.6% | CA59: 46.4% | CB59: 46.5% | CC59: 46.4% | CD59: - | CE59: - | CF59: - | CG59: - | CI59: JUNIN | CJ59: 6.0% | CK59: 48.3%
BQ60: LA LIBERTAD | BR60: 73.6% | BU60: LA LIBERTAD | BV60: 20.4% | BW60: 81.8% | BX60: 96.1% | BY60: 82.8% | BZ60: 79.7% | CA60: 75.7% | CB60: 82.9% | CC60: 65.4% | CD60: - | CE60: - | CF60: - | CG60: - | CI60: LA LIBERTAD | CJ60: 20.4% | CK60: 96.1%
BQ61: LAMBAYEQUE | BR61: 28.1% | BU61: LAMBAYEQUE | BV61: 8.3% | BW61: 7.7% | BX61: 37.5% | BY61: 28.2% | BZ61: 24.3% | CA61: 34.2% | CB61: 34.9% | CC61: 42.2% | CD61: - | CE61: - | CF61: - | CG61: - | CI61: LAMBAYEQUE | CJ61: 7.7% | CK61: 42.2%
BQ62: LIMA DIRIS CENTRO | BR62: 34.9% | BU62: LIMA DIRIS CENTRO | BV62: 12.5% | BW62: 40.7% | BX62: 47.2% | BY62: 38.4% | BZ62: 41.6% | CA62: 42.1% | CB62: 45.1% | CC62: 23.9% | CD62: - | CE62: - | CF62: - | CG62: - | CI62: LIMA DIRIS CENTRO | CJ62: 12.5% | CK62: 47.2%
BQ63: LIMA DIRIS ESTE | BR63: 33.5% | BU63: LIMA DIRIS ESTE | BV63: 7.4% | BW63: 23.5% | BX63: 32.2% | BY63: 47.8% | BZ63: 45.9% | CA63: 47.4% | CB63: 56.5% | CC63: 40.0% | CD63: - | CE63: - | CF63: - | CG63: - | CI63: LIMA DIRIS ESTE | CJ63: 7.4% | CK63: 56.5%
BQ64: LIMA DIRIS NORTE | BR64: 7.4% | BU64: LIMA DIRIS NORTE | BV64: 2.2% | BW64: 3.4% | BX64: 7.2% | BY64: 7.1% | BZ64: 9.5% | CA64: 8.8% | CB64: 10.6% | CC64: 13.2% | CD64: - | CE64: - | CF64: - | CG64: - | CI64: LIMA DIRIS NORTE | CJ64: 2.2% | CK64: 13.2%
BQ65: LIMA DIRIS SUR | BR65: 61.6% | BU65: LIMA DIRIS SUR | BV65: 46.0% | BW65: 66.7% | BX65: 77.4% | BY65: 57.6% | BZ65: 51.9% | CA65: 76.1% | CB65: 57.7% | CC65: 55.3% | CD65: - | CE65: - | CF65: - | CG65: - | CI65: LIMA DIRIS SUR | CJ65: 46.0% | CK65: 77.4%
BQ66: LIMA PROVINCIAS | BR66: 27.0% | BU66: LIMA PROVINCIAS | BV66: 8.6% | BW66: 19.4% | BX66: 40.4% | BY66: 39.4% | BZ66: 23.4% | CA66: 20.0% | CB66: 25.0% | CC66: 46.7% | CD66: - | CE66: - | CF66: - | CG66: - | CI66: LIMA PROVINCIAS | CJ66: 8.6% | CK66: 46.7%
BQ67: LORETO | BR67: 2.4% | BU67: LORETO | BV67: 0.4% | BW67: 5.2% | BX67: 3.8% | BY67: 3.7% | BZ67: 1.3% | CA67: 2.1% | CB67: 3.7% | CC67: 0.2% | CD67: - | CE67: - | CF67: - | CG67: - | CI67: LORETO | CJ67: 0.2% | CK67: 5.2%
BQ68: MADRE DE DIOS | BR68: 7.5% | BU68: MADRE DE DIOS | BV68: 3.6% | BW68: 4.5% | BX68: 6.2% | BY68: 4.0% | BZ68: 5.3% | CA68: 13.1% | CB68: 11.6% | CC68: 14.4% | CD68: - | CE68: - | CF68: - | CG68: - | CI68: MADRE DE DIOS | CJ68: 3.6% | CK68: 14.4%
BQ69: MOQUEGUA | BR69: 34.3% | BU69: MOQUEGUA | BV69: 0.0% | BW69: 33.3% | BX69: 60.0% | BY69: 41.7% | BZ69: 40.0% | CA69: 40.0% | CB69: 20.0% | CC69: 33.3% | CD69: - | CE69: - | CF69: - | CG69: - | CI69: MOQUEGUA | CJ69: 0.0% | CK69: 60.0%
BQ70: PASCO | BR70: 17.2% | BU70: PASCO | BV70: 4.2% | BW70: 80.0% | BX70: 40.0% | BY70: 15.0% | BZ70: 0.0% | CA70: 20.0% | CB70: 28.6% | CC70: 13.3% | CD70: - | CE70: - | CF70: - | CG70: - | CI70: PASCO | CJ70: 0.0% | CK70: 80.0%
BQ71: PIURA | BR71: 11.4% | BU71: PIURA | BV71: 1.5% | BW71: 10.3% | BX71: 12.7% | BY71: 6.3% | BZ71: 12.7% | CA71: 9.7% | CB71: 14.8% | CC71: 22.7% | CD71: - | CE71: - | CF71: - | CG71: - | CI71: PIURA | CJ71: 1.5% | CK71: 22.7%
BQ72: PUNO | BR72: 19.1% | BU72: PUNO | BV72: 2.2% | BW72: 16.7% | BX72: 23.0% | BY72: 17.8% | BZ72: 17.0% | CA72: 21.4% | CB72: 33.3% | CC72: 30.9% | CD72: - | CE72: - | CF72: - | CG72: - | CI72: PUNO | CJ72: 2.2% | CK72: 33.3%
BQ73: SAN MARTIN | BR73: 1.9% | BU73: SAN MARTIN | BV73: 0.0% | BW73: 0.0% | BX73: 0.0% | BY73: 0.0% | BZ73: 2.9% | CA73: 4.2% | CB73: 4.2% | CC73: 9.1% | CD73: - | CE73: - | CF73: - | CG73: - | CI73: SAN MARTIN | CJ73: 0.0% | CK73: 9.1%
BQ74: TACNA | BR74: 23.6% | BU74: TACNA | BV74: 12.5% | BW74: 42.9% | BX74: 100.0% | BY74: 25.0% | BZ74: 6.3% | CA74: 20.0% | CB74: 23.1% | CC74: 36.4% | CD74: - | CE74: - | CF74: - | CG74: - | CI74: TACNA | CJ74: 6.3% | CK74: 100.0%
BQ75: TUMBES | BR75: 17.9% | BU75: TUMBES | BV75: 7.4% | BW75: 20.0% | BX75: 11.1% | BY75: 29.0% | BZ75: 5.0% | CA75: 16.3% | CB75: 17.2% | CC75: 32.1% | CD75: - | CE75: - | CF75: - | CG75: - | CI75: TUMBES | CJ75: 5.0% | CK75: 32.1%
BQ76: UCAYALI | BR76: 29.6% | BU76: UCAYALI | BV76: 10.1% | BW76: 27.4% | BX76: 34.7% | BY76: 30.4% | BZ76: 26.4% | CA76: 36.3% | CB76: 40.5% | CC76: 39.9% | CD76: - | CE76: - | CF76: - | CG76: - | CI76: UCAYALI | CJ76: 10.1% | CK76: 40.5%
BQ77: NACIONAL | BR77: =+IFERROR(GETPIVOTDATA("Ind",$BQ$14),"-") -> 20.6% | BU77: NACIONAL | BV77: =+IFERROR(GETPIVOTDATA("Ind",$BU$14,"mes",BV$47),"-") -> 6.2% | BW77: =+IFERROR(GETPIVOTDATA("Ind",$BU$14,"mes",BW$47),"-") -> 17.8% | BX77: 23.9% | BY77: 23.5% | BZ77: 21.0% | CA77: 24.0% | CB77: 28.0% | CC77: 27.0% | CD77: - | CE77: - | CF77: - | CG77: - | CI77: NACIONAL | CJ77: 6.2% | CK77: 28.0%

Sheet DL_1153_2025_CG06
A1: =+DL1153_2025!C12 -> Ficha 06:Porcentaje de niñas y niños de 1 año vacunados con dos dosis de vacuna sarampión, parotiditis y rubeola (SPR). | BP1: 1 | DT1: 1
A2: Periodo de Evaluación: | B2: =+DL1153_2025!B42 -> Agosto - 2025
J3: Diris | K3: (Todas)
J4: Provincia | K4: (Todas)
A5: año | B5: (Todas) | J5: Red | K5: (Todas)
A6: mes | B6: 8 | J6: Distrito | K6: (Todas)
A7: DIRESA/ DIRIS | B7: RED | C7: Provincia | D7: Distrito | E7: UBIGEO | F7: Denominador: Niñas/niños de 1 año del padrón nominal | G7: Numerador: Niñas/niños menores de 2 años y mayor de 1 año, que recibieron 2 dosis de la vacuna SPR registrados en HIS con código CPMS 90707 y lab 2. | H7: Indicador: Porcentaje de niñas y niños de 1 año vacunados con dos dosis de vacuna sarampión, parotiditis y rubeola (SPR). | J7: AÑO | K7: MES | L7: Denominador: Niñas/niños de 1 año del padrón nominal | M7: Numerador: Niñas/niños menores de 2 años y mayor de 1 año, que recibieron 2 dosis de la vacuna SPR registrados en HIS con código CPMS 90707 y lab 2. | N7: Indicador: Porcentaje de niñas y niños de 1 año vacunados con dos dosis de vacuna sarampión, parotiditis y rubeola (SPR).
A8: Diris | B8: Red | C8: Provincia | D8: Distrito | E8: ubigeo | F8: Denominador | G8: Numerador | H8: Indicador | J8: año | K8: mes | L8: Denominador | M8: Numerador | N8: Indicador
A9: AMAZONAS | F9: 9,060 | G9: 4,592 | H9: 50.7% | J9: 2025 | K9: 1 | L9: 412,793 | M9: 22,875 | N9: 5.5%
A10: ANCASH | F10: 14,615 | G10: 8,000 | H10: 54.7% | J10: 2025 | K10: 2 | L10: 412,793 | M10: 44,271 | N10: 10.7%
A11: APURIMAC | F11: 5,780 | G11: 3,286 | H11: 56.9% | J11: 2025 | K11: 3 | L11: 412,793 | M11: 69,370 | N11: 16.8% | BQ11: mes | BR11: 8
A12: AREQUIPA | F12: 16,021 | G12: 5,855 | H12: 36.5% | J12: 2025 | K12: 4 | L12: 412,793 | M12: 93,526 | N12: 22.7% | BQ12: año | BR12: (Todas) | BU12: año | BV12: (Todas) | CN12: año | CO12: (Todas)
A13: AYACUCHO | F13: 8,463 | G13: 4,687 | H13: 55.4% | J13: 2025 | K13: 5 | L13: 412,793 | M13: 117,677 | N13: 28.5%
A14: CAJAMARCA | F14: 21,332 | G14: 11,233 | H14: 52.7% | J14: 2025 | K14: 6 | L14: 412,793 | M14: 139,083 | N14: 33.7% | BQ14: Diris | BR14: Suma de ind | BU14: Suma de ind | BV14: mes | CN14: Suma de ind | CO14: Diris
A15: CALLAO | F15: 11,139 | G15: 5,042 | H15: 45.3% | J15: 2025 | K15: 7 | L15: 412,793 | M15: 161,150 | N15: 39.0% | BQ15: AMAZONAS | BR15: 50.7% | BU15: Diris | BV15: 1 | BW15: 2 | BX15: 3 | BY15: 4 | BZ15: 5 | CA15: 6 | CB15: 7 | CC15: 8 | CN15: mes | CO15: AMAZONAS | CP15: ANCASH | CQ15: APURIMAC | CR15: AREQUIPA | CS15: AYACUCHO | CT15: CAJAMARCA | CU15: CALLAO | CV15: CUSCO | CW15: HUANCAVELICA | CX15: HUANUCO | CY15: ICA | CZ15: JUNIN | DA15: LA LIBERTAD | DB15: LAMBAYEQUE | DC15: LIMA DIRIS CENTRO | DD15: LIMA DIRIS ESTE | DE15: LIMA DIRIS NORTE | DF15: LIMA DIRIS SUR | DG15: LIMA PROVINCIAS | DH15: LORETO | DI15: MADRE DE DIOS | DJ15: MOQUEGUA | DK15: PASCO | DL15: PIURA | DM15: PUNO | DN15: SAN MARTIN | DO15: TACNA | DP15: TUMBES | DQ15: UCAYALI | DR15: Total general
A16: CUSCO | F16: 16,861 | G16: 8,961 | H16: 53.1% | J16: 2025 | K16: 8 | L16: 412,793 | M16: 184,543 | N16: 44.7% | BQ16: ANCASH | BR16: 54.7% | BU16: AMAZONAS | BV16: 6.2% | BW16: 11.8% | BX16: 18.7% | BY16: 25.1% | BZ16: 32.4% | CA16: 38.1% | CB16: 44.6% | CC16: 50.7% | CN16: Enero | CO16: 6.2% | CP16: 7.1% | CQ16: 7.5% | CR16: 4.0% | CS16: 7.5% | CT16: 7.1% | CU16: 6.0% | CV16: 7.0% | CW16: 7.8% | CX16: 7.2% | CY16: 5.9% | CZ16: 6.8% | DA16: 5.9% | DB16: 4.5% | DC16: 3.5% | DD16: 3.8% | DE16: 4.4% | DF16: 4.1% | DG16: 8.1% | DH16: 4.2% | DI16: 3.2% | DJ16: 4.2% | DK16: 5.9% | DL16: 6.5% | DM16: 4.8% | DN16: 6.5% | DO16: 4.8% | DP16: 7.6% | DQ16: 3.8% | DR16: 5.5%
A17: HUANCAVELICA | F17: 4,523 | G17: 2,681 | H17: 59.3% | BQ17: APURIMAC | BR17: 56.9% | BU17: ANCASH | BV17: 7.1% | BW17: 13.5% | BX17: 21.2% | BY17: 28.3% | BZ17: 35.4% | CA17: 41.7% | CB17: 48.0% | CC17: 54.7% | CN17: Febrero | CO17: 11.8% | CP17: 13.5% | CQ17: 14.0% | CR17: 8.0% | CS17: 14.0% | CT17: 12.9% | CU17: 11.4% | CV17: 13.2% | CW17: 14.8% | CX17: 13.4% | CY17: 11.5% | CZ17: 13.5% | DA17: 11.4% | DB17: 8.5% | DC17: 7.0% | DD17: 7.6% | DE17: 8.5% | DF17: 8.2% | DG17: 15.2% | DH17: 8.8% | DI17: 7.2% | DJ17: 8.2% | DK17: 11.4% | DL17: 12.9% | DM17: 9.8% | DN17: 12.0% | DO17: 9.2% | DP17: 14.9% | DQ17: 7.8% | DR17: 10.7%
A18: HUANUCO | F18: 12,221 | G18: 6,694 | H18: 54.8% | BQ18: AREQUIPA | BR18: 36.5% | BU18: APURIMAC | BV18: 7.5% | BW18: 14.0% | BX18: 21.6% | BY18: 28.6% | BZ18: 36.0% | CA18: 42.3% | CB18: 49.4% | CC18: 56.9% | CN18: Marzo | CO18: 18.7% | CP18: 21.2% | CQ18: 21.6% | CR18: 12.3% | CS18: 21.2% | CT18: 19.7% | CU18: 18.9% | CV18: 20.6% | CW18: 23.3% | CX18: 21.0% | CY18: 18.0% | CZ18: 20.3% | DA18: 17.8% | DB18: 13.5% | DC18: 10.7% | DD18: 12.2% | DE18: 13.5% | DF18: 13.4% | DG18: 23.4% | DH18: 14.6% | DI18: 11.4% | DJ18: 13.2% | DK18: 17.2% | DL18: 19.5% | DM18: 15.8% | DN18: 18.8% | DO18: 14.8% | DP18: 23.3% | DQ18: 12.9% | DR18: 16.8%
A19: ICA | F19: 13,244 | G19: 5,945 | H19: 44.9% | BQ19: AYACUCHO | BR19: 55.4% | BU19: AREQUIPA | BV19: 4.0% | BW19: 8.0% | BX19: 12.3% | BY19: 17.0% | BZ19: 22.1% | CA19: 26.8% | CB19: 32.0% | CC19: 36.5% | CN19: Abril | CO19: 25.1% | CP19: 28.3% | CQ19: 28.6% | CR19: 17.0% | CS19: 28.7% | CT19: 26.3% | CU19: 24.5% | CV19: 27.3% | CW19: 30.4% | CX19: 27.9% | CY19: 23.7% | CZ19: 27.2% | DA19: 23.8% | DB19: 19.3% | DC19: 14.7% | DD19: 17.0% | DE19: 18.4% | DF19: 18.8% | DG19: 32.0% | DH19: 20.7% | DI19: 15.8% | DJ19: 18.8% | DK19: 21.9% | DL19: 25.1% | DM19: 21.1% | DN19: 25.8% | DO19: 20.0% | DP19: 30.2% | DQ19: 17.9% | DR19: 22.7%
A20: JUNIN | F20: 18,320 | G20: 9,663 | H20: 52.7% | BQ20: CAJAMARCA | BR20: 52.7% | BU20: AYACUCHO | BV20: 7.5% | BW20: 14.0% | BX20: 21.2% | BY20: 28.7% | BZ20: 35.4% | CA20: 41.8% | CB20: 48.2% | CC20: 55.4% | CN20: Mayo | CO20: 32.4% | CP20: 35.4% | CQ20: 36.0% | CR20: 22.1% | CS20: 35.4% | CT20: 33.1% | CU20: 29.9% | CV20: 33.8% | CW20: 37.3% | CX20: 34.9% | CY20: 29.0% | CZ20: 33.5% | DA20: 29.9% | DB20: 24.7% | DC20: 18.6% | DD20: 21.5% | DE20: 22.6% | DF20: 26.1% | DG20: 39.7% | DH20: 26.2% | DI20: 20.3% | DJ20: 23.3% | DK20: 27.9% | DL20: 30.8% | DM20: 26.7% | DN20: 32.4% | DO20: 25.8% | DP20: 37.2% | DQ20: 22.9% | DR20: 28.5%
A21: LA LIBERTAD | F21: 27,575 | G21: 12,949 | H21: 47.0% | BQ21: CALLAO | BR21: 45.3% | BU21: CAJAMARCA | BV21: 7.1% | BW21: 12.9% | BX21: 19.7% | BY21: 26.3% | BZ21: 33.1% | CA21: 39.3% | CB21: 45.9% | CC21: 52.7% | CN21: Junio | CO21: 38.1% | CP21: 41.7% | CQ21: 42.3% | CR21: 26.8% | CS21: 41.8% | CT21: 39.3% | CU21: 34.8% | CV21: 39.5% | CW21: 44.2% | CX21: 41.5% | CY21: 34.1% | CZ21: 39.5% | DA21: 35.5% | DB21: 29.3% | DC21: 21.9% | DD21: 26.0% | DE21: 26.5% | DF21: 30.8% | DG21: 46.5% | DH21: 31.0% | DI21: 25.3% | DJ21: 27.1% | DK21: 33.5% | DL21: 36.1% | DM21: 31.4% | DN21: 38.5% | DO21: 31.6% | DP21: 43.0% | DQ21: 27.5% | DR21: 33.7%
A22: LAMBAYEQUE | F22: 18,599 | G22: 7,151 | H22: 38.4% | BQ22: CUSCO | BR22: 53.1% | BU22: CALLAO | BV22: 6.0% | BW22: 11.4% | BX22: 18.9% | BY22: 24.5% | BZ22: 29.9% | CA22: 34.8% | CB22: 40.1% | CC22: 45.3% | CN22: Julio | CO22: 44.6% | CP22: 48.0% | CQ22: 49.4% | CR22: 32.0% | CS22: 48.2% | CT22: 45.9% | CU22: 40.1% | CV22: 46.0% | CW22: 51.7% | CX22: 48.1% | CY22: 39.3% | CZ22: 45.9% | DA22: 41.0% | DB22: 34.0% | DC22: 25.0% | DD22: 29.7% | DE22: 30.2% | DF22: 35.7% | DG22: 53.0% | DH22: 36.1% | DI22: 30.6% | DJ22: 31.9% | DK22: 39.6% | DL22: 41.5% | DM22: 37.2% | DN22: 45.1% | DO22: 36.6% | DP22: 48.9% | DQ22: 32.4% | DR22: 39.0%
A23: LIMA DIRIS CENTRO | F23: 26,669 | G23: 7,675 | H23: 28.8% | BQ23: HUANCAVELICA | BR23: 59.3% | BU23: CUSCO | BV23: 7.0% | BW23: 13.2% | BX23: 20.6% | BY23: 27.3% | BZ23: 33.8% | CA23: 39.5% | CB23: 46.0% | CC23: 53.1% | CN23: Agosto | CO23: 50.7% | CP23: 54.7% | CQ23: 56.9% | CR23: 36.5% | CS23: 55.4% | CT23: 52.7% | CU23: 45.3% | CV23: 53.1% | CW23: 59.3% | CX23: 54.8% | CY23: 44.9% | CZ23: 52.7% | DA23: 47.0% | DB23: 38.4% | DC23: 28.8% | DD23: 35.6% | DE23: 34.8% | DF23: 40.2% | DG23: 60.8% | DH23: 41.2% | DI23: 36.3% | DJ23: 36.1% | DK23: 47.0% | DL23: 47.0% | DM23: 42.4% | DN23: 51.9% | DO23: 41.6% | DP23: 54.6% | DQ23: 37.1% | DR23: 44.7%
A24: LIMA DIRIS ESTE | F24: 17,868 | G24: 6,360 | H24: 35.6% | BQ24: HUANUCO | BR24: 54.8% | BU24: HUANCAVELICA | BV24: 7.8% | BW24: 14.8% | BX24: 23.3% | BY24: 30.4% | BZ24: 37.3% | CA24: 44.2% | CB24: 51.7% | CC24: 59.3%
A25: LIMA DIRIS NORTE | F25: 29,406 | G25: 10,244 | H25: 34.8% | BQ25: ICA | BR25: 44.9% | BU25: HUANUCO | BV25: 7.2% | BW25: 13.4% | BX25: 21.0% | BY25: 27.9% | BZ25: 34.9% | CA25: 41.5% | CB25: 48.1% | CC25: 54.8%
A26: LIMA DIRIS SUR | F26: 23,630 | G26: 9,507 | H26: 40.2% | BQ26: JUNIN | BR26: 52.7% | BU26: ICA | BV26: 5.9% | BW26: 11.5% | BX26: 18.0% | BY26: 23.7% | BZ26: 29.0% | CA26: 34.1% | CB26: 39.3% | CC26: 44.9%
A27: LIMA PROVINCIAS | F27: 11,968 | G27: 7,282 | H27: 60.8% | BQ27: LA LIBERTAD | BR27: 47.0% | BU27: JUNIN | BV27: 6.8% | BW27: 13.5% | BX27: 20.3% | BY27: 27.2% | BZ27: 33.5% | CA27: 39.5% | CB27: 45.9% | CC27: 52.7%
A28: LORETO | F28: 21,501 | G28: 8,848 | H28: 41.2% | BQ28: LAMBAYEQUE | BR28: 38.4% | BU28: LA LIBERTAD | BV28: 5.9% | BW28: 11.4% | BX28: 17.8% | BY28: 23.8% | BZ28: 29.9% | CA28: 35.5% | CB28: 41.0% | CC28: 47.0%
A29: MADRE DE DIOS | F29: 3,383 | G29: 1,227 | H29: 36.3% | BQ29: LIMA DIRIS CENTRO | BR29: 28.8% | BU29: LAMBAYEQUE | BV29: 4.5% | BW29: 8.5% | BX29: 13.5% | BY29: 19.3% | BZ29: 24.7% | CA29: 29.3% | CB29: 34.0% | CC29: 38.4%
A30: MOQUEGUA | F30: 1,937 | G30: 699 | H30: 36.1% | BQ30: LIMA DIRIS ESTE | BR30: 35.6% | BU30: LIMA DIRIS CENTRO | BV30: 3.5% | BW30: 7.0% | BX30: 10.7% | BY30: 14.7% | BZ30: 18.6% | CA30: 21.9% | CB30: 25.0% | CC30: 28.8%
A31: PASCO | F31: 3,922 | G31: 1,843 | H31: 47.0% | BQ31: LIMA DIRIS NORTE | BR31: 34.8% | BU31: LIMA DIRIS ESTE | BV31: 3.8% | BW31: 7.6% | BX31: 12.2% | BY31: 17.0% | BZ31: 21.5% | CA31: 26.0% | CB31: 29.7% | CC31: 35.6%
A32: PIURA | F32: 29,137 | G32: 13,700 | H32: 47.0% | BQ32: LIMA DIRIS SUR | BR32: 40.2% | BU32: LIMA DIRIS NORTE | BV32: 4.4% | BW32: 8.5% | BX32: 13.5% | BY32: 18.4% | BZ32: 22.6% | CA32: 26.5% | CB32: 30.2% | CC32: 34.8%
A33: PUNO | F33: 13,087 | G33: 5,555 | H33: 42.4% | BQ33: LIMA PROVINCIAS | BR33: 60.8% | BU33: LIMA DIRIS SUR | BV33: 4.1% | BW33: 8.2% | BX33: 13.4% | BY33: 18.8% | BZ33: 26.1% | CA33: 30.8% | CB33: 35.7% | CC33: 40.2%
A34: SAN MARTIN | F34: 13,809 | G34: 7,167 | H34: 51.9% | BQ34: LORETO | BR34: 41.2% | BU34: LIMA PROVINCIAS | BV34: 8.1% | BW34: 15.2% | BX34: 23.4% | BY34: 32.0% | BZ34: 39.7% | CA34: 46.5% | CB34: 53.0% | CC34: 60.8%
A35: TACNA | F35: 3,654 | G35: 1,520 | H35: 41.6% | BQ35: MADRE DE DIOS | BR35: 36.3% | BU35: LORETO | BV35: 4.2% | BW35: 8.8% | BX35: 14.6% | BY35: 20.7% | BZ35: 26.2% | CA35: 31.0% | CB35: 36.1% | CC35: 41.2%
A36: TUMBES | F36: 3,336 | G36: 1,822 | H36: 54.6% | BQ36: MOQUEGUA | BR36: 36.1% | BU36: MADRE DE DIOS | BV36: 3.2% | BW36: 7.2% | BX36: 11.4% | BY36: 15.8% | BZ36: 20.3% | CA36: 25.3% | CB36: 30.6% | CC36: 36.3% | CO36: AMAZONAS | CP36: ANCASH | CQ36: APURIMAC | CR36: AREQUIPA | CS36: AYACUCHO | CT36: CAJAMARCA | CU36: CALLAO | CV36: CUSCO | CW36: HUANCAVELICA | CX36: HUANUCO | CY36: ICA | CZ36: JUNIN | DA36: LA LIBERTAD | DB36: LAMBAYEQUE | DC36: LIMA DIRIS CENTRO | DD36: LIMA DIRIS ESTE | DE36: LIMA DIRIS NORTE | DF36: LIMA DIRIS SUR | DG36: LIMA PROVINCIAS | DH36: LORETO | DI36: MADRE DE DIOS | DJ36: MOQUEGUA | DK36: PASCO | DL36: PIURA | DM36: PUNO | DN36: SAN MARTIN | DO36: TACNA | DP36: TUMBES | DQ36: UCAYALI | DR36: NACIONAL
A37: UCAYALI | F37: 11,733 | G37: 4,355 | H37: 37.1% | BQ37: PASCO | BR37: 47.0% | BU37: MOQUEGUA | BV37: 4.2% | BW37: 8.2% | BX37: 13.2% | BY37: 18.8% | BZ37: 23.3% | CA37: 27.1% | CB37: 31.9% | CC37: 36.1% | CN37: Enero | CO37: =+IFERROR(GETPIVOTDATA("ind",$CN$14,"Diris",CO$36,"mes",$CN37),"-") -> 6.2% | CP37: 7.1% | CQ37: 7.5% | CR37: 4.0% | CS37: 7.5% | CT37: 7.1% | CU37: 6.0% | CV37: 7.0% | CW37: 7.8% | CX37: 7.2% | CY37: =+IFERROR(GETPIVOTDATA("ind",$CN$14,"Diris",CY$36,"mes",$CN37),"-") -> 5.9% | CZ37: 6.8% | DA37: 5.9% | DB37: 4.5% | DC37: 3.5% | DD37: 3.8% | DE37: 4.4% | DF37: 4.1% | DG37: 8.1% | DH37: 4.2% | DI37: =+IFERROR(GETPIVOTDATA("ind",$CN$14,"Diris",DI$36,"mes",$CN37),"-") -> 3.2% | DJ37: 4.2% | DK37: 5.9% | DL37: 6.5% | DM37: 4.8% | DN37: 6.5% | DO37: 4.8% | DP37: 7.6% | DQ37: 3.8% | DR37: =+IFERROR(GETPIVOTDATA("ind",$CN$14,"mes",$CN37),"-") -> 5.5%
A38: Total general | F38: 412,793 | G38: 184,543 | H38: 44.7% | BQ38: PIURA | BR38: 47.0% | BU38: PASCO | BV38: 5.9% | BW38: 11.4% | BX38: 17.2% | BY38: 21.9% | BZ38: 27.9% | CA38: 33.5% | CB38: 39.6% | CC38: 47.0% | CN38: Febrero | CO38: 11.79% | CP38: 13.50% | CQ38: 14.05% | CR38: 8.00% | CS38: 14.00% | CT38: 12.88% | CU38: 11.43% | CV38: 13.21% | CW38: 14.77% | CX38: 13.39% | CY38: 11.51% | CZ38: 13.46% | DA38: 11.43% | DB38: 8.53% | DC38: 6.99% | DD38: 7.60% | DE38: 8.54% | DF38: 8.19% | DG38: 15.22% | DH38: 8.81% | DI38: 7.24% | DJ38: 8.16% | DK38: 11.40% | DL38: 12.87% | DM38: 9.82% | DN38: 11.98% | DO38: 9.20% | DP38: 14.93% | DQ38: 7.76% | DR38: 10.7%
BQ39: PUNO | BR39: 42.4% | BU39: PIURA | BV39: 6.5% | BW39: 12.9% | BX39: 19.5% | BY39: 25.1% | BZ39: 30.8% | CA39: 36.1% | CB39: 41.5% | CC39: 47.0% | CN39: Marzo | CO39: 18.72% | CP39: 21.25% | CQ39: 21.63% | CR39: 12.34% | CS39: 21.25% | CT39: 19.71% | CU39: 18.90% | CV39: 20.62% | CW39: 23.33% | CX39: 21.00% | CY39: 17.96% | CZ39: 20.29% | DA39: 17.82% | DB39: 13.51% | DC39: 10.72% | DD39: 12.19% | DE39: 13.54% | DF39: 13.36% | DG39: 23.36% | DH39: 14.60% | DI39: 11.41% | DJ39: 13.16% | DK39: 17.21% | DL39: 19.52% | DM39: 15.80% | DN39: 18.84% | DO39: 14.78% | DP39: 23.26% | DQ39: 12.89% | DR39: 16.8%
BQ40: SAN MARTIN | BR40: 51.9% | BU40: PUNO | BV40: 4.8% | BW40: 9.8% | BX40: 15.8% | BY40: 21.1% | BZ40: 26.7% | CA40: 31.4% | CB40: 37.2% | CC40: 42.4% | CN40: Abril | CO40: 25.09% | CP40: 28.33% | CQ40: 28.60% | CR40: 17.03% | CS40: 28.74% | CT40: 26.29% | CU40: 24.54% | CV40: 27.25% | CW40: 30.44% | CX40: 27.93% | CY40: 23.69% | CZ40: 27.19% | DA40: 23.79% | DB40: 19.25% | DC40: 14.65% | DD40: 16.96% | DE40: 18.43% | DF40: 18.77% | DG40: 31.96% | DH40: 20.74% | DI40: 15.76% | DJ40: 18.79% | DK40: 21.90% | DL40: 25.08% | DM40: 21.12% | DN40: 25.79% | DO40: 20.01% | DP40: 30.25% | DQ40: 17.93% | DR40: 22.7%
BQ41: TACNA | BR41: 41.6% | BU41: SAN MARTIN | BV41: 6.5% | BW41: 12.0% | BX41: 18.8% | BY41: 25.8% | BZ41: 32.4% | CA41: 38.5% | CB41: 45.1% | CC41: 51.9% | CN41: Mayo | CO41: 32.44% | CP41: 35.37% | CQ41: 35.95% | CR41: 22.11% | CS41: 35.42% | CT41: 33.13% | CU41: 29.85% | CV41: 33.85% | CW41: 37.25% | CX41: 34.86% | CY41: 29.01% | CZ41: 33.46% | DA41: 29.95% | DB41: 24.71% | DC41: 18.64% | DD41: 21.52% | DE41: 22.63% | DF41: 26.13% | DG41: 39.73% | DH41: 26.22% | DI41: 20.31% | DJ41: 23.28% | DK41: 27.92% | DL41: 30.79% | DM41: 26.66% | DN41: 32.44% | DO41: 25.81% | DP41: 37.17% | DQ41: 22.87% | DR41: 28.5%
BQ42: TUMBES | BR42: 54.6% | BU42: TACNA | BV42: 4.8% | BW42: 9.2% | BX42: 14.8% | BY42: 20.0% | BZ42: 25.8% | CA42: 31.6% | CB42: 36.6% | CC42: 41.6% | CN42: Junio | CO42: 38.12% | CP42: 41.67% | CQ42: 42.28% | CR42: 26.84% | CS42: 41.76% | CT42: 39.31% | CU42: 34.79% | CV42: 39.53% | CW42: 44.24% | CX42: 41.46% | CY42: 34.14% | CZ42: 39.49% | DA42: 35.47% | DB42: 29.35% | DC42: 21.85% | DD42: 26.02% | DE42: 26.53% | DF42: 30.83% | DG42: 46.51% | DH42: 31.05% | DI42: 25.27% | DJ42: 27.05% | DK42: 33.50% | DL42: 36.15% | DM42: 31.40% | DN42: 38.49% | DO42: 31.58% | DP42: 42.99% | DQ42: 27.52% | DR42: 33.7%
BQ43: UCAYALI | BR43: 37.1% | BU43: TUMBES | BV43: 7.6% | BW43: 14.9% | BX43: 23.3% | BY43: 30.2% | BZ43: 37.2% | CA43: 43.0% | CB43: 48.9% | CC43: 54.6% | CN43: Julio | CO43: 44.65% | CP43: 47.97% | CQ43: 49.41% | CR43: 31.98% | CS43: 48.15% | CT43: 45.91% | CU43: 40.11% | CV43: 46.02% | CW43: 51.67% | CX43: 48.11% | CY43: 39.32% | CZ43: 45.93% | DA43: 41.01% | DB43: 33.98% | DC43: 25.02% | DD43: 29.70% | DE43: 30.17% | DF43: 35.67% | DG43: 53.04% | DH43: 36.08% | DI43: 30.59% | DJ43: 31.85% | DK43: 39.62% | DL43: 41.50% | DM43: 37.24% | DN43: 45.06% | DO43: 36.62% | DP43: 48.89% | DQ43: 32.40% | DR43: 39.0%
BQ44: Total general | BR44: 44.7% | BU44: UCAYALI | BV44: 3.8% | BW44: 7.8% | BX44: 12.9% | BY44: 17.9% | BZ44: 22.9% | CA44: 27.5% | CB44: 32.4% | CC44: 37.1% | CN44: Agosto | CO44: 50.68% | CP44: 54.74% | CQ44: 56.85% | CR44: 36.55% | CS44: 55.38% | CT44: 52.66% | CU44: 45.26% | CV44: 53.15% | CW44: 59.27% | CX44: 54.77% | CY44: 44.89% | CZ44: 52.75% | DA44: 46.96% | DB44: 38.45% | DC44: 28.78% | DD44: 35.59% | DE44: 34.84% | DF44: 40.23% | DG44: 60.85% | DH44: 41.15% | DI44: 36.27% | DJ44: 36.09% | DK44: 46.99% | DL44: 47.02% | DM44: 42.45% | DN44: 51.90% | DO44: 41.60% | DP44: 54.62% | DQ44: 37.12% | DR44: 44.7%
BU45: Total general | BV45: 5.5% | BW45: 10.7% | BX45: 16.8% | BY45: 22.7% | BZ45: 28.5% | CA45: 33.7% | CB45: 39.0% | CC45: 44.7% | CN45: Setiembre | CO45: - | CP45: - | CQ45: - | CR45: - | CS45: - | CT45: - | CU45: - | CV45: - | CW45: - | CX45: - | CY45: - | CZ45: - | DA45: - | DB45: - | DC45: - | DD45: - | DE45: - | DF45: - | DG45: - | DH45: - | DI45: - | DJ45: - | DK45: - | DL45: - | DM45: - | DN45: - | DO45: - | DP45: - | DQ45: - | DR45: -
CN46: Octubre | CO46: - | CP46: - | CQ46: - | CR46: - | CS46: - | CT46: - | CU46: - | CV46: - | CW46: - | CX46: - | CY46: - | CZ46: - | DA46: - | DB46: - | DC46: - | DD46: - | DE46: - | DF46: - | DG46: - | DH46: - | DI46: - | DJ46: - | DK46: - | DL46: - | DM46: - | DN46: - | DO46: - | DP46: - | DQ46: - | DR46: -
CN47: Noviembre | CO47: - | CP47: - | CQ47: - | CR47: - | CS47: - | CT47: - | CU47: - | CV47: - | CW47: - | CX47: - | CY47: - | CZ47: - | DA47: - | DB47: - | DC47: - | DD47: - | DE47: - | DF47: - | DG47: - | DH47: - | DI47: - | DJ47: - | DK47: - | DL47: - | DM47: - | DN47: - | DO47: - | DP47: - | DQ47: - | DR47: -
CN48: Diciembre | CO48: - | CP48: - | CQ48: - | CR48: - | CS48: - | CT48: - | CU48: - | CV48: - | CW48: - | CX48: - | CY48: - | CZ48: - | DA48: - | DB48: - | DC48: - | DD48: - | DE48: - | DF48: - | DG48: - | DH48: - | DI48: - | DJ48: - | DK48: - | DL48: - | DM48: - | DN48: - | DO48: - | DP48: - | DQ48: - | DR48: -
BV50: 1 | BW50: 2 | BX50: 3 | BY50: 4 | BZ50: 5 | CA50: 6 | CB50: 7 | CC50: 8 | CD50: 9 | CE50: 10 | CF50: 11 | CG50: 12 | CJ50: MIN | CK50: MAX
BQ51: AMAZONAS | BR51: =+IFERROR(GETPIVOTDATA("ind",$BQ$14,"Diris",$BQ51),"-") -> 50.7% | BU51: AMAZONAS | BV51: =+IFERROR(GETPIVOTDATA("ind",$BU$14,"Diris",$BU51,"mes",BV$50),"-") -> 6.2% | BW51: =+IFERROR(GETPIVOTDATA("ind",$BU$14,"Diris",$BU51,"mes",BW$50),"-") -> 11.8% | BX51: 18.7% | BY51: 25.1% | BZ51: 32.4% | CA51: 38.1% | CB51: 44.6% | CC51: 50.7% | CD51: - | CE51: - | CF51: - | CG51: - | CI51: AMAZONAS | CJ51: =+IF(BV51="-","-",MIN(BV51:CG51)) -> 6.2% | CK51: =+IF(BV51="-","-",MAX(BV51:CG51)) -> 50.7%
BQ52: ANCASH | BR52: 54.7% | BU52: ANCASH | BV52: 7.1% | BW52: 13.5% | BX52: 21.2% | BY52: 28.3% | BZ52: 35.4% | CA52: 41.7% | CB52: 48.0% | CC52: 54.7% | CD52: - | CE52: - | CF52: - | CG52: - | CI52: ANCASH | CJ52: 7.1% | CK52: 54.7%
BQ53: APURIMAC | BR53: 56.9% | BU53: APURIMAC | BV53: 7.5% | BW53: 14.0% | BX53: 21.6% | BY53: 28.6% | BZ53: 36.0% | CA53: 42.3% | CB53: 49.4% | CC53: 56.9% | CD53: - | CE53: - | CF53: - | CG53: - | CI53: APURIMAC | CJ53: 7.5% | CK53: 56.9%
BQ54: AREQUIPA | BR54: 36.5% | BU54: AREQUIPA | BV54: 4.0% | BW54: 8.0% | BX54: 12.3% | BY54: 17.0% | BZ54: 22.1% | CA54: 26.8% | CB54: 32.0% | CC54: 36.5% | CD54: - | CE54: - | CF54: - | CG54: - | CI54: AREQUIPA | CJ54: 4.0% | CK54: 36.5%
BQ55: AYACUCHO | BR55: 55.4% | BU55: AYACUCHO | BV55: 7.5% | BW55: 14.0% | BX55: 21.2% | BY55: 28.7% | BZ55: 35.4% | CA55: 41.8% | CB55: 48.2% | CC55: 55.4% | CD55: - | CE55: - | CF55: - | CG55: - | CI55: AYACUCHO | CJ55: 7.5% | CK55: 55.4%
BQ56: CAJAMARCA | BR56: 52.7% | BU56: CAJAMARCA | BV56: 7.1% | BW56: 12.9% | BX56: 19.7% | BY56: 26.3% | BZ56: 33.1% | CA56: 39.3% | CB56: 45.9% | CC56: 52.7% | CD56: - | CE56: - | CF56: - | CG56: - | CI56: CAJAMARCA | CJ56: 7.1% | CK56: 52.7%
BQ57: CALLAO | BR57: 45.3% | BU57: CALLAO | BV57: 6.0% | BW57: 11.4% | BX57: 18.9% | BY57: 24.5% | BZ57: 29.9% | CA57: 34.8% | CB57: 40.1% | CC57: 45.3% | CD57: - | CE57: - | CF57: - | CG57: - | CI57: CALLAO | CJ57: 6.0% | CK57: 45.3%
BQ58: CUSCO | BR58: 53.1% | BU58: CUSCO | BV58: 7.0% | BW58: 13.2% | BX58: 20.6% | BY58: 27.3% | BZ58: 33.8% | CA58: 39.5% | CB58: 46.0% | CC58: 53.1% | CD58: - | CE58: - | CF58: - | CG58: - | CI58: CUSCO | CJ58: 7.0% | CK58: 53.1%
BQ59: HUANCAVELICA | BR59: 59.3% | BU59: HUANCAVELICA | BV59: 7.8% | BW59: 14.8% | BX59: 23.3% | BY59: 30.4% | BZ59: 37.3% | CA59: 44.2% | CB59: 51.7% | CC59: 59.3% | CD59: - | CE59: - | CF59: - | CG59: - | CI59: HUANCAVELICA | CJ59: 7.8% | CK59: 59.3%
BQ60: HUANUCO | BR60: 54.8% | BU60: HUANUCO | BV60: 7.2% | BW60: 13.4% | BX60: 21.0% | BY60: 27.9% | BZ60: 34.9% | CA60: 41.5% | CB60: 48.1% | CC60: 54.8% | CD60: - | CE60: - | CF60: - | CG60: - | CI60: HUANUCO | CJ60: 7.2% | CK60: 54.8%
BQ61: ICA | BR61: 44.9% | BU61: ICA | BV61: 5.9% | BW61: 11.5% | BX61: 18.0% | BY61: 23.7% | BZ61: 29.0% | CA61: 34.1% | CB61: 39.3% | CC61: 44.9% | CD61: - | CE61: - | CF61: - | CG61: - | CI61: ICA | CJ61: 5.9% | CK61: 44.9%
BQ62: JUNIN | BR62: 52.7% | BU62: JUNIN | BV62: 6.8% | BW62: 13.5% | BX62: 20.3% | BY62: 27.2% | BZ62: 33.5% | CA62: 39.5% | CB62: 45.9% | CC62: 52.7% | CD62: - | CE62: - | CF62: - | CG62: - | CI62: JUNIN | CJ62: 6.8% | CK62: 52.7%
BQ63: LA LIBERTAD | BR63: 47.0% | BU63: LA LIBERTAD | BV63: 5.9% | BW63: 11.4% | BX63: 17.8% | BY63: 23.8% | BZ63: 29.9% | CA63: 35.5% | CB63: 41.0% | CC63: 47.0% | CD63: - | CE63: - | CF63: - | CG63: - | CI63: LA LIBERTAD | CJ63: 5.9% | CK63: 47.0%
BQ64: LAMBAYEQUE | BR64: 38.4% | BU64: LAMBAYEQUE | BV64: 4.5% | BW64: 8.5% | BX64: 13.5% | BY64: 19.3% | BZ64: 24.7% | CA64: 29.3% | CB64: 34.0% | CC64: 38.4% | CD64: - | CE64: - | CF64: - | CG64: - | CI64: LAMBAYEQUE | CJ64: 4.5% | CK64: 38.4%
BQ65: LIMA DIRIS CENTRO | BR65: 28.8% | BU65: LIMA DIRIS CENTRO | BV65: 3.5% | BW65: 7.0% | BX65: 10.7% | BY65: 14.7% | BZ65: 18.6% | CA65: 21.9% | CB65: 25.0% | CC65: 28.8% | CD65: - | CE65: - | CF65: - | CG65: - | CI65: LIMA DIRIS CENTRO | CJ65: 3.5% | CK65: 28.8%
BQ66: LIMA DIRIS ESTE | BR66: 35.6% | BU66: LIMA DIRIS ESTE | BV66: 3.8% | BW66: 7.6% | BX66: 12.2% | BY66: 17.0% | BZ66: 21.5% | CA66: 26.0% | CB66: 29.7% | CC66: 35.6% | CD66: - | CE66: - | CF66: - | CG66: - | CI66: LIMA DIRIS ESTE | CJ66: 3.8% | CK66: 35.6%
BQ67: LIMA DIRIS NORTE | BR67: 34.8% | BU67: LIMA DIRIS NORTE | BV67: 4.4% | BW67: 8.5% | BX67: 13.5% | BY67: 18.4% | BZ67: 22.6% | CA67: 26.5% | CB67: 30.2% | CC67: 34.8% | CD67: - | CE67: - | CF67: - | CG67: - | CI67: LIMA DIRIS NORTE | CJ67: 4.4% | CK67: 34.8%
BQ68: LIMA DIRIS SUR | BR68: 40.2% | BU68: LIMA DIRIS SUR | BV68: 4.1% | BW68: 8.2% | BX68: 13.4% | BY68: 18.8% | BZ68: 26.1% | CA68: 30.8% | CB68: 35.7% | CC68: 40.2% | CD68: - | CE68: - | CF68: - | CG68: - | CI68: LIMA DIRIS SUR | CJ68: 4.1% | CK68: 40.2%
BQ69: LIMA PROVINCIAS | BR69: 60.8% | BU69: LIMA PROVINCIAS | BV69: 8.1% | BW69: 15.2% | BX69: 23.4% | BY69: 32.0% | BZ69: 39.7% | CA69: 46.5% | CB69: 53.0% | CC69: 60.8% | CD69: - | CE69: - | CF69: - | CG69: - | CI69: LIMA PROVINCIAS | CJ69: 8.1% | CK69: 60.8%
BQ70: LORETO | BR70: 41.2% | BU70: LORETO | BV70: 4.2% | BW70: 8.8% | BX70: 14.6% | BY70: 20.7% | BZ70: 26.2% | CA70: 31.0% | CB70: 36.1% | CC70: 41.2% | CD70: - | CE70: - | CF70: - | CG70: - | CI70: LORETO | CJ70: 4.2% | CK70: 41.2%
BQ71: MADRE DE DIOS | BR71: 36.3% | BU71: MADRE DE DIOS | BV71: 3.2% | BW71: 7.2% | BX71: 11.4% | BY71: 15.8% | BZ71: 20.3% | CA71: 25.3% | CB71: 30.6% | CC71: 36.3% | CD71: - | CE71: - | CF71: - | CG71: - | CI71: MADRE DE DIOS | CJ71: 3.2% | CK71: 36.3%
BQ72: MOQUEGUA | BR72: 36.1% | BU72: MOQUEGUA | BV72: 4.2% | BW72: 8.2% | BX72: 13.2% | BY72: 18.8% | BZ72: 23.3% | CA72: 27.1% | CB72: 31.9% | CC72: 36.1% | CD72: - | CE72: - | CF72: - | CG72: - | CI72: MOQUEGUA | CJ72: 4.2% | CK72: 36.1%
BQ73: PASCO | BR73: 47.0% | BU73: PASCO | BV73: 5.9% | BW73: 11.4% | BX73: 17.2% | BY73: 21.9% | BZ73: 27.9% | CA73: 33.5% | CB73: 39.6% | CC73: 47.0% | CD73: - | CE73: - | CF73: - | CG73: - | CI73: PASCO | CJ73: 5.9% | CK73: 47.0%
BQ74: PIURA | BR74: 47.0% | BU74: PIURA | BV74: 6.5% | BW74: 12.9% | BX74: 19.5% | BY74: 25.1% | BZ74: 30.8% | CA74: 36.1% | CB74: 41.5% | CC74: 47.0% | CD74: - | CE74: - | CF74: - | CG74: - | CI74: PIURA | CJ74: 6.5% | CK74: 47.0%
BQ75: PUNO | BR75: 42.4% | BU75: PUNO | BV75: 4.8% | BW75: 9.8% | BX75: 15.8% | BY75: 21.1% | BZ75: 26.7% | CA75: 31.4% | CB75: 37.2% | CC75: 42.4% | CD75: - | CE75: - | CF75: - | CG75: - | CI75: PUNO | CJ75: 4.8% | CK75: 42.4%
BQ76: SAN MARTIN | BR76: 51.9% | BU76: SAN MARTIN | BV76: 6.5% | BW76: 12.0% | BX76: 18.8% | BY76: 25.8% | BZ76: 32.4% | CA76: 38.5% | CB76: 45.1% | CC76: 51.9% | CD76: - | CE76: - | CF76: - | CG76: - | CI76: SAN MARTIN | CJ76: 6.5% | CK76: 51.9%
BQ77: TACNA | BR77: 41.6% | BU77: TACNA | BV77: 4.8% | BW77: 9.2% | BX77: 14.8% | BY77: 20.0% | BZ77: 25.8% | CA77: 31.6% | CB77: 36.6% | CC77: 41.6% | CD77: - | CE77: - | CF77: - | CG77: - | CI77: TACNA | CJ77: 4.8% | CK77: 41.6%
BQ78: TUMBES | BR78: 54.6% | BU78: TUMBES | BV78: 7.6% | BW78: 14.9% | BX78: 23.3% | BY78: 30.2% | BZ78: 37.2% | CA78: 43.0% | CB78: 48.9% | CC78: 54.6% | CD78: - | CE78: - | CF78: - | CG78: - | CI78: TUMBES | CJ78: 7.6% | CK78: 54.6%
BQ79: UCAYALI | BR79: 37.1% | BU79: UCAYALI | BV79: 3.8% | BW79: 7.8% | BX79: 12.9% | BY79: 17.9% | BZ79: 22.9% | CA79: 27.5% | CB79: 32.4% | CC79: 37.1% | CD79: - | CE79: - | CF79: - | CG79: - | CI79: UCAYALI | CJ79: 3.8% | CK79: 37.1%
BQ80: NACIONAL | BR80: =+IFERROR(GETPIVOTDATA("ind",$BQ$14),"-") -> 44.7% | BU80: NACIONAL | BV80: =+IFERROR(GETPIVOTDATA("ind",$BU$14,"mes",BV$50),"-") -> 5.5% | BW80: =+IFERROR(GETPIVOTDATA("ind",$BU$14,"mes",BW$50),"-") -> 10.7% | BX80: 16.8% | BY80: 22.7% | BZ80: 28.5% | CA80: 33.7% | CB80: 39.0% | CC80: 44.7% | CD80: - | CE80: - | CF80: - | CG80: - | CI80: NACIONAL | CJ80: 5.5% | CK80: 44.7%

Sheet DL_1153_2025_CG07
A1: =+DL1153_2025!C13 -> Ficha 07:Porcentaje de recién nacidos de parto institucional, vacunados con BCG y Anti hepatitis B dentro de las 24 horas después del nacimiento. | BL1: 1 | DP1: 4
A2: Periodo de Evaluación: | B2: =+DL1153_2025!B42 -> Agosto - 2025
J3: Diris | K3: (Todas)
J4: Red | K4: (Todas)
A5: mes | B5: (Todas) | J5: Provincia | K5: (Todas)
A6: año | B6: (Todas) | J6: eess_nombre | K6: (Todas)
A7: DIRIS del Establecimiento de Salud | B7: RED del Establecimiento de Salud | C7: Provincia de Establecimiento | D7: Nombre del Establecimiento | E7: Categoria del Establecimiento | F7: Denominador: Suma de niños /niñas nacidas en Hospital o Instituto, registrados en el CNV en Línea en el periodo de evaluación, excluyendo los niños / niñas nacidas con menos de 1,500 gr., y/o patológicos que por razones médicas no puedan recibir la vacuna BCG y/o vacuna anti hepatitis B | G7: Numerador: Suma de niños / niñas nacidas en Hospital o Instituto, registrados en el HIS con DNI o CNV, que forman parte del denominador y que recibieron 1 dosis de la vacuna BCG (CPMS: 90585) y 1 de HVB (CPMS: 90744) antes del alta (dentro de las 24 horas después del nacimiento). | H7: Indicador: Porcentaje de recién nacidos de parto institucional, vacunados con BCG y Anti hepatitis B, dentro de las 24 horas después del nacimiento. | J7: AÑO | K7: MES | L7: Denominador: Suma de niños /niñas nacidas en Hospital o Instituto, registrados en el CNV en Línea en el periodo de evaluación, excluyendo los niños / niñas nacidas con menos de 1,500 gr., y/o patológicos que por razones médicas no puedan recibir la vacuna BCG y/o vacuna anti hepatitis B | M7: Numerador: Suma de niños / niñas nacidas en Hospital o Instituto, registrados en el HIS con DNI o CNV, que forman parte del denominador y que recibieron 1 dosis de la vacuna BCG (CPMS: 90585) y 1 de HVB (CPMS: 90744) antes del alta (dentro de las 24 horas después del nacimiento). | N7: Indicador: Porcentaje de recién nacidos de parto institucional, vacunados con BCG y Anti hepatitis B, dentro de las 24 horas después del nacimiento.
A8: Diris | B8: Red | C8: Provincia | D8: eess_nombre | E8: Cat_estab | F8: Denominador | G8: Numerador | H8: Indicador | J8: año | K8: mes | L8: Denominador | M8: Numerador | N8: Indicador
A9: AMAZONAS | F9: 2,705 | G9: 2,464 | H9: 91.1% | J9: 2025 | K9: 1 | L9: 22,017 | M9: 20,594 | N9: 93.5%
A10: ANCASH | F10: 6,288 | G10: 6,085 | H10: 96.8% | J10: 2025 | K10: 2 | L10: 20,547 | M10: 19,320 | N10: 94.0%
A11: APURIMAC | F11: 3,008 | G11: 2,977 | H11: 99.0% | J11: 2025 | K11: 3 | L11: 23,137 | M11: 21,601 | N11: 93.4%
A12: AREQUIPA | F12: 5,591 | G12: 5,114 | H12: 91.5% | J12: 2025 | K12: 4 | L12: 21,985 | M12: 20,159 | N12: 91.7%
A13: AYACUCHO | F13: 4,640 | G13: 4,582 | H13: 98.8% | J13: 2025 | K13: 5 | L13: 22,532 | M13: 21,025 | N13: 93.3% | BM13: año | BN13: (Todas) | BQ13: año | BR13: (Todas)
A14: CAJAMARCA | F14: 9,581 | G14: 8,941 | H14: 93.3% | J14: 2025 | K14: 6 | L14: 20,837 | M14: 19,419 | N14: 93.2%
A15: CALLAO | F15: 3,991 | G15: 3,881 | H15: 97.2% | J15: 2025 | K15: 7 | L15: 21,248 | M15: 19,790 | N15: 93.1% | BM15: Diris | BN15: Suma de IND | BQ15: Suma de IND | BR15: mes | CJ15: año | CK15: (Todas)
A16: CUSCO | F16: 8,382 | G16: 8,267 | H16: 98.6% | J16: 2025 | K16: 8 | L16: 21,221 | M16: 19,332 | N16: 91.1% | BM16: AMAZONAS | BN16: 91.1% | BQ16: Diris | BR16: 1 | BS16: 2 | BT16: 3 | BU16: 4 | BV16: 5 | BW16: 6 | BX16: 7 | BY16: 8
A17: HUANCAVELICA | F17: 2,214 | G17: 2,164 | H17: 97.7% | J17: Total general | L17: 173,524 | M17: 161,240 | N17: 92.9% | BM17: ANCASH | BN17: 96.8% | BQ17: AMAZONAS | BR17: 89.5% | BS17: 92.1% | BT17: 93.0% | BU17: 91.1% | BV17: 92.2% | BW17: 92.8% | BX17: 90.6% | BY17: 87.5% | CJ17: Suma de IND | CK17: Diris
A18: HUANUCO | F18: 5,977 | G18: 5,541 | H18: 92.7% | BM18: APURIMAC | BN18: 99.0% | BQ18: ANCASH | BR18: 96.6% | BS18: 96.6% | BT18: 97.5% | BU18: 97.3% | BV18: 96.8% | BW18: 97.6% | BX18: 96.4% | BY18: 95.2% | CJ18: mes | CK18: AMAZONAS | CL18: ANCASH | CM18: APURIMAC | CN18: AREQUIPA | CO18: AYACUCHO | CP18: CAJAMARCA | CQ18: CALLAO | CR18: CUSCO | CS18: HUANCAVELICA | CT18: HUANUCO | CU18: ICA | CV18: JUNIN | CW18: LA LIBERTAD | CX18: LAMBAYEQUE | CY18: LIMA DIRIS CENTRO | CZ18: LIMA DIRIS ESTE | DA18: LIMA DIRIS NORTE | DB18: LIMA DIRIS SUR | DC18: LIMA REGION | DD18: LORETO | DE18: MADRE DE DIOS | DF18: MOQUEGUA | DG18: PASCO | DH18: PIURA | DI18: PUNO | DJ18: SAN MARTIN | DK18: TACNA | DL18: TUMBES | DM18: UCAYALI | DN18: Total general
A19: ICA | F19: 5,743 | G19: 5,558 | H19: 96.8% | BM19: AREQUIPA | BN19: 91.5% | BQ19: APURIMAC | BR19: 99.7% | BS19: 99.2% | BT19: 99.3% | BU19: 99.0% | BV19: 99.5% | BW19: 98.2% | BX19: 98.4% | BY19: 98.5% | CJ19: Enero | CK19: 89.5% | CL19: 96.6% | CM19: 99.7% | CN19: 96.3% | CO19: 99.4% | CP19: 92.6% | CQ19: 98.5% | CR19: 98.3% | CS19: 98.5% | CT19: 88.2% | CU19: 96.6% | CV19: 94.9% | CW19: 93.6% | CX19: 93.9% | CY19: 96.6% | CZ19: 95.5% | DA19: 95.5% | DB19: 95.7% | DC19: 96.0% | DD19: 68.5% | DE19: 93.7% | DF19: 100.0% | DG19: 91.0% | DH19: 90.9% | DI19: 93.7% | DJ19: 94.2% | DK19: 100.0% | DL19: 98.9% | DM19: 91.7% | DN19: 93.5%
A20: JUNIN | F20: 8,485 | G20: 7,880 | H20: 92.9% | BM20: AYACUCHO | BN20: 98.8% | BQ20: AREQUIPA | BR20: 96.3% | BS20: 94.6% | BT20: 96.0% | BU20: 83.5% | BV20: 88.8% | BW20: 88.5% | BX20: 92.3% | BY20: 89.9% | CJ20: Febrero | CK20: 92.1% | CL20: 96.6% | CM20: 99.2% | CN20: 94.6% | CO20: 99.4% | CP20: 93.4% | CQ20: 98.5% | CR20: 99.1% | CS20: 97.7% | CT20: 92.6% | CU20: 96.8% | CV20: 94.7% | CW20: 93.3% | CX20: 95.8% | CY20: 96.5% | CZ20: 95.7% | DA20: 96.6% | DB20: 96.0% | DC20: 98.5% | DD20: 69.9% | DE20: 96.5% | DF20: 98.9% | DG20: 95.1% | DH20: 93.1% | DI20: 91.3% | DJ20: 94.3% | DK20: 99.5% | DL20: 97.1% | DM20: 91.3% | DN20: 94.0%
A21: LA LIBERTAD | F21: 9,627 | G21: 9,179 | H21: 95.3% | BM21: CAJAMARCA | BN21: 93.3% | BQ21: AYACUCHO | BR21: 99.4% | BS21: 99.4% | BT21: 98.8% | BU21: 99.0% | BV21: 99.0% | BW21: 99.1% | BX21: 98.3% | BY21: 97.0% | CJ21: Marzo | CK21: 93.0% | CL21: 97.5% | CM21: 99.3% | CN21: 96.0% | CO21: 98.8% | CP21: 93.6% | CQ21: 98.0% | CR21: 98.4% | CS21: 97.7% | CT21: 92.5% | CU21: 97.8% | CV21: 93.8% | CW21: 95.1% | CX21: 94.6% | CY21: 96.2% | CZ21: 96.1% | DA21: 95.5% | DB21: 96.3% | DC21: 96.4% | DD21: 65.2% | DE21: 96.6% | DF21: 100.0% | DG21: 90.7% | DH21: 91.2% | DI21: 92.2% | DJ21: 92.6% | DK21: 99.5% | DL21: 97.1% | DM21: 91.5% | DN21: 93.4%
A22: LAMBAYEQUE | F22: 7,128 | G22: 6,719 | H22: 94.3% | BM22: CALLAO | BN22: 97.2% | BQ22: CAJAMARCA | BR22: 92.6% | BS22: 93.4% | BT22: 93.6% | BU22: 92.7% | BV22: 92.6% | BW22: 93.8% | BX22: 94.9% | BY22: 92.9% | CJ22: Abril | CK22: 91.1% | CL22: 97.3% | CM22: 99.0% | CN22: 83.5% | CO22: 99.0% | CP22: 92.7% | CQ22: 90.4% | CR22: 99.5% | CS22: 97.6% | CT22: 94.0% | CU22: 96.9% | CV22: 90.9% | CW22: 96.8% | CX22: 94.4% | CY22: 95.8% | CZ22: 95.2% | DA22: 95.3% | DB22: 95.6% | DC22: 97.1% | DD22: 59.4% | DE22: 97.8% | DF22: 98.3% | DG22: 92.4% | DH22: 83.8% | DI22: 85.7% | DJ22: 93.6% | DK22: 97.8% | DL22: 96.5% | DM22: 91.4% | DN22: 91.7%
A23: LIMA DIRIS CENTRO | F23: 14,733 | G23: 14,120 | H23: 95.8% | BM23: CUSCO | BN23: 98.6% | BQ23: CALLAO | BR23: 98.5% | BS23: 98.5% | BT23: 98.0% | BU23: 90.4% | BV23: 97.6% | BW23: 99.4% | BX23: 98.5% | BY23: 97.8% | CJ23: Mayo | CK23: 92.2% | CL23: 96.8% | CM23: 99.5% | CN23: 88.8% | CO23: 99.0% | CP23: 92.6% | CQ23: 97.6% | CR23: 99.0% | CS23: 97.3% | CT23: 93.8% | CU23: 96.5% | CV23: 95.7% | CW23: 96.0% | CX23: 94.8% | CY23: 96.0% | CZ23: 95.7% | DA23: 96.5% | DB23: 97.0% | DC23: 98.3% | DD23: 68.2% | DE23: 96.0% | DF23: 99.1% | DG23: 94.4% | DH23: 85.1% | DI23: 93.6% | DJ23: 94.0% | DK23: 97.3% | DL23: 95.9% | DM23: 93.4% | DN23: 93.3%
A24: LIMA DIRIS ESTE | F24: 6,226 | G24: 5,928 | H24: 95.2% | BM24: HUANCAVELICA | BN24: 97.7% | BQ24: CUSCO | BR24: 98.3% | BS24: 99.1% | BT24: 98.4% | BU24: 99.5% | BV24: 99.0% | BW24: 98.6% | BX24: 98.8% | BY24: 97.2% | CJ24: Junio | CK24: 92.8% | CL24: 97.6% | CM24: 98.2% | CN24: 88.5% | CO24: 99.1% | CP24: 93.8% | CQ24: 99.4% | CR24: 98.6% | CS24: 97.8% | CT24: 94.3% | CU24: 98.3% | CV24: 91.5% | CW24: 97.0% | CX24: 94.3% | CY24: 96.2% | CZ24: 95.8% | DA24: 96.1% | DB24: 96.6% | DC24: 98.5% | DD24: 64.5% | DE24: 97.9% | DF24: 97.6% | DG24: 90.9% | DH24: 83.6% | DI24: 91.2% | DJ24: 96.4% | DK24: 96.4% | DL24: 97.5% | DM24: 92.4% | DN24: 93.2%
A25: LIMA DIRIS NORTE | F25: 8,724 | G25: 8,406 | H25: 96.4% | BM25: HUANUCO | BN25: 92.7% | BQ25: HUANCAVELICA | BR25: 98.5% | BS25: 97.7% | BT25: 97.7% | BU25: 97.6% | BV25: 97.3% | BW25: 97.8% | BX25: 98.9% | BY25: 96.4% | CJ25: Julio | CK25: 90.6% | CL25: 96.4% | CM25: 98.4% | CN25: 92.3% | CO25: 98.3% | CP25: 94.9% | CQ25: 98.5% | CR25: 98.8% | CS25: 98.9% | CT25: 92.9% | CU25: 96.4% | CV25: 89.4% | CW25: 96.1% | CX25: 93.5% | CY25: 95.8% | CZ25: 96.7% | DA25: 97.9% | DB25: 97.1% | DC25: 97.9% | DD25: 66.8% | DE25: 94.8% | DF25: 99.0% | DG25: 93.3% | DH25: 86.4% | DI25: 93.4% | DJ25: 95.4% | DK25: 87.9% | DL25: 97.8% | DM25: 88.9% | DN25: 93.1%
A26: LIMA DIRIS SUR | F26: 7,341 | G26: 7,059 | H26: 96.2% | BM26: ICA | BN26: 96.8% | BQ26: HUANUCO | BR26: 88.2% | BS26: 92.6% | BT26: 92.5% | BU26: 94.0% | BV26: 93.8% | BW26: 94.3% | BX26: 92.9% | BY26: 93.6% | CJ26: Agosto | CK26: 87.5% | CL26: 95.2% | CM26: 98.5% | CN26: 89.9% | CO26: 97.0% | CP26: 92.9% | CQ26: 97.8% | CR26: 97.2% | CS26: 96.4% | CT26: 93.6% | CU26: 95.0% | CV26: 92.3% | CW26: 94.9% | CX26: 92.9% | CY26: 93.5% | CZ26: 91.2% | DA26: 97.6% | DB26: 94.9% | DC26: 96.9% | DD26: 54.8% | DE26: 94.9% | DF26: 98.1% | DG26: 91.3% | DH26: 82.7% | DI26: 91.3% | DJ26: 94.5% | DK26: 98.3% | DL26: 97.5% | DM26: 87.1% | DN26: 91.1%
A27: LORETO | F27: 9,982 | G27: 6,443 | H27: 64.5% | BM27: JUNIN | BN27: 92.9% | BQ27: ICA | BR27: 96.6% | BS27: 96.8% | BT27: 97.8% | BU27: 96.9% | BV27: 96.5% | BW27: 98.3% | BX27: 96.4% | BY27: 95.0%
A28: MADRE DE DIOS | F28: 2,000 | G28: 1,921 | H28: 96.1% | BM28: LA LIBERTAD | BN28: 95.3% | BQ28: JUNIN | BR28: 94.9% | BS28: 94.7% | BT28: 93.8% | BU28: 90.9% | BV28: 95.7% | BW28: 91.5% | BX28: 89.4% | BY28: 92.3%
A29: MOQUEGUA | F29: 817 | G29: 808 | H29: 98.9% | BM29: LAMBAYEQUE | BN29: 94.3% | BQ29: LA LIBERTAD | BR29: 93.6% | BS29: 93.3% | BT29: 95.1% | BU29: 96.8% | BV29: 96.0% | BW29: 97.0% | BX29: 96.1% | BY29: 94.9%
A30: PASCO | F30: 1,645 | G30: 1,519 | H30: 92.3% | BM30: LIMA DIRIS CENTRO | BN30: 95.8% | BQ30: LAMBAYEQUE | BR30: 93.9% | BS30: 95.8% | BT30: 94.6% | BU30: 94.4% | BV30: 94.8% | BW30: 94.3% | BX30: 93.5% | BY30: 92.9%
A31: PIURA | F31: 9,763 | G31: 8,505 | H31: 87.1% | BM31: LIMA DIRIS ESTE | BN31: 95.2% | BQ31: LIMA DIRIS CENTRO | BR31: 96.6% | BS31: 96.5% | BT31: 96.2% | BU31: 95.8% | BV31: 96.0% | BW31: 96.2% | BX31: 95.8% | BY31: 93.5%
A32: PUNO | F32: 5,826 | G32: 5,337 | H32: 91.6% | BM32: LIMA DIRIS NORTE | BN32: 96.4% | BQ32: LIMA DIRIS ESTE | BR32: 95.5% | BS32: 95.7% | BT32: 96.1% | BU32: 95.2% | BV32: 95.7% | BW32: 95.8% | BX32: 96.7% | BY32: 91.2%
A33: SAN MARTIN | F33: 7,660 | G33: 7,225 | H33: 94.3% | BM33: LIMA DIRIS SUR | BN33: 96.2% | BQ33: LIMA DIRIS NORTE | BR33: 95.5% | BS33: 96.6% | BT33: 95.5% | BU33: 95.3% | BV33: 96.5% | BW33: 96.1% | BX33: 97.9% | BY33: 97.6%
A34: TACNA | F34: 1,559 | G34: 1,516 | H34: 97.2% | BM34: LIMA REGION | BN34: 97.4% | BQ34: LIMA DIRIS SUR | BR34: 95.7% | BS34: 96.0% | BT34: 96.3% | BU34: 95.6% | BV34: 97.0% | BW34: 96.6% | BX34: 97.1% | BY34: 94.9%
A35: TUMBES | F35: 1,778 | G35: 1,729 | H35: 97.2% | BM35: LORETO | BN35: 64.5% | BQ35: LIMA REGION | BR35: 96.0% | BS35: 98.5% | BT35: 96.4% | BU35: 97.1% | BV35: 98.3% | BW35: 98.5% | BX35: 97.9% | BY35: 96.9%
A36: UCAYALI | F36: 6,580 | G36: 5,985 | H36: 91.0% | BM36: MADRE DE DIOS | BN36: 96.1% | BQ36: LORETO | BR36: 68.5% | BS36: 69.9% | BT36: 65.2% | BU36: 59.4% | BV36: 68.2% | BW36: 64.5% | BX36: 66.8% | BY36: 54.8% | CK36: AMAZONAS | CL36: ANCASH | CM36: APURIMAC | CN36: AREQUIPA | CO36: AYACUCHO | CP36: CAJAMARCA | CQ36: CALLAO | CR36: CUSCO | CS36: HUANCAVELICA | CT36: HUANUCO | CU36: ICA | CV36: JUNIN | CW36: LA LIBERTAD | CX36: LAMBAYEQUE | CY36: LIMA DIRIS CENTRO | CZ36: LIMA DIRIS ESTE | DA36: LIMA DIRIS NORTE | DB36: LIMA DIRIS SUR | DC36: LIMA PROVINCIAS | DD36: LORETO | DE36: MADRE DE DIOS | DF36: MOQUEGUA | DG36: PASCO | DH36: PIURA | DI36: PUNO | DJ36: SAN MARTIN | DK36: TACNA | DL36: TUMBES | DM36: UCAYALI | DN36: NACIONAL
A37: LIMA REGION | F37: 5,530 | G37: 5,387 | H37: 97.4% | BM37: MOQUEGUA | BN37: 98.9% | BQ37: MADRE DE DIOS | BR37: 93.7% | BS37: 96.5% | BT37: 96.6% | BU37: 97.8% | BV37: 96.0% | BW37: 97.9% | BX37: 94.8% | BY37: 94.9% | CJ37: Enero | CK37: =+IFERROR(GETPIVOTDATA("IND",$CJ$17,"Diris",CK$36,"mes",$CJ37),"-") -> 89.5% | CL37: =+IFERROR(GETPIVOTDATA("IND",$CJ$17,"Diris",CL$36,"mes",$CJ37),"-") -> 96.6% | CM37: 99.7% | CN37: 96.3% | CO37: 99.4% | CP37: 92.6% | CQ37: 98.5% | CR37: 98.3% | CS37: 98.5% | CT37: 88.2% | CU37: 96.6% | CV37: 94.9% | CW37: 93.6% | CX37: 93.9% | CY37: 96.6% | CZ37: 95.5% | DA37: 95.5% | DB37: 95.7% | DC37: - | DD37: 68.5% | DE37: 93.7% | DF37: 100.0% | DG37: 91.0% | DH37: 90.9% | DI37: 93.7% | DJ37: 94.2% | DK37: 100.0% | DL37: 98.9% | DM37: 91.7% | DN37: =+IFERROR(GETPIVOTDATA("IND",$CJ$17,"mes",$CJ37),"-") -> 93.5%
A38: Total general | F38: 173,524 | G38: 161,240 | H38: 92.9% | BM38: PASCO | BN38: 92.3% | BQ38: MOQUEGUA | BR38: 100.0% | BS38: 98.9% | BT38: 100.0% | BU38: 98.3% | BV38: 99.1% | BW38: 97.6% | BX38: 99.0% | BY38: 98.1% | CJ38: Febrero | CK38: 92.1% | CL38: 96.6% | CM38: 99.2% | CN38: 94.6% | CO38: 99.4% | CP38: 93.4% | CQ38: 98.5% | CR38: 99.1% | CS38: 97.7% | CT38: 92.6% | CU38: 96.8% | CV38: 94.7% | CW38: 93.3% | CX38: 95.8% | CY38: 96.5% | CZ38: 95.7% | DA38: 96.6% | DB38: 96.0% | DC38: - | DD38: 69.9% | DE38: 96.5% | DF38: 98.9% | DG38: 95.1% | DH38: 93.1% | DI38: 91.3% | DJ38: 94.3% | DK38: 99.5% | DL38: 97.1% | DM38: 91.3% | DN38: 94.0%
BM39: PIURA | BN39: 87.1% | BQ39: PASCO | BR39: 91.0% | BS39: 95.1% | BT39: 90.7% | BU39: 92.4% | BV39: 94.4% | BW39: 90.9% | BX39: 93.3% | BY39: 91.3% | CJ39: Marzo | CK39: 93.0% | CL39: 97.5% | CM39: 99.3% | CN39: 96.0% | CO39: 98.8% | CP39: 93.6% | CQ39: 98.0% | CR39: 98.4% | CS39: 97.7% | CT39: 92.5% | CU39: 97.8% | CV39: 93.8% | CW39: 95.1% | CX39: 94.6% | CY39: 96.2% | CZ39: 96.1% | DA39: 95.5% | DB39: 96.3% | DC39: - | DD39: 65.2% | DE39: 96.6% | DF39: 100.0% | DG39: 90.7% | DH39: 91.2% | DI39: 92.2% | DJ39: 92.6% | DK39: 99.5% | DL39: 97.1% | DM39: 91.5% | DN39: 93.4%
BM40: PUNO | BN40: 91.6% | BQ40: PIURA | BR40: 90.9% | BS40: 93.1% | BT40: 91.2% | BU40: 83.8% | BV40: 85.1% | BW40: 83.6% | BX40: 86.4% | BY40: 82.7% | CJ40: Abril | CK40: 91.1% | CL40: 97.3% | CM40: 99.0% | CN40: 83.5% | CO40: 99.0% | CP40: 92.7% | CQ40: 90.4% | CR40: 99.5% | CS40: 97.6% | CT40: 94.0% | CU40: 96.9% | CV40: 90.9% | CW40: 96.8% | CX40: 94.4% | CY40: 95.8% | CZ40: 95.2% | DA40: 95.3% | DB40: 95.6% | DC40: - | DD40: 59.4% | DE40: 97.8% | DF40: 98.3% | DG40: 92.4% | DH40: 83.8% | DI40: 85.7% | DJ40: 93.6% | DK40: 97.8% | DL40: 96.5% | DM40: 91.4% | DN40: 91.7%
BM41: SAN MARTIN | BN41: 94.3% | BQ41: PUNO | BR41: 93.7% | BS41: 91.3% | BT41: 92.2% | BU41: 85.7% | BV41: 93.6% | BW41: 91.2% | BX41: 93.4% | BY41: 91.3% | CJ41: Mayo | CK41: 92.2% | CL41: 96.8% | CM41: 99.5% | CN41: 88.8% | CO41: 99.0% | CP41: 92.6% | CQ41: 97.6% | CR41: 99.0% | CS41: 97.3% | CT41: 93.8% | CU41: 96.5% | CV41: 95.7% | CW41: 96.0% | CX41: 94.8% | CY41: 96.0% | CZ41: 95.7% | DA41: 96.5% | DB41: 97.0% | DC41: - | DD41: 68.2% | DE41: 96.0% | DF41: 99.1% | DG41: 94.4% | DH41: 85.1% | DI41: 93.6% | DJ41: 94.0% | DK41: 97.3% | DL41: 95.9% | DM41: 93.4% | DN41: 93.3%
BM42: TACNA | BN42: 97.2% | BQ42: SAN MARTIN | BR42: 94.2% | BS42: 94.3% | BT42: 92.6% | BU42: 93.6% | BV42: 94.0% | BW42: 96.4% | BX42: 95.4% | BY42: 94.5% | CJ42: Junio | CK42: 92.8% | CL42: 97.6% | CM42: 98.2% | CN42: 88.5% | CO42: 99.1% | CP42: 93.8% | CQ42: 99.4% | CR42: 98.6% | CS42: 97.8% | CT42: 94.3% | CU42: 98.3% | CV42: 91.5% | CW42: 97.0% | CX42: 94.3% | CY42: 96.2% | CZ42: 95.8% | DA42: 96.1% | DB42: 96.6% | DC42: - | DD42: 64.5% | DE42: 97.9% | DF42: 97.6% | DG42: 90.9% | DH42: 83.6% | DI42: 91.2% | DJ42: 96.4% | DK42: 96.4% | DL42: 97.5% | DM42: 92.4% | DN42: 93.2%
BM43: TUMBES | BN43: 97.2% | BQ43: TACNA | BR43: 100.0% | BS43: 99.5% | BT43: 99.5% | BU43: 97.8% | BV43: 97.3% | BW43: 96.4% | BX43: 87.9% | BY43: 98.3% | CJ43: Julio | CK43: 90.6% | CL43: 96.4% | CM43: 98.4% | CN43: 92.3% | CO43: 98.3% | CP43: 94.9% | CQ43: 98.5% | CR43: 98.8% | CS43: 98.9% | CT43: 92.9% | CU43: 96.4% | CV43: 89.4% | CW43: 96.1% | CX43: 93.5% | CY43: 95.8% | CZ43: 96.7% | DA43: 97.9% | DB43: 97.1% | DC43: - | DD43: 66.8% | DE43: 94.8% | DF43: 99.0% | DG43: 93.3% | DH43: 86.4% | DI43: 93.4% | DJ43: 95.4% | DK43: 87.9% | DL43: 97.8% | DM43: 88.9% | DN43: 93.1%
BM44: UCAYALI | BN44: 91.0% | BQ44: TUMBES | BR44: 98.9% | BS44: 97.1% | BT44: 97.1% | BU44: 96.5% | BV44: 95.9% | BW44: 97.5% | BX44: 97.8% | BY44: 97.5% | CJ44: Agosto | CK44: 87.5% | CL44: 95.2% | CM44: 98.5% | CN44: 89.9% | CO44: 97.0% | CP44: 92.9% | CQ44: 97.8% | CR44: 97.2% | CS44: 96.4% | CT44: 93.6% | CU44: 95.0% | CV44: 92.3% | CW44: 94.9% | CX44: 92.9% | CY44: 93.5% | CZ44: 91.2% | DA44: 97.6% | DB44: 94.9% | DC44: - | DD44: 54.8% | DE44: 94.9% | DF44: 98.1% | DG44: 91.3% | DH44: 82.7% | DI44: 91.3% | DJ44: 94.5% | DK44: 98.3% | DL44: 97.5% | DM44: 87.1% | DN44: 91.1%
BM45: Total general | BN45: 92.9% | BQ45: UCAYALI | BR45: 91.7% | BS45: 91.3% | BT45: 91.5% | BU45: 91.4% | BV45: 93.4% | BW45: 92.4% | BX45: 88.9% | BY45: 87.1% | CJ45: Setiembre | CK45: - | CL45: - | CM45: - | CN45: - | CO45: - | CP45: - | CQ45: - | CR45: - | CS45: - | CT45: - | CU45: - | CV45: - | CW45: - | CX45: - | CY45: - | CZ45: - | DA45: - | DB45: - | DC45: - | DD45: - | DE45: - | DF45: - | DG45: - | DH45: - | DI45: - | DJ45: - | DK45: - | DL45: - | DM45: - | DN45: -
BQ46: Total general | BR46: 93.5% | BS46: 94.0% | BT46: 93.4% | BU46: 91.7% | BV46: 93.3% | BW46: 93.2% | BX46: 93.1% | BY46: 91.1% | CJ46: Octubre | CK46: - | CL46: - | CM46: - | CN46: - | CO46: - | CP46: - | CQ46: - | CR46: - | CS46: - | CT46: - | CU46: - | CV46: - | CW46: - | CX46: - | CY46: - | CZ46: - | DA46: - | DB46: - | DC46: - | DD46: =+IFERROR(GETPIVOTDATA("IND",$CJ$17,"Diris",DD$36,"mes",$CJ46),"-") -> - | DE46: - | DF46: - | DG46: - | DH46: - | DI46: - | DJ46: - | DK46: - | DL46: - | DM46: - | DN46: -
CJ47: Noviembre | CK47: - | CL47: - | CM47: - | CN47: - | CO47: - | CP47: - | CQ47: - | CR47: - | CS47: - | CT47: - | CU47: - | CV47: - | CW47: - | CX47: - | CY47: - | CZ47: - | DA47: - | DB47: - | DC47: - | DD47: - | DE47: - | DF47: - | DG47: - | DH47: - | DI47: - | DJ47: - | DK47: - | DL47: - | DM47: - | DN47: -
CJ48: Diciembre | CK48: - | CL48: - | CM48: - | CN48: - | CO48: - | CP48: - | CQ48: - | CR48: - | CS48: - | CT48: - | CU48: - | CV48: - | CW48: - | CX48: - | CY48: - | CZ48: - | DA48: - | DB48: - | DC48: - | DD48: - | DE48: - | DF48: - | DG48: - | DH48: - | DI48: - | DJ48: - | DK48: - | DL48: - | DM48: - | DN48: -
BR52: 1 | BS52: 2 | BT52: 3 | BU52: 4 | BV52: 5 | BW52: 6 | BX52: 7 | BY52: 8 | BZ52: 9 | CA52: 10 | CB52: 11 | CC52: 12 | CF52: MIN | CG52: MAX
BM53: AMAZONAS | BN53: =+IFERROR(GETPIVOTDATA("ind",$BM$15,"Diris",$BM53),"-") -> 91.1% | BQ53: AMAZONAS | BR53: =+IFERROR(GETPIVOTDATA("IND",$BQ$15,"Diris",$BQ53,"mes",BR$52),"-") -> 89.5% | BS53: 92.1% | BT53: 93.0% | BU53: 91.1% | BV53: 92.2% | BW53: 92.8% | BX53: 90.6% | BY53: 87.5% | BZ53: - | CA53: - | CB53: - | CC53: - | CE53: AMAZONAS | CF53: =+IF(BR53="-","-",MIN(BR53:CC53)) -> 87.5% | CG53: =+IF(BR53="-","-",MAX(BR53:CC53)) -> 93.0%
BM54: ANCASH | BN54: 96.8% | BQ54: ANCASH | BR54: 96.6% | BS54: 96.6% | BT54: 97.5% | BU54: 97.3% | BV54: 96.8% | BW54: 97.6% | BX54: 96.4% | BY54: 95.2% | BZ54: - | CA54: - | CB54: - | CC54: - | CE54: ANCASH | CF54: 95.2% | CG54: 97.6%
BM55: APURIMAC | BN55: 99.0% | BQ55: APURIMAC | BR55: 99.7% | BS55: 99.2% | BT55: 99.3% | BU55: 99.0% | BV55: 99.5% | BW55: 98.2% | BX55: 98.4% | BY55: 98.5% | BZ55: - | CA55: - | CB55: - | CC55: - | CE55: APURIMAC | CF55: 98.2% | CG55: 99.7%
BM56: AREQUIPA | BN56: 91.5% | BQ56: AREQUIPA | BR56: 96.3% | BS56: 94.6% | BT56: 96.0% | BU56: 83.5% | BV56: 88.8% | BW56: 88.5% | BX56: 92.3% | BY56: 89.9% | BZ56: - | CA56: - | CB56: - | CC56: - | CE56: AREQUIPA | CF56: 83.5% | CG56: 96.3%
BM57: AYACUCHO | BN57: 98.8% | BQ57: AYACUCHO | BR57: 99.4% | BS57: 99.4% | BT57: 98.8% | BU57: 99.0% | BV57: 99.0% | BW57: 99.1% | BX57: 98.3% | BY57: 97.0% | BZ57: - | CA57: - | CB57: - | CC57: - | CE57: AYACUCHO | CF57: 97.0% | CG57: 99.4%
BM58: CAJAMARCA | BN58: 93.3% | BQ58: CAJAMARCA | BR58: 92.6% | BS58: 93.4% | BT58: 93.6% | BU58: 92.7% | BV58: 92.6% | BW58: 93.8% | BX58: 94.9% | BY58: 92.9% | BZ58: - | CA58: - | CB58: - | CC58: - | CE58: CAJAMARCA | CF58: 92.6% | CG58: 94.9%
BM59: CALLAO | BN59: 97.2% | BQ59: CALLAO | BR59: 98.5% | BS59: 98.5% | BT59: 98.0% | BU59: 90.4% | BV59: 97.6% | BW59: 99.4% | BX59: 98.5% | BY59: 97.8% | BZ59: - | CA59: - | CB59: - | CC59: - | CE59: CALLAO | CF59: 90.4% | CG59: 99.4%
BM60: CUSCO | BN60: 98.6% | BQ60: CUSCO | BR60: 98.3% | BS60: 99.1% | BT60: 98.4% | BU60: 99.5% | BV60: 99.0% | BW60: 98.6% | BX60: 98.8% | BY60: 97.2% | BZ60: - | CA60: - | CB60: - | CC60: - | CE60: CUSCO | CF60: 97.2% | CG60: 99.5%
BM61: HUANCAVELICA | BN61: 97.7% | BQ61: HUANCAVELICA | BR61: 98.5% | BS61: 97.7% | BT61: 97.7% | BU61: 97.6% | BV61: 97.3% | BW61: 97.8% | BX61: 98.9% | BY61: 96.4% | BZ61: - | CA61: - | CB61: - | CC61: - | CE61: HUANCAVELICA | CF61: 96.4% | CG61: 98.9%
BM62: HUANUCO | BN62: 92.7% | BQ62: HUANUCO | BR62: 88.2% | BS62: 92.6% | BT62: 92.5% | BU62: 94.0% | BV62: 93.8% | BW62: 94.3% | BX62: 92.9% | BY62: 93.6% | BZ62: - | CA62: - | CB62: - | CC62: - | CE62: HUANUCO | CF62: 88.2% | CG62: 94.3%
BM63: ICA | BN63: 96.8% | BQ63: ICA | BR63: 96.6% | BS63: 96.8% | BT63: 97.8% | BU63: 96.9% | BV63: 96.5% | BW63: 98.3% | BX63: 96.4% | BY63: 95.0% | BZ63: - | CA63: - | CB63: - | CC63: - | CE63: ICA | CF63: 95.0% | CG63: 98.3%
BM64: JUNIN | BN64: 92.9% | BQ64: JUNIN | BR64: 94.9% | BS64: 94.7% | BT64: 93.8% | BU64: 90.9% | BV64: 95.7% | BW64: 91.5% | BX64: 89.4% | BY64: 92.3% | BZ64: - | CA64: - | CB64: - | CC64: - | CE64: JUNIN | CF64: 89.4% | CG64: 95.7%
BM65: LA LIBERTAD | BN65: 95.3% | BQ65: LA LIBERTAD | BR65: 93.6% | BS65: 93.3% | BT65: 95.1% | BU65: 96.8% | BV65: 96.0% | BW65: 97.0% | BX65: 96.1% | BY65: 94.9% | BZ65: - | CA65: - | CB65: - | CC65: - | CE65: LA LIBERTAD | CF65: 93.3% | CG65: 97.0%
BM66: LAMBAYEQUE | BN66: 94.3% | BQ66: LAMBAYEQUE | BR66: 93.9% | BS66: 95.8% | BT66: 94.6% | BU66: 94.4% | BV66: 94.8% | BW66: 94.3% | BX66: 93.5% | BY66: 92.9% | BZ66: - | CA66: - | CB66: - | CC66: - | CE66: LAMBAYEQUE | CF66: 92.9% | CG66: 95.8%
BM67: LIMA DIRIS CENTRO | BN67: 95.8% | BQ67: LIMA DIRIS CENTRO | BR67: 96.6% | BS67: 96.5% | BT67: 96.2% | BU67: 95.8% | BV67: 96.0% | BW67: 96.2% | BX67: 95.8% | BY67: 93.5% | BZ67: - | CA67: - | CB67: - | CC67: - | CE67: LIMA DIRIS CENTRO | CF67: 93.5% | CG67: 96.6%
BM68: LIMA DIRIS ESTE | BN68: 95.2% | BQ68: LIMA DIRIS ESTE | BR68: 95.5% | BS68: 95.7% | BT68: 96.1% | BU68: 95.2% | BV68: 95.7% | BW68: 95.8% | BX68: 96.7% | BY68: 91.2% | BZ68: - | CA68: - | CB68: - | CC68: - | CE68: LIMA DIRIS ESTE | CF68: 91.2% | CG68: 96.7%
BM69: LIMA DIRIS NORTE | BN69: 96.4% | BQ69: LIMA DIRIS NORTE | BR69: 95.5% | BS69: 96.6% | BT69: 95.5% | BU69: 95.3% | BV69: 96.5% | BW69: 96.1% | BX69: 97.9% | BY69: 97.6% | BZ69: - | CA69: - | CB69: - | CC69: - | CE69: LIMA DIRIS NORTE | CF69: 95.3% | CG69: 97.9%
BM70: LIMA DIRIS SUR | BN70: 96.2% | BQ70: LIMA DIRIS SUR | BR70: 95.7% | BS70: 96.0% | BT70: 96.3% | BU70: 95.6% | BV70: 97.0% | BW70: 96.6% | BX70: 97.1% | BY70: 94.9% | BZ70: - | CA70: - | CB70: - | CC70: - | CE70: LIMA DIRIS SUR | CF70: 94.9% | CG70: 97.1%
BM71: LIMA REGION | BN71: 97.4% | BQ71: LIMA REGION | BR71: 96.0% | BS71: 98.5% | BT71: 96.4% | BU71: 97.1% | BV71: 98.3% | BW71: 98.5% | BX71: 97.9% | BY71: 96.9% | BZ71: - | CA71: - | CB71: - | CC71: - | CE71: LIMA PROVINCIAS | CF71: 96.0% | CG71: 98.5%
BM72: LORETO | BN72: 64.5% | BQ72: LORETO | BR72: 68.5% | BS72: 69.9% | BT72: 65.2% | BU72: 59.4% | BV72: 68.2% | BW72: 64.5% | BX72: 66.8% | BY72: 54.8% | BZ72: - | CA72: - | CB72: - | CC72: - | CE72: LORETO | CF72: 54.8% | CG72: 69.9%
BM73: MADRE DE DIOS | BN73: 96.1% | BQ73: MADRE DE DIOS | BR73: 93.7% | BS73: 96.5% | BT73: 96.6% | BU73: 97.8% | BV73: 96.0% | BW73: 97.9% | BX73: 94.8% | BY73: 94.9% | BZ73: - | CA73: - | CB73: - | CC73: - | CE73: MADRE DE DIOS | CF73: 93.7% | CG73: 97.9%
BM74: MOQUEGUA | BN74: 98.9% | BQ74: MOQUEGUA | BR74: 100.0% | BS74: 98.9% | BT74: 100.0% | BU74: =+IFERROR(GETPIVOTDATA("IND",$BQ$15,"Diris",$BQ74,"mes",BU$52),"-") -> 98.3% | BV74: 99.1% | BW74: 97.6% | BX74: 99.0% | BY74: 98.1% | BZ74: - | CA74: - | CB74: - | CC74: - | CE74: MOQUEGUA | CF74: 97.6% | CG74: 100.0%
BM75: PASCO | BN75: 92.3% | BQ75: PASCO | BR75: 91.0% | BS75: 95.1% | BT75: 90.7% | BU75: 92.4% | BV75: 94.4% | BW75: 90.9% | BX75: 93.3% | BY75: 91.3% | BZ75: - | CA75: - | CB75: - | CC75: - | CE75: PASCO | CF75: 90.7% | CG75: 95.1%
BM76: PIURA | BN76: 87.1% | BQ76: PIURA | BR76: 90.9% | BS76: 93.1% | BT76: 91.2% | BU76: 83.8% | BV76: 85.1% | BW76: 83.6% | BX76: 86.4% | BY76: 82.7% | BZ76: - | CA76: - | CB76: - | CC76: - | CE76: PIURA | CF76: 82.7% | CG76: 93.1%
BM77: PUNO | BN77: 91.6% | BQ77: PUNO | BR77: 93.7% | BS77: 91.3% | BT77: 92.2% | BU77: 85.7% | BV77: 93.6% | BW77: 91.2% | BX77: 93.4% | BY77: 91.3% | BZ77: - | CA77: - | CB77: - | CC77: - | CE77: PUNO | CF77: 85.7% | CG77: 93.7%
BM78: SAN MARTIN | BN78: 94.3% | BQ78: SAN MARTIN | BR78: 94.2% | BS78: 94.3% | BT78: 92.6% | BU78: 93.6% | BV78: 94.0% | BW78: 96.4% | BX78: 95.4% | BY78: 94.5% | BZ78: - | CA78: - | CB78: - | CC78: - | CE78: SAN MARTIN | CF78: 92.6% | CG78: 96.4%
BM79: TACNA | BN79: 97.2% | BQ79: TACNA | BR79: 100.0% | BS79: 99.5% | BT79: 99.5% | BU79: 97.8% | BV79: 97.3% | BW79: 96.4% | BX79: 87.9% | BY79: 98.3% | BZ79: - | CA79: - | CB79: - | CC79: - | CE79: TACNA | CF79: 87.9% | CG79: 100.0%
BM80: TUMBES | BN80: 97.2% | BQ80: TUMBES | BR80: 98.9% | BS80: 97.1% | BT80: 97.1% | BU80: 96.5% | BV80: 95.9% | BW80: 97.5% | BX80: 97.8% | BY80: 97.5% | BZ80: - | CA80: - | CB80: - | CC80: - | CE80: TUMBES | CF80: 95.9% | CG80: 98.9%
BM81: UCAYALI | BN81: 91.0% | BQ81: UCAYALI | BR81: 91.7% | BS81: 91.3% | BT81: 91.5% | BU81: 91.4% | BV81: 93.4% | BW81: 92.4% | BX81: 88.9% | BY81: 87.1% | BZ81: - | CA81: - | CB81: - | CC81: - | CE81: UCAYALI | CF81: 87.1% | CG81: 93.4%
BM82: NACIONAL | BN82: =+IFERROR(GETPIVOTDATA("ind",$BM$15),"-") -> 92.9% | BQ82: NACIONAL | BR82: =+IFERROR(GETPIVOTDATA("IND",$BQ$15,"mes",BR$52),"-") -> 93.5% | BS82: 94.0% | BT82: 93.4% | BU82: 91.7% | BV82: 93.3% | BW82: 93.2% | BX82: 93.1% | BY82: 91.1% | BZ82: - | CA82: - | CB82: - | CC82: - | CE82: NACIONAL | CF82: 91.1% | CG82: 94.0%

Sheet DL_1153_2025_CG08
A1: =+DL1153_2025!C14 -> Ficha 08:Tasa de éxito de tratamiento para TB Sensible | BQ1: 1 | DU1: 1
A2: Periodo de Evaluación: | B2: =+DL1153_2025!B42 -> Agosto - 2025
L5: Diris | M5: (Todas)
A6: año | B6: (Todas) | L6: Red | M6: (Todas) | BR6: año | BS6: (Todas) | BV6: año | BW6: (Todas) | CO6: año | CP6: (Todas)
A7: mes | B7: 8 | L7: eess_nombre | M7: (Todas) | BR7: mes | BS7: 8
A8: DIRESA/DIRIS | B8: RED | C8: Provincia | D8: Distrito | E8: Categoria EEES | F8: Nombre EESS | G8: Denominador: Número total de personas afectadas de casos de TB sensible registrados en el SIG TB con documento de identidad válido que hayan sido diagnosticados entre 01 de julio 2024 al 30 junio del año 2025. | H8: Numerador: Total de personas afectadas por TB sensible incluidos en el denominador con resultado de tratamiento: curado + tratamiento completo registrados en el SIG TB | I8: Indicador: Tasa de éxito de tratamiento para TB Sensible | L8: AÑO | M8: MES | N8: Categoría | O8: Denominador: Número total de personas afectadas de casos de TB sensible registrados en el SIG TB con documento de identidad válido que hayan sido diagnosticados entre 01 de julio 2024 al 30 junio del año 2025. | P8: Numerador: Total de personas afectadas por TB sensible incluidos en el denominador con resultado de tratamiento: curado + tratamiento completo registrados en el SIG TB | Q8: Indicador: Tasa de éxito de tratamiento para TB Sensible | BV8: Suma de Ind | BW8: mes | CO8: Suma de Ind | CP8: Diris
A9: Diris | B9: Red | C9: Provincia | D9: Distrito | E9: cat_estab | F9: eess_nombre | G9: Suma de den | H9: Suma de num | I9: Suma de Ind | L9: año | M9: mes | N9: cat_estab | O9: Suma de den | P9: Suma de num | Q9: Suma de Ind | BR9: Diris | BS9: Suma de Ind | BV9: Diris | BW9: 1 | BX9: 2 | BY9: 3 | BZ9: 4 | CA9: 5 | CB9: 6 | CC9: 7 | CD9: 8 | CO9: mes | CP9: AMAZONAS | CQ9: ANCASH | CR9: APURIMAC | CS9: AREQUIPA | CT9: AYACUCHO | CU9: CAJAMARCA | CV9: CALLAO | CW9: CUSCO | CX9: HUANCAVELICA | CY9: HUANUCO | CZ9: ICA | DA9: JUNIN | DB9: LA LIBERTAD | DC9: LAMBAYEQUE | DD9: LIMA DIRIS CENTRO | DE9: LIMA DIRIS ESTE | DF9: LIMA DIRIS NORTE | DG9: LIMA DIRIS SUR | DH9: LIMA REGION | DI9: LORETO | DJ9: MADRE DE DIOS | DK9: MOQUEGUA | DL9: PASCO | DM9: PIURA | DN9: PUNO | DO9: SAN MARTIN | DP9: TACNA | DQ9: TUMBES | DR9: UCAYALI | DS9: Total general
A10: AMAZONAS | G10: 122 | H10: 45 | I10: 36.9% | L10: 2025 | M10: 1 | O10: 10,483 | P10: 752 | Q10: 7.2% | BR10: AMAZONAS | BS10: 36.9% | BV10: AMAZONAS | BW10: 5.6% | BX10: 12.5% | BY10: 21.7% | BZ10: 26.0% | CA10: 31.6% | CB10: 34.4% | CC10: 34.4% | CD10: 36.9% | CO10: Enero | CP10: 5.6% | CQ10: 6.8% | CR10: 6.9% | CS10: 9.6% | CT10: 9.6% | CU10: 7.9% | CV10: 5.7% | CW10: 11.5% | CX10: 6.7% | CY10: 8.9% | CZ10: 5.8% | DA10: 10.8% | DB10: 6.0% | DC10: 9.3% | DD10: 5.1% | DE10: 7.1% | DF10: 4.6% | DG10: 4.1% | DH10: 7.7% | DI10: 10.8% | DJ10: 8.4% | DK10: 6.3% | DL10: 13.5% | DM10: 9.2% | DN10: 6.2% | DO10: 16.4% | DP10: 6.3% | DQ10: 1.5% | DR10: 10.5% | DS10: 7.2%
A11: ANCASH | G11: 411 | H11: 223 | I11: 54.3% | L11: 2025 | M11: 2 | O11: 12,044 | P11: 1,678 | Q11: 13.9% | BR11: ANCASH | BS11: 54.3% | BV11: ANCASH | BW11: 6.8% | BX11: 14.2% | BY11: 26.1% | BZ11: 32.0% | CA11: 40.4% | CB11: 42.1% | CC11: 48.7% | CD11: 54.3% | CO11: Febrero | CP11: 12.5% | CQ11: 14.2% | CR11: 29.0% | CS11: 16.2% | CT11: 15.2% | CU11: 18.8% | CV11: 12.0% | CW11: 17.2% | CX11: 9.1% | CY11: 15.6% | CZ11: 12.6% | DA11: 21.4% | DB11: 12.7% | DC11: 18.2% | DD11: 11.5% | DE11: 14.1% | DF11: 9.3% | DG11: 9.8% | DH11: 18.1% | DI11: 17.5% | DJ11: 19.6% | DK11: 17.5% | DL11: 18.6% | DM11: 17.1% | DN11: 12.0% | DO11: 22.9% | DP11: 13.4% | DQ11: 8.2% | DR11: 15.4% | DS11: 13.9%
A12: APURIMAC | G12: 50 | H12: 24 | I12: 48.0% | L12: 2025 | M12: 3 | O12: 13,609 | P12: 2,911 | Q12: 21.4% | BR12: APURIMAC | BS12: 48.0% | BV12: APURIMAC | BW12: 6.9% | BX12: 29.0% | BY12: 43.8% | BZ12: 52.8% | CA12: 44.4% | CB12: 44.0% | CC12: 46.0% | CD12: 48.0% | CO12: Marzo | CP12: 21.7% | CQ12: 26.1% | CR12: 43.8% | CS12: 25.8% | CT12: 20.7% | CU12: 27.1% | CV12: 19.8% | CW12: 18.6% | CX12: 16.7% | CY12: 22.7% | CZ12: 22.2% | DA12: 33.7% | DB12: 21.4% | DC12: 24.1% | DD12: 18.1% | DE12: 21.0% | DF12: 15.3% | DG12: 17.4% | DH12: 25.6% | DI12: 26.3% | DJ12: 27.0% | DK12: 24.2% | DL12: 32.6% | DM12: 25.6% | DN12: 20.9% | DO12: 29.4% | DP12: 19.8% | DQ12: 10.6% | DR12: 21.7% | DS12: 21.4%
A13: AREQUIPA | G13: 490 | H13: 256 | I13: 52.2% | L13: 2025 | M13: 4 | O13: 15,152 | P13: 4,083 | Q13: 26.9% | BR13: AREQUIPA | BS13: 52.2% | BV13: AREQUIPA | BW13: 9.6% | BX13: 16.2% | BY13: 25.8% | BZ13: 35.0% | CA13: 40.7% | CB13: 43.7% | CC13: 49.0% | CD13: 52.2% | CO13: Abril | CP13: 26.0% | CQ13: 32.0% | CR13: 52.8% | CS13: 35.0% | CT13: 20.0% | CU13: 35.2% | CV13: 25.3% | CW13: 23.6% | CX13: 26.2% | CY13: 27.8% | CZ13: 28.9% | DA13: 39.2% | DB13: 25.2% | DC13: 30.1% | DD13: 25.0% | DE13: 26.3% | DF13: 20.4% | DG13: 24.1% | DH13: 30.8% | DI13: 30.4% | DJ13: 34.4% | DK13: 28.6% | DL13: 35.2% | DM13: 27.8% | DN13: 25.3% | DO13: 31.6% | DP13: 26.7% | DQ13: 18.1% | DR13: 27.3% | DS13: 26.9%
A14: AYACUCHO | G14: 159 | H14: 61 | I14: 38.4% | L14: 2025 | M14: 5 | O14: 16,835 | P14: 5,402 | Q14: 32.1% | BR14: AYACUCHO | BS14: 38.4% | BV14: AYACUCHO | BW14: 9.6% | BX14: 15.2% | BY14: 20.7% | BZ14: 20.0% | CA14: 20.5% | CB14: 25.2% | CC14: 32.7% | CD14: 38.4% | CO14: Mayo | CP14: 31.6% | CQ14: 40.4% | CR14: 44.4% | CS14: 40.7% | CT14: 20.5% | CU14: 41.9% | CV14: 31.4% | CW14: 26.7% | CX14: 26.9% | CY14: 28.6% | CZ14: 35.1% | DA14: 44.6% | DB14: 31.6% | DC14: 37.2% | DD14: 30.2% | DE14: 31.0% | DF14: 24.8% | DG14: 30.4% | DH14: 37.5% | DI14: 34.5% | DJ14: 38.0% | DK14: 31.3% | DL14: 36.9% | DM14: 34.2% | DN14: 28.7% | DO14: 35.5% | DP14: 34.3% | DQ14: 24.0% | DR14: 32.0% | DS14: 32.1%
A15: CAJAMARCA | G15: 223 | H15: 122 | I15: 54.7% | L15: 2025 | M15: 6 | O15: 18,297 | P15: 6,545 | Q15: 35.8% | BR15: CAJAMARCA | BS15: 54.7% | BV15: CAJAMARCA | BW15: 7.9% | BX15: 18.8% | BY15: 27.1% | BZ15: 35.2% | CA15: 41.9% | CB15: 43.9% | CC15: 51.1% | CD15: 54.7% | CO15: Junio | CP15: 34.4% | CQ15: 42.1% | CR15: 44.0% | CS15: 43.7% | CT15: 25.2% | CU15: 43.9% | CV15: 36.4% | CW15: 27.0% | CX15: 29.6% | CY15: 31.2% | CZ15: 37.6% | DA15: 48.9% | DB15: 35.4% | DC15: 42.7% | DD15: 34.6% | DE15: 36.2% | DF15: 28.1% | DG15: 35.9% | DH15: 38.7% | DI15: 37.8% | DJ15: 38.4% | DK15: 30.9% | DL15: 35.3% | DM15: 36.0% | DN15: 33.9% | DO15: 36.6% | DP15: 43.5% | DQ15: 30.4% | DR15: 34.7% | DS15: 35.8%
A16: CALLAO | G16: 763 | H16: 398 | I16: 52.2% | L16: 2025 | M16: 7 | O16: 18,297 | P16: 7,735 | Q16: 42.3% | BR16: CALLAO | BS16: 52.2% | BV16: CALLAO | BW16: 5.7% | BX16: 12.0% | BY16: 19.8% | BZ16: 25.3% | CA16: 31.4% | CB16: 36.4% | CC16: 45.9% | CD16: 52.2% | CO16: Julio | CP16: 34.4% | CQ16: 48.7% | CR16: 46.0% | CS16: 49.0% | CT16: 32.7% | CU16: 51.1% | CV16: 45.9% | CW16: 32.6% | CX16: 29.6% | CY16: 38.2% | CZ16: 45.2% | DA16: 55.5% | DB16: 41.9% | DC16: 48.2% | DD16: 41.8% | DE16: 43.6% | DF16: 34.0% | DG16: 42.9% | DH16: 45.4% | DI16: 43.7% | DJ16: 43.9% | DK16: 38.1% | DL16: 41.2% | DM16: 39.4% | DN16: 38.8% | DO16: 42.0% | DP16: 50.5% | DQ16: 36.6% | DR16: 41.1% | DS16: 42.3%
A17: CUSCO | G17: 319 | H17: 109 | I17: 34.2% | L17: 2025 | M17: 8 | O17: 18,297 | P17: 8,498 | Q17: 46.4% | BR17: CUSCO | BS17: 34.2% | BV17: CUSCO | BW17: 11.5% | BX17: 17.2% | BY17: 18.6% | BZ17: 23.6% | CA17: 26.7% | CB17: 27.0% | CC17: 32.6% | CD17: 34.2% | CO17: Agosto | CP17: 36.9% | CQ17: 54.3% | CR17: 48.0% | CS17: 52.2% | CT17: 38.4% | CU17: 54.7% | CV17: 52.2% | CW17: 34.2% | CX17: 29.6% | CY17: 39.7% | CZ17: 48.7% | DA17: 61.0% | DB17: 45.5% | DC17: 54.1% | DD17: 47.6% | DE17: 48.7% | DF17: 37.7% | DG17: 48.5% | DH17: 49.7% | DI17: 46.1% | DJ17: 44.6% | DK17: 40.2% | DL17: 44.1% | DM17: 42.2% | DN17: 42.2% | DO17: 43.5% | DP17: 54.8% | DQ17: 40.2% | DR17: 44.1% | DS17: 46.4%
A18: HUANCAVELICA | G18: 54 | H18: 16 | I18: 29.6% | BR18: HUANCAVELICA | BS18: 29.6% | BV18: HUANCAVELICA | BW18: 6.7% | BX18: 9.1% | BY18: 16.7% | BZ18: 26.2% | CA18: 26.9% | CB18: 29.6% | CC18: 29.6% | CD18: 29.6%
A19: HUANUCO | G19: 340 | H19: 135 | I19: 39.7% | BR19: HUANUCO | BS19: 39.7% | BV19: HUANUCO | BW19: 8.9% | BX19: 15.6% | BY19: 22.7% | BZ19: 27.8% | CA19: 28.6% | CB19: 31.2% | CC19: 38.2% | CD19: 39.7%
A20: ICA | G20: 575 | H20: 280 | I20: 48.7% | BR20: ICA | BS20: 48.7% | BV20: ICA | BW20: 5.8% | BX20: 12.6% | BY20: 22.2% | BZ20: 28.9% | CA20: 35.1% | CB20: 37.6% | CC20: 45.2% | CD20: 48.7%
A21: JUNIN | G21: 436 | H21: 266 | I21: 61.0% | BR21: JUNIN | BS21: 61.0% | BV21: JUNIN | BW21: 10.8% | BX21: 21.4% | BY21: 33.7% | BZ21: 39.2% | CA21: 44.6% | CB21: 48.9% | CC21: 55.5% | CD21: 61.0%
A22: LA LIBERTAD | G22: 794 | H22: 361 | I22: 45.5% | BR22: LA LIBERTAD | BS22: 45.5% | BV22: LA LIBERTAD | BW22: 6.0% | BX22: 12.7% | BY22: 21.4% | BZ22: 25.2% | CA22: 31.6% | CB22: 35.4% | CC22: 41.9% | CD22: 45.5%
A23: LAMBAYEQUE | G23: 560 | H23: 303 | I23: 54.1% | BR23: LAMBAYEQUE | BS23: 54.1% | BV23: LAMBAYEQUE | BW23: 9.3% | BX23: 18.2% | BY23: 24.1% | BZ23: 30.1% | CA23: 37.2% | CB23: 42.7% | CC23: 48.2% | CD23: 54.1%
A24: LIMA DIRIS CENTRO | G24: 2239 | H24: 1066 | I24: 47.6% | BR24: LIMA DIRIS CENTRO | BS24: 47.6% | BV24: LIMA DIRIS CENTRO | BW24: 5.1% | BX24: 11.5% | BY24: 18.1% | BZ24: 25.0% | CA24: 30.2% | CB24: 34.6% | CC24: 41.8% | CD24: 47.6%
A25: LIMA DIRIS ESTE | G25: 1694 | H25: 825 | I25: 48.7% | BR25: LIMA DIRIS ESTE | BS25: 48.7% | BV25: LIMA DIRIS ESTE | BW25: 7.1% | BX25: 14.1% | BY25: 21.0% | BZ25: 26.3% | CA25: 31.0% | CB25: 36.2% | CC25: 43.6% | CD25: 48.7%
A26: LIMA DIRIS NORTE | G26: 2265 | H26: 853 | I26: 37.7% | BR26: LIMA DIRIS NORTE | BS26: 37.7% | BV26: LIMA DIRIS NORTE | BW26: 4.6% | BX26: 9.3% | BY26: 15.3% | BZ26: 20.4% | CA26: 24.8% | CB26: 28.1% | CC26: 34.0% | CD26: 37.7%
A27: LIMA DIRIS SUR | G27: 1659 | H27: 804 | I27: 48.5% | BR27: LIMA DIRIS SUR | BS27: 48.5% | BV27: LIMA DIRIS SUR | BW27: 4.1% | BX27: 9.8% | BY27: 17.4% | BZ27: 24.1% | CA27: 30.4% | CB27: 35.9% | CC27: 42.9% | CD27: 48.5%
A28: LORETO | G28: 1459 | H28: 672 | I28: 46.1% | BR28: LIMA REGION | BS28: 49.7% | BV28: LIMA REGION | BW28: 7.7% | BX28: 18.1% | BY28: 25.6% | BZ28: 30.8% | CA28: 37.5% | CB28: 38.7% | CC28: 45.4% | CD28: 49.7%
A29: MADRE DE DIOS | G29: 271 | H29: 121 | I29: 44.6% | BR29: LORETO | BS29: 46.1% | BV29: LORETO | BW29: 10.8% | BX29: 17.5% | BY29: 26.3% | BZ29: 30.4% | CA29: 34.5% | CB29: 37.8% | CC29: 43.7% | CD29: 46.1% | CP29: AMAZONAS | CQ29: ANCASH | CR29: APURIMAC | CS29: AREQUIPA | CT29: AYACUCHO | CU29: CAJAMARCA | CV29: CALLAO | CW29: CUSCO | CX29: HUANCAVELICA | CY29: HUANUCO | CZ29: ICA | DA29: JUNIN | DB29: LA LIBERTAD | DC29: LAMBAYEQUE | DD29: LIMA DIRIS CENTRO | DE29: LIMA DIRIS ESTE | DF29: LIMA DIRIS NORTE | DG29: LIMA DIRIS SUR | DH29: LIMA PROVINCIAS | DI29: LORETO | DJ29: MADRE DE DIOS | DK29: MOQUEGUA | DL29: PASCO | DM29: PIURA | DN29: PUNO | DO29: SAN MARTIN | DP29: TACNA | DQ29: TUMBES | DR29: UCAYALI | DS29: NACIONAL
A30: MOQUEGUA | G30: 97 | H30: 39 | I30: 40.2% | BR30: MADRE DE DIOS | BS30: 44.6% | BV30: MADRE DE DIOS | BW30: 8.4% | BX30: 19.6% | BY30: 27.0% | BZ30: 34.4% | CA30: 38.0% | CB30: 38.4% | CC30: 43.9% | CD30: 44.6% | CO30: Enero | CP30: =+IFERROR(GETPIVOTDATA("Ind",$CO$8,"Diris",CP$29,"mes",$CO30),"-") -> 5.6% | CQ30: =+IFERROR(GETPIVOTDATA("Ind",$CO$8,"Diris",CQ$29,"mes",$CO30),"-") -> 6.8% | CR30: 6.9% | CS30: 9.6% | CT30: 9.6% | CU30: 7.9% | CV30: 5.7% | CW30: 11.5% | CX30: 6.7% | CY30: 8.9% | CZ30: 5.8% | DA30: 10.8% | DB30: 6.0% | DC30: 9.3% | DD30: 5.1% | DE30: 7.1% | DF30: 4.6% | DG30: 4.1% | DH30: - | DI30: 10.8% | DJ30: 8.4% | DK30: 6.3% | DL30: 13.5% | DM30: 9.2% | DN30: 6.2% | DO30: 16.4% | DP30: 6.3% | DQ30: 1.5% | DR30: 10.5% | DS30: =+IFERROR(GETPIVOTDATA("Ind",$CO$8,"mes",$CO30),"-") -> 7.2%
A31: PASCO | G31: 68 | H31: 30 | I31: 44.1% | BR31: MOQUEGUA | BS31: 40.2% | BV31: MOQUEGUA | BW31: 6.3% | BX31: 17.5% | BY31: 24.2% | BZ31: 28.6% | CA31: 31.3% | CB31: 30.9% | CC31: 38.1% | CD31: 40.2% | CO31: Febrero | CP31: 12.5% | CQ31: 14.2% | CR31: 29.0% | CS31: 16.2% | CT31: 15.2% | CU31: 18.8% | CV31: 12.0% | CW31: 17.2% | CX31: 9.1% | CY31: 15.6% | CZ31: 12.6% | DA31: 21.4% | DB31: 12.7% | DC31: 18.2% | DD31: 11.5% | DE31: 14.1% | DF31: 9.3% | DG31: 9.8% | DH31: - | DI31: 17.5% | DJ31: 19.6% | DK31: 17.5% | DL31: 18.6% | DM31: 17.1% | DN31: 12.0% | DO31: 22.9% | DP31: 13.4% | DQ31: 8.2% | DR31: 15.4% | DS31: 13.9%
A32: PIURA | G32: 436 | H32: 184 | I32: 42.2% | BR32: PASCO | BS32: 44.1% | BV32: PASCO | BW32: 13.5% | BX32: 18.6% | BY32: 32.6% | BZ32: 35.2% | CA32: 36.9% | CB32: 35.3% | CC32: 41.2% | CD32: 44.1% | CO32: Marzo | CP32: 21.7% | CQ32: 26.1% | CR32: 43.8% | CS32: 25.8% | CT32: 20.7% | CU32: 27.1% | CV32: 19.8% | CW32: 18.6% | CX32: 16.7% | CY32: 22.7% | CZ32: 22.2% | DA32: 33.7% | DB32: 21.4% | DC32: 24.1% | DD32: 18.1% | DE32: 21.0% | DF32: 15.3% | DG32: 17.4% | DH32: - | DI32: 26.3% | DJ32: 27.0% | DK32: 24.2% | DL32: 32.6% | DM32: 25.6% | DN32: 20.9% | DO32: 29.4% | DP32: 19.8% | DQ32: 10.6% | DR32: 21.7% | DS32: 21.4%
A33: PUNO | G33: 289 | H33: 122 | I33: 42.2% | BR33: PIURA | BS33: 42.2% | BV33: PIURA | BW33: 9.2% | BX33: 17.1% | BY33: 25.6% | BZ33: 27.8% | CA33: 34.2% | CB33: 36.0% | CC33: 39.4% | CD33: 42.2% | CO33: Abril | CP33: 26.0% | CQ33: 32.0% | CR33: 52.8% | CS33: 35.0% | CT33: 20.0% | CU33: 35.2% | CV33: 25.3% | CW33: 23.6% | CX33: 26.2% | CY33: 27.8% | CZ33: 28.9% | DA33: 39.2% | DB33: 25.2% | DC33: 30.1% | DD33: 25.0% | DE33: 26.3% | DF33: 20.4% | DG33: 24.1% | DH33: - | DI33: 30.4% | DJ33: 34.4% | DK33: 28.6% | DL33: 35.2% | DM33: 27.8% | DN33: 25.3% | DO33: 31.6% | DP33: 26.7% | DQ33: 18.1% | DR33: 27.3% | DS33: 26.9%
A34: SAN MARTIN | G34: 393 | H34: 171 | I34: 43.5% | BR34: PUNO | BS34: 42.2% | BV34: PUNO | BW34: 6.2% | BX34: 12.0% | BY34: 20.9% | BZ34: 25.3% | CA34: 28.7% | CB34: 33.9% | CC34: 38.8% | CD34: 42.2% | CO34: Mayo | CP34: 31.6% | CQ34: 40.4% | CR34: 44.4% | CS34: 40.7% | CT34: 20.5% | CU34: 41.9% | CV34: 31.4% | CW34: 26.7% | CX34: 26.9% | CY34: 28.6% | CZ34: 35.1% | DA34: 44.6% | DB34: 31.6% | DC34: 37.2% | DD34: 30.2% | DE34: 31.0% | DF34: 24.8% | DG34: 30.4% | DH34: - | DI34: 34.5% | DJ34: 38.0% | DK34: 31.3% | DL34: 36.9% | DM34: 34.2% | DN34: 28.7% | DO34: 35.5% | DP34: 34.3% | DQ34: 24.0% | DR34: 32.0% | DS34: 32.1%
A35: TACNA | G35: 301 | H35: 165 | I35: 54.8% | BR35: SAN MARTIN | BS35: 43.5% | BV35: SAN MARTIN | BW35: 16.4% | BX35: 22.9% | BY35: 29.4% | BZ35: 31.6% | CA35: 35.5% | CB35: 36.6% | CC35: 42.0% | CD35: 43.5% | CO35: Junio | CP35: 34.4% | CQ35: 42.1% | CR35: 44.0% | CS35: 43.7% | CT35: 25.2% | CU35: 43.9% | CV35: 36.4% | CW35: 27.0% | CX35: 29.6% | CY35: 31.2% | CZ35: 37.6% | DA35: 48.9% | DB35: 35.4% | DC35: 42.7% | DD35: 34.6% | DE35: 36.2% | DF35: 28.1% | DG35: 35.9% | DH35: - | DI35: 37.8% | DJ35: 38.4% | DK35: 30.9% | DL35: 35.3% | DM35: 36.0% | DN35: 33.9% | DO35: 36.6% | DP35: 43.5% | DQ35: 30.4% | DR35: 34.7% | DS35: 35.8%
A36: TUMBES | G36: 112 | H36: 45 | I36: 40.2% | BR36: TACNA | BS36: 54.8% | BV36: TACNA | BW36: 6.3% | BX36: 13.4% | BY36: 19.8% | BZ36: 26.7% | CA36: 34.3% | CB36: 43.5% | CC36: 50.5% | CD36: 54.8% | CO36: Julio | CP36: 34.4% | CQ36: 48.7% | CR36: 46.0% | CS36: 49.0% | CT36: 32.7% | CU36: 51.1% | CV36: 45.9% | CW36: 32.6% | CX36: 29.6% | CY36: 38.2% | CZ36: 45.2% | DA36: 55.5% | DB36: 41.9% | DC36: 48.2% | DD36: 41.8% | DE36: 43.6% | DF36: 34.0% | DG36: 42.9% | DH36: - | DI36: 43.7% | DJ36: 43.9% | DK36: 38.1% | DL36: 41.2% | DM36: 39.4% | DN36: 38.8% | DO36: 42.0% | DP36: 50.5% | DQ36: 36.6% | DR36: 41.1% | DS36: 42.3%
A37: UCAYALI | G37: 925 | H37: 408 | I37: 44.1% | BR37: TUMBES | BS37: 40.2% | BV37: TUMBES | BW37: 1.5% | BX37: 8.2% | BY37: 10.6% | BZ37: 18.1% | CA37: 24.0% | CB37: 30.4% | CC37: 36.6% | CD37: 40.2% | CO37: Agosto | CP37: 36.9% | CQ37: 54.3% | CR37: 48.0% | CS37: 52.2% | CT37: 38.4% | CU37: 54.7% | CV37: 52.2% | CW37: 34.2% | CX37: 29.6% | CY37: 39.7% | CZ37: 48.7% | DA37: 61.0% | DB37: 45.5% | DC37: 54.1% | DD37: 47.6% | DE37: 48.7% | DF37: 37.7% | DG37: 48.5% | DH37: - | DI37: 46.1% | DJ37: 44.6% | DK37: 40.2% | DL37: 44.1% | DM37: 42.2% | DN37: 42.2% | DO37: 43.5% | DP37: 54.8% | DQ37: 40.2% | DR37: 44.1% | DS37: 46.4%
A38: LIMA REGION | G38: 793 | H38: 394 | I38: 49.7% | BR38: UCAYALI | BS38: 44.1% | BV38: UCAYALI | BW38: 10.5% | BX38: 15.4% | BY38: 21.7% | BZ38: 27.3% | CA38: 32.0% | CB38: 34.7% | CC38: 41.1% | CD38: 44.1% | CO38: Setiembre | CP38: - | CQ38: - | CR38: - | CS38: - | CT38: - | CU38: - | CV38: - | CW38: - | CX38: - | CY38: - | CZ38: - | DA38: - | DB38: - | DC38: - | DD38: - | DE38: - | DF38: - | DG38: - | DH38: - | DI38: - | DJ38: - | DK38: - | DL38: - | DM38: - | DN38: - | DO38: - | DP38: - | DQ38: - | DR38: - | DS38: -
A39: Total general | G39: 18297 | H39: 8498 | I39: 46.4% | BR39: Total general | BS39: 46.4% | BV39: Total general | BW39: 7.2% | BX39: 13.9% | BY39: 21.4% | BZ39: 26.9% | CA39: 32.1% | CB39: 35.8% | CC39: 42.3% | CD39: 46.4% | CO39: Octubre | CP39: - | CQ39: - | CR39: - | CS39: - | CT39: - | CU39: - | CV39: - | CW39: - | CX39: - | CY39: - | CZ39: - | DA39: - | DB39: - | DC39: - | DD39: - | DE39: - | DF39: - | DG39: - | DH39: - | DI39: =+IFERROR(GETPIVOTDATA("Ind",$CO$8,"Diris",DI$29,"mes",$CO39),"-") -> - | DJ39: - | DK39: - | DL39: - | DM39: - | DN39: - | DO39: - | DP39: - | DQ39: - | DR39: - | DS39: -
CO40: Noviembre | CP40: - | CQ40: - | CR40: - | CS40: - | CT40: - | CU40: - | CV40: - | CW40: - | CX40: - | CY40: - | CZ40: - | DA40: - | DB40: - | DC40: - | DD40: - | DE40: - | DF40: - | DG40: - | DH40: - | DI40: - | DJ40: - | DK40: - | DL40: - | DM40: - | DN40: - | DO40: - | DP40: - | DQ40: - | DR40: - | DS40: -
CO41: Diciembre | CP41: - | CQ41: - | CR41: - | CS41: - | CT41: - | CU41: - | CV41: - | CW41: - | CX41: - | CY41: - | CZ41: - | DA41: - | DB41: - | DC41: - | DD41: - | DE41: - | DF41: - | DG41: - | DH41: - | DI41: - | DJ41: - | DK41: - | DL41: - | DM41: - | DN41: - | DO41: - | DP41: - | DQ41: - | DR41: - | DS41: -
BW45: 1 | BX45: 2 | BY45: 3 | BZ45: 4 | CA45: 5 | CB45: 6 | CC45: 7 | CD45: 8 | CE45: 9 | CF45: 10 | CG45: 11 | CH45: 12
BR46: AMAZONAS | BS46: =+IFERROR(GETPIVOTDATA("Ind",$BR$9,"Diris",BR46),"-") -> 36.9% | BV46: AMAZONAS | BW46: =+IFERROR(GETPIVOTDATA("Ind",$BV$8,"Diris",$BV46,"mes",BW$45),"-") -> 5.6% | BX46: =+IFERROR(GETPIVOTDATA("Ind",$BV$8,"Diris",$BV46,"mes",BX$45),"-") -> 12.5% | BY46: 21.7% | BZ46: 26.0% | CA46: 31.6% | CB46: 34.4% | CC46: 34.4% | CD46: 36.9% | CE46: - | CF46: - | CG46: - | CH46: - | CJ46: AMAZONAS | CK46: =+IF(BW46="-","-",MIN(BW46:CH46)) -> 5.6% | CL46: =+IF(BW46="-","-",MAX(BW46:CH46)) -> 36.9%
BR47: ANCASH | BS47: 54.3% | BV47: ANCASH | BW47: 6.8% | BX47: 14.2% | BY47: 26.1% | BZ47: 32.0% | CA47: 40.4% | CB47: 42.1% | CC47: 48.7% | CD47: 54.3% | CE47: - | CF47: - | CG47: - | CH47: - | CJ47: ANCASH | CK47: 6.8% | CL47: 54.3%
BR48: APURIMAC | BS48: 48.0% | BV48: APURIMAC | BW48: 6.9% | BX48: 29.0% | BY48: 43.8% | BZ48: 52.8% | CA48: 44.4% | CB48: 44.0% | CC48: 46.0% | CD48: 48.0% | CE48: - | CF48: - | CG48: - | CH48: - | CJ48: APURIMAC | CK48: 6.9% | CL48: 52.8%
BR49: AREQUIPA | BS49: 52.2% | BV49: AREQUIPA | BW49: 9.6% | BX49: 16.2% | BY49: 25.8% | BZ49: 35.0% | CA49: 40.7% | CB49: 43.7% | CC49: 49.0% | CD49: 52.2% | CE49: - | CF49: - | CG49: - | CH49: - | CJ49: AREQUIPA | CK49: 9.6% | CL49: 52.2%
BR50: AYACUCHO | BS50: 38.4% | BV50: AYACUCHO | BW50: 9.6% | BX50: 15.2% | BY50: 20.7% | BZ50: 20.0% | CA50: 20.5% | CB50: 25.2% | CC50: 32.7% | CD50: 38.4% | CE50: - | CF50: - | CG50: - | CH50: - | CJ50: AYACUCHO | CK50: 9.6% | CL50: 38.4%
BR51: CAJAMARCA | BS51: 54.7% | BV51: CAJAMARCA | BW51: 7.9% | BX51: 18.8% | BY51: 27.1% | BZ51: 35.2% | CA51: 41.9% | CB51: 43.9% | CC51: 51.1% | CD51: 54.7% | CE51: - | CF51: - | CG51: - | CH51: - | CJ51: CAJAMARCA | CK51: 7.9% | CL51: 54.7%
BR52: CALLAO | BS52: 52.2% | BV52: CALLAO | BW52: 5.7% | BX52: 12.0% | BY52: 19.8% | BZ52: 25.3% | CA52: 31.4% | CB52: 36.4% | CC52: 45.9% | CD52: 52.2% | CE52: - | CF52: - | CG52: - | CH52: - | CJ52: CALLAO | CK52: 5.7% | CL52: 52.2%
BR53: CUSCO | BS53: 34.2% | BV53: CUSCO | BW53: 11.5% | BX53: 17.2% | BY53: 18.6% | BZ53: 23.6% | CA53: 26.7% | CB53: 27.0% | CC53: 32.6% | CD53: 34.2% | CE53: - | CF53: - | CG53: - | CH53: - | CJ53: CUSCO | CK53: 11.5% | CL53: 34.2%
BR54: HUANCAVELICA | BS54: 29.6% | BV54: HUANCAVELICA | BW54: 6.7% | BX54: 9.1% | BY54: 16.7% | BZ54: 26.2% | CA54: 26.9% | CB54: 29.6% | CC54: 29.6% | CD54: 29.6% | CE54: - | CF54: - | CG54: - | CH54: - | CJ54: HUANCAVELICA | CK54: 6.7% | CL54: 29.6%
BR55: HUANUCO | BS55: 39.7% | BV55: HUANUCO | BW55: 8.9% | BX55: 15.6% | BY55: 22.7% | BZ55: 27.8% | CA55: 28.6% | CB55: 31.2% | CC55: 38.2% | CD55: 39.7% | CE55: - | CF55: - | CG55: - | CH55: - | CJ55: HUANUCO | CK55: 8.9% | CL55: 39.7%
BR56: ICA | BS56: 48.7% | BV56: ICA | BW56: 5.8% | BX56: 12.6% | BY56: 22.2% | BZ56: 28.9% | CA56: 35.1% | CB56: 37.6% | CC56: 45.2% | CD56: 48.7% | CE56: - | CF56: - | CG56: - | CH56: - | CJ56: ICA | CK56: 5.8% | CL56: 48.7%
BR57: JUNIN | BS57: 61.0% | BV57: JUNIN | BW57: 10.8% | BX57: 21.4% | BY57: 33.7% | BZ57: 39.2% | CA57: 44.6% | CB57: 48.9% | CC57: 55.5% | CD57: 61.0% | CE57: - | CF57: - | CG57: - | CH57: - | CJ57: JUNIN | CK57: 10.8% | CL57: 61.0%
BR58: LA LIBERTAD | BS58: 45.5% | BV58: LA LIBERTAD | BW58: 6.0% | BX58: 12.7% | BY58: 21.4% | BZ58: 25.2% | CA58: 31.6% | CB58: 35.4% | CC58: 41.9% | CD58: 45.5% | CE58: - | CF58: - | CG58: - | CH58: - | CJ58: LA LIBERTAD | CK58: 6.0% | CL58: 45.5%
BR59: LAMBAYEQUE | BS59: 54.1% | BV59: LAMBAYEQUE | BW59: 9.3% | BX59: 18.2% | BY59: 24.1% | BZ59: 30.1% | CA59: 37.2% | CB59: 42.7% | CC59: 48.2% | CD59: 54.1% | CE59: - | CF59: - | CG59: - | CH59: - | CJ59: LAMBAYEQUE | CK59: 9.3% | CL59: 54.1%
BR60: LIMA DIRIS CENTRO | BS60: 47.6% | BV60: LIMA DIRIS CENTRO | BW60: 5.1% | BX60: 11.5% | BY60: 18.1% | BZ60: 25.0% | CA60: 30.2% | CB60: 34.6% | CC60: 41.8% | CD60: 47.6% | CE60: - | CF60: - | CG60: - | CH60: - | CJ60: LIMA DIRIS CENTRO | CK60: 5.1% | CL60: 47.6%
BR61: LIMA DIRIS ESTE | BS61: 48.7% | BV61: LIMA DIRIS ESTE | BW61: 7.1% | BX61: 14.1% | BY61: 21.0% | BZ61: 26.3% | CA61: 31.0% | CB61: 36.2% | CC61: 43.6% | CD61: 48.7% | CE61: - | CF61: - | CG61: - | CH61: - | CJ61: LIMA DIRIS ESTE | CK61: 7.1% | CL61: 48.7%
BR62: LIMA DIRIS NORTE | BS62: 37.7% | BV62: LIMA DIRIS NORTE | BW62: 4.6% | BX62: 9.3% | BY62: 15.3% | BZ62: 20.4% | CA62: 24.8% | CB62: 28.1% | CC62: 34.0% | CD62: 37.7% | CE62: - | CF62: - | CG62: - | CH62: - | CJ62: LIMA DIRIS NORTE | CK62: 4.6% | CL62: 37.7%
BR63: LIMA DIRIS SUR | BS63: 48.5% | BV63: LIMA DIRIS SUR | BW63: 4.1% | BX63: 9.8% | BY63: 17.4% | BZ63: 24.1% | CA63: 30.4% | CB63: 35.9% | CC63: 42.9% | CD63: 48.5% | CE63: - | CF63: - | CG63: - | CH63: - | CJ63: LIMA DIRIS SUR | CK63: 4.1% | CL63: 48.5%
BR64: LIMA REGION | BS64: 49.7% | BV64: LIMA REGION | BW64: 7.7% | BX64: 18.1% | BY64: 25.6% | BZ64: 30.8% | CA64: 37.5% | CB64: 38.7% | CC64: 45.4% | CD64: 49.7% | CE64: - | CF64: - | CG64: - | CH64: - | CJ64: LIMA PROVINCIAS | CK64: 7.7% | CL64: 49.7%
BR65: LORETO | BS65: 46.1% | BV65: LORETO | BW65: 10.8% | BX65: 17.5% | BY65: 26.3% | BZ65: 30.4% | CA65: 34.5% | CB65: 37.8% | CC65: 43.7% | CD65: 46.1% | CE65: - | CF65: - | CG65: - | CH65: - | CJ65: LORETO | CK65: 10.8% | CL65: 46.1%
BR66: MADRE DE DIOS | BS66: 44.6% | BV66: MADRE DE DIOS | BW66: 8.4% | BX66: 19.6% | BY66: 27.0% | BZ66: 34.4% | CA66: 38.0% | CB66: 38.4% | CC66: 43.9% | CD66: 44.6% | CE66: - | CF66: - | CG66: - | CH66: - | CJ66: MADRE DE DIOS | CK66: 8.4% | CL66: 44.6%
BR67: MOQUEGUA | BS67: 40.2% | BV67: MOQUEGUA | BW67: 6.3% | BX67: 17.5% | BY67: 24.2% | BZ67: 28.6% | CA67: 31.3% | CB67: 30.9% | CC67: 38.1% | CD67: 40.2% | CE67: - | CF67: - | CG67: - | CH67: - | CJ67: MOQUEGUA | CK67: 6.3% | CL67: 40.2%
BR68: PASCO | BS68: 44.1% | BV68: PASCO | BW68: 13.5% | BX68: 18.6% | BY68: 32.6% | BZ68: 35.2% | CA68: 36.9% | CB68: 35.3% | CC68: 41.2% | CD68: 44.1% | CE68: - | CF68: - | CG68: - | CH68: - | CJ68: PASCO | CK68: 13.5% | CL68: 44.1%
BR69: PIURA | BS69: 42.2% | BV69: PIURA | BW69: 9.2% | BX69: 17.1% | BY69: 25.6% | BZ69: 27.8% | CA69: 34.2% | CB69: 36.0% | CC69: 39.4% | CD69: 42.2% | CE69: - | CF69: - | CG69: - | CH69: - | CJ69: PIURA | CK69: 9.2% | CL69: 42.2%
BR70: PUNO | BS70: 42.2% | BV70: PUNO | BW70: 6.2% | BX70: 12.0% | BY70: 20.9% | BZ70: 25.3% | CA70: 28.7% | CB70: 33.9% | CC70: 38.8% | CD70: 42.2% | CE70: - | CF70: - | CG70: - | CH70: - | CJ70: PUNO | CK70: 6.2% | CL70: 42.2%
BR71: SAN MARTIN | BS71: 43.5% | BV71: SAN MARTIN | BW71: 16.4% | BX71: 22.9% | BY71: 29.4% | BZ71: 31.6% | CA71: 35.5% | CB71: 36.6% | CC71: 42.0% | CD71: 43.5% | CE71: - | CF71: - | CG71: - | CH71: - | CJ71: SAN MARTIN | CK71: 16.4% | CL71: 43.5%
BR72: TACNA | BS72: 54.8% | BV72: TACNA | BW72: 6.3% | BX72: 13.4% | BY72: 19.8% | BZ72: 26.7% | CA72: 34.3% | CB72: 43.5% | CC72: 50.5% | CD72: 54.8% | CE72: - | CF72: - | CG72: - | CH72: - | CJ72: TACNA | CK72: 6.3% | CL72: 54.8%
BR73: TUMBES | BS73: 40.2% | BV73: TUMBES | BW73: 1.5% | BX73: 8.2% | BY73: 10.6% | BZ73: 18.1% | CA73: 24.0% | CB73: 30.4% | CC73: 36.6% | CD73: 40.2% | CE73: - | CF73: - | CG73: - | CH73: - | CJ73: TUMBES | CK73: 1.5% | CL73: 40.2%
BR74: UCAYALI | BS74: 44.1% | BV74: UCAYALI | BW74: 10.5% | BX74: 15.4% | BY74: 21.7% | BZ74: 27.3% | CA74: 32.0% | CB74: 34.7% | CC74: 41.1% | CD74: 44.1% | CE74: - | CF74: - | CG74: - | CH74: - | CJ74: UCAYALI | CK74: 10.5% | CL74: 44.1%
BR75: NACIONAL | BS75: =+IFERROR(GETPIVOTDATA("Ind",$BR$9),"-") -> 46.4% | BV75: NACIONAL | BW75: =+IFERROR(GETPIVOTDATA("Ind",$BV$8,"mes",BW$45),"-") -> 7.2% | BX75: =+IFERROR(GETPIVOTDATA("Ind",$BV$8,"mes",BX$45),"-") -> 13.9% | BY75: 0.2139025645 | BZ75: 0.269469377 | CA75: 0.3208791209 | CB75: 0.357708914 | CC75: 0.4227468984 | CD75: 0.4644477237 | CE75: - | CF75: - | CG75: - | CH75: =+IFERROR(GETPIVOTDATA("Ind",$BV$8,"mes",CH$45),"-") -> - | CJ75: NACIONAL | CK75: 7.2% | CL75: 46.4%

Sheet DL_1153_2025_CG09
A1: =+DL1153_2025!C15 -> Ficha 09:Porcentaje de contactos menores de 5 años de edad que culminan Terapia Preventiva para TB. | BP1: 1 | DT1: 1
A2: Periodo de Evaluación: | B2: =+DL1153_2025!B42 -> Agosto - 2025
K3: Avance Mensual:
K5: Diris | L5: (Todas)
A6: año | B6: (Todas) | K6: Red | L6: (Todas) | BQ6: año | BR6: (Todas) | CN6: año | CO6: (Todas)
A7: mes | B7: 8 | K7: eess_nombre | L7: (Todas) | BQ7: mes | BR7: 8 | BU7: año | BV7: (Todas)
A8: DIRESA/DIRIS | B8: RED | C8: Provincia | D8: Distrito | E8: Categoria EEES | F8: Nombre EESS | G8: Denominador: Total de contactos < 5 años de TB pulmonar censados de los casos diagnosticados entre 01 de enero 2024 al 30 setiembre del año 2024, registrados en el SIG TB en el período a evaluar. | H8: Numerador: Total de contactos <5 años de TB Pulmonar incluidos en el denominador, que culminan TPTB del periodo a evaluar | I8: Indicador: Porcentaje de contactos menores de 5 años de edad que culminan Terapia Preventiva para TB | K8: AÑO | L8: MES | M8: Categoría | N8: Denominador: Total de contactos < 5 años de TB pulmonar censados de los casos diagnosticados entre 01 de enero 2024 al 30 setiembre del año 2024, registrados en el SIG TB en el período a evaluar. | O8: Numerador: Total de contactos <5 años de TB Pulmonar incluidos en el denominador, que culminan TPTB del periodo a evaluar | P8: Indicador: Porcentaje de contactos menores de 5 años de edad que culminan Terapia Preventiva para TB | CN8: Suma de Ind | CO8: Diris
A9: Diris | B9: Red | C9: Provincia | D9: Distrito | E9: cat_estab | F9: eess_nombre | G9: Suma de den | H9: Suma de num | I9: Suma de Ind | K9: año | L9: mes | M9: cat_estab | N9: Suma de den | O9: Suma de num | P9: Suma de Ind | BQ9: Diris | BR9: Suma de Ind | BU9: Suma de Ind | BV9: mes | CN9: mes | CO9: AMAZONAS | CP9: ANCASH | CQ9: APURIMAC | CR9: AREQUIPA | CS9: AYACUCHO | CT9: CAJAMARCA | CU9: CALLAO | CV9: CUSCO | CW9: HUANCAVELICA | CX9: HUANUCO | CY9: ICA | CZ9: JUNIN | DA9: LA LIBERTAD | DB9: LAMBAYEQUE | DC9: LIMA DIRIS CENTRO | DD9: LIMA DIRIS ESTE | DE9: LIMA DIRIS NORTE | DF9: LIMA DIRIS SUR | DG9: LIMA REGION | DH9: LORETO | DI9: MADRE DE DIOS | DJ9: MOQUEGUA | DK9: PASCO | DL9: PIURA | DM9: PUNO | DN9: SAN MARTIN | DO9: TACNA | DP9: TUMBES | DQ9: UCAYALI | DR9: Total general
A10: AMAZONAS | G10: 7 | H10: 5 | I10: 71.4% | K10: 2025 | L10: 1 | N10: 528 | O10: 31 | P10: 5.9% | BQ10: AMAZONAS | BR10: 71.4% | BU10: Diris | BV10: 1 | BW10: 2 | BX10: 3 | BY10: 4 | BZ10: 5 | CA10: 6 | CB10: 7 | CC10: 8 | CN10: Enero | CO10: 100.0% | CP10: 6.7% | CQ10: 0.0% | CR10: 0.0% | CS10: 0.0% | CT10: 9.1% | CU10: 4.8% | CV10: 11.1% | CW10: 50.0% | CX10: 12.5% | CY10: 17.6% | CZ10: 11.1% | DA10: 0.0% | DB10: 0.0% | DC10: 6.9% | DD10: 9.2% | DE10: 4.7% | DF10: 0.0% | DG10: 0.0% | DH10: 0.0% | DI10: 0.0% | DJ10: 0.0% | DK10: 0.0% | DL10: 0.0% | DM10: 0.0% | DN10: 0.0% | DO10: 0.0% | DP10: 0.0% | DQ10: 0.0% | DR10: 5.9%
A11: ANCASH | G11: 55 | H11: 31 | I11: 56.4% | K11: 2025 | L11: 2 | N11: 721 | O11: 70 | P11: 9.7% | BQ11: ANCASH | BR11: 56.4% | BU11: AMAZONAS | BV11: 100.0% | BW11: 100.0% | BX11: 25.0% | BY11: 20.0% | BZ11: 16.7% | CA11: 14.3% | CB11: 71.4% | CC11: 71.4% | CN11: Febrero | CO11: 100.0% | CP11: 8.3% | CQ11: 0.0% | CR11: 16.7% | CS11: 0.0% | CT11: 7.1% | CU11: 7.1% | CV11: 19.0% | CW11: 50.0% | CX11: 12.5% | CY11: 16.7% | CZ11: 25.0% | DA11: 10.0% | DB11: 7.1% | DC11: 11.4% | DD11: 14.3% | DE11: 11.0% | DF11: 0.0% | DG11: 0.0% | DH11: 0.0% | DI11: 0.0% | DJ11: 0.0% | DK11: 0.0% | DL11: 0.0% | DM11: 0.0% | DN11: 0.0% | DO11: 0.0% | DP11: 0.0% | DQ11: 0.0% | DR11: 9.7%
A12: APURIMAC | G12: 8 | H12: 4 | I12: 50.0% | K12: 2025 | L12: 3 | N12: 936 | O12: 135 | P12: 14.4% | BQ12: APURIMAC | BR12: 50.0% | BU12: ANCASH | BV12: 6.7% | BW12: 8.3% | BX12: 24.1% | BY12: 40.6% | BZ12: 60.0% | CA12: 52.1% | CB12: 54.9% | CC12: 56.4% | CN12: Marzo | CO12: 25.0% | CP12: 24.1% | CQ12: 16.7% | CR12: 31.3% | CS12: 0.0% | CT12: 13.3% | CU12: 10.3% | CV12: 30.0% | CW12: 50.0% | CX12: 20.0% | CY12: 22.2% | CZ12: 26.1% | DA12: 14.3% | DB12: 10.5% | DC12: 22.6% | DD12: 18.2% | DE12: 12.5% | DF12: 0.0% | DG12: 11.1% | DH12: 3.1% | DI12: 0.0% | DJ12: 0.0% | DK12: 0.0% | DL12: 0.0% | DM12: 0.0% | DN12: 0.0% | DO12: 0.0% | DP12: 0.0% | DQ12: 0.0% | DR12: 14.4%
A13: AREQUIPA | G13: 25 | H13: 12 | I13: 48.0% | K13: 2025 | L13: 4 | N13: 1,113 | O13: 234 | P13: 21.0% | BQ13: AREQUIPA | BR13: 48.0% | BU13: APURIMAC | BV13: 0.0% | BW13: 0.0% | BX13: 16.7% | BY13: 16.7% | BZ13: 25.0% | CA13: 50.0% | CB13: 50.0% | CC13: 50.0% | CN13: Abril | CO13: 20.0% | CP13: 40.6% | CQ13: 16.7% | CR13: 30.0% | CS13: 0.0% | CT13: 18.8% | CU13: 9.4% | CV13: 40.0% | CW13: 50.0% | CX13: 20.0% | CY13: 35.3% | CZ13: 30.0% | DA13: 20.0% | DB13: 36.4% | DC13: 28.4% | DD13: 27.7% | DE13: 17.5% | DF13: 7.3% | DG13: 18.9% | DH13: 6.3% | DI13: 0.0% | DJ13: 20.0% | DK13: 0.0% | DL13: 0.0% | DM13: 0.0% | DN13: 0.0% | DO13: 0.0% | DP13: 20.0% | DQ13: 12.8% | DR13: 21.0%
A14: AYACUCHO | G14: 7 | H14: 3 | I14: 42.9% | K14: 2025 | L14: 5 | N14: 1,301 | O14: 381 | P14: 29.3% | BQ14: AYACUCHO | BR14: 42.9% | BU14: AREQUIPA | BV14: 0.0% | BW14: 16.7% | BX14: 31.3% | BY14: 30.0% | BZ14: 31.8% | CA14: 41.7% | CB14: 48.0% | CC14: 48.0% | CN14: Mayo | CO14: 16.7% | CP14: 60.0% | CQ14: 25.0% | CR14: 31.8% | CS14: 28.6% | CT14: 35.3% | CU14: 18.3% | CV14: 46.7% | CW14: 50.0% | CX14: 15.0% | CY14: 46.4% | CZ14: 41.8% | DA14: 29.7% | DB14: 42.0% | DC14: 37.0% | DD14: 32.6% | DE14: 26.4% | DF14: 16.2% | DG14: 27.9% | DH14: 22.0% | DI14: 0.0% | DJ14: 40.0% | DK14: 0.0% | DL14: 0.0% | DM14: 9.1% | DN14: 0.0% | DO14: 14.3% | DP14: 40.0% | DQ14: 13.0% | DR14: 29.3%
A15: CAJAMARCA | G15: 22 | H15: 11 | I15: 50.0% | K15: 2025 | L15: 6 | N15: 1,450 | O15: 549 | P15: 37.9% | BQ15: CAJAMARCA | BR15: 50.0% | BU15: AYACUCHO | BV15: 0.0% | BW15: 0.0% | BX15: 0.0% | BY15: 0.0% | BZ15: 28.6% | CA15: 28.6% | CB15: 28.6% | CC15: 42.9% | CN15: Junio | CO15: 14.3% | CP15: 52.1% | CQ15: 50.0% | CR15: 41.7% | CS15: 28.6% | CT15: 50.0% | CU15: 41.5% | CV15: 51.5% | CW15: 50.0% | CX15: 20.0% | CY15: 49.3% | CZ15: 61.3% | DA15: 33.6% | DB15: 51.9% | DC15: 43.5% | DD15: 38.9% | DE15: 33.2% | DF15: 25.3% | DG15: 34.3% | DH15: 34.7% | DI15: 14.3% | DJ15: 57.1% | DK15: 0.0% | DL15: 31.3% | DM15: 36.4% | DN15: 0.0% | DO15: 42.9% | DP15: 60.0% | DQ15: 18.6% | DR15: 37.9%
A16: CALLAO | G16: 76 | H16: 44 | I16: 57.9% | K16: 2025 | L16: 7 | N16: 1,587 | O16: 681 | P16: 42.9% | BQ16: CALLAO | BR16: 57.9% | BU16: CAJAMARCA | BV16: 9.1% | BW16: 7.1% | BX16: 13.3% | BY16: 18.8% | BZ16: 35.3% | CA16: 50.0% | CB16: 50.0% | CC16: 50.0% | CN16: Julio | CO16: 71.4% | CP16: 54.9% | CQ16: 50.0% | CR16: 48.0% | CS16: 28.6% | CT16: 50.0% | CU16: 49.3% | CV16: 58.8% | CW16: 50.0% | CX16: 25.0% | CY16: 52.1% | CZ16: 57.3% | DA16: 34.4% | DB16: 63.8% | DC16: 48.1% | DD16: 39.8% | DE16: 40.7% | DF16: 39.8% | DG16: 35.1% | DH16: 40.2% | DI16: 12.5% | DJ16: 57.1% | DK16: 25.0% | DL16: 38.9% | DM16: 61.5% | DN16: 4.0% | DO16: 50.0% | DP16: 60.0% | DQ16: 22.9% | DR16: 42.9%
A17: CUSCO | G17: 37 | H17: 20 | I17: 54.1% | K17: 2025 | L17: 8 | N17: 1,678 | O17: 756 | P17: 45.1% | BQ17: CUSCO | BR17: 54.1% | BU17: CALLAO | BV17: 4.8% | BW17: 7.1% | BX17: 10.3% | BY17: 9.4% | BZ17: 18.3% | CA17: 41.5% | CB17: 49.3% | CC17: 57.9% | CN17: Agosto | CO17: 71.4% | CP17: 56.4% | CQ17: 50.0% | CR17: 48.0% | CS17: 42.9% | CT17: 50.0% | CU17: 57.9% | CV17: 54.1% | CW17: 50.0% | CX17: 30.0% | CY17: 51.3% | CZ17: 60.8% | DA17: 42.1% | DB17: 77.0% | DC17: 48.9% | DD17: 38.9% | DE17: 40.3% | DF17: 43.8% | DG17: 34.2% | DH17: 40.5% | DI17: 50.0% | DJ17: 57.1% | DK17: 25.0% | DL17: 33.3% | DM17: 66.7% | DN17: 7.4% | DO17: 50.0% | DP17: 60.0% | DQ17: 24.7% | DR17: 45.1%
A18: HUANCAVELICA | G18: 2 | H18: 1 | I18: 50.0% | BQ18: HUANCAVELICA | BR18: 50.0% | BU18: CUSCO | BV18: 11.1% | BW18: 19.0% | BX18: 30.0% | BY18: 40.0% | BZ18: 46.7% | CA18: 51.5% | CB18: 58.8% | CC18: 54.1%
A19: HUANUCO | G19: 20 | H19: 6 | I19: 30.0% | BQ19: HUANUCO | BR19: 30.0% | BU19: HUANCAVELICA | BV19: 50.0% | BW19: 50.0% | BX19: 50.0% | BY19: 50.0% | BZ19: 50.0% | CA19: 50.0% | CB19: 50.0% | CC19: 50.0%
A20: ICA | G20: 76 | H20: 39 | I20: 51.3% | BQ20: ICA | BR20: 51.3% | BU20: HUANUCO | BV20: 12.5% | BW20: 12.5% | BX20: 20.0% | BY20: 20.0% | BZ20: 15.0% | CA20: 20.0% | CB20: 25.0% | CC20: 30.0%
A21: JUNIN | G21: 79 | H21: 48 | I21: 60.8% | BQ21: JUNIN | BR21: 60.8% | BU21: ICA | BV21: 17.6% | BW21: 16.7% | BX21: 22.2% | BY21: 35.3% | BZ21: 46.4% | CA21: 49.3% | CB21: 52.1% | CC21: 51.3%
A22: LA LIBERTAD | G22: 133 | H22: 56 | I22: 42.1% | BQ22: LA LIBERTAD | BR22: 42.1% | BU22: JUNIN | BV22: 11.1% | BW22: 25.0% | BX22: 26.1% | BY22: 30.0% | BZ22: 41.8% | CA22: 61.3% | CB22: 57.3% | CC22: 60.8%
A23: LAMBAYEQUE | G23: 61 | H23: 47 | I23: 77.0% | BQ23: LAMBAYEQUE | BR23: 77.0% | BU23: LA LIBERTAD | BV23: 0.0% | BW23: 10.0% | BX23: 14.3% | BY23: 20.0% | BZ23: 29.7% | CA23: 33.6% | CB23: 34.4% | CC23: 42.1%
A24: LIMA DIRIS CENTRO | G24: 174 | H24: 85 | I24: 48.9% | BQ24: LIMA DIRIS CENTRO | BR24: 48.9% | BU24: LAMBAYEQUE | BV24: 0.0% | BW24: 7.1% | BX24: 10.5% | BY24: 36.4% | BZ24: 42.0% | CA24: 51.9% | CB24: 63.8% | CC24: 77.0%
A25: LIMA DIRIS ESTE | G25: 180 | H25: 70 | I25: 38.9% | BQ25: LIMA DIRIS ESTE | BR25: 38.9% | BU25: LIMA DIRIS CENTRO | BV25: 6.9% | BW25: 11.4% | BX25: 22.6% | BY25: 28.4% | BZ25: 37.0% | CA25: 43.5% | CB25: 48.1% | CC25: 48.9%
A26: LIMA DIRIS NORTE | G26: 243 | H26: 98 | I26: 40.3% | BQ26: LIMA DIRIS NORTE | BR26: 40.3% | BU26: LIMA DIRIS ESTE | BV26: 9.2% | BW26: 14.3% | BX26: 18.2% | BY26: 27.7% | BZ26: 32.6% | CA26: 38.9% | CB26: 39.8% | CC26: 38.9%
A27: LIMA DIRIS SUR | G27: 105 | H27: 46 | I27: 43.8% | BQ27: LIMA DIRIS SUR | BR27: 43.8% | BU27: LIMA DIRIS NORTE | BV27: 4.7% | BW27: 11.0% | BX27: 12.5% | BY27: 17.5% | BZ27: 26.4% | CA27: 33.2% | CB27: 40.7% | CC27: 40.3%
A28: LIMA REGION | G28: 79 | H28: 27 | I28: 34.2% | BQ28: LIMA REGION | BR28: 34.2% | BU28: LIMA DIRIS SUR | BV28: 0.0% | BW28: 0.0% | BX28: 0.0% | BY28: 7.3% | BZ28: 16.2% | CA28: 25.3% | CB28: 39.8% | CC28: 43.8%
A29: LORETO | G29: 116 | H29: 47 | I29: 40.5% | BQ29: LORETO | BR29: 40.5% | BU29: LIMA REGION | BV29: 0.0% | BW29: 0.0% | BX29: 11.1% | BY29: 18.9% | BZ29: 27.9% | CA29: 34.3% | CB29: 35.1% | CC29: 34.2% | CO29: AMAZONAS | CP29: ANCASH | CQ29: APURIMAC | CR29: AREQUIPA | CS29: AYACUCHO | CT29: CAJAMARCA | CU29: CALLAO | CV29: CUSCO | CW29: HUANCAVELICA | CX29: HUANUCO | CY29: ICA | CZ29: JUNIN | DA29: LA LIBERTAD | DB29: LAMBAYEQUE | DC29: LIMA DIRIS CENTRO | DD29: LIMA DIRIS ESTE | DE29: LIMA DIRIS NORTE | DF29: LIMA DIRIS SUR | DG29: LIMA REGION | DH29: LORETO | DI29: MADRE DE DIOS | DJ29: MOQUEGUA | DK29: PASCO | DL29: PIURA | DM29: PUNO | DN29: SAN MARTIN | DO29: TACNA | DP29: TUMBES | DQ29: UCAYALI | DR29: NACIONAL
A30: MADRE DE DIOS | G30: 8 | H30: 4 | I30: 50.0% | BQ30: MADRE DE DIOS | BR30: 50.0% | BU30: LORETO | BV30: 0.0% | BW30: 0.0% | BX30: 3.1% | BY30: 6.3% | BZ30: 22.0% | CA30: 34.7% | CB30: 40.2% | CC30: 40.5% | CN30: Enero | CO30: =+IFERROR(GETPIVOTDATA("Ind",$CN$8,"Diris",CO$29,"mes",$CN30),"-") -> 100.0% | CP30: =+IFERROR(GETPIVOTDATA("Ind",$CN$8,"Diris",CP$29,"mes",$CN30),"-") -> 6.7% | CQ30: 0.0% | CR30: 0.0% | CS30: 0.0% | CT30: 9.1% | CU30: 4.8% | CV30: 11.1% | CW30: 50.0% | CX30: 12.5% | CY30: 17.6% | CZ30: 11.1% | DA30: 0.0% | DB30: 0.0% | DC30: 6.9% | DD30: 9.2% | DE30: 4.7% | DF30: 0.0% | DG30: 0.0% | DH30: 0.0% | DI30: 0.0% | DJ30: 0.0% | DK30: 0.0% | DL30: 0.0% | DM30: 0.0% | DN30: 0.0% | DO30: 0.0% | DP30: 0.0% | DQ30: 0.0% | DR30: =+IFERROR(GETPIVOTDATA("Ind",$CN$8,"mes",$CN30),"-") -> 5.9%
A31: MOQUEGUA | G31: 7 | H31: 4 | I31: 57.1% | BQ31: MOQUEGUA | BR31: 57.1% | BU31: MADRE DE DIOS | BV31: 0.0% | BW31: 0.0% | BX31: 0.0% | BY31: 0.0% | BZ31: 0.0% | CA31: 14.3% | CB31: 12.5% | CC31: 50.0% | CN31: Febrero | CO31: 100.0% | CP31: 8.3% | CQ31: 0.0% | CR31: 16.7% | CS31: 0.0% | CT31: 7.1% | CU31: 7.1% | CV31: 19.0% | CW31: 50.0% | CX31: 12.5% | CY31: 16.7% | CZ31: 25.0% | DA31: 10.0% | DB31: 7.1% | DC31: 11.4% | DD31: 14.3% | DE31: 11.0% | DF31: 0.0% | DG31: 0.0% | DH31: 0.0% | DI31: 0.0% | DJ31: 0.0% | DK31: 0.0% | DL31: 0.0% | DM31: 0.0% | DN31: 0.0% | DO31: 0.0% | DP31: 0.0% | DQ31: 0.0% | DR31: 9.7%
A32: PASCO | G32: 4 | H32: 1 | I32: 25.0% | BQ32: PASCO | BR32: 25.0% | BU32: MOQUEGUA | BV32: 0.0% | BW32: 0.0% | BX32: 0.0% | BY32: 20.0% | BZ32: 40.0% | CA32: 57.1% | CB32: 57.1% | CC32: 57.1% | CN32: Marzo | CO32: 25.0% | CP32: 24.1% | CQ32: 16.7% | CR32: 31.3% | CS32: 0.0% | CT32: 13.3% | CU32: 10.3% | CV32: 30.0% | CW32: 50.0% | CX32: 20.0% | CY32: 22.2% | CZ32: 26.1% | DA32: 14.3% | DB32: 10.5% | DC32: 22.6% | DD32: 18.2% | DE32: 12.5% | DF32: 0.0% | DG32: 11.1% | DH32: 3.1% | DI32: 0.0% | DJ32: 0.0% | DK32: 0.0% | DL32: 0.0% | DM32: 0.0% | DN32: 0.0% | DO32: 0.0% | DP32: 0.0% | DQ32: 0.0% | DR32: 14.4%
A33: PIURA | G33: 21 | H33: 7 | I33: 33.3% | BQ33: PIURA | BR33: 33.3% | BU33: PASCO | BV33: 0.0% | BW33: 0.0% | BX33: 0.0% | BY33: 0.0% | BZ33: 0.0% | CA33: 0.0% | CB33: 25.0% | CC33: 25.0% | CN33: Abril | CO33: 20.0% | CP33: 40.6% | CQ33: 16.7% | CR33: 30.0% | CS33: 0.0% | CT33: 18.8% | CU33: 9.4% | CV33: 40.0% | CW33: 50.0% | CX33: 20.0% | CY33: 35.3% | CZ33: 30.0% | DA33: 20.0% | DB33: 36.4% | DC33: 28.4% | DD33: 27.7% | DE33: 17.5% | DF33: 7.3% | DG33: 18.9% | DH33: 6.3% | DI33: 0.0% | DJ33: 20.0% | DK33: 0.0% | DL33: 0.0% | DM33: 0.0% | DN33: 0.0% | DO33: 0.0% | DP33: 20.0% | DQ33: 12.8% | DR33: 21.0%
A34: PUNO | G34: 15 | H34: 10 | I34: 66.7% | BQ34: PUNO | BR34: 66.7% | BU34: PIURA | BV34: 0.0% | BW34: 0.0% | BX34: 0.0% | BY34: 0.0% | BZ34: 0.0% | CA34: 31.3% | CB34: 38.9% | CC34: 33.3% | CN34: Mayo | CO34: 16.7% | CP34: 60.0% | CQ34: 25.0% | CR34: 31.8% | CS34: 28.6% | CT34: 35.3% | CU34: 18.3% | CV34: 46.7% | CW34: 50.0% | CX34: 15.0% | CY34: 46.4% | CZ34: 41.8% | DA34: 29.7% | DB34: 42.0% | DC34: 37.0% | DD34: 32.6% | DE34: 26.4% | DF34: 16.2% | DG34: 27.9% | DH34: 22.0% | DI34: 0.0% | DJ34: 40.0% | DK34: 0.0% | DL34: 0.0% | DM34: 9.1% | DN34: 0.0% | DO34: 14.3% | DP34: 40.0% | DQ34: 13.0% | DR34: 29.3%
A35: SAN MARTIN | G35: 27 | H35: 2 | I35: 7.4% | BQ35: SAN MARTIN | BR35: 7.4% | BU35: PUNO | BV35: 0.0% | BW35: 0.0% | BX35: 0.0% | BY35: 0.0% | BZ35: 9.1% | CA35: 36.4% | CB35: 61.5% | CC35: 66.7% | CN35: Junio | CO35: 14.3% | CP35: 52.1% | CQ35: 50.0% | CR35: 41.7% | CS35: 28.6% | CT35: 50.0% | CU35: 41.5% | CV35: 51.5% | CW35: 50.0% | CX35: 20.0% | CY35: 49.3% | CZ35: 61.3% | DA35: 33.6% | DB35: 51.9% | DC35: 43.5% | DD35: 38.9% | DE35: 33.2% | DF35: 25.3% | DG35: 34.3% | DH35: 34.7% | DI35: 14.3% | DJ35: 57.1% | DK35: 0.0% | DL35: 31.3% | DM35: 36.4% | DN35: 0.0% | DO35: 42.9% | DP35: 60.0% | DQ35: 18.6% | DR35: 37.9%
A36: TACNA | G36: 8 | H36: 4 | I36: 50.0% | BQ36: TACNA | BR36: 50.0% | BU36: SAN MARTIN | BV36: 0.0% | BW36: 0.0% | BX36: 0.0% | BY36: 0.0% | BZ36: 0.0% | CA36: 0.0% | CB36: 4.0% | CC36: 7.4% | CN36: Julio | CO36: 71.4% | CP36: 54.9% | CQ36: 50.0% | CR36: 48.0% | CS36: 28.6% | CT36: 50.0% | CU36: 49.3% | CV36: 58.8% | CW36: 50.0% | CX36: 25.0% | CY36: 52.1% | CZ36: 57.3% | DA36: 34.4% | DB36: 63.8% | DC36: 48.1% | DD36: 39.8% | DE36: 40.7% | DF36: 39.8% | DG36: 35.1% | DH36: 40.2% | DI36: 12.5% | DJ36: 57.1% | DK36: 25.0% | DL36: 38.9% | DM36: 61.5% | DN36: 4.0% | DO36: 50.0% | DP36: 60.0% | DQ36: 22.9% | DR36: 42.9%
A37: TUMBES | G37: 10 | H37: 6 | I37: 60.0% | BQ37: TUMBES | BR37: 60.0% | BU37: TACNA | BV37: 0.0% | BW37: 0.0% | BX37: 0.0% | BY37: 0.0% | BZ37: 14.3% | CA37: 42.9% | CB37: 50.0% | CC37: 50.0% | CN37: Agosto | CO37: 71.4% | CP37: 56.4% | CQ37: 50.0% | CR37: 48.0% | CS37: 42.9% | CT37: 50.0% | CU37: 57.9% | CV37: 54.1% | CW37: 50.0% | CX37: 30.0% | CY37: 51.3% | CZ37: 60.8% | DA37: 42.1% | DB37: 77.0% | DC37: 48.9% | DD37: 38.9% | DE37: 40.3% | DF37: 43.8% | DG37: 34.2% | DH37: 40.5% | DI37: 50.0% | DJ37: 57.1% | DK37: 25.0% | DL37: 33.3% | DM37: 66.7% | DN37: 7.4% | DO37: 50.0% | DP37: 60.0% | DQ37: 24.7% | DR37: 45.1%
A38: UCAYALI | G38: 73 | H38: 18 | I38: 24.7% | BQ38: UCAYALI | BR38: 24.7% | BU38: TUMBES | BV38: 0.0% | BW38: 0.0% | BX38: 0.0% | BY38: 20.0% | BZ38: 40.0% | CA38: 60.0% | CB38: 60.0% | CC38: 60.0% | CN38: Setiembre | CO38: - | CP38: - | CQ38: - | CR38: - | CS38: - | CT38: - | CU38: - | CV38: - | CW38: - | CX38: - | CY38: - | CZ38: - | DA38: - | DB38: - | DC38: - | DD38: - | DE38: - | DF38: - | DG38: - | DH38: - | DI38: - | DJ38: - | DK38: - | DL38: - | DM38: - | DN38: - | DO38: - | DP38: - | DQ38: - | DR38: -
A39: Total general | G39: 1,678 | H39: 756 | I39: 45.1% | BQ39: Total general | BR39: 45.1% | BU39: UCAYALI | BV39: 0.0% | BW39: 0.0% | BX39: 0.0% | BY39: 12.8% | BZ39: 13.0% | CA39: 18.6% | CB39: 22.9% | CC39: 24.7% | CN39: Octubre | CO39: - | CP39: - | CQ39: - | CR39: - | CS39: - | CT39: - | CU39: - | CV39: - | CW39: - | CX39: - | CY39: - | CZ39: - | DA39: - | DB39: - | DC39: - | DD39: - | DE39: - | DF39: - | DG39: - | DH39: =+IFERROR(GETPIVOTDATA("Ind",$CN$8,"Diris",DH$29,"mes",$CN39),"-") -> - | DI39: - | DJ39: - | DK39: - | DL39: - | DM39: - | DN39: - | DO39: - | DP39: - | DQ39: - | DR39: -
BU40: Total general | BV40: 5.9% | BW40: 9.7% | BX40: 14.4% | BY40: 21.0% | BZ40: 29.3% | CA40: 37.9% | CB40: 42.9% | CC40: 45.1% | CN40: Noviembre | CO40: - | CP40: - | CQ40: - | CR40: - | CS40: - | CT40: - | CU40: - | CV40: - | CW40: - | CX40: - | CY40: - | CZ40: - | DA40: - | DB40: - | DC40: - | DD40: - | DE40: - | DF40: - | DG40: - | DH40: - | DI40: - | DJ40: - | DK40: - | DL40: - | DM40: - | DN40: - | DO40: - | DP40: - | DQ40: - | DR40: -
CN41: Diciembre | CO41: - | CP41: - | CQ41: - | CR41: - | CS41: - | CT41: - | CU41: - | CV41: - | CW41: - | CX41: - | CY41: - | CZ41: - | DA41: - | DB41: - | DC41: - | DD41: - | DE41: - | DF41: - | DG41: - | DH41: - | DI41: - | DJ41: - | DK41: - | DL41: - | DM41: - | DN41: - | DO41: - | DP41: - | DQ41: - | DR41: -
BV45: 1 | BW45: 2 | BX45: 3 | BY45: 4 | BZ45: 5 | CA45: 6 | CB45: 7 | CC45: 8 | CD45: 9 | CE45: 10 | CF45: 11 | CG45: 12
BQ46: AMAZONAS | BR46: =+IFERROR(GETPIVOTDATA("Ind",$BQ$9,"Diris",$BQ46),"-") -> 71.4% | BU46: AMAZONAS | BV46: =+IFERROR(GETPIVOTDATA("Ind",$BU$9,"Diris",$BU46,"mes",BV$45),"-") -> 100.0% | BW46: =+IFERROR(GETPIVOTDATA("Ind",$BU$9,"Diris",$BU46,"mes",BW$45),"-") -> 100.0% | BX46: 25.0% | BY46: 20.0% | BZ46: 16.7% | CA46: 14.3% | CB46: 71.4% | CC46: 71.4% | CD46: - | CE46: - | CF46: - | CG46: - | CI46: AMAZONAS | CJ46: =+IF(BV46="-","-",MIN(BV46:CG46)) -> 14.3% | CK46: =+IF(BV46="-","-",MAX(BV46:CG46)) -> 100.0%
BQ47: ANCASH | BR47: 56.4% | BU47: ANCASH | BV47: 6.7% | BW47: 8.3% | BX47: 24.1% | BY47: 40.6% | BZ47: 60.0% | CA47: 52.1% | CB47: 54.9% | CC47: 56.4% | CD47: - | CE47: - | CF47: - | CG47: - | CI47: ANCASH | CJ47: 6.7% | CK47: 60.0%
BQ48: APURIMAC | BR48: 50.0% | BU48: APURIMAC | BV48: 0.0% | BW48: 0.0% | BX48: 16.7% | BY48: 16.7% | BZ48: 25.0% | CA48: 50.0% | CB48: 50.0% | CC48: 50.0% | CD48: - | CE48: - | CF48: - | CG48: - | CI48: APURIMAC | CJ48: 0.0% | CK48: 50.0%
BQ49: AREQUIPA | BR49: 48.0% | BU49: AREQUIPA | BV49: 0.0% | BW49: 16.7% | BX49: 31.3% | BY49: 30.0% | BZ49: 31.8% | CA49: 41.7% | CB49: 48.0% | CC49: 48.0% | CD49: - | CE49: - | CF49: - | CG49: - | CI49: AREQUIPA | CJ49: 0.0% | CK49: 48.0%
BQ50: AYACUCHO | BR50: 42.9% | BU50: AYACUCHO | BV50: 0.0% | BW50: 0.0% | BX50: 0.0% | BY50: 0.0% | BZ50: 28.6% | CA50: 28.6% | CB50: 28.6% | CC50: 42.9% | CD50: - | CE50: - | CF50: - | CG50: - | CI50: AYACUCHO | CJ50: 0.0% | CK50: 42.9%
BQ51: CAJAMARCA | BR51: 50.0% | BU51: CAJAMARCA | BV51: 9.1% | BW51: 7.1% | BX51: 13.3% | BY51: 18.8% | BZ51: 35.3% | CA51: 50.0% | CB51: 50.0% | CC51: 50.0% | CD51: - | CE51: - | CF51: - | CG51: - | CI51: CAJAMARCA | CJ51: 7.1% | CK51: 50.0%
BQ52: CALLAO | BR52: 57.9% | BU52: CALLAO | BV52: 4.8% | BW52: 7.1% | BX52: 10.3% | BY52: 9.4% | BZ52: 18.3% | CA52: 41.5% | CB52: 49.3% | CC52: 57.9% | CD52: - | CE52: - | CF52: - | CG52: - | CI52: CALLAO | CJ52: 4.8% | CK52: 57.9%
BQ53: CUSCO | BR53: 54.1% | BU53: CUSCO | BV53: 11.1% | BW53: 19.0% | BX53: 30.0% | BY53: 40.0% | BZ53: 46.7% | CA53: 51.5% | CB53: 58.8% | CC53: 54.1% | CD53: - | CE53: - | CF53: - | CG53: - | CI53: CUSCO | CJ53: 11.1% | CK53: 58.8%
BQ54: HUANCAVELICA | BR54: 50.0% | BU54: HUANCAVELICA | BV54: 50.0% | BW54: 50.0% | BX54: 50.0% | BY54: 50.0% | BZ54: 50.0% | CA54: 50.0% | CB54: 50.0% | CC54: 50.0% | CD54: - | CE54: - | CF54: - | CG54: - | CI54: HUANCAVELICA | CJ54: 50.0% | CK54: 50.0%
BQ55: HUANUCO | BR55: 30.0% | BU55: HUANUCO | BV55: 12.5% | BW55: 12.5% | BX55: 20.0% | BY55: 20.0% | BZ55: 15.0% | CA55: 20.0% | CB55: 25.0% | CC55: 30.0% | CD55: - | CE55: - | CF55: - | CG55: - | CI55: HUANUCO | CJ55: 12.5% | CK55: 30.0%
BQ56: ICA | BR56: 51.3% | BU56: ICA | BV56: 17.6% | BW56: 16.7% | BX56: 22.2% | BY56: 35.3% | BZ56: 46.4% | CA56: 49.3% | CB56: 52.1% | CC56: 51.3% | CD56: - | CE56: - | CF56: - | CG56: - | CI56: ICA | CJ56: 16.7% | CK56: 52.1%
BQ57: JUNIN | BR57: 60.8% | BU57: JUNIN | BV57: 11.1% | BW57: 25.0% | BX57: 26.1% | BY57: 30.0% | BZ57: 41.8% | CA57: 61.3% | CB57: 57.3% | CC57: 60.8% | CD57: - | CE57: - | CF57: - | CG57: - | CI57: JUNIN | CJ57: 11.1% | CK57: 61.3%
BQ58: LA LIBERTAD | BR58: 42.1% | BU58: LA LIBERTAD | BV58: 0.0% | BW58: 10.0% | BX58: 14.3% | BY58: 20.0% | BZ58: 29.7% | CA58: 33.6% | CB58: 34.4% | CC58: 42.1% | CD58: - | CE58: - | CF58: - | CG58: - | CI58: LA LIBERTAD | CJ58: 0.0% | CK58: 42.1%
BQ59: LAMBAYEQUE | BR59: 77.0% | BU59: LAMBAYEQUE | BV59: 0.0% | BW59: 7.1% | BX59: 10.5% | BY59: 36.4% | BZ59: 42.0% | CA59: 51.9% | CB59: 63.8% | CC59: 77.0% | CD59: - | CE59: - | CF59: - | CG59: - | CI59: LAMBAYEQUE | CJ59: 0.0% | CK59: 77.0%
BQ60: LIMA DIRIS CENTRO | BR60: 48.9% | BU60: LIMA DIRIS CENTRO | BV60: 6.9% | BW60: 11.4% | BX60: 22.6% | BY60: 28.4% | BZ60: 37.0% | CA60: 43.5% | CB60: 48.1% | CC60: 48.9% | CD60: - | CE60: - | CF60: - | CG60: - | CI60: LIMA DIRIS CENTRO | CJ60: 6.9% | CK60: 48.9%
BQ61: LIMA DIRIS ESTE | BR61: 38.9% | BU61: LIMA DIRIS ESTE | BV61: 9.2% | BW61: 14.3% | BX61: 18.2% | BY61: 27.7% | BZ61: 32.6% | CA61: 38.9% | CB61: 39.8% | CC61: 38.9% | CD61: - | CE61: - | CF61: - | CG61: - | CI61: LIMA DIRIS ESTE | CJ61: 9.2% | CK61: 39.8%
BQ62: LIMA DIRIS NORTE | BR62: 40.3% | BU62: LIMA DIRIS NORTE | BV62: 4.7% | BW62: 11.0% | BX62: 12.5% | BY62: 17.5% | BZ62: 26.4% | CA62: 33.2% | CB62: 40.7% | CC62: 40.3% | CD62: - | CE62: - | CF62: - | CG62: - | CI62: LIMA DIRIS NORTE | CJ62: 4.7% | CK62: 40.7%
BQ63: LIMA DIRIS SUR | BR63: 43.8% | BU63: LIMA DIRIS SUR | BV63: 0.0% | BW63: 0.0% | BX63: 0.0% | BY63: 7.3% | BZ63: 16.2% | CA63: 25.3% | CB63: 39.8% | CC63: 43.8% | CD63: - | CE63: - | CF63: - | CG63: - | CI63: LIMA DIRIS SUR | CJ63: 0.0% | CK63: 43.8%
BQ64: LIMA REGION | BR64: 34.2% | BU64: LIMA REGION | BV64: 0.0% | BW64: 0.0% | BX64: 11.1% | BY64: 18.9% | BZ64: 27.9% | CA64: 34.3% | CB64: 35.1% | CC64: 34.2% | CD64: - | CE64: - | CF64: - | CG64: - | CI64: LIMA PROVINCIAS | CJ64: 0.0% | CK64: 35.1%
BQ65: LORETO | BR65: 40.5% | BU65: LORETO | BV65: 0.0% | BW65: 0.0% | BX65: 3.1% | BY65: 6.3% | BZ65: 22.0% | CA65: 34.7% | CB65: 40.2% | CC65: 40.5% | CD65: - | CE65: - | CF65: - | CG65: - | CI65: LORETO | CJ65: 0.0% | CK65: 40.5%
BQ66: MADRE DE DIOS | BR66: 50.0% | BU66: MADRE DE DIOS | BV66: 0.0% | BW66: 0.0% | BX66: 0.0% | BY66: 0.0% | BZ66: 0.0% | CA66: 14.3% | CB66: 12.5% | CC66: 50.0% | CD66: - | CE66: - | CF66: - | CG66: - | CI66: MADRE DE DIOS | CJ66: 0.0% | CK66: 50.0%
BQ67: MOQUEGUA | BR67: 57.1% | BU67: MOQUEGUA | BV67: 0.0% | BW67: 0.0% | BX67: 0.0% | BY67: 20.0% | BZ67: 40.0% | CA67: 57.1% | CB67: 57.1% | CC67: 57.1% | CD67: - | CE67: - | CF67: - | CG67: - | CI67: MOQUEGUA | CJ67: 0.0% | CK67: 57.1%
BQ68: PASCO | BR68: 25.0% | BU68: PASCO | BV68: 0.0% | BW68: 0.0% | BX68: 0.0% | BY68: 0.0% | BZ68: 0.0% | CA68: 0.0% | CB68: 25.0% | CC68: 25.0% | CD68: - | CE68: - | CF68: - | CG68: - | CI68: PASCO | CJ68: 0.0% | CK68: 25.0%
BQ69: PIURA | BR69: 33.3% | BU69: PIURA | BV69: 0.0% | BW69: 0.0% | BX69: 0.0% | BY69: 0.0% | BZ69: 0.0% | CA69: 31.3% | CB69: 38.9% | CC69: 33.3% | CD69: - | CE69: - | CF69: - | CG69: - | CI69: PIURA | CJ69: 0.0% | CK69: 38.9%
BQ70: PUNO | BR70: 66.7% | BU70: PUNO | BV70: 0.0% | BW70: 0.0% | BX70: 0.0% | BY70: 0.0% | BZ70: 9.1% | CA70: 36.4% | CB70: 61.5% | CC70: 66.7% | CD70: - | CE70: - | CF70: - | CG70: - | CI70: PUNO | CJ70: 0.0% | CK70: 66.7%
BQ71: SAN MARTIN | BR71: 7.4% | BU71: SAN MARTIN | BV71: 0.0% | BW71: 0.0% | BX71: 0.0% | BY71: 0.0% | BZ71: 0.0% | CA71: 0.0% | CB71: 4.0% | CC71: 7.4% | CD71: - | CE71: - | CF71: - | CG71: - | CI71: SAN MARTIN | CJ71: 0.0% | CK71: 7.4%
BQ72: TACNA | BR72: 50.0% | BU72: TACNA | BV72: 0.0% | BW72: 0.0% | BX72: 0.0% | BY72: 0.0% | BZ72: 14.3% | CA72: 42.9% | CB72: 50.0% | CC72: 50.0% | CD72: - | CE72: - | CF72: - | CG72: - | CI72: TACNA | CJ72: 0.0% | CK72: 50.0%
BQ73: TUMBES | BR73: 60.0% | BU73: TUMBES | BV73: 0.0% | BW73: 0.0% | BX73: 0.0% | BY73: 20.0% | BZ73: 40.0% | CA73: 60.0% | CB73: 60.0% | CC73: 60.0% | CD73: - | CE73: - | CF73: - | CG73: - | CI73: TUMBES | CJ73: 0.0% | CK73: 60.0%
BQ74: UCAYALI | BR74: 24.7% | BU74: UCAYALI | BV74: 0.0% | BW74: 0.0% | BX74: 0.0% | BY74: 12.8% | BZ74: 13.0% | CA74: 18.6% | CB74: 22.9% | CC74: 24.7% | CD74: - | CE74: - | CF74: - | CG74: - | CI74: UCAYALI | CJ74: 0.0% | CK74: 24.7%
BQ75: NACIONAL | BR75: =+IFERROR(GETPIVOTDATA("Ind",$BQ$9),"-") -> 45.1% | BU75: NACIONAL | BV75: =+IFERROR(GETPIVOTDATA("Ind",$BU$9,"mes",BV$45),"-") -> 5.9% | BW75: =+IFERROR(GETPIVOTDATA("Ind",$BU$9,"mes",BW$45),"-") -> 9.7% | BX75: 14.4% | BY75: 21.0% | BZ75: 29.3% | CA75: 37.9% | CB75: 42.9% | CC75: 45.1% | CD75: - | CE75: - | CF75: - | CG75: - | CI75: NACIONAL | CJ75: 5.9% | CK75: 45.1%

Sheet DL_1153_2025_CG10
A1: =DL1153_2025!C16 -> Ficha 10:Cobertura de la Terapia Preventiva para Tuberculosis en personas viviendo con VIH que inician Tratamiento Antirretroviral.
A2: Periodo de Evaluación: | B2: =+DL1153_2025!B42 -> Agosto - 2025 | I2: Avance Mensual:
I3: DISA | J3: (Todas)
I4: Red | J4: (Todas)
A5: Mes | B5: (Todas) | I5: EESS | J5: (Todas)
A6: DIRESA/DIRIS | B6: RED | C6: Nombre EESS | D6: Denominador: Total de Personas que viven con VIH e inician TAR del período a evaluar | E6: Numerador: Total de Personas que viven con VIH e inician TAR y culminan la TPTB del período a evaluar | F6: Indicador: Cobertura de la Terapia Preventiva para Tuberculosis en personas viviendo con VIH adultas que inician Tratamiento Antirretroviral | I6: MES | J6: Denominador: Total de Personas que viven con VIH e inician TAR del período a evaluar | K6: Numerador: Total de Personas que viven con VIH e inician TAR y culminan la TPTB del período a evaluar | L6: Indicador: Cobertura de la Terapia Preventiva para Tuberculosis en personas viviendo con VIH adultas que inician Tratamiento Antirretroviral
A7: DISA | B7: Red | C7: EESS | D7: Suma de Den | E7: Suma de Num | F7: Suma de Ind | I7: Mes | J7: Suma de Den | K7: Suma de Num | L7: Suma de Ind
A8: AMAZONAS | D8: 107 | E8: 34 | F8: 31.8% | I8: 1 | J8: 416 | K8: 35 | L8: 8.4%
A9: ANCASH | D9: 118 | E9: 65 | F9: 55.1% | I9: 2 | J9: 451 | K9: 167 | L9: 37.0%
A10: APURIMAC | D10: 10 | E10: 7 | F10: 70.0% | I10: 3 | J10: 441 | K10: 197 | L10: 44.7%
A11: AREQUIPA | D11: 155 | E11: 78 | F11: 50.3% | I11: 4 | J11: 509 | K11: 283 | L11: 55.6%
A12: AYACUCHO | D12: 44 | E12: 25 | F12: 56.8% | I12: 5 | J12: 558 | K12: 409 | L12: 73.3%
A13: CAJAMARCA | D13: 72 | E13: 45 | F13: 62.5% | I13: 6 | J13: 551 | K13: 390 | L13: 70.8%
A14: CALLAO | D14: 153 | E14: 91 | F14: 59.5% | I14: 7 | J14: 583 | K14: 495 | L14: 84.9%
A15: CUSCO | D15: 135 | E15: 89 | F15: 65.9% | I15: 8 | J15: 557 | K15: 542 | L15: 97.3%
A16: HUANCAVELICA | D16: 12 | E16: 6 | F16: 50.0% | I16: 11 | J16: 253 | K16: 0 | L16: 0.0%
A17: HUANUCO | D17: 75 | E17: 54 | F17: 72.0% | I17: 12 | J17: 248 | K17: 0 | L17: 0.0%
A18: ICA | D18: 210 | E18: 138 | F18: 65.7% | I18: Total general | J18: 4,567 | K18: 2,518 | L18: 55.1%
A19: JUNIN | D19: 129 | E19: 68 | F19: 52.7%
A20: LA LIBERTAD | D20: 250 | E20: 143 | F20: 57.2%
A21: LAMBAYEQUE | D21: 173 | E21: 106 | F21: 61.3%
A22: LORETO | D22: 160 | E22: 78 | F22: 48.8%
A23: MADRE DE DIOS | D23: 32 | E23: 23 | F23: 71.9%
A24: MOQUEGUA | D24: 44 | E24: 24 | F24: 54.5%
A25: PASCO | D25: 18 | E25: 10 | F25: 55.6%
A26: PIURA | D26: 245 | E26: 130 | F26: 53.1%
A27: PUNO | D27: 60 | E27: 31 | F27: 51.7%
A28: SAN MARTIN | D28: 151 | E28: 74 | F28: 49.0%
A29: TACNA | D29: 62 | E29: 38 | F29: 61.3%
A30: TUMBES | D30: 46 | E30: 23 | F30: 50.0%
A31: UCAYALI | D31: 208 | E31: 128 | F31: 61.5%
A32: LIMA | D32: 142 | E32: 90 | F32: 63.4%
A33: LIMA CENTRO | D33: 628 | E33: 290 | F33: 46.2%
A34: LIMA ESTE | D34: 322 | E34: 206 | F34: 64.0%
A35: LIMA NORTE | D35: 422 | E35: 193 | F35: 45.7%
A36: LIMA SUR | D36: 384 | E36: 231 | F36: 60.2%
A37: Total general | D37: 4,567 | E37: 2,518 | F37: 55.1%

Sheet DL_1153_2024_CG11
A1: =+DL1153_2025!C17 -> Ficha 11: Mujeres de 30 a 49 años con tamizaje para la detección de lesiones premalignas e incipientes de cáncer de cuello uterino. | BP1: 1 | DT1: 1
A2: Periodo de Evaluación: | B2: =+DL1153_2025!B42 -> Agosto - 2025 | K2: Avance Mensual
A5: año | B5: (Todas) | K5: Diris | L5: (Todas) | BQ5: año | BR5: (Todas)
A6: mes | B6: 8 | K6: red | L6: (Todas) | BQ6: mes | BR6: 8 | BU6: año | BV6: (Todas) | CN6: año | CO6: (Todas)
A7: DIRIS del Establecimiento de Salud | B7: RED del Establecimiento de Salud | C7: Provincia de Establecimiento | D7: Nombre del Establecimiento | E7: Categoria del Establecimiento | F7: Denominador: Total de mujeres de 30 a 49 años afiliadas al SIS. | G7: Numerador: Mujeres de 30 a 49 años con resultado entregado de IVAA o DM-VPH en menos de 45 dias. | H7: Indicador: Porcentaje de mujeres mujeres de 30 a 49 años con tamizaje para la detección de lesiones premalignas e incipientes de cáncer de cuello uterino. | K7: AÑO | L7: MES | M7: Denominador: Total de mujeres de 30 a 49 años afiliadas al SIS. | N7: Numerador: Mujeres de 30 a 49 años con resultado entregado de IVAA o DM-VPH en menos de 45 dias. | O7: Indicador: Porcentaje de mujeres mujeres de 30 a 49 años con tamizaje para la detección de lesiones premalignas e incipientes de cáncer de cuello uterino.
A8: Diris | B8: red | C8: Provincia | D8: EESS | E8: CAT_ESTAB | F8: Denominador | G8: Numerador | H8: Indicador | K8: año | L8: mes | M8: Denominador | N8: Numerador | O8: Indicador | BQ8: Diris | BR8: Suma de Ind | BU8: Suma de Ind | BV8: mes | CN8: Suma de Ind | CO8: Diris
A9: AMAZONAS | F9: 44,433 | G9: 2,564 | H9: 5.8% | K9: 2025 | L9: 1 | M9: 3,058,710 | N9: 17,608 | O9: 0.6% | BQ9: AMAZONAS | BR9: 5.8% | BU9: Diris | BV9: 1 | BW9: 2 | BX9: 3 | BY9: 4 | BZ9: 5 | CA9: 6 | CB9: 7 | CC9: 8 | CN9: mes | CO9: AMAZONAS | CP9: ANCASH | CQ9: APURIMAC | CR9: AREQUIPA | CS9: AYACUCHO | CT9: CAJAMARCA | CU9: CALLAO | CV9: CUSCO | CW9: HUANCAVELICA | CX9: HUANUCO | CY9: ICA | CZ9: JUNIN | DA9: LA LIBERTAD | DB9: LAMBAYEQUE | DC9: LIMA | DD9: LIMA CENTRO | DE9: LIMA ESTE | DF9: LIMA NORTE | DG9: LIMA SUR | DH9: LORETO | DI9: MADRE DE DIOS | DJ9: MOQUEGUA | DK9: PASCO | DL9: PIURA | DM9: PUNO | DN9: SAN MARTIN | DO9: TACNA | DP9: TUMBES | DQ9: UCAYALI | DR9: Total general
A10: ANCASH | F10: 104,284 | G10: 15,973 | H10: 15.3% | K10: 2025 | L10: 2 | M10: 3,058,710 | N10: 62,972 | O10: 2.1% | BQ10: ANCASH | BR10: 15.3% | BU10: AMAZONAS | BV10: 0.3% | BW10: 1.2% | BX10: 2.1% | BY10: 2.7% | BZ10: 3.5% | CA10: 4.3% | CB10: 5.0% | CC10: 5.8% | CN10: Enero | CO10: 0.3% | CP10: 0.6% | CQ10: 0.7% | CR10: 0.6% | CS10: 0.6% | CT10: 0.6% | CU10: 1.4% | CV10: 0.4% | CW10: 1.0% | CX10: 0.8% | CY10: 0.8% | CZ10: 0.9% | DA10: 0.3% | DB10: 0.6% | DC10: 1.3% | DD10: 0.1% | DE10: 0.7% | DF10: 0.3% | DG10: 0.7% | DH10: 0.3% | DI10: 1.1% | DJ10: 1.4% | DK10: 0.9% | DL10: 0.7% | DM10: 0.5% | DN10: 0.4% | DO10: 0.9% | DP10: 0.2% | DQ10: 0.7% | DR10: 0.6%
A11: APURIMAC | F11: 42,948 | G11: 5,231 | H11: 12.2% | K11: 2025 | L11: 3 | M11: 3,058,710 | N11: 121,629 | O11: 4.0% | BQ11: APURIMAC | BR11: 12.2% | BU11: ANCASH | BV11: 0.6% | BW11: 2.9% | BX11: 5.6% | BY11: 7.9% | BZ11: 10.1% | CA11: 11.9% | CB11: 13.6% | CC11: 15.3% | CN11: Febrero | CO11: 1.2% | CP11: 2.9% | CQ11: 2.3% | CR11: 2.1% | CS11: 2.2% | CT11: 3.1% | CU11: 3.2% | CV11: 1.9% | CW11: 2.9% | CX11: 3.5% | CY11: 2.2% | CZ11: 2.6% | DA11: 1.4% | DB11: 2.1% | DC11: 3.7% | DD11: 0.8% | DE11: 2.5% | DF11: 1.5% | DG11: 1.6% | DH11: 0.8% | DI11: 3.8% | DJ11: 3.5% | DK11: 3.4% | DL11: 2.6% | DM11: 1.3% | DN11: 1.8% | DO11: 2.3% | DP11: 2.9% | DQ11: 2.2% | DR11: 2.1%
A12: AREQUIPA | F12: 127,202 | G12: 12,961 | H12: 10.2% | K12: 2025 | L12: 4 | M12: 3,058,710 | N12: 170,710 | O12: 5.6% | BQ12: AREQUIPA | BR12: 10.2% | BU12: APURIMAC | BV12: 0.7% | BW12: 2.3% | BX12: 4.2% | BY12: 6.2% | BZ12: 7.7% | CA12: 9.4% | CB12: 10.9% | CC12: 12.2% | CN12: Marzo | CO12: 2.1% | CP12: 5.6% | CQ12: 4.2% | CR12: 3.9% | CS12: 5.0% | CT12: 5.8% | CU12: 5.5% | CV12: 3.7% | CW12: 4.4% | CX12: 6.0% | CY12: 3.9% | CZ12: 4.7% | DA12: 2.5% | DB12: 3.4% | DC12: 9.3% | DD12: 1.9% | DE12: 4.5% | DF12: 3.5% | DG12: 3.2% | DH12: 1.9% | DI12: 6.0% | DJ12: 4.9% | DK12: 4.5% | DL12: 5.7% | DM12: 2.1% | DN12: 3.3% | DO12: 4.7% | DP12: 6.3% | DQ12: 3.6% | DR12: 4.0%
A13: AYACUCHO | F13: 57,038 | G13: 9,106 | H13: 16.0% | K13: 2025 | L13: 5 | M13: 3,058,710 | N13: 216,497 | O13: 7.1% | BQ13: AYACUCHO | BR13: 16.0% | BU13: AREQUIPA | BV13: 0.6% | BW13: 2.1% | BX13: 3.9% | BY13: 5.8% | BZ13: 7.2% | CA13: 8.4% | CB13: 9.5% | CC13: 10.2% | CN13: Abril | CO13: 2.7% | CP13: 7.9% | CQ13: 6.2% | CR13: 5.8% | CS13: 8.3% | CT13: 8.0% | CU13: 7.2% | CV13: 5.4% | CW13: 5.8% | CX13: 8.4% | CY13: 6.1% | CZ13: 7.4% | DA13: 3.7% | DB13: 5.2% | DC13: 13.1% | DD13: 3.4% | DE13: 6.1% | DF13: 4.3% | DG13: 4.4% | DH13: 3.3% | DI13: 7.5% | DJ13: 6.0% | DK13: 5.7% | DL13: 7.2% | DM13: 2.8% | DN13: 4.2% | DO13: 6.3% | DP13: 7.8% | DQ13: 4.8% | DR13: 5.6%
A14: CAJAMARCA | F14: 153,917 | G14: 19,715 | H14: 12.8% | K14: 2025 | L14: 6 | M14: 3,058,710 | N14: 255,881 | O14: 8.4% | BQ14: CAJAMARCA | BR14: 12.8% | BU14: AYACUCHO | BV14: 0.6% | BW14: 2.2% | BX14: 5.0% | BY14: 8.3% | BZ14: 10.8% | CA14: 13.1% | CB14: 14.7% | CC14: 16.0% | CN14: Mayo | CO14: 3.5% | CP14: 10.1% | CQ14: 7.7% | CR14: 7.2% | CS14: 10.8% | CT14: 9.6% | CU14: 8.7% | CV14: 7.0% | CW14: 7.2% | CX14: 10.6% | CY14: 7.7% | CZ14: 8.9% | DA14: 5.0% | DB14: 6.7% | DC14: 16.3% | DD14: 5.3% | DE14: 7.7% | DF14: 5.2% | DG14: 5.6% | DH14: 4.6% | DI14: 8.4% | DJ14: 7.3% | DK14: 7.1% | DL14: 8.4% | DM14: 3.7% | DN14: 5.5% | DO14: 7.9% | DP14: 10.2% | DQ14: 6.2% | DR14: 7.1%
A15: CALLAO | F15: 93,774 | G15: 12,719 | H15: 13.6% | K15: 2025 | L15: 7 | M15: 3,058,710 | N15: 293,119 | O15: 9.6% | BQ15: CALLAO | BR15: 13.6% | BU15: CAJAMARCA | BV15: 0.6% | BW15: 3.1% | BX15: 5.8% | BY15: 8.0% | BZ15: 9.6% | CA15: 10.7% | CB15: 12.0% | CC15: 12.8% | CN15: Junio | CO15: 4.3% | CP15: 11.9% | CQ15: 9.4% | CR15: 8.4% | CS15: 13.1% | CT15: 10.7% | CU15: 10.1% | CV15: 8.1% | CW15: 8.4% | CX15: 12.1% | CY15: 9.1% | CZ15: 10.6% | DA15: 5.8% | DB15: 8.5% | DC15: 19.2% | DD15: 6.0% | DE15: 9.5% | DF15: 6.1% | DG15: 7.0% | DH15: 5.7% | DI15: 9.9% | DJ15: 8.4% | DK15: 8.4% | DL15: 9.6% | DM15: 4.7% | DN15: 6.7% | DO15: 9.7% | DP15: 11.5% | DQ15: 7.3% | DR15: 8.4%
A16: CUSCO | F16: 129,822 | G16: 12,952 | H16: 10.0% | K16: 2025 | L16: 8 | M16: 3,058,710 | N16: 320,419 | O16: 10.5% | BQ16: CUSCO | BR16: 10.0% | BU16: CALLAO | BV16: 1.4% | BW16: 3.2% | BX16: 5.5% | BY16: 7.2% | BZ16: 8.7% | CA16: 10.1% | CB16: 11.6% | CC16: 13.6% | CN16: Julio | CO16: 5.0% | CP16: 13.6% | CQ16: 10.9% | CR16: 9.5% | CS16: 14.7% | CT16: 12.0% | CU16: 11.6% | CV16: 9.2% | CW16: 9.2% | CX16: 13.7% | CY16: 10.4% | CZ16: 12.2% | DA16: 6.8% | DB16: 10.0% | DC16: 21.2% | DD16: 6.7% | DE16: 11.4% | DF16: 6.8% | DG16: 8.4% | DH16: 6.6% | DI16: 11.2% | DJ16: 9.5% | DK16: 9.9% | DL16: 11.0% | DM16: 5.5% | DN16: 8.1% | DO16: 11.3% | DP16: 13.1% | DQ16: 8.3% | DR16: 9.6%
A17: HUANCAVELICA | F17: 30,150 | G17: 2,931 | H17: 9.7% | BQ17: HUANCAVELICA | BR17: 9.7% | BU17: CUSCO | BV17: 0.4% | BW17: 1.9% | BX17: 3.7% | BY17: 5.4% | BZ17: 7.0% | CA17: 8.1% | CB17: 9.2% | CC17: 10.0% | CN17: Agosto | CO17: 5.8% | CP17: 15.3% | CQ17: 12.2% | CR17: 10.2% | CS17: 16.0% | CT17: 12.8% | CU17: 13.6% | CV17: 10.0% | CW17: 9.7% | CX17: 14.7% | CY17: 11.4% | CZ17: 12.8% | DA17: 7.4% | DB17: 11.2% | DC17: 22.7% | DD17: 7.1% | DE17: 13.3% | DF17: 7.2% | DG17: 9.3% | DH17: 7.1% | DI17: 11.9% | DJ17: 10.6% | DK17: 11.3% | DL17: 11.9% | DM17: 6.3% | DN17: 8.7% | DO17: 12.4% | DP17: 13.8% | DQ17: 9.2% | DR17: 10.5%
A18: HUANUCO | F18: 80,392 | G18: 11,851 | H18: 14.7% | BQ18: HUANUCO | BR18: 14.7% | BU18: HUANCAVELICA | BV18: 1.0% | BW18: 2.9% | BX18: 4.4% | BY18: 5.8% | BZ18: 7.2% | CA18: 8.4% | CB18: 9.2% | CC18: 9.7%
A19: ICA | F19: 58,812 | G19: 6,692 | H19: 11.4% | BQ19: ICA | BR19: 11.4% | BU19: HUANUCO | BV19: 0.8% | BW19: 3.5% | BX19: 6.0% | BY19: 8.4% | BZ19: 10.6% | CA19: 12.1% | CB19: 13.7% | CC19: 14.7%
A20: JUNIN | F20: 115,186 | G20: 14,742 | H20: 12.8% | BQ20: JUNIN | BR20: 12.8% | BU20: ICA | BV20: 0.8% | BW20: 2.2% | BX20: 3.9% | BY20: 6.1% | BZ20: 7.7% | CA20: 9.1% | CB20: 10.4% | CC20: 11.4%
A21: LA LIBERTAD | F21: 158,027 | G21: 11,644 | H21: 7.4% | BQ21: LA LIBERTAD | BR21: 7.4% | BU21: JUNIN | BV21: 0.9% | BW21: 2.6% | BX21: 4.7% | BY21: 7.4% | BZ21: 8.9% | CA21: 10.6% | CB21: 12.2% | CC21: 12.8%
A22: LAMBAYEQUE | F22: 119,203 | G22: 13,326 | H22: 11.2% | BQ22: LAMBAYEQUE | BR22: 11.2% | BU22: LA LIBERTAD | BV22: 0.3% | BW22: 1.4% | BX22: 2.5% | BY22: 3.7% | BZ22: 5.0% | CA22: 5.8% | CB22: 6.8% | CC22: 7.4%
A23: LIMA | F23: 79,295 | G23: 18,001 | H23: 22.7% | BQ23: LIMA | BR23: 22.7% | BU23: LAMBAYEQUE | BV23: 0.6% | BW23: 2.1% | BX23: 3.4% | BY23: 5.2% | BZ23: 6.7% | CA23: 8.5% | CB23: 10.0% | CC23: 11.2%
A24: LIMA CENTRO | F24: 282,911 | G24: 20,081 | H24: 7.1% | BQ24: LIMA CENTRO | BR24: 7.1% | BU24: LIMA | BV24: 1.3% | BW24: 3.7% | BX24: 9.3% | BY24: 13.1% | BZ24: 16.3% | CA24: 19.2% | CB24: 21.2% | CC24: 22.7%
A25: LIMA ESTE | F25: 155,216 | G25: 20,648 | H25: 13.3% | BQ25: LIMA ESTE | BR25: 13.3% | BU25: LIMA CENTRO | BV25: 0.1% | BW25: 0.8% | BX25: 1.9% | BY25: 3.4% | BZ25: 5.3% | CA25: 6.0% | CB25: 6.7% | CC25: 7.1%
A26: LIMA NORTE | F26: 304,555 | G26: 22,015 | H26: 7.2% | BQ26: LIMA NORTE | BR26: 7.2% | BU26: LIMA ESTE | BV26: 0.7% | BW26: 2.5% | BX26: 4.5% | BY26: 6.1% | BZ26: 7.7% | CA26: 9.5% | CB26: 11.4% | CC26: 13.3%
A27: LIMA SUR | F27: 234,586 | G27: 21,871 | H27: 9.3% | BQ27: LIMA SUR | BR27: 9.3% | BU27: LIMA NORTE | BV27: 0.3% | BW27: 1.5% | BX27: 3.5% | BY27: 4.3% | BZ27: 5.2% | CA27: 6.1% | CB27: 6.8% | CC27: 7.2%
A28: LORETO | F28: 103,415 | G28: 7,326 | H28: 7.1% | BQ28: LORETO | BR28: 7.1% | BU28: LIMA SUR | BV28: 0.7% | BW28: 1.6% | BX28: 3.2% | BY28: 4.4% | BZ28: 5.6% | CA28: 7.0% | CB28: 8.4% | CC28: 9.3%
A29: MADRE DE DIOS | F29: 21,216 | G29: 2,525 | H29: 11.9% | BQ29: MADRE DE DIOS | BR29: 11.9% | BU29: LORETO | BV29: 0.3% | BW29: 0.8% | BX29: 1.9% | BY29: 3.3% | BZ29: 4.6% | CA29: 5.7% | CB29: 6.6% | CC29: 7.1%
A30: MOQUEGUA | F30: 17,175 | G30: 1,812 | H30: 10.6% | BQ30: MOQUEGUA | BR30: 10.6% | BU30: MADRE DE DIOS | BV30: 1.1% | BW30: 3.8% | BX30: 6.0% | BY30: 7.5% | BZ30: 8.4% | CA30: 9.9% | CB30: 11.2% | CC30: 11.9%
A31: PASCO | F31: 21,601 | G31: 2,438 | H31: 11.3% | BQ31: PASCO | BR31: 11.3% | BU31: MOQUEGUA | BV31: 1.4% | BW31: 3.5% | BX31: 4.9% | BY31: 6.0% | BZ31: 7.3% | CA31: 8.4% | CB31: 9.5% | CC31: 10.6%
A32: PIURA | F32: 175,889 | G32: 20,951 | H32: 11.9% | BQ32: PIURA | BR32: 11.9% | BU32: PASCO | BV32: 0.9% | BW32: 3.4% | BX32: 4.5% | BY32: 5.7% | BZ32: 7.1% | CA32: 8.4% | CB32: 9.9% | CC32: 11.3%
A33: PUNO | F33: 127,975 | G33: 8,039 | H33: 6.3% | BQ33: PUNO | BR33: 6.3% | BU33: PIURA | BV33: 0.7% | BW33: 2.6% | BX33: 5.7% | BY33: 7.2% | BZ33: 8.4% | CA33: 9.6% | CB33: 11.0% | CC33: 11.9%
A34: SAN MARTIN | F34: 87,537 | G34: 7,617 | H34: 8.7% | BQ34: SAN MARTIN | BR34: 8.7% | BU34: PUNO | BV34: 0.5% | BW34: 1.3% | BX34: 2.1% | BY34: 2.8% | BZ34: 3.7% | CA34: 4.7% | CB34: 5.5% | CC34: 6.3%
A35: TACNA | F35: 42,367 | G35: 5,236 | H35: 12.4% | BQ35: TACNA | BR35: 12.4% | BU35: SAN MARTIN | BV35: 0.4% | BW35: 1.8% | BX35: 3.3% | BY35: 4.2% | BZ35: 5.5% | CA35: 6.7% | CB35: 8.1% | CC35: 8.7%
A36: TUMBES | F36: 26,533 | G36: 3,655 | H36: 13.8% | BQ36: TUMBES | BR36: 13.8% | BU36: TACNA | BV36: 0.9% | BW36: 2.3% | BX36: 4.7% | BY36: 6.3% | BZ36: 7.9% | CA36: 9.7% | CB36: 11.3% | CC36: 12.4% | CO36: AMAZONAS | CP36: ANCASH | CQ36: APURIMAC | CR36: AREQUIPA | CS36: AYACUCHO | CT36: CAJAMARCA | CU36: CALLAO | CV36: CUSCO | CW36: HUANCAVELICA | CX36: HUANUCO | CY36: ICA | CZ36: JUNIN | DA36: LA LIBERTAD | DB36: LAMBAYEQUE | DC36: LIMA DIRIS CENTRO | DD36: LIMA DIRIS ESTE | DE36: LIMA DIRIS NORTE | DF36: LIMA DIRIS SUR | DG36: LIMA PROVINCIAS | DH36: LORETO | DI36: MADRE DE DIOS | DJ36: MOQUEGUA | DK36: PASCO | DL36: PIURA | DM36: PUNO | DN36: SAN MARTIN | DO36: TACNA | DP36: TUMBES | DQ36: UCAYALI | DR36: NACIONAL
